Workbook

Sheet Introduction
C4: Joint Monitoring Programme for Water Supply, Sanitation and Hygiene
C6: Estimates on household water, sanitation and hygiene by wealth quintile and sub-national region in
C7: =+Water!B5 -> Burkina Faso
C9: Updated April 2021
C11: Follow the links below to find the following information:
C13: JMP Estimates
C14: WASH status and trends by wealth quintile (customized quintiles made without water and sanitation assets)
C15: Water
C16: Sanitation
C17: Hygiene
C19: Data inputs
C20: customized wealth quintiles and subnational data:
C21: =IF(INDIRECT(CONCATENATE("Water","!B105"))=0,"",INDIRECT(CONCATENATE("Water","!B105"))) -> DHS03
C22: =IF(INDIRECT(CONCATENATE("Water","!B106"))=0,"",INDIRECT(CONCATENATE("Water","!B106"))) -> MICS06
C23: =IF(INDIRECT(CONCATENATE("Water","!B107"))=0,"",INDIRECT(CONCATENATE("Water","!B107"))) -> DHS10
C24: =IF(INDIRECT(CONCATENATE("Water","!B108"))=0,"",INDIRECT(CONCATENATE("Water","!B108"))) -> MIS14
C25: =IF(INDIRECT(CONCATENATE("Water","!B109"))=0,"",INDIRECT(CONCATENATE("Water","!B109"))) -> MIS18
C26: =IF(INDIRECT(CONCATENATE("Water","!B110"))=0,"",INDIRECT(CONCATENATE("Water","!B110"))) -> 
C27: =IF(INDIRECT(CONCATENATE("Water","!B111"))=0,"",INDIRECT(CONCATENATE("Water","!B111"))) -> 
C28: =IF(INDIRECT(CONCATENATE("Water","!B112"))=0,"",INDIRECT(CONCATENATE("Water","!B112"))) -> 
C29: =IF(INDIRECT(CONCATENATE("Water","!B113"))=0,"",INDIRECT(CONCATENATE("Water","!B113"))) -> 
C30: =IF(INDIRECT(CONCATENATE("Water","!B114"))=0,"",INDIRECT(CONCATENATE("Water","!B114"))) -> 
C31: =IF(INDIRECT(CONCATENATE("Water","!B115"))=0,"",INDIRECT(CONCATENATE("Water","!B115"))) -> 
C32: =IF(INDIRECT(CONCATENATE("Water","!B116"))=0,"",INDIRECT(CONCATENATE("Water","!B116"))) -> 
L55: =+IF(ISNUMBER(M48), "", "Insufficient data to estimate safely managed sanitation services at national level") -> Insufficient data to estimate safely managed sanitation services at national level

Sheet Water
A1: BGD
B4: Summary of trends in use of drinking water by wealth quintile (%)
B5: =IF(ISERROR(INDIRECT(CONCATENATE($B105,"!A2"))),"",INDIRECT(CONCATENATE($B105,"!A2"))) -> Burkina Faso
B7: =B118 -> National use of drinking water sources, 2000–2020 | J7: =B218 -> Urban use of drinking water sources, 2000–2020 | R7: =B318 -> Rural use of drinking water sources, 2000–2020
B31: =IF(ISERROR(INDIRECT(CONCATENATE($B105,"!A2"))),"",INDIRECT(CONCATENATE($B105,"!A2"))) -> Burkina Faso | F31: Poorest | J31: Poor | N31: Middle | R31: Rich | V31: Richest
F32: Basic | G32: Limited | H32: Unimproved | I32: Surface water | J32: Basic | K32: Limited | L32: Unimproved | M32: Surface water | N32: Basic | O32: Limited | P32: Unimproved | Q32: Surface water | R32: Basic | S32: Limited | T32: Unimproved | U32: Surface water | V32: Basic | W32: Limited | X32: Unimproved | Y32: Surface water
B33: NATIONAL | D33: Estimate | E33: =C99 -> 2000 | F33: =E99 -> 40.66217158 | G33: =F99 -> 20.47641285 | H33: 26.03535915 | I33: 12.82605642 | J33: =J99 -> 48.1578888 | K33: =K99 -> 20.67735796 | L33: 22.64954731 | M33: 8.515205919 | N33: =O99 -> 48.9175187 | O33: =P99 -> 23.48105336 | P33: 24.53650052 | Q33: 3.064927424 | R33: =T99 -> 59.68244302 | S33: =U99 -> 24.49913687 | T33: 14.17384586 | U33: 1.644574247 | V33: =Y99 -> 87.95058791 | W33: =Z99 -> 10.33841245 | X33: 1.710999638 | Y33: 0
E34: =C100 -> 2020 | F34: =E100 -> 51.16893116 | G34: 25.76734392 | H34: 21.2331626 | I34: 1.830562332 | J34: =J100 -> 51.99910049 | K34: 22.32664349 | L34: 24.43165426 | M34: 1.242601759 | N34: =O100 -> 50.30764034 | O34: 24.14833006 | P34: 23.97911054 | Q34: 1.564919063 | R34: =T100 -> 52.59262348 | S34: 21.58882605 | T34: 25.06674595 | U34: 0.7518045118 | V34: =Y100 -> 82.82091582 | W34: 9.735429947 | X34: 7.244553599 | Y34: 0.1991006368
B36: URBAN | D36: Estimate | E36: =C199 -> 2000 | F36: =E199 -> 71.63604726 | G36: =F199 -> 23.32028212 | H36: 4.179467187 | I36: 0.8642034249 | J36: =J199 -> 79.63931465 | K36: =K199 -> 15.78668872 | L36: 4.57399663 | M36: 0 | N36: =O199 -> 89.49424527 | O36: =P199 -> 9.637293186 | P36: 0.8684615437 | Q36: 0 | R36: =T199 -> 92.25364302 | S36: =U199 -> 7.626188952 | T36: 0.1201680265 | U36: 0 | V36: =Y199 -> 97.16087326 | W36: =Z199 -> 2.839126742 | X36: 0 | Y36: 0
E37: =C200 -> 2020 | F37: =E200 -> 55.16123716 | G37: 17.95709928 | H37: 26.78564095 | I37: 0.09602260276 | J37: =J200 -> 76.28484406 | K37: 15.12174097 | L37: 8.593414973 | M37: 0 | N37: =O200 -> 87.43076523 | O37: 9.415084908 | P37: 3.154149863 | Q37: 0 | R37: =T200 -> 90.50497237 | S37: 7.481634306 | T37: 2.013393322 | U37: 0 | V37: =Y200 -> 94.73230658 | W37: 2.768161873 | X37: 2.13856379 | Y37: 0.3609677565
B39: RURAL | D39: Estimate | E39: =C299 -> 2000 | F39: =E299 -> 38.59614709 | G39: =F299 -> 20.39141336 | H39: 27.04148779 | I39: 13.97095177 | J39: =J299 -> 48.05512727 | K39: =K299 -> 20.19987485 | L39: 22.60915943 | M39: 9.135838449 | N39: =O299 -> 44.91494806 | O39: =P299 -> 21.24728427 | P39: 27.45143364 | Q39: 6.386334037 | R39: =T299 -> 51.28938768 | S39: =U299 -> 24.32422469 | T39: 21.87871833 | U39: 2.5076693 | V39: =Y299 -> 57.09127596 | W39: =Z299 -> 24.01241542 | X39: 17.05340221 | Y39: 1.842906408
E40: =C300 -> 2020 | F40: =E300 -> 51.05287021 | G40: 26.97264515 | H40: 19.48695201 | I40: 2.487532627 | J40: =J300 -> 51.78832747 | K40: 21.76911795 | L40: 25.44313028 | M40: 0.9994242976 | N40: =O300 -> 52.38300993 | O40: 24.78009551 | P40: 21.46253485 | Q40: 1.374359712 | R40: =T300 -> 49.24853412 | S40: 23.35634064 | T40: 25.84356767 | U40: 1.551557576 | V40: =Y300 -> 52.11460747 | W40: 21.91924393 | X40: 25.22476373 | Y40: 0.7413848747
A97: NATIONAL | D97: Poorest | I97: Poor | N97: Middle | S97: Rich | X97: Richest
D98: Improved | E98: Basic | F98: Limited | G98: Unimproved | H98: Surface water | I98: Improved | J98: Basic | K98: Limited | L98: Unimproved | M98: Surface water | N98: Improved | O98: Basic | P98: Limited | Q98: Unimproved | R98: Surface water | S98: Improved | T98: Basic | U98: Limited | V98: Unimproved | W98: Surface water | X98: Improved | Y98: Basic | Z98: Limited | AA98: Unimproved | AB98: Surface water
A99: Forecast period: | C99: 2000 | D99: =IF((D101+H101)>100,D101*100/(D101+H101),D101) -> 61.13858443 | E99: =D99*AVERAGEIF(E105:E116,">0")/100 -> 40.66217158 | F99: =D99*(100-AVERAGEIF(E105:E116,">0"))/100 -> 20.47641285 | G99: =100-(E99+F99+H99) -> 26.03535915 | H99: =IF((D101+H101)>100,H101*100/(D101+H101),H101) -> 12.82605642 | I99: =IF((I101+M101)>100,I101*100/(I101+M101),I101) -> 68.83524677 | J99: =I99*AVERAGEIF(J105:J116,">0")/100 -> 48.1578888 | K99: =I99*(100-AVERAGEIF(J105:J116,">0"))/100 -> 20.67735796 | L99: =100-(J99+K99+M99) -> 22.64954731 | M99: =IF((I101+M101)>100,M101*100/(I101+M101),M101) -> 8.515205919 | N99: =IF((N101+R101)>100,N101*100/(N101+R101),N101) -> 72.39857206 | O99: =N99*AVERAGEIF(O105:O116,">0")/100 -> 48.9175187 | P99: =N99*(100-AVERAGEIF(O105:O116,">0"))/100 -> 23.48105336 | Q99: =100-(O99+P99+R99) -> 24.53650052 | R99: =IF((N101+R101)>100,R101*100/(N101+R101),R101) -> 3.064927424 | S99: =IF((S101+W101)>100,S101*100/(S101+W101),S101) -> 84.18157989 | T99: =S99*AVERAGEIF(T105:T116,">0")/100 -> 59.68244302 | U99: =S99*(100-AVERAGEIF(T105:T116,">0"))/100 -> 24.49913687 | V99: =100-(T99+U99+W99) -> 14.17384586 | W99: =IF((S101+W101)>100,W101*100/(S101+W101),W101) -> 1.644574247 | X99: =IF((X101+AB101)>100,X101*100/(X101+AB101),X101) -> 98.28900036 | Y99: =X99*AVERAGEIF(Y105:Y116,">0")/100 -> 87.95058791 | Z99: =X99*(100-AVERAGEIF(Y105:Y116,">0"))/100 -> 10.33841245 | AA99: =100-(Y99+Z99+AB99) -> 1.710999638 | AB99: =IF((X101+AB101)>100,AB101*100/(X101+AB101),AB101) -> 0
C100: 2020 | D100: =IF((D102+H102)>100,D102*100/(D102+H102),D102) -> 76.93627507 | E100: =D100*AVERAGEIF(E105:E116,">0")/100 -> 51.16893116 | F100: =D100*(100-AVERAGEIF(E105:E116,">0"))/100 -> 25.76734392 | G100: =100-(E100+F100+H100) -> 21.2331626 | H100: =IF((D102+H102)>100,H102*100/(D102+H102),H102) -> 1.830562332 | I100: =IF((I102+M102)>100,I102*100/(I102+M102),I102) -> 74.32574398 | J100: =I100*AVERAGEIF(J105:J116,">0")/100 -> 51.99910049 | K100: =I100*(100-AVERAGEIF(J105:J116,">0"))/100 -> 22.32664349 | L100: =100-(J100+K100+M100) -> 24.43165426 | M100: =IF((I102+M102)>100,M102*100/(I102+M102),M102) -> 1.242601759 | N100: =IF((N102+R102)>100,N102*100/(N102+R102),N102) -> 74.4559704 | O100: =N100*AVERAGEIF(O105:O116,">0")/100 -> 50.30764034 | P100: =N100*(100-AVERAGEIF(O105:O116,">0"))/100 -> 24.14833006 | Q100: =100-(O100+P100+R100) -> 23.97911054 | R100: =IF((N102+R102)>100,R102*100/(N102+R102),R102) -> 1.564919063 | S100: =IF((S102+W102)>100,S102*100/(S102+W102),S102) -> 74.18144954 | T100: =S100*AVERAGEIF(T105:T116,">0")/100 -> 52.59262348 | U100: =S100*(100-AVERAGEIF(T105:T116,">0"))/100 -> 21.58882605 | V100: =100-(T100+U100+W100) -> 25.06674595 | W100: =IF((S102+W102)>100,W102*100/(S102+W102),W102) -> 0.7518045118 | X100: =IF((X102+AB102)>100,X102*100/(X102+AB102),X102) -> 92.55634576 | Y100: =X100*AVERAGEIF(Y105:Y116,">0")/100 -> 82.82091582 | Z100: =X100*(100-AVERAGEIF(Y105:Y116,">0"))/100 -> 9.735429947 | AA100: =100-(Y100+Z100+AB100) -> 7.244553599 | AB100: =IF((X102+AB102)>100,AB102*100/(X102+AB102),AB102) -> 0.1991006368
A101: Regression period: | C101: =MinRegYear(C99,C105:C116) -> 2004 | D101: =IF(MAX(C105:C116)-MIN(C105:C116)<5,AVERAGEIF(C105:C116,">0",D105:D116), IF(FORECAST($C101,D$105:D$116,$C$105:$C$116)<0,0, IF(FORECAST($C101,D$105:D$116,$C$105:$C$116)>100,100, FORECAST($C101,D$105:D$116,$C$105:$C$116)))) -> 61.13858443 | H101: =IF(MAX(C105:C116)-MIN(C105:C116)<5,AVERAGEIF(C105:C116,">0",H105:H116), IF(FORECAST($C101,H$105:H$116,$C$105:$C$116)<0,0, IF(FORECAST($C101,H$105:H$116,$C$105:$C$116)>100,100, FORECAST($C101,H$105:H$116,$C$105:$C$116)))) -> 12.82605642 | I101: =IF(MAX(C105:C116)-MIN(C105:C116)<5,AVERAGEIF(C105:C116,">0",I105:I116), IF(FORECAST($C101,I$105:I$116,$C$105:$C$116)<0,0, IF(FORECAST($C101,I$105:I$116,$C$105:$C$116)>100,100, FORECAST($C101,I$105:I$116,$C$105:$C$116)))) -> 68.83524677 | M101: =IF(MAX(C105:C116)-MIN(C105:C116)<5,AVERAGEIF(C105:C116,">0",M105:M116), IF(FORECAST($C101,M$105:M$116,$C$105:$C$116)<0,0, IF(FORECAST($C101,M$105:M$116,$C$105:$C$116)>100,100, FORECAST($C101,M$105:M$116,$C$105:$C$116)))) -> 8.515205919 | N101: =IF(MAX(C105:C116)-MIN(C105:C116)<5,AVERAGEIF(C105:C116,">0",N105:N116), IF(FORECAST($C101,N$105:N$116,$C$105:$C$116)<0,0, IF(FORECAST($C101,N$105:N$116,$C$105:$C$116)>100,100, FORECAST($C101,N$105:N$116,$C$105:$C$116)))) -> 72.39857206 | R101: =IF(MAX(C105:C116)-MIN(C105:C116)<5,AVERAGEIF(C105:C116,">0",R105:R116), IF(FORECAST($C101,R$105:R$116,$C$105:$C$116)<0,0, IF(FORECAST($C101,R$105:R$116,$C$105:$C$116)>100,100, FORECAST($C101,R$105:R$116,$C$105:$C$116)))) -> 3.064927424 | S101: =IF(MAX(C105:C116)-MIN(C105:C116)<5,AVERAGEIF(C105:C116,">0",S105:S116), IF(FORECAST($C101,S$105:S$116,$C$105:$C$116)<0,0, IF(FORECAST($C101,S$105:S$116,$C$105:$C$116)>100,100, FORECAST($C101,S$105:S$116,$C$105:$C$116)))) -> 84.18157989 | W101: =IF(MAX(C105:C116)-MIN(C105:C116)<5,AVERAGEIF(C105:C116,">0",W105:W116), IF(FORECAST($C101,W$105:W$116,$C$105:$C$116)<0,0, IF(FORECAST($C101,W$105:W$116,$C$105:$C$116)>100,100, FORECAST($C101,W$105:W$116,$C$105:$C$116)))) -> 1.644574247 | X101: =IF(MAX(C105:C116)-MIN(C105:C116)<5,AVERAGEIF(C105:C116,">0",X105:X116), IF(FORECAST($C101,X$105:X$116,$C$105:$C$116)<0,0, IF(FORECAST($C101,X$105:X$116,$C$105:$C$116)>100,100, FORECAST($C101,X$105:X$116,$C$105:$C$116)))) -> 98.28900036 | AB101: =IF(MAX(C105:C116)-MIN(C105:C116)<5,AVERAGEIF(C105:C116,">0",AB105:AB116), IF(FORECAST($C101,AB$105:AB$116,$C$105:$C$116)<0,0, IF(FORECAST($C101,AB$105:AB$116,$C$105:$C$116)>100,100, FORECAST($C101,AB$105:AB$116,$C$105:$C$116)))) -> 0
C102: =MaxRegYear(C100,C105:C116) -> 2020 | D102: =IF(MAX(C105:C116)-MIN(C105:C116)<5,AVERAGEIF(C105:C116,">0",D105:D116), IF(FORECAST($C102,D$105:D$116,$C$105:$C$116)<0,0, IF(FORECAST($C102,D$105:D$116,$C$105:$C$116)>100,100, FORECAST($C102,D$105:D$116,$C$105:$C$116)))) -> 76.93627507 | H102: =IF(MAX(C105:C116)-MIN(C105:C116)<5,AVERAGEIF(C105:C116,">0",H105:H116), IF(FORECAST($C102,H$105:H$116,$C$105:$C$116)<0,0, IF(FORECAST($C102,H$105:H$116,$C$105:$C$116)>100,100, FORECAST($C102,H$105:H$116,$C$105:$C$116)))) -> 1.830562332 | I102: =IF(MAX(C105:C116)-MIN(C105:C116)<5,AVERAGEIF(C105:C116,">0",I105:I116), IF(FORECAST($C102,I$105:I$116,$C$105:$C$116)<0,0, IF(FORECAST($C102,I$105:I$116,$C$105:$C$116)>100,100, FORECAST($C102,I$105:I$116,$C$105:$C$116)))) -> 74.32574398 | M102: =IF(MAX(C105:C116)-MIN(C105:C116)<5,AVERAGEIF(C105:C116,">0",M105:M116), IF(FORECAST($C102,M$105:M$116,$C$105:$C$116)<0,0, IF(FORECAST($C102,M$105:M$116,$C$105:$C$116)>100,100, FORECAST($C102,M$105:M$116,$C$105:$C$116)))) -> 1.242601759 | N102: =IF(MAX(C105:C116)-MIN(C105:C116)<5,AVERAGEIF(C105:C116,">0",N105:N116), IF(FORECAST($C102,N$105:N$116,$C$105:$C$116)<0,0, IF(FORECAST($C102,N$105:N$116,$C$105:$C$116)>100,100, FORECAST($C102,N$105:N$116,$C$105:$C$116)))) -> 74.4559704 | R102: =IF(MAX(C105:C116)-MIN(C105:C116)<5,AVERAGEIF(C105:C116,">0",R105:R116), IF(FORECAST($C102,R$105:R$116,$C$105:$C$116)<0,0, IF(FORECAST($C102,R$105:R$116,$C$105:$C$116)>100,100, FORECAST($C102,R$105:R$116,$C$105:$C$116)))) -> 1.564919063 | S102: =IF(MAX(C105:C116)-MIN(C105:C116)<5,AVERAGEIF(C105:C116,">0",S105:S116), IF(FORECAST($C102,S$105:S$116,$C$105:$C$116)<0,0, IF(FORECAST($C102,S$105:S$116,$C$105:$C$116)>100,100, FORECAST($C102,S$105:S$116,$C$105:$C$116)))) -> 74.18144954 | W102: =IF(MAX(C105:C116)-MIN(C105:C116)<5,AVERAGEIF(C105:C116,">0",W105:W116), IF(FORECAST($C102,W$105:W$116,$C$105:$C$116)<0,0, IF(FORECAST($C102,W$105:W$116,$C$105:$C$116)>100,100, FORECAST($C102,W$105:W$116,$C$105:$C$116)))) -> 0.7518045118 | X102: =IF(MAX(C105:C116)-MIN(C105:C116)<5,AVERAGEIF(C105:C116,">0",X105:X116), IF(FORECAST($C102,X$105:X$116,$C$105:$C$116)<0,0, IF(FORECAST($C102,X$105:X$116,$C$105:$C$116)>100,100, FORECAST($C102,X$105:X$116,$C$105:$C$116)))) -> 92.55634576 | AB102: =IF(MAX(C105:C116)-MIN(C105:C116)<5,AVERAGEIF(C105:C116,">0",AB105:AB116), IF(FORECAST($C102,AB$105:AB$116,$C$105:$C$116)<0,0, IF(FORECAST($C102,AB$105:AB$116,$C$105:$C$116)>100,100, FORECAST($C102,AB$105:AB$116,$C$105:$C$116)))) -> 0.1991006368
B104: Survey | C104: Year | D104: Improved | E104: % Improved < = 30min | H104: Surface water | I104: Improved | J104: % Improved < = 30min | M104: Surface water | N104: Improved | O104: % Improved < = 30min | R104: Surface water | S104: Improved | T104: % Improved < = 30min | W104: Surface water | X104: Improved | Y104: % Improved < = 30min | AB104: Surface water
B105: DHS03 | D105: =IF(ISERROR(INDIRECT(CONCATENATE($B105,"!C16"))),"",INDIRECT(CONCATENATE($B105,"!C16"))) -> 45.93615312 | E105: =IF(ISERROR(INDIRECT(CONCATENATE($B105,"!C23"))),"",INDIRECT(CONCATENATE($B105,"!C23"))) -> N/A | H105: =IF(ISERROR(INDIRECT(CONCATENATE($B105,"!C21"))),"",INDIRECT(CONCATENATE($B105,"!C21"))) -> 25.18363354 | I105: =IF(ISERROR(INDIRECT(CONCATENATE($B105,"!D16"))),"",INDIRECT(CONCATENATE($B105,"!D16"))) -> 49.59770458 | J105: =IF(ISERROR(INDIRECT(CONCATENATE($B105,"!D23"))),"",INDIRECT(CONCATENATE($B105,"!D23"))) -> N/A | M105: =IF(ISERROR(INDIRECT(CONCATENATE($B105,"!D21"))),"",INDIRECT(CONCATENATE($B105,"!D21"))) -> 18.09395205 | N105: =IF(ISERROR(INDIRECT(CONCATENATE($B105,"!E16"))),"",INDIRECT(CONCATENATE($B105,"!E16"))) -> 50.8802905 | O105: =IF(ISERROR(INDIRECT(CONCATENATE($B105,"!E23"))),"",INDIRECT(CONCATENATE($B105,"!E23"))) -> N/A | R105: =IF(ISERROR(INDIRECT(CONCATENATE($B105,"!E21"))),"",INDIRECT(CONCATENATE($B105,"!E21"))) -> 11.17069622 | S105: =IF(ISERROR(INDIRECT(CONCATENATE($B105,"!F16"))),"",INDIRECT(CONCATENATE($B105,"!F16"))) -> 60.89250777 | T105: =IF(ISERROR(INDIRECT(CONCATENATE($B105,"!F23"))),"",INDIRECT(CONCATENATE($B105,"!F23"))) -> N/A | W105: =IF(ISERROR(INDIRECT(CONCATENATE($B105,"!F21"))),"",INDIRECT(CONCATENATE($B105,"!F21"))) -> 5.549440172 | X105: =IF(ISERROR(INDIRECT(CONCATENATE($B105,"!G16"))),"",INDIRECT(CONCATENATE($B105,"!G16"))) -> 83.86895816 | Y105: =IF(ISERROR(INDIRECT(CONCATENATE($B105,"!G23"))),"",INDIRECT(CONCATENATE($B105,"!G23"))) -> N/A | AB105: =IF(ISERROR(INDIRECT(CONCATENATE($B105,"!G221"))),"",INDIRECT(CONCATENATE($B105,"!G21"))) -> 1.15739726
B106: MICS06 | C106: 2006 | D106: 66.7779256 | E106: 65.87621391 | H106: 6.553381926 | I106: 70.53235745 | J106: 70.84595646 | M106: 6.020243445 | N106: 72.64838482 | O106: 63.79516147 | R106: 1.416122507 | S106: 82.90756576 | T106: 68.44531756 | W106: 0.8623035882 | X106: 97.66480224 | Y106: 84.51478206 | AB106: 0
B107: DHS10 | C107: 2010 | D107: 62.05083346 | E107: 79.70533006 | H107: 16.67483483 | I107: 69.96338189 | J107: 83.47793474 | M107: 7.865009369 | N107: 74.53968725 | O107: 81.75777748 | R107: 4.366244895 | S107: 82.21085788 | T107: 84.72203645 | W107: 2.209317119 | X107: 94.26040597 | Y107: 94.77419057 | AB107: 0.1389913796
B108: MIS14 | C108: 2014 | D108: 70.04202147 | E108: 68.29588462 | H108: 4.704408445 | I108: 71.09601459 | J108: 68.37125292 | M108: 4.573429163 | N108: 70.96735049 | O108: 67.49264907 | R108: 2.783692602 | S108: 74.44483817 | T108: 71.44410846 | W108: 1.299553443 | X108: 98.18663796 | Y108: 93.10032988 | AB108: 0
B109: MIS18 | C109: 2018 | D109: 77.27893847 | E109: 52.15536859 | H109: 1.380612311 | I109: 74.73022756 | J109: 57.14921509 | M109: 1.05693338 | N109: 75.55366236 | O109: 57.2222767 | R109: 0.6936329708 | S109: 77.16279704 | T109: 58.97762246 | W109: 0.4215833676 | X109: 91.57884608 | Y109: 85.53716978 | AB109: 0.2260600798
D111: =IF(ISERROR(INDIRECT(CONCATENATE($B111,"!C16"))),"",INDIRECT(CONCATENATE($B111,"!C16"))) ->  | E111: =IF(ISERROR(INDIRECT(CONCATENATE($B111,"!C23"))),"",INDIRECT(CONCATENATE($B111,"!C23"))) ->  | H111: =IF(ISERROR(INDIRECT(CONCATENATE($B111,"!C21"))),"",INDIRECT(CONCATENATE($B111,"!C21"))) ->  | I111: =IF(ISERROR(INDIRECT(CONCATENATE($B111,"!D16"))),"",INDIRECT(CONCATENATE($B111,"!D16"))) ->  | J111: =IF(ISERROR(INDIRECT(CONCATENATE($B111,"!D23"))),"",INDIRECT(CONCATENATE($B111,"!D23"))) ->  | M111: =IF(ISERROR(INDIRECT(CONCATENATE($B111,"!D21"))),"",INDIRECT(CONCATENATE($B111,"!D21"))) ->  | N111: =IF(ISERROR(INDIRECT(CONCATENATE($B111,"!E16"))),"",INDIRECT(CONCATENATE($B111,"!E16"))) ->  | O111: =IF(ISERROR(INDIRECT(CONCATENATE($B111,"!E23"))),"",INDIRECT(CONCATENATE($B111,"!E23"))) ->  | R111: =IF(ISERROR(INDIRECT(CONCATENATE($B111,"!E21"))),"",INDIRECT(CONCATENATE($B111,"!E21"))) ->  | S111: =IF(ISERROR(INDIRECT(CONCATENATE($B111,"!F16"))),"",INDIRECT(CONCATENATE($B111,"!F16"))) ->  | T111: =IF(ISERROR(INDIRECT(CONCATENATE($B111,"!F23"))),"",INDIRECT(CONCATENATE($B111,"!F23"))) ->  | W111: =IF(ISERROR(INDIRECT(CONCATENATE($B111,"!F21"))),"",INDIRECT(CONCATENATE($B111,"!F21"))) ->  | X111: =IF(ISERROR(INDIRECT(CONCATENATE($B111,"!G16"))),"",INDIRECT(CONCATENATE($B111,"!G16"))) ->  | Y111: =IF(ISERROR(INDIRECT(CONCATENATE($B111,"!G23"))),"",INDIRECT(CONCATENATE($B111,"!G23"))) ->  | AB111: =IF(ISERROR(INDIRECT(CONCATENATE($B111,"!G221"))),"",INDIRECT(CONCATENATE($B111,"!G21"))) -> 
D112: =IF(ISERROR(INDIRECT(CONCATENATE($B112,"!C16"))),"",INDIRECT(CONCATENATE($B112,"!C16"))) ->  | E112: =IF(ISERROR(INDIRECT(CONCATENATE($B112,"!C23"))),"",INDIRECT(CONCATENATE($B112,"!C23"))) ->  | H112: =IF(ISERROR(INDIRECT(CONCATENATE($B112,"!C21"))),"",INDIRECT(CONCATENATE($B112,"!C21"))) ->  | I112: =IF(ISERROR(INDIRECT(CONCATENATE($B112,"!D16"))),"",INDIRECT(CONCATENATE($B112,"!D16"))) ->  | J112: =IF(ISERROR(INDIRECT(CONCATENATE($B112,"!D23"))),"",INDIRECT(CONCATENATE($B112,"!D23"))) ->  | M112: =IF(ISERROR(INDIRECT(CONCATENATE($B112,"!D21"))),"",INDIRECT(CONCATENATE($B112,"!D21"))) ->  | N112: =IF(ISERROR(INDIRECT(CONCATENATE($B112,"!E16"))),"",INDIRECT(CONCATENATE($B112,"!E16"))) ->  | O112: =IF(ISERROR(INDIRECT(CONCATENATE($B112,"!E23"))),"",INDIRECT(CONCATENATE($B112,"!E23"))) ->  | R112: =IF(ISERROR(INDIRECT(CONCATENATE($B112,"!E21"))),"",INDIRECT(CONCATENATE($B112,"!E21"))) ->  | S112: =IF(ISERROR(INDIRECT(CONCATENATE($B112,"!F16"))),"",INDIRECT(CONCATENATE($B112,"!F16"))) ->  | T112: =IF(ISERROR(INDIRECT(CONCATENATE($B112,"!F23"))),"",INDIRECT(CONCATENATE($B112,"!F23"))) ->  | W112: =IF(ISERROR(INDIRECT(CONCATENATE($B112,"!F21"))),"",INDIRECT(CONCATENATE($B112,"!F21"))) ->  | X112: =IF(ISERROR(INDIRECT(CONCATENATE($B112,"!G16"))),"",INDIRECT(CONCATENATE($B112,"!G16"))) ->  | Y112: =IF(ISERROR(INDIRECT(CONCATENATE($B112,"!G23"))),"",INDIRECT(CONCATENATE($B112,"!G23"))) ->  | AB112: =IF(ISERROR(INDIRECT(CONCATENATE($B112,"!G221"))),"",INDIRECT(CONCATENATE($B112,"!G21"))) -> 
B118: =CONCATENATE("National use of drinking water sources, ",C99,"–",C100) -> National use of drinking water sources, 2000–2020 | S118: Data points used for regression
E153: =IF(ISERROR(INDIRECT(CONCATENATE($B153,"!M18"))),"",INDIRECT(CONCATENATE($B153,"!M18"))) ->  | F153: =IF(ISERROR(INDIRECT(CONCATENATE($B153,"!M19"))),"",INDIRECT(CONCATENATE($B153,"!M19"))) ->  | G153: =IF(ISERROR(INDIRECT(CONCATENATE($B153,"!M20"))),"",INDIRECT(CONCATENATE($B153,"!M20"))) ->  | H153: =IF(ISERROR(INDIRECT(CONCATENATE($B153,"!M21"))),"",INDIRECT(CONCATENATE($B153,"!M21"))) ->  | J153: =IF(ISERROR(INDIRECT(CONCATENATE($B153,"!N18"))),"",INDIRECT(CONCATENATE($B153,"!N18"))) ->  | K153: =IF(ISERROR(INDIRECT(CONCATENATE($B153,"!N19"))),"",INDIRECT(CONCATENATE($B153,"!N19"))) ->  | L153: =IF(ISERROR(INDIRECT(CONCATENATE($B153,"!N20"))),"",INDIRECT(CONCATENATE($B153,"!N20"))) ->  | M153: =IF(ISERROR(INDIRECT(CONCATENATE($B153,"!N21"))),"",INDIRECT(CONCATENATE($B153,"!N21"))) ->  | O153: =IF(ISERROR(INDIRECT(CONCATENATE($B153,"!O18"))),"",INDIRECT(CONCATENATE($B153,"!O18"))) ->  | P153: =IF(ISERROR(INDIRECT(CONCATENATE($B153,"!O19"))),"",INDIRECT(CONCATENATE($B153,"!O19"))) ->  | Q153: =IF(ISERROR(INDIRECT(CONCATENATE($B153,"!O20"))),"",INDIRECT(CONCATENATE($B153,"!O20"))) ->  | R153: =IF(ISERROR(INDIRECT(CONCATENATE($B153,"!O21"))),"",INDIRECT(CONCATENATE($B153,"!O21"))) ->  | T153: =IF(ISERROR(INDIRECT(CONCATENATE($B153,"!P18"))),"",INDIRECT(CONCATENATE($B153,"!P18"))) ->  | U153: =IF(ISERROR(INDIRECT(CONCATENATE($B153,"!P19"))),"",INDIRECT(CONCATENATE($B153,"!P19"))) ->  | V153: =IF(ISERROR(INDIRECT(CONCATENATE($B153,"!P20"))),"",INDIRECT(CONCATENATE($B153,"!P20"))) ->  | W153: =IF(ISERROR(INDIRECT(CONCATENATE($B153,"!P21"))),"",INDIRECT(CONCATENATE($B153,"!P21"))) ->  | Y153: =IF(ISERROR(INDIRECT(CONCATENATE($B153,"!Q18"))),"",INDIRECT(CONCATENATE($B153,"!Q18"))) ->  | Z153: =IF(ISERROR(INDIRECT(CONCATENATE($B153,"!Q19"))),"",INDIRECT(CONCATENATE($B153,"!Q19"))) ->  | AA153: =IF(ISERROR(INDIRECT(CONCATENATE($B153,"!Q20"))),"",INDIRECT(CONCATENATE($B153,"!Q20"))) ->  | AB153: =IF(ISERROR(INDIRECT(CONCATENATE($B153,"!Q21"))),"",INDIRECT(CONCATENATE($B153,"!Q1"))) -> 
A197: URBAN | D197: Poorest | I197: Poor | N197: Middle | S197: Rich | X197: Richest
D198: Improved | E198: Basic | F198: Limited | G198: Unimproved | H198: Surface water | I198: Improved | J198: Basic | K198: Limited | L198: Unimproved | M198: Surface water | N198: Improved | O198: Basic | P198: Limited | Q198: Unimproved | R198: Surface water | S198: Improved | T198: Basic | U198: Limited | V198: Unimproved | W198: Surface water | X198: Improved | Y198: Basic | Z198: Limited | AA198: Unimproved | AB198: Surface water
A199: Forecast period: | C199: =MinBase(C205:C216) -> 2000 | D199: =IF((D201+H201)>100,D201*100/(D201+H201),D201) -> 94.95632939 | E199: =D199*AVERAGEIF(E205:E216,">0")/100 -> 71.63604726 | F199: =D199*(100-AVERAGEIF(E205:E216,">0"))/100 -> 23.32028212 | G199: =100-(E199+F199+H199) -> 4.179467187 | H199: =IF((D201+H201)>100,H201*100/(D201+H201),H201) -> 0.8642034249 | I199: =IF((I201+M201)>100,I201*100/(I201+M201),I201) -> 95.42600337 | J199: =I199*AVERAGEIF(J205:J216,">0")/100 -> 79.63931465 | K199: =I199*(100-AVERAGEIF(J205:J216,">0"))/100 -> 15.78668872 | L199: =100-(J199+K199+M199) -> 4.57399663 | M199: =IF((I201+M201)>100,M201*100/(I201+M201),M201) -> 0 | N199: =IF((N201+R201)>100,N201*100/(N201+R201),N201) -> 99.13153846 | O199: =N199*AVERAGEIF(O205:O216,">0")/100 -> 89.49424527 | P199: =N199*(100-AVERAGEIF(O205:O216,">0"))/100 -> 9.637293186 | Q199: =100-(O199+P199+R199) -> 0.8684615437 | R199: =IF((N201+R201)>100,R201*100/(N201+R201),R201) -> 0 | S199: =IF((S201+W201)>100,S201*100/(S201+W201),S201) -> 99.87983197 | T199: =S199*AVERAGEIF(T205:T216,">0")/100 -> 92.25364302 | U199: =S199*(100-AVERAGEIF(T205:T216,">0"))/100 -> 7.626188952 | V199: =100-(T199+U199+W199) -> 0.1201680265 | W199: =IF((S201+W201)>100,W201*100/(S201+W201),W201) -> 0 | X199: =IF((X201+AB201)>100,X201*100/(X201+AB201),X201) -> 100 | Y199: =X199*AVERAGEIF(Y205:Y216,">0")/100 -> 97.16087326 | Z199: =X199*(100-AVERAGEIF(Y205:Y216,">0"))/100 -> 2.839126742 | AA199: =100-(Y199+Z199+AB199) -> 0 | AB199: =IF((X201+AB201)>100,AB201*100/(X201+AB201),AB201) -> 0
C200: =MaxTarget(C205:C216) -> 2020 | D200: =IF((D202+H202)>100,D202*100/(D202+H202),D202) -> 73.11833645 | E200: =D200*AVERAGEIF(E205:E216,">0")/100 -> 55.16123716 | F200: =D200*(100-AVERAGEIF(E205:E216,">0"))/100 -> 17.95709928 | G200: =100-(E200+F200+H200) -> 26.78564095 | H200: =IF((D202+H202)>100,H202*100/(D202+H202),H202) -> 0.09602260276 | I200: =IF((I202+M202)>100,I202*100/(I202+M202),I202) -> 91.40658503 | J200: =I200*AVERAGEIF(J205:J216,">0")/100 -> 76.28484406 | K200: =I200*(100-AVERAGEIF(J205:J216,">0"))/100 -> 15.12174097 | L200: =100-(J200+K200+M200) -> 8.593414973 | M200: =IF((I202+M202)>100,M202*100/(I202+M202),M202) -> 0 | N200: =IF((N202+R202)>100,N202*100/(N202+R202),N202) -> 96.84585014 | O200: =N200*AVERAGEIF(O205:O216,">0")/100 -> 87.43076523 | P200: =N200*(100-AVERAGEIF(O205:O216,">0"))/100 -> 9.415084908 | Q200: =100-(O200+P200+R200) -> 3.154149863 | R200: =IF((N202+R202)>100,R202*100/(N202+R202),R202) -> 0 | S200: =IF((S202+W202)>100,S202*100/(S202+W202),S202) -> 97.98660668 | T200: =S200*AVERAGEIF(T205:T216,">0")/100 -> 90.50497237 | U200: =S200*(100-AVERAGEIF(T205:T216,">0"))/100 -> 7.481634306 | V200: =100-(T200+U200+W200) -> 2.013393322 | W200: =IF((S202+W202)>100,W202*100/(S202+W202),W202) -> 0 | X200: =IF((X202+AB202)>100,X202*100/(X202+AB202),X202) -> 97.50046845 | Y200: =X200*AVERAGEIF(Y205:Y216,">0")/100 -> 94.73230658 | Z200: =X200*(100-AVERAGEIF(Y205:Y216,">0"))/100 -> 2.768161873 | AA200: =100-(Y200+Z200+AB200) -> 2.13856379 | AB200: =IF((X202+AB202)>100,AB202*100/(X202+AB202),AB202) -> 0.3609677565
A201: Regression period: | C201: =MinRegYear(C199,C205:C216) -> 2004 | D201: =IF(MAX(C205:C216)-MIN(C205:C216)<5,AVERAGEIF(C205:C216,">0",D205:D216), IF(FORECAST($C201,D$205:D$216,$C$205:$C$216)<0,0, IF(FORECAST($C201,D$205:D$216,$C$205:$C$216)>100,100, FORECAST($C201,D$205:D$216,$C$205:$C$216)))) -> 94.95632939 | H201: =IF(MAX(C205:C216)-MIN(C205:C216)<5,AVERAGEIF(C205:C216,">0",H205:H216), IF(FORECAST($C201,H$205:H$216,$C$205:$C$216)<0,0, IF(FORECAST($C201,H$205:H$216,$C$205:$C$216)>100,100, FORECAST($C201,H$205:H$216,$C$205:$C$216)))) -> 0.8642034249 | I201: =IF(MAX(C205:C216)-MIN(C205:C216)<5,AVERAGEIF(C205:C216,">0",I205:I216), IF(FORECAST($C201,I$205:I$216,$C$205:$C$216)<0,0, IF(FORECAST($C201,I$205:I$216,$C$205:$C$216)>100,100, FORECAST($C201,I$205:I$216,$C$205:$C$216)))) -> 95.42600337 | M201: =IF(MAX(C205:C216)-MIN(C205:C216)<5,AVERAGEIF(C205:C216,">0",M205:M216), IF(FORECAST($C201,M$205:M$216,$C$205:$C$216)<0,0, IF(FORECAST($C201,M$205:M$216,$C$205:$C$216)>100,100, FORECAST($C201,M$205:M$216,$C$205:$C$216)))) -> 0 | N201: =IF(MAX(C205:C216)-MIN(C205:C216)<5,AVERAGEIF(C205:C216,">0",N205:N216), IF(FORECAST($C201,N$205:N$216,$C$205:$C$216)<0,0, IF(FORECAST($C201,N$205:N$216,$C$205:$C$216)>100,100, FORECAST($C201,N$205:N$216,$C$205:$C$216)))) -> 99.13153846 | R201: =IF(MAX(C205:C216)-MIN(C205:C216)<5,AVERAGEIF(C205:C216,">0",R205:R216), IF(FORECAST($C201,R$205:R$216,$C$205:$C$216)<0,0, IF(FORECAST($C201,R$205:R$216,$C$205:$C$216)>100,100, FORECAST($C201,R$205:R$216,$C$205:$C$216)))) -> 0 | S201: =IF(MAX(C205:C216)-MIN(C205:C216)<5,AVERAGEIF(C205:C216,">0",S205:S216), IF(FORECAST($C201,S$205:S$216,$C$205:$C$216)<0,0, IF(FORECAST($C201,S$205:S$216,$C$205:$C$216)>100,100, FORECAST($C201,S$205:S$216,$C$205:$C$216)))) -> 99.87983197 | W201: =IF(MAX(C205:C216)-MIN(C205:C216)<5,AVERAGEIF(C205:C216,">0",W205:W216), IF(FORECAST($C201,W$205:W$216,$C$205:$C$216)<0,0, IF(FORECAST($C201,W$205:W$216,$C$205:$C$216)>100,100, FORECAST($C201,W$205:W$216,$C$205:$C$216)))) -> 0 | X201: =IF(MAX(C205:C216)-MIN(C205:C216)<5,AVERAGEIF(C205:C216,">0",X205:X216), IF(FORECAST($C201,X$205:X$216,$C$205:$C$216)<0,0, IF(FORECAST($C201,X$205:X$216,$C$205:$C$216)>100,100, FORECAST($C201,X$205:X$216,$C$205:$C$216)))) -> 100 | AB201: =IF(MAX(C205:C216)-MIN(C205:C216)<5,AVERAGEIF(C205:C216,">0",AB205:AB216), IF(FORECAST($C201,AB$205:AB$216,$C$205:$C$216)<0,0, IF(FORECAST($C201,AB$205:AB$216,$C$205:$C$216)>100,100, FORECAST($C201,AB$205:AB$216,$C$205:$C$216)))) -> 0
C202: =MaxRegYear(C200,C205:C216) -> 2020 | D202: =IF(MAX(C205:C216)-MIN(C205:C216)<5,AVERAGEIF(C205:C216,">0",D205:D216), IF(FORECAST($C202,D$205:D$216,$C$205:$C$216)<0,0, IF(FORECAST($C202,D$205:D$216,$C$205:$C$216)>100,100, FORECAST($C202,D$205:D$216,$C$205:$C$216)))) -> 73.11833645 | H202: =IF(MAX(C205:C216)-MIN(C205:C216)<5,AVERAGEIF(C205:C216,">0",H205:H216), IF(FORECAST($C202,H$205:H$216,$C$205:$C$216)<0,0, IF(FORECAST($C202,H$205:H$216,$C$205:$C$216)>100,100, FORECAST($C202,H$205:H$216,$C$205:$C$216)))) -> 0.09602260276 | I202: =IF(MAX(C205:C216)-MIN(C205:C216)<5,AVERAGEIF(C205:C216,">0",I205:I216), IF(FORECAST($C202,I$205:I$216,$C$205:$C$216)<0,0, IF(FORECAST($C202,I$205:I$216,$C$205:$C$216)>100,100, FORECAST($C202,I$205:I$216,$C$205:$C$216)))) -> 91.40658503 | M202: =IF(MAX(C205:C216)-MIN(C205:C216)<5,AVERAGEIF(C205:C216,">0",M205:M216), IF(FORECAST($C202,M$205:M$216,$C$205:$C$216)<0,0, IF(FORECAST($C202,M$205:M$216,$C$205:$C$216)>100,100, FORECAST($C202,M$205:M$216,$C$205:$C$216)))) -> 0 | N202: =IF(MAX(C205:C216)-MIN(C205:C216)<5,AVERAGEIF(C205:C216,">0",N205:N216), IF(FORECAST($C202,N$205:N$216,$C$205:$C$216)<0,0, IF(FORECAST($C202,N$205:N$216,$C$205:$C$216)>100,100, FORECAST($C202,N$205:N$216,$C$205:$C$216)))) -> 96.84585014 | R202: =IF(MAX(C205:C216)-MIN(C205:C216)<5,AVERAGEIF(C205:C216,">0",R205:R216), IF(FORECAST($C202,R$205:R$216,$C$205:$C$216)<0,0, IF(FORECAST($C202,R$205:R$216,$C$205:$C$216)>100,100, FORECAST($C202,R$205:R$216,$C$205:$C$216)))) -> 0 | S202: =IF(MAX(C205:C216)-MIN(C205:C216)<5,AVERAGEIF(C205:C216,">0",S205:S216), IF(FORECAST($C202,S$205:S$216,$C$205:$C$216)<0,0, IF(FORECAST($C202,S$205:S$216,$C$205:$C$216)>100,100, FORECAST($C202,S$205:S$216,$C$205:$C$216)))) -> 97.98660668 | W202: =IF(MAX(C205:C216)-MIN(C205:C216)<5,AVERAGEIF(C205:C216,">0",W205:W216), IF(FORECAST($C202,W$205:W$216,$C$205:$C$216)<0,0, IF(FORECAST($C202,W$205:W$216,$C$205:$C$216)>100,100, FORECAST($C202,W$205:W$216,$C$205:$C$216)))) -> 0 | X202: =IF(MAX(C205:C216)-MIN(C205:C216)<5,AVERAGEIF(C205:C216,">0",X205:X216), IF(FORECAST($C202,X$205:X$216,$C$205:$C$216)<0,0, IF(FORECAST($C202,X$205:X$216,$C$205:$C$216)>100,100, FORECAST($C202,X$205:X$216,$C$205:$C$216)))) -> 97.50046845 | AB202: =IF(MAX(C205:C216)-MIN(C205:C216)<5,AVERAGEIF(C205:C216,">0",AB205:AB216), IF(FORECAST($C202,AB$205:AB$216,$C$205:$C$216)<0,0, IF(FORECAST($C202,AB$205:AB$216,$C$205:$C$216)>100,100, FORECAST($C202,AB$205:AB$216,$C$205:$C$216)))) -> 0.3609677565
B204: Survey | C204: Year | D204: Improved | E204: % Improved < = 30min | H204: Surface water | I204: Improved | J204: % Improved < = 30min | M204: Surface water | N204: Improved | O204: % Improved < = 30min | R204: Surface water | S204: Improved | T204: % Improved < = 30min | W204: Surface water | X204: Improved | Y204: % Improved < = 30min | AB204: Surface water
B205: DHS03 | D205: =IF(ISERROR(INDIRECT(CONCATENATE($B205,"!H16"))),"",INDIRECT(CONCATENATE($B205,"!H16"))) -> 83.04334219 | E205: =IF(ISERROR(INDIRECT(CONCATENATE($B205,"!H23"))),"",INDIRECT(CONCATENATE($B205,"!H23"))) -> N/A | H205: =IF(ISERROR(INDIRECT(CONCATENATE($B205,"!H21"))),"",INDIRECT(CONCATENATE($B205,"!H21"))) -> 1.238055029 | I205: =IF(ISERROR(INDIRECT(CONCATENATE($B205,"!I16"))),"",INDIRECT(CONCATENATE($B205,"!I16"))) -> 88.96539852 | J205: =IF(ISERROR(INDIRECT(CONCATENATE($B205,"!I23"))),"",INDIRECT(CONCATENATE($B205,"!I23"))) -> N/A | M205: =IF(ISERROR(INDIRECT(CONCATENATE($B205,"!I21"))),"",INDIRECT(CONCATENATE($B205,"!I21"))) -> 1.092368976 | N205: =IF(ISERROR(INDIRECT(CONCATENATE($B205,"!J16"))),"",INDIRECT(CONCATENATE($B205,"!J16"))) -> 93.56006663 | O205: =IF(ISERROR(INDIRECT(CONCATENATE($B205,"!J23"))),"",INDIRECT(CONCATENATE($B205,"!J23"))) -> N/A | R205: =IF(ISERROR(INDIRECT(CONCATENATE($B205,"!J21"))),"",INDIRECT(CONCATENATE($B205,"!J21"))) -> 0 | S205: =IF(ISERROR(INDIRECT(CONCATENATE($B205,"!K16"))),"",INDIRECT(CONCATENATE($B205,"!K16"))) -> 97.5171101 | T205: =IF(ISERROR(INDIRECT(CONCATENATE($B205,"!K23"))),"",INDIRECT(CONCATENATE($B205,"!K23"))) -> N/A | W205: =IF(ISERROR(INDIRECT(CONCATENATE($B205,"!K21"))),"",INDIRECT(CONCATENATE($B205,"!K21"))) -> 0 | X205: =IF(ISERROR(INDIRECT(CONCATENATE($B205,"!L16"))),"",INDIRECT(CONCATENATE($B205,"!L16"))) -> 99.30840901 | Y205: =IF(ISERROR(INDIRECT(CONCATENATE($B205,"!L23"))),"",INDIRECT(CONCATENATE($B205,"!L23"))) -> N/A | AB205: =IF(ISERROR(INDIRECT(CONCATENATE($B205,"!L221"))),"",INDIRECT(CONCATENATE($B205,"!L21"))) -> 0
B206: MICS06 | C206: 2006 | D206: 93.96941974 | E206: 71.70764055 | H206: 0 | I206: 95.49487381 | J206: 81.56993092 | M206: 0 | N206: 99.62540361 | O206: 86.98850703 | R206: 0 | S206: 100 | T206: 80.33913981 | W206: 0 | X206: 100 | Y206: 92.85470397 | AB206: 0
B207: DHS10 | C207: 2010 | D207: 84.5589591 | E207: 88.08340449 | H207: 1.920452055 | I207: 93.40394637 | J207: 88.92316369 | M207: 0 | N207: 96.9746337 | O207: 95.44932159 | R207: 0 | S207: 98.34566832 | T207: 98.56855148 | W207: 0 | X207: 99.97311148 | Y207: 98.66355725 | AB207: 0
B208: MIS14 | C208: 2014 | D208: 80.49531125 | E208: 73.83423323 | H208: 0 | I208: 92.22952396 | J208: 88.44724037 | M208: 0 | N208: 97.96379795 | O208: 87.85699678 | R208: 0 | S208: 99.27451093 | T208: 95.11328679 | W208: 0 | X208: 100 | Y208: 99.0013491 | AB208: 0
B209: MIS18 | C209: 2018 | D209: 77.12564157 | E209: 68.13890208 | H209: 0 | I209: 92.53683266 | J209: 74.88613514 | M209: 0 | N209: 97.39094193 | O209: 90.81828416 | R209: 0 | S209: 98.11269805 | T209: 95.43756504 | W209: 0 | X209: 97.06095633 | Y209: 98.12388273 | AB209: 0.4246679488
B218: =CONCATENATE("Urban use of drinking water sources, ",C199,"–",C200) -> Urban use of drinking water sources, 2000–2020 | S218: Data points used for regression
E253: =IF(ISERROR(INDIRECT(CONCATENATE($B253,"!M18"))),"",INDIRECT(CONCATENATE($B253,"!M18"))) ->  | F253: =IF(ISERROR(INDIRECT(CONCATENATE($B253,"!M19"))),"",INDIRECT(CONCATENATE($B253,"!M19"))) ->  | G253: =IF(ISERROR(INDIRECT(CONCATENATE($B253,"!M20"))),"",INDIRECT(CONCATENATE($B253,"!M20"))) ->  | H253: =IF(ISERROR(INDIRECT(CONCATENATE($B253,"!M21"))),"",INDIRECT(CONCATENATE($B253,"!M21"))) ->  | J253: =IF(ISERROR(INDIRECT(CONCATENATE($B253,"!N18"))),"",INDIRECT(CONCATENATE($B253,"!N18"))) ->  | K253: =IF(ISERROR(INDIRECT(CONCATENATE($B253,"!N19"))),"",INDIRECT(CONCATENATE($B253,"!N19"))) ->  | L253: =IF(ISERROR(INDIRECT(CONCATENATE($B253,"!N20"))),"",INDIRECT(CONCATENATE($B253,"!N20"))) ->  | M253: =IF(ISERROR(INDIRECT(CONCATENATE($B253,"!N21"))),"",INDIRECT(CONCATENATE($B253,"!N21"))) ->  | O253: =IF(ISERROR(INDIRECT(CONCATENATE($B253,"!O18"))),"",INDIRECT(CONCATENATE($B253,"!O18"))) ->  | P253: =IF(ISERROR(INDIRECT(CONCATENATE($B253,"!O19"))),"",INDIRECT(CONCATENATE($B253,"!O19"))) ->  | Q253: =IF(ISERROR(INDIRECT(CONCATENATE($B253,"!O20"))),"",INDIRECT(CONCATENATE($B253,"!O20"))) ->  | R253: =IF(ISERROR(INDIRECT(CONCATENATE($B253,"!O21"))),"",INDIRECT(CONCATENATE($B253,"!O21"))) ->  | T253: =IF(ISERROR(INDIRECT(CONCATENATE($B253,"!P18"))),"",INDIRECT(CONCATENATE($B253,"!P18"))) ->  | U253: =IF(ISERROR(INDIRECT(CONCATENATE($B253,"!P19"))),"",INDIRECT(CONCATENATE($B253,"!P19"))) ->  | V253: =IF(ISERROR(INDIRECT(CONCATENATE($B253,"!P20"))),"",INDIRECT(CONCATENATE($B253,"!P20"))) ->  | W253: =IF(ISERROR(INDIRECT(CONCATENATE($B253,"!P21"))),"",INDIRECT(CONCATENATE($B253,"!P21"))) ->  | Y253: =IF(ISERROR(INDIRECT(CONCATENATE($B253,"!Q18"))),"",INDIRECT(CONCATENATE($B253,"!Q18"))) ->  | Z253: =IF(ISERROR(INDIRECT(CONCATENATE($B253,"!Q19"))),"",INDIRECT(CONCATENATE($B253,"!Q19"))) ->  | AA253: =IF(ISERROR(INDIRECT(CONCATENATE($B253,"!Q20"))),"",INDIRECT(CONCATENATE($B253,"!Q20"))) ->  | AB253: =IF(ISERROR(INDIRECT(CONCATENATE($B253,"!Q21"))),"",INDIRECT(CONCATENATE($B253,"!Q1"))) -> 
E254: =IF(ISERROR(INDIRECT(CONCATENATE($B254,"!M18"))),"",INDIRECT(CONCATENATE($B254,"!M18"))) ->  | F254: =IF(ISERROR(INDIRECT(CONCATENATE($B254,"!M19"))),"",INDIRECT(CONCATENATE($B254,"!M19"))) ->  | G254: =IF(ISERROR(INDIRECT(CONCATENATE($B254,"!M20"))),"",INDIRECT(CONCATENATE($B254,"!M20"))) ->  | H254: =IF(ISERROR(INDIRECT(CONCATENATE($B254,"!M21"))),"",INDIRECT(CONCATENATE($B254,"!M21"))) ->  | J254: =IF(ISERROR(INDIRECT(CONCATENATE($B254,"!N18"))),"",INDIRECT(CONCATENATE($B254,"!N18"))) ->  | K254: =IF(ISERROR(INDIRECT(CONCATENATE($B254,"!N19"))),"",INDIRECT(CONCATENATE($B254,"!N19"))) ->  | L254: =IF(ISERROR(INDIRECT(CONCATENATE($B254,"!N20"))),"",INDIRECT(CONCATENATE($B254,"!N20"))) ->  | M254: =IF(ISERROR(INDIRECT(CONCATENATE($B254,"!N21"))),"",INDIRECT(CONCATENATE($B254,"!N21"))) ->  | O254: =IF(ISERROR(INDIRECT(CONCATENATE($B254,"!O18"))),"",INDIRECT(CONCATENATE($B254,"!O18"))) ->  | P254: =IF(ISERROR(INDIRECT(CONCATENATE($B254,"!O19"))),"",INDIRECT(CONCATENATE($B254,"!O19"))) ->  | Q254: =IF(ISERROR(INDIRECT(CONCATENATE($B254,"!O20"))),"",INDIRECT(CONCATENATE($B254,"!O20"))) ->  | R254: =IF(ISERROR(INDIRECT(CONCATENATE($B254,"!O21"))),"",INDIRECT(CONCATENATE($B254,"!O21"))) ->  | T254: =IF(ISERROR(INDIRECT(CONCATENATE($B254,"!P18"))),"",INDIRECT(CONCATENATE($B254,"!P18"))) ->  | U254: =IF(ISERROR(INDIRECT(CONCATENATE($B254,"!P19"))),"",INDIRECT(CONCATENATE($B254,"!P19"))) ->  | V254: =IF(ISERROR(INDIRECT(CONCATENATE($B254,"!P20"))),"",INDIRECT(CONCATENATE($B254,"!P20"))) ->  | W254: =IF(ISERROR(INDIRECT(CONCATENATE($B254,"!P21"))),"",INDIRECT(CONCATENATE($B254,"!P21"))) ->  | Y254: =IF(ISERROR(INDIRECT(CONCATENATE($B254,"!Q18"))),"",INDIRECT(CONCATENATE($B254,"!Q18"))) ->  | Z254: =IF(ISERROR(INDIRECT(CONCATENATE($B254,"!Q19"))),"",INDIRECT(CONCATENATE($B254,"!Q19"))) ->  | AA254: =IF(ISERROR(INDIRECT(CONCATENATE($B254,"!Q20"))),"",INDIRECT(CONCATENATE($B254,"!Q20"))) ->  | AB254: =IF(ISERROR(INDIRECT(CONCATENATE($B254,"!Q21"))),"",INDIRECT(CONCATENATE($B254,"!Q1"))) -> 
E255: =IF(ISERROR(INDIRECT(CONCATENATE($B255,"!M18"))),"",INDIRECT(CONCATENATE($B255,"!M18"))) ->  | F255: =IF(ISERROR(INDIRECT(CONCATENATE($B255,"!M19"))),"",INDIRECT(CONCATENATE($B255,"!M19"))) ->  | G255: =IF(ISERROR(INDIRECT(CONCATENATE($B255,"!M20"))),"",INDIRECT(CONCATENATE($B255,"!M20"))) ->  | H255: =IF(ISERROR(INDIRECT(CONCATENATE($B255,"!M21"))),"",INDIRECT(CONCATENATE($B255,"!M21"))) ->  | J255: =IF(ISERROR(INDIRECT(CONCATENATE($B255,"!N18"))),"",INDIRECT(CONCATENATE($B255,"!N18"))) ->  | K255: =IF(ISERROR(INDIRECT(CONCATENATE($B255,"!N19"))),"",INDIRECT(CONCATENATE($B255,"!N19"))) ->  | L255: =IF(ISERROR(INDIRECT(CONCATENATE($B255,"!N20"))),"",INDIRECT(CONCATENATE($B255,"!N20"))) ->  | M255: =IF(ISERROR(INDIRECT(CONCATENATE($B255,"!N21"))),"",INDIRECT(CONCATENATE($B255,"!N21"))) ->  | O255: =IF(ISERROR(INDIRECT(CONCATENATE($B255,"!O18"))),"",INDIRECT(CONCATENATE($B255,"!O18"))) ->  | P255: =IF(ISERROR(INDIRECT(CONCATENATE($B255,"!O19"))),"",INDIRECT(CONCATENATE($B255,"!O19"))) ->  | Q255: =IF(ISERROR(INDIRECT(CONCATENATE($B255,"!O20"))),"",INDIRECT(CONCATENATE($B255,"!O20"))) ->  | R255: =IF(ISERROR(INDIRECT(CONCATENATE($B255,"!O21"))),"",INDIRECT(CONCATENATE($B255,"!O21"))) ->  | T255: =IF(ISERROR(INDIRECT(CONCATENATE($B255,"!P18"))),"",INDIRECT(CONCATENATE($B255,"!P18"))) ->  | U255: =IF(ISERROR(INDIRECT(CONCATENATE($B255,"!P19"))),"",INDIRECT(CONCATENATE($B255,"!P19"))) ->  | V255: =IF(ISERROR(INDIRECT(CONCATENATE($B255,"!P20"))),"",INDIRECT(CONCATENATE($B255,"!P20"))) ->  | W255: =IF(ISERROR(INDIRECT(CONCATENATE($B255,"!P21"))),"",INDIRECT(CONCATENATE($B255,"!P21"))) ->  | Y255: =IF(ISERROR(INDIRECT(CONCATENATE($B255,"!Q18"))),"",INDIRECT(CONCATENATE($B255,"!Q18"))) ->  | Z255: =IF(ISERROR(INDIRECT(CONCATENATE($B255,"!Q19"))),"",INDIRECT(CONCATENATE($B255,"!Q19"))) ->  | AA255: =IF(ISERROR(INDIRECT(CONCATENATE($B255,"!Q20"))),"",INDIRECT(CONCATENATE($B255,"!Q20"))) ->  | AB255: =IF(ISERROR(INDIRECT(CONCATENATE($B255,"!Q21"))),"",INDIRECT(CONCATENATE($B255,"!Q1"))) -> 
E256: =IF(ISERROR(INDIRECT(CONCATENATE($B256,"!M18"))),"",INDIRECT(CONCATENATE($B256,"!M18"))) ->  | F256: =IF(ISERROR(INDIRECT(CONCATENATE($B256,"!M19"))),"",INDIRECT(CONCATENATE($B256,"!M19"))) ->  | G256: =IF(ISERROR(INDIRECT(CONCATENATE($B256,"!M20"))),"",INDIRECT(CONCATENATE($B256,"!M20"))) ->  | H256: =IF(ISERROR(INDIRECT(CONCATENATE($B256,"!M21"))),"",INDIRECT(CONCATENATE($B256,"!M21"))) ->  | J256: =IF(ISERROR(INDIRECT(CONCATENATE($B256,"!N18"))),"",INDIRECT(CONCATENATE($B256,"!N18"))) ->  | K256: =IF(ISERROR(INDIRECT(CONCATENATE($B256,"!N19"))),"",INDIRECT(CONCATENATE($B256,"!N19"))) ->  | L256: =IF(ISERROR(INDIRECT(CONCATENATE($B256,"!N20"))),"",INDIRECT(CONCATENATE($B256,"!N20"))) ->  | M256: =IF(ISERROR(INDIRECT(CONCATENATE($B256,"!N21"))),"",INDIRECT(CONCATENATE($B256,"!N21"))) ->  | O256: =IF(ISERROR(INDIRECT(CONCATENATE($B256,"!O18"))),"",INDIRECT(CONCATENATE($B256,"!O18"))) ->  | P256: =IF(ISERROR(INDIRECT(CONCATENATE($B256,"!O19"))),"",INDIRECT(CONCATENATE($B256,"!O19"))) ->  | Q256: =IF(ISERROR(INDIRECT(CONCATENATE($B256,"!O20"))),"",INDIRECT(CONCATENATE($B256,"!O20"))) ->  | R256: =IF(ISERROR(INDIRECT(CONCATENATE($B256,"!O21"))),"",INDIRECT(CONCATENATE($B256,"!O21"))) ->  | T256: =IF(ISERROR(INDIRECT(CONCATENATE($B256,"!P18"))),"",INDIRECT(CONCATENATE($B256,"!P18"))) ->  | U256: =IF(ISERROR(INDIRECT(CONCATENATE($B256,"!P19"))),"",INDIRECT(CONCATENATE($B256,"!P19"))) ->  | V256: =IF(ISERROR(INDIRECT(CONCATENATE($B256,"!P20"))),"",INDIRECT(CONCATENATE($B256,"!P20"))) ->  | W256: =IF(ISERROR(INDIRECT(CONCATENATE($B256,"!P21"))),"",INDIRECT(CONCATENATE($B256,"!P21"))) ->  | Y256: =IF(ISERROR(INDIRECT(CONCATENATE($B256,"!Q18"))),"",INDIRECT(CONCATENATE($B256,"!Q18"))) ->  | Z256: =IF(ISERROR(INDIRECT(CONCATENATE($B256,"!Q19"))),"",INDIRECT(CONCATENATE($B256,"!Q19"))) ->  | AA256: =IF(ISERROR(INDIRECT(CONCATENATE($B256,"!Q20"))),"",INDIRECT(CONCATENATE($B256,"!Q20"))) ->  | AB256: =IF(ISERROR(INDIRECT(CONCATENATE($B256,"!Q21"))),"",INDIRECT(CONCATENATE($B256,"!Q1"))) -> 
E257: =IF(ISERROR(INDIRECT(CONCATENATE($B257,"!M18"))),"",INDIRECT(CONCATENATE($B257,"!M18"))) ->  | F257: =IF(ISERROR(INDIRECT(CONCATENATE($B257,"!M19"))),"",INDIRECT(CONCATENATE($B257,"!M19"))) ->  | G257: =IF(ISERROR(INDIRECT(CONCATENATE($B257,"!M20"))),"",INDIRECT(CONCATENATE($B257,"!M20"))) ->  | H257: =IF(ISERROR(INDIRECT(CONCATENATE($B257,"!M21"))),"",INDIRECT(CONCATENATE($B257,"!M21"))) ->  | J257: =IF(ISERROR(INDIRECT(CONCATENATE($B257,"!N18"))),"",INDIRECT(CONCATENATE($B257,"!N18"))) ->  | K257: =IF(ISERROR(INDIRECT(CONCATENATE($B257,"!N19"))),"",INDIRECT(CONCATENATE($B257,"!N19"))) ->  | L257: =IF(ISERROR(INDIRECT(CONCATENATE($B257,"!N20"))),"",INDIRECT(CONCATENATE($B257,"!N20"))) ->  | M257: =IF(ISERROR(INDIRECT(CONCATENATE($B257,"!N21"))),"",INDIRECT(CONCATENATE($B257,"!N21"))) ->  | O257: =IF(ISERROR(INDIRECT(CONCATENATE($B257,"!O18"))),"",INDIRECT(CONCATENATE($B257,"!O18"))) ->  | P257: =IF(ISERROR(INDIRECT(CONCATENATE($B257,"!O19"))),"",INDIRECT(CONCATENATE($B257,"!O19"))) ->  | Q257: =IF(ISERROR(INDIRECT(CONCATENATE($B257,"!O20"))),"",INDIRECT(CONCATENATE($B257,"!O20"))) ->  | R257: =IF(ISERROR(INDIRECT(CONCATENATE($B257,"!O21"))),"",INDIRECT(CONCATENATE($B257,"!O21"))) ->  | T257: =IF(ISERROR(INDIRECT(CONCATENATE($B257,"!P18"))),"",INDIRECT(CONCATENATE($B257,"!P18"))) ->  | U257: =IF(ISERROR(INDIRECT(CONCATENATE($B257,"!P19"))),"",INDIRECT(CONCATENATE($B257,"!P19"))) ->  | V257: =IF(ISERROR(INDIRECT(CONCATENATE($B257,"!P20"))),"",INDIRECT(CONCATENATE($B257,"!P20"))) ->  | W257: =IF(ISERROR(INDIRECT(CONCATENATE($B257,"!P21"))),"",INDIRECT(CONCATENATE($B257,"!P21"))) ->  | Y257: =IF(ISERROR(INDIRECT(CONCATENATE($B257,"!Q18"))),"",INDIRECT(CONCATENATE($B257,"!Q18"))) ->  | Z257: =IF(ISERROR(INDIRECT(CONCATENATE($B257,"!Q19"))),"",INDIRECT(CONCATENATE($B257,"!Q19"))) ->  | AA257: =IF(ISERROR(INDIRECT(CONCATENATE($B257,"!Q20"))),"",INDIRECT(CONCATENATE($B257,"!Q20"))) ->  | AB257: =IF(ISERROR(INDIRECT(CONCATENATE($B257,"!Q21"))),"",INDIRECT(CONCATENATE($B257,"!Q1"))) -> 
A297: RURAL | D297: Poorest | I297: Poor | N297: Middle | S297: Rich | X297: Richest
D298: Improved | E298: Basic | F298: Limited | G298: Unimproved | H298: Surface water | I298: Improved | J298: Basic | K298: Limited | L298: Unimproved | M298: Surface water | N298: Improved | O298: Basic | P298: Limited | Q298: Unimproved | R298: Surface water | S298: Improved | T298: Basic | U298: Limited | V298: Unimproved | W298: Surface water | X298: Improved | Y298: Basic | Z298: Limited | AA298: Unimproved | AB298: Surface water
A299: Forecast period: | C299: =MinBase(C305:C316) -> 2000 | D299: =IF((D301+H301)>100,D301*100/(D301+H301),D301) -> 58.98756044 | E299: =D299*AVERAGEIF(E305:E316,">0")/100 -> 38.59614709 | F299: =D299*(100-AVERAGEIF(E305:E316,">0"))/100 -> 20.39141336 | G299: =100-(E299+F299+H299) -> 27.04148779 | H299: =IF((D301+H301)>100,H301*100/(D301+H301),H301) -> 13.97095177 | I299: =IF((I301+M301)>100,I301*100/(I301+M301),I301) -> 68.25500212 | J299: =I299*AVERAGEIF(J305:J316,">0")/100 -> 48.05512727 | K299: =I299*(100-AVERAGEIF(J305:J316,">0"))/100 -> 20.19987485 | L299: =100-(J299+K299+M299) -> 22.60915943 | M299: =IF((I301+M301)>100,M301*100/(I301+M301),M301) -> 9.135838449 | N299: =IF((N301+R301)>100,N301*100/(N301+R301),N301) -> 66.16223232 | O299: =N299*AVERAGEIF(O305:O316,">0")/100 -> 44.91494806 | P299: =N299*(100-AVERAGEIF(O305:O316,">0"))/100 -> 21.24728427 | Q299: =100-(O299+P299+R299) -> 27.45143364 | R299: =IF((N301+R301)>100,R301*100/(N301+R301),R301) -> 6.386334037 | S299: =IF((S301+W301)>100,S301*100/(S301+W301),S301) -> 75.61361237 | T299: =S299*AVERAGEIF(T305:T316,">0")/100 -> 51.28938768 | U299: =S299*(100-AVERAGEIF(T305:T316,">0"))/100 -> 24.32422469 | V299: =100-(T299+U299+W299) -> 21.87871833 | W299: =IF((S301+W301)>100,W301*100/(S301+W301),W301) -> 2.5076693 | X299: =IF((X301+AB301)>100,X301*100/(X301+AB301),X301) -> 81.10369138 | Y299: =X299*AVERAGEIF(Y305:Y316,">0")/100 -> 57.09127596 | Z299: =X299*(100-AVERAGEIF(Y305:Y316,">0"))/100 -> 24.01241542 | AA299: =100-(Y299+Z299+AB299) -> 17.05340221 | AB299: =IF((X301+AB301)>100,AB301*100/(X301+AB301),AB301) -> 1.842906408
C300: =MaxTarget(C305:C316) -> 2020 | D300: =IF((D302+H302)>100,D302*100/(D302+H302),D302) -> 78.02551537 | E300: =D300*AVERAGEIF(E305:E316,">0")/100 -> 51.05287021 | F300: =D300*(100-AVERAGEIF(E305:E316,">0"))/100 -> 26.97264515 | G300: =100-(E300+F300+H300) -> 19.48695201 | H300: =IF((D302+H302)>100,H302*100/(D302+H302),H302) -> 2.487532627 | I300: =IF((I302+M302)>100,I302*100/(I302+M302),I302) -> 73.55744543 | J300: =I300*AVERAGEIF(J305:J316,">0")/100 -> 51.78832747 | K300: =I300*(100-AVERAGEIF(J305:J316,">0"))/100 -> 21.76911795 | L300: =100-(J300+K300+M300) -> 25.44313028 | M300: =IF((I302+M302)>100,M302*100/(I302+M302),M302) -> 0.9994242976 | N300: =IF((N302+R302)>100,N302*100/(N302+R302),N302) -> 77.16310544 | O300: =N300*AVERAGEIF(O305:O316,">0")/100 -> 52.38300993 | P300: =N300*(100-AVERAGEIF(O305:O316,">0"))/100 -> 24.78009551 | Q300: =100-(O300+P300+R300) -> 21.46253485 | R300: =IF((N302+R302)>100,R302*100/(N302+R302),R302) -> 1.374359712 | S300: =IF((S302+W302)>100,S302*100/(S302+W302),S302) -> 72.60487475 | T300: =S300*AVERAGEIF(T305:T316,">0")/100 -> 49.24853412 | U300: =S300*(100-AVERAGEIF(T305:T316,">0"))/100 -> 23.35634064 | V300: =100-(T300+U300+W300) -> 25.84356767 | W300: =IF((S302+W302)>100,W302*100/(S302+W302),W302) -> 1.551557576 | X300: =IF((X302+AB302)>100,X302*100/(X302+AB302),X302) -> 74.0338514 | Y300: =X300*AVERAGEIF(Y305:Y316,">0")/100 -> 52.11460747 | Z300: =X300*(100-AVERAGEIF(Y305:Y316,">0"))/100 -> 21.91924393 | AA300: =100-(Y300+Z300+AB300) -> 25.22476373 | AB300: =IF((X302+AB302)>100,AB302*100/(X302+AB302),AB302) -> 0.7413848747
A301: Regression period: | C301: =MinRegYear(C299,C305:C316) -> 2004 | D301: =IF(MAX(C305:C316)-MIN(C305:C316)<5,AVERAGEIF(C305:C316,">0",D305:D316), IF(FORECAST($C301,D$305:D$316,$C$305:$C$316)<0,0, IF(FORECAST($C301,D$305:D$316,$C$305:$C$316)>100,100, FORECAST($C301,D$305:D$316,$C$305:$C$316)))) -> 58.98756044 | H301: =IF(MAX(C305:C316)-MIN(C305:C316)<5,AVERAGEIF(C305:C316,">0",H305:H316), IF(FORECAST($C301,H$305:H$316,$C$305:$C$316)<0,0, IF(FORECAST($C301,H$305:H$316,$C$305:$C$316)>100,100, FORECAST($C301,H$305:H$316,$C$305:$C$316)))) -> 13.97095177 | I301: =IF(MAX(C305:C316)-MIN(C305:C316)<5,AVERAGEIF(C305:C316,">0",I305:I316), IF(FORECAST($C301,I$305:I$316,$C$305:$C$316)<0,0, IF(FORECAST($C301,I$305:I$316,$C$305:$C$316)>100,100, FORECAST($C301,I$305:I$316,$C$305:$C$316)))) -> 68.25500212 | M301: =IF(MAX(C305:C316)-MIN(C305:C316)<5,AVERAGEIF(C305:C316,">0",M305:M316), IF(FORECAST($C301,M$305:M$316,$C$305:$C$316)<0,0, IF(FORECAST($C301,M$305:M$316,$C$305:$C$316)>100,100, FORECAST($C301,M$305:M$316,$C$305:$C$316)))) -> 9.135838449 | N301: =IF(MAX(C305:C316)-MIN(C305:C316)<5,AVERAGEIF(C305:C316,">0",N305:N316), IF(FORECAST($C301,N$305:N$316,$C$305:$C$316)<0,0, IF(FORECAST($C301,N$305:N$316,$C$305:$C$316)>100,100, FORECAST($C301,N$305:N$316,$C$305:$C$316)))) -> 66.16223232 | R301: =IF(MAX(C305:C316)-MIN(C305:C316)<5,AVERAGEIF(C305:C316,">0",R305:R316), IF(FORECAST($C301,R$305:R$316,$C$305:$C$316)<0,0, IF(FORECAST($C301,R$305:R$316,$C$305:$C$316)>100,100, FORECAST($C301,R$305:R$316,$C$305:$C$316)))) -> 6.386334037 | S301: =IF(MAX(C305:C316)-MIN(C305:C316)<5,AVERAGEIF(C305:C316,">0",S305:S316), IF(FORECAST($C301,S$305:S$316,$C$305:$C$316)<0,0, IF(FORECAST($C301,S$305:S$316,$C$305:$C$316)>100,100, FORECAST($C301,S$305:S$316,$C$305:$C$316)))) -> 75.61361237 | W301: =IF(MAX(C305:C316)-MIN(C305:C316)<5,AVERAGEIF(C305:C316,">0",W305:W316), IF(FORECAST($C301,W$305:W$316,$C$305:$C$316)<0,0, IF(FORECAST($C301,W$305:W$316,$C$305:$C$316)>100,100, FORECAST($C301,W$305:W$316,$C$305:$C$316)))) -> 2.5076693 | X301: =IF(MAX(C305:C316)-MIN(C305:C316)<5,AVERAGEIF(C305:C316,">0",X305:X316), IF(FORECAST($C301,X$305:X$316,$C$305:$C$316)<0,0, IF(FORECAST($C301,X$305:X$316,$C$305:$C$316)>100,100, FORECAST($C301,X$305:X$316,$C$305:$C$316)))) -> 81.10369138 | AB301: =IF(MAX(C305:C316)-MIN(C305:C316)<5,AVERAGEIF(C305:C316,">0",AB305:AB316), IF(FORECAST($C301,AB$305:AB$316,$C$305:$C$316)<0,0, IF(FORECAST($C301,AB$305:AB$316,$C$305:$C$316)>100,100, FORECAST($C301,AB$305:AB$316,$C$305:$C$316)))) -> 1.842906408
C302: =MaxRegYear(C300,C305:C316) -> 2020 | D302: =IF(MAX(C305:C316)-MIN(C305:C316)<5,AVERAGEIF(C305:C316,">0",D305:D316), IF(FORECAST($C302,D$305:D$316,$C$305:$C$316)<0,0, IF(FORECAST($C302,D$305:D$316,$C$305:$C$316)>100,100, FORECAST($C302,D$305:D$316,$C$305:$C$316)))) -> 78.02551537 | H302: =IF(MAX(C305:C316)-MIN(C305:C316)<5,AVERAGEIF(C305:C316,">0",H305:H316), IF(FORECAST($C302,H$305:H$316,$C$305:$C$316)<0,0, IF(FORECAST($C302,H$305:H$316,$C$305:$C$316)>100,100, FORECAST($C302,H$305:H$316,$C$305:$C$316)))) -> 2.487532627 | I302: =IF(MAX(C305:C316)-MIN(C305:C316)<5,AVERAGEIF(C305:C316,">0",I305:I316), IF(FORECAST($C302,I$305:I$316,$C$305:$C$316)<0,0, IF(FORECAST($C302,I$305:I$316,$C$305:$C$316)>100,100, FORECAST($C302,I$305:I$316,$C$305:$C$316)))) -> 73.55744543 | M302: =IF(MAX(C305:C316)-MIN(C305:C316)<5,AVERAGEIF(C305:C316,">0",M305:M316), IF(FORECAST($C302,M$305:M$316,$C$305:$C$316)<0,0, IF(FORECAST($C302,M$305:M$316,$C$305:$C$316)>100,100, FORECAST($C302,M$305:M$316,$C$305:$C$316)))) -> 0.9994242976 | N302: =IF(MAX(C305:C316)-MIN(C305:C316)<5,AVERAGEIF(C305:C316,">0",N305:N316), IF(FORECAST($C302,N$305:N$316,$C$305:$C$316)<0,0, IF(FORECAST($C302,N$305:N$316,$C$305:$C$316)>100,100, FORECAST($C302,N$305:N$316,$C$305:$C$316)))) -> 77.16310544 | R302: =IF(MAX(C305:C316)-MIN(C305:C316)<5,AVERAGEIF(C305:C316,">0",R305:R316), IF(FORECAST($C302,R$305:R$316,$C$305:$C$316)<0,0, IF(FORECAST($C302,R$305:R$316,$C$305:$C$316)>100,100, FORECAST($C302,R$305:R$316,$C$305:$C$316)))) -> 1.374359712 | S302: =IF(MAX(C305:C316)-MIN(C305:C316)<5,AVERAGEIF(C305:C316,">0",S305:S316), IF(FORECAST($C302,S$305:S$316,$C$305:$C$316)<0,0, IF(FORECAST($C302,S$305:S$316,$C$305:$C$316)>100,100, FORECAST($C302,S$305:S$316,$C$305:$C$316)))) -> 72.60487475 | W302: =IF(MAX(C305:C316)-MIN(C305:C316)<5,AVERAGEIF(C305:C316,">0",W305:W316), IF(FORECAST($C302,W$305:W$316,$C$305:$C$316)<0,0, IF(FORECAST($C302,W$305:W$316,$C$305:$C$316)>100,100, FORECAST($C302,W$305:W$316,$C$305:$C$316)))) -> 1.551557576 | X302: =IF(MAX(C305:C316)-MIN(C305:C316)<5,AVERAGEIF(C305:C316,">0",X305:X316), IF(FORECAST($C302,X$305:X$316,$C$305:$C$316)<0,0, IF(FORECAST($C302,X$305:X$316,$C$305:$C$316)>100,100, FORECAST($C302,X$305:X$316,$C$305:$C$316)))) -> 74.0338514 | AB302: =IF(MAX(C305:C316)-MIN(C305:C316)<5,AVERAGEIF(C305:C316,">0",AB305:AB316), IF(FORECAST($C302,AB$305:AB$316,$C$305:$C$316)<0,0, IF(FORECAST($C302,AB$305:AB$316,$C$305:$C$316)>100,100, FORECAST($C302,AB$305:AB$316,$C$305:$C$316)))) -> 0.7413848747
B304: Survey | C304: Year | D304: Improved | E304: % Improved < = 30min | H304: Surface water | I304: Improved | J304: % Improved < = 30min | M304: Surface water | N304: Improved | O304: % Improved < = 30min | R304: Surface water | S304: Improved | T304: % Improved < = 30min | W304: Surface water | X304: Improved | Y304: % Improved < = 30min | AB304: Surface water
B305: DHS03 | D305: =IF(ISERROR(INDIRECT(CONCATENATE($B305,"!M16"))),"",INDIRECT(CONCATENATE($B305,"!M16"))) -> 45.69799054 | E305: =IF(ISERROR(INDIRECT(CONCATENATE($B305,"!M23"))),"",INDIRECT(CONCATENATE($B305,"!M23"))) -> N/A | H305: =IF(ISERROR(INDIRECT(CONCATENATE($B305,"!M21"))),"",INDIRECT(CONCATENATE($B305,"!M21"))) -> 25.13183559 | I305: =IF(ISERROR(INDIRECT(CONCATENATE($B305,"!N16"))),"",INDIRECT(CONCATENATE($B305,"!N16"))) -> 48.72263867 | J305: =IF(ISERROR(INDIRECT(CONCATENATE($B305,"!N23"))),"",INDIRECT(CONCATENATE($B305,"!N23"))) -> N/A | M305: =IF(ISERROR(INDIRECT(CONCATENATE($B305,"!N21"))),"",INDIRECT(CONCATENATE($B305,"!N21"))) -> 16.86557268 | N305: =IF(ISERROR(INDIRECT(CONCATENATE($B305,"!O16"))),"",INDIRECT(CONCATENATE($B305,"!O16"))) -> 48.70010002 | O305: =IF(ISERROR(INDIRECT(CONCATENATE($B305,"!O23"))),"",INDIRECT(CONCATENATE($B305,"!O23"))) -> N/A | R305: =IF(ISERROR(INDIRECT(CONCATENATE($B305,"!O21"))),"",INDIRECT(CONCATENATE($B305,"!O21"))) -> 16.62897455 | S305: =IF(ISERROR(INDIRECT(CONCATENATE($B305,"!P16"))),"",INDIRECT(CONCATENATE($B305,"!P16"))) -> 57.37390333 | T305: =IF(ISERROR(INDIRECT(CONCATENATE($B305,"!P23"))),"",INDIRECT(CONCATENATE($B305,"!P23"))) -> N/A | W305: =IF(ISERROR(INDIRECT(CONCATENATE($B305,"!P21"))),"",INDIRECT(CONCATENATE($B305,"!P21"))) -> 8.958416908 | X305: =IF(ISERROR(INDIRECT(CONCATENATE($B305,"!Q16"))),"",INDIRECT(CONCATENATE($B305,"!Q16"))) -> 52.858488 | Y305: =IF(ISERROR(INDIRECT(CONCATENATE($B305,"!Q23"))),"",INDIRECT(CONCATENATE($B305,"!Q23"))) -> N/A | AB305: =IF(ISERROR(INDIRECT(CONCATENATE($B305,"!Q221"))),"",INDIRECT(CONCATENATE($B305,"!Q21"))) -> 5.208787906
B306: MICS06 | C306: 2006 | D306: 65.67043061 | E306: 65.19760998 | H306: 6.968759493 | I306: 70.62295448 | J306: 70.56842227 | M306: 5.76363799 | N306: 67.41896069 | O306: 65.27732618 | R306: 4.544479977 | S306: 75.10573497 | T306: 65.27724427 | W306: 1.261210076 | X306: 79.97969449 | Y306: 66.86456399 | AB306: 1.089709452
B307: DHS10 | C307: 2010 | D307: 60.74233484 | E307: 78.93893426 | H307: 18.58430069 | I307: 67.52393391 | J307: 82.47571637 | M307: 9.235998331 | N307: 71.15320978 | O307: 82.98428701 | R307: 6.225371336 | S307: 76.29270386 | T307: 82.15369767 | W307: 3.576729373 | X307: 81.40812641 | Y307: 84.24671594 | AB307: 2.053415939
B308: MIS14 | C308: 2014 | D308: 68.74582225 | E308: 66.88678589 | H308: 5.654847255 | I308: 71.89255724 | J308: 70.92973338 | M308: 4.813395299 | N308: 71.66162025 | O308: 67.01456509 | R308: 3.462866548 | S308: 70.5137708 | T308: 67.3840689 | W308: 2.435731309 | X308: 71.49459204 | Y308: 69.15183597 | AB308: 1.753815529
B309: MIS18 | C309: 2018 | D309: 78.86756391 | E309: 50.70064555 | H309: 1.709061354 | I309: 73.58544946 | J309: 57.64725919 | M309: 0.4574938742 | N309: 76.41688479 | O309: 56.26815436 | R309: 1.288669636 | S309: 74.52476463 | T309: 56.50855681 | W309: 0.8447829943 | X309: 77.39267262 | Y309: 61.30865963 | AB309: 0.2716416449
B318: =CONCATENATE("Rural use of drinking water sources, ",C299,"–",C300) -> Rural use of drinking water sources, 2000–2020 | S318: Data points used for regression

Sheet Sanitation
B4: Summary of trends in use of sanitation facilities by wealth quintile (%)
B5: =IF(ISERROR(INDIRECT(CONCATENATE($B105,"!A2"))),"",INDIRECT(CONCATENATE($B105,"!A2"))) -> Burkina Faso
B7: =B118 -> National use of sanitation facilities, 2000–2020 | J7: =B218 -> Urban use of sanitation facilities, 2000–2020 | R7: =B318 -> Rural use of sanitation facilities, 2000–2020
B31: =IF(ISERROR(INDIRECT(CONCATENATE($B105,"!A2"))),"",INDIRECT(CONCATENATE($B105,"!A2"))) -> Burkina Faso | F31: Poorest | J31: Poor | N31: Middle | R31: Rich | V31: Richest
F32: Basic | G32: Limited | H32: Unimproved | I32: Open defecation | J32: Basic | K32: Limited | L32: Unimproved | M32: Open defecation | N32: Basic | O32: Limited | P32: Unimproved | Q32: Open defecation | R32: Basic | S32: Limited | T32: Unimproved | U32: Open defecation | V32: Basic | W32: Limited | X32: Unimproved | Y32: Open defecation
B33: NATIONAL | D33: Estimate | E33: =C99 -> 2000 | F33: =E99 -> 0 | G33: =F99 -> 0 | H33: 0 | I33: 100 | J33: =J99 -> 0 | K33: =K99 -> 0 | L33: 0.7013893855 | M33: 99.29861061 | N33: =O99 -> 3.070200187 | O33: =P99 -> 3.513860334 | P33: 8.123629991 | Q33: 85.29230949 | R33: =T99 -> 10.09060836 | S33: =U99 -> 10.27892527 | T33: 8.001257805 | U33: 71.62920857 | V33: =Y99 -> 45.20718302 | W33: =Z99 -> 32.70457335 | X33: 8.398990608 | Y33: 13.68925303
E34: =C100 -> 2020 | F34: =E100 -> 11.62197104 | G34: 18.42495722 | H34: 8.462538627 | I34: 61.49053311 | J34: =J100 -> 18.92123355 | K34: 22.85947341 | L34: 6.926074267 | M34: 51.29321878 | N34: =O100 -> 21.95447926 | O34: 25.12701751 | P34: 6.46257366 | Q34: 46.45592957 | R34: =T100 -> 29.72667113 | S34: 30.28144789 | T34: 7.789039565 | U34: 32.20284141 | V34: =Y100 -> 56.27855401 | W34: 40.71401876 | X34: 0.7029142316 | Y34: 2.304513002
B36: URBAN | D36: Estimate | E36: =C199 -> 2000 | F36: =E199 -> 35.35014979 | G36: =F199 -> 27.37429627 | H36: 16.53411517 | I36: 20.74143877 | J36: =J199 -> 44.05748129 | K36: =K199 -> 33.31807938 | L36: 10.24334463 | M36: 12.3810947 | N36: =O199 -> 47.12908262 | O36: =P199 -> 42.56683871 | P36: 5.588410283 | Q36: 4.715668386 | R36: =T199 -> 48.84280559 | S36: =U199 -> 43.11682537 | T36: 3.118058632 | U36: 4.922310403 | V36: =Y199 -> 70.12196042 | W36: =Z199 -> 27.75373345 | X36: 1.177676528 | Y36: 0.9466296003
E37: =C200 -> 2020 | F37: =E200 -> 37.16034259 | G37: 28.77606556 | H37: 0.4834716912 | I37: 33.58012016 | J37: =J200 -> 54.77746249 | K37: 41.42497006 | L37: 0.3022747871 | M37: 3.495292667 | N37: =O200 -> 52.37707202 | O37: 47.30680618 | P37: 0.3161217908 | Q37: 0 | R37: =T200 -> 53.11331187 | S37: 46.88668813 | T37: 0 | U37: 0 | V37: =Y200 -> 71.64389609 | W37: 28.35610391 | X37: 0 | Y37: 0
B39: RURAL | D39: Estimate | E39: =C299 -> 2000 | F39: =E299 -> 0 | G39: =F299 -> 0 | H39: 0 | I39: 100 | J39: =J299 -> 0 | K39: =K299 -> 0 | L39: 0 | M39: 100 | N39: =O299 -> 0 | O39: =P299 -> 0 | P39: 4.275506047 | Q39: 95.72449395 | R39: =T299 -> 0.7583398174 | S39: =U299 -> 0.9533395446 | T39: 5.409690499 | U39: 92.87863014 | V39: =Y299 -> 9.439767482 | W39: =Z299 -> 9.936933243 | X39: 12.26402308 | Y39: 68.3592762
E40: =C300 -> 2020 | F40: =E300 -> 8.828777024 | G40: 17.98568722 | H40: 8.732803223 | I40: 64.45273253 | J40: =J300 -> 17.7820109 | K40: 20.91029437 | L40: 6.612789485 | M40: 54.69490525 | N40: =O300 -> 19.67280988 | O40: 24.66868969 | P40: 7.539688364 | Q40: 48.11881207 | R40: =T300 -> 22.01356951 | S40: 27.67414535 | T40: 8.332609808 | U40: 41.97967534 | V40: =Y300 -> 28.86113848 | W40: 30.38117273 | X40: 5.639643338 | Y40: 35.11804545
A97: NATIONAL | D97: Poorest | I97: Poor | N97: Middle | S97: Rich | X97: Richest
D98: Improved | E98: Basic | F98: Limited | G98: Unimproved | H98: Open defecation | I98: Improved | J98: Basic | K98: Limited | L98: Unimproved | M98: Open defecation | N98: Improved | O98: Basic | P98: Limited | Q98: Unimproved | R98: Open defecation | S98: Improved | T98: Basic | U98: Limited | V98: Unimproved | W98: Open defecation | X98: Improved | Y98: Basic | Z98: Limited | AA98: Unimproved | AB98: Open defecation
A99: Forecast period: | C99: 2000 | D99: =IF((D101+H101)>100,D101*100/(D101+H101),D101) -> 0 | E99: =D99*AVERAGEIF(E105:E116,">0")/100 -> 0 | F99: =D99*(100-AVERAGEIF(E105:E116,">0"))/100 -> 0 | G99: =100-(E99+F99+H99) -> 0 | H99: =IF((D101+H101)>100,H101*100/(D101+H101),H101) -> 100 | I99: =IF((I101+M101)>100,I101*100/(I101+M101),I101) -> 0 | J99: =I99*AVERAGEIF(J105:J116,">0")/100 -> 0 | K99: =I99*(100-AVERAGEIF(J105:J116,">0"))/100 -> 0 | L99: =100-(J99+K99+M99) -> 0.7013893855 | M99: =IF((I101+M101)>100,M101*100/(I101+M101),M101) -> 99.29861061 | N99: =IF((N101+R101)>100,N101*100/(N101+R101),N101) -> 6.584060521 | O99: =N99*AVERAGEIF(O105:O116,">0")/100 -> 3.070200187 | P99: =N99*(100-AVERAGEIF(O105:O116,">0"))/100 -> 3.513860334 | Q99: =100-(O99+P99+R99) -> 8.123629991 | R99: =IF((N101+R101)>100,R101*100/(N101+R101),R101) -> 85.29230949 | S99: =IF((S101+W101)>100,S101*100/(S101+W101),S101) -> 20.36953363 | T99: =S99*AVERAGEIF(T105:T116,">0")/100 -> 10.09060836 | U99: =S99*(100-AVERAGEIF(T105:T116,">0"))/100 -> 10.27892527 | V99: =100-(T99+U99+W99) -> 8.001257805 | W99: =IF((S101+W101)>100,W101*100/(S101+W101),W101) -> 71.62920857 | X99: =IF((X101+AB101)>100,X101*100/(X101+AB101),X101) -> 77.91175637 | Y99: =X99*AVERAGEIF(Y105:Y116,">0")/100 -> 45.20718302 | Z99: =X99*(100-AVERAGEIF(Y105:Y116,">0"))/100 -> 32.70457335 | AA99: =100-(Y99+Z99+AB99) -> 8.398990608 | AB99: =IF((X101+AB101)>100,AB101*100/(X101+AB101),AB101) -> 13.68925303
C100: 2020 | D100: =IF((D102+H102)>100,D102*100/(D102+H102),D102) -> 30.04692826 | E100: =D100*AVERAGEIF(E105:E116,">0")/100 -> 11.62197104 | F100: =D100*(100-AVERAGEIF(E105:E116,">0"))/100 -> 18.42495722 | G100: =100-(E100+F100+H100) -> 8.462538627 | H100: =IF((D102+H102)>100,H102*100/(D102+H102),H102) -> 61.49053311 | I100: =IF((I102+M102)>100,I102*100/(I102+M102),I102) -> 41.78070695 | J100: =I100*AVERAGEIF(J105:J116,">0")/100 -> 18.92123355 | K100: =I100*(100-AVERAGEIF(J105:J116,">0"))/100 -> 22.85947341 | L100: =100-(J100+K100+M100) -> 6.926074267 | M100: =IF((I102+M102)>100,M102*100/(I102+M102),M102) -> 51.29321878 | N100: =IF((N102+R102)>100,N102*100/(N102+R102),N102) -> 47.08149677 | O100: =N100*AVERAGEIF(O105:O116,">0")/100 -> 21.95447926 | P100: =N100*(100-AVERAGEIF(O105:O116,">0"))/100 -> 25.12701751 | Q100: =100-(O100+P100+R100) -> 6.46257366 | R100: =IF((N102+R102)>100,R102*100/(N102+R102),R102) -> 46.45592957 | S100: =IF((S102+W102)>100,S102*100/(S102+W102),S102) -> 60.00811902 | T100: =S100*AVERAGEIF(T105:T116,">0")/100 -> 29.72667113 | U100: =S100*(100-AVERAGEIF(T105:T116,">0"))/100 -> 30.28144789 | V100: =100-(T100+U100+W100) -> 7.789039565 | W100: =IF((S102+W102)>100,W102*100/(S102+W102),W102) -> 32.20284141 | X100: =IF((X102+AB102)>100,X102*100/(X102+AB102),X102) -> 96.99257277 | Y100: =X100*AVERAGEIF(Y105:Y116,">0")/100 -> 56.27855401 | Z100: =X100*(100-AVERAGEIF(Y105:Y116,">0"))/100 -> 40.71401876 | AA100: =100-(Y100+Z100+AB100) -> 0.7029142316 | AB100: =IF((X102+AB102)>100,AB102*100/(X102+AB102),AB102) -> 2.304513002
A101: Regression period: | C101: =MinRegYear(C99,C105:C116) -> 2001 | D101: =IF(MAX(C105:C116)-MIN(C105:C116)<5,AVERAGEIF(C105:C116,">0",D105:D116), IF(FORECAST($C101,D$105:D$116,$C$105:$C$116)<0,0, IF(FORECAST($C101,D$105:D$116,$C$105:$C$116)>100,100, FORECAST($C101,D$105:D$116,$C$105:$C$116)))) -> 0 | H101: =IF(MAX(C105:C116)-MIN(C105:C116)<5,AVERAGEIF(C105:C116,">0",H105:H116), IF(FORECAST($C101,H$105:H$116,$C$105:$C$116)<0,0, IF(FORECAST($C101,H$105:H$116,$C$105:$C$116)>100,100, FORECAST($C101,H$105:H$116,$C$105:$C$116)))) -> 100 | I101: =IF(MAX(C105:C116)-MIN(C105:C116)<5,AVERAGEIF(C105:C116,">0",I105:I116), IF(FORECAST($C101,I$105:I$116,$C$105:$C$116)<0,0, IF(FORECAST($C101,I$105:I$116,$C$105:$C$116)>100,100, FORECAST($C101,I$105:I$116,$C$105:$C$116)))) -> 0 | M101: =IF(MAX(C105:C116)-MIN(C105:C116)<5,AVERAGEIF(C105:C116,">0",M105:M116), IF(FORECAST($C101,M$105:M$116,$C$105:$C$116)<0,0, IF(FORECAST($C101,M$105:M$116,$C$105:$C$116)>100,100, FORECAST($C101,M$105:M$116,$C$105:$C$116)))) -> 99.29861061 | N101: =IF(MAX(C105:C116)-MIN(C105:C116)<5,AVERAGEIF(C105:C116,">0",N105:N116), IF(FORECAST($C101,N$105:N$116,$C$105:$C$116)<0,0, IF(FORECAST($C101,N$105:N$116,$C$105:$C$116)>100,100, FORECAST($C101,N$105:N$116,$C$105:$C$116)))) -> 6.584060521 | R101: =IF(MAX(C105:C116)-MIN(C105:C116)<5,AVERAGEIF(C105:C116,">0",R105:R116), IF(FORECAST($C101,R$105:R$116,$C$105:$C$116)<0,0, IF(FORECAST($C101,R$105:R$116,$C$105:$C$116)>100,100, FORECAST($C101,R$105:R$116,$C$105:$C$116)))) -> 85.29230949 | S101: =IF(MAX(C105:C116)-MIN(C105:C116)<5,AVERAGEIF(C105:C116,">0",S105:S116), IF(FORECAST($C101,S$105:S$116,$C$105:$C$116)<0,0, IF(FORECAST($C101,S$105:S$116,$C$105:$C$116)>100,100, FORECAST($C101,S$105:S$116,$C$105:$C$116)))) -> 20.36953363 | W101: =IF(MAX(C105:C116)-MIN(C105:C116)<5,AVERAGEIF(C105:C116,">0",W105:W116), IF(FORECAST($C101,W$105:W$116,$C$105:$C$116)<0,0, IF(FORECAST($C101,W$105:W$116,$C$105:$C$116)>100,100, FORECAST($C101,W$105:W$116,$C$105:$C$116)))) -> 71.62920857 | X101: =IF(MAX(C105:C116)-MIN(C105:C116)<5,AVERAGEIF(C105:C116,">0",X105:X116), IF(FORECAST($C101,X$105:X$116,$C$105:$C$116)<0,0, IF(FORECAST($C101,X$105:X$116,$C$105:$C$116)>100,100, FORECAST($C101,X$105:X$116,$C$105:$C$116)))) -> 77.91175637 | AB101: =IF(MAX(C105:C116)-MIN(C105:C116)<5,AVERAGEIF(C105:C116,">0",AB105:AB116), IF(FORECAST($C101,AB$105:AB$116,$C$105:$C$116)<0,0, IF(FORECAST($C101,AB$105:AB$116,$C$105:$C$116)>100,100, FORECAST($C101,AB$105:AB$116,$C$105:$C$116)))) -> 13.68925303
C102: =MaxRegYear(C100,C105:C116) -> 2020 | D102: =IF(MAX(C105:C116)-MIN(C105:C116)<5,AVERAGEIF(C105:C116,">0",D105:D116), IF(FORECAST($C102,D$105:D$116,$C$105:$C$116)<0,0, IF(FORECAST($C102,D$105:D$116,$C$105:$C$116)>100,100, FORECAST($C102,D$105:D$116,$C$105:$C$116)))) -> 30.04692826 | H102: =IF(MAX(C105:C116)-MIN(C105:C116)<5,AVERAGEIF(C105:C116,">0",H105:H116), IF(FORECAST($C102,H$105:H$116,$C$105:$C$116)<0,0, IF(FORECAST($C102,H$105:H$116,$C$105:$C$116)>100,100, FORECAST($C102,H$105:H$116,$C$105:$C$116)))) -> 61.49053311 | I102: =IF(MAX(C105:C116)-MIN(C105:C116)<5,AVERAGEIF(C105:C116,">0",I105:I116), IF(FORECAST($C102,I$105:I$116,$C$105:$C$116)<0,0, IF(FORECAST($C102,I$105:I$116,$C$105:$C$116)>100,100, FORECAST($C102,I$105:I$116,$C$105:$C$116)))) -> 41.78070695 | M102: =IF(MAX(C105:C116)-MIN(C105:C116)<5,AVERAGEIF(C105:C116,">0",M105:M116), IF(FORECAST($C102,M$105:M$116,$C$105:$C$116)<0,0, IF(FORECAST($C102,M$105:M$116,$C$105:$C$116)>100,100, FORECAST($C102,M$105:M$116,$C$105:$C$116)))) -> 51.29321878 | N102: =IF(MAX(C105:C116)-MIN(C105:C116)<5,AVERAGEIF(C105:C116,">0",N105:N116), IF(FORECAST($C102,N$105:N$116,$C$105:$C$116)<0,0, IF(FORECAST($C102,N$105:N$116,$C$105:$C$116)>100,100, FORECAST($C102,N$105:N$116,$C$105:$C$116)))) -> 47.08149677 | R102: =IF(MAX(C105:C116)-MIN(C105:C116)<5,AVERAGEIF(C105:C116,">0",R105:R116), IF(FORECAST($C102,R$105:R$116,$C$105:$C$116)<0,0, IF(FORECAST($C102,R$105:R$116,$C$105:$C$116)>100,100, FORECAST($C102,R$105:R$116,$C$105:$C$116)))) -> 46.45592957 | S102: =IF(MAX(C105:C116)-MIN(C105:C116)<5,AVERAGEIF(C105:C116,">0",S105:S116), IF(FORECAST($C102,S$105:S$116,$C$105:$C$116)<0,0, IF(FORECAST($C102,S$105:S$116,$C$105:$C$116)>100,100, FORECAST($C102,S$105:S$116,$C$105:$C$116)))) -> 60.00811902 | W102: =IF(MAX(C105:C116)-MIN(C105:C116)<5,AVERAGEIF(C105:C116,">0",W105:W116), IF(FORECAST($C102,W$105:W$116,$C$105:$C$116)<0,0, IF(FORECAST($C102,W$105:W$116,$C$105:$C$116)>100,100, FORECAST($C102,W$105:W$116,$C$105:$C$116)))) -> 32.20284141 | X102: =IF(MAX(C105:C116)-MIN(C105:C116)<5,AVERAGEIF(C105:C116,">0",X105:X116), IF(FORECAST($C102,X$105:X$116,$C$105:$C$116)<0,0, IF(FORECAST($C102,X$105:X$116,$C$105:$C$116)>100,100, FORECAST($C102,X$105:X$116,$C$105:$C$116)))) -> 96.99257277 | AB102: =IF(MAX(C105:C116)-MIN(C105:C116)<5,AVERAGEIF(C105:C116,">0",AB105:AB116), IF(FORECAST($C102,AB$105:AB$116,$C$105:$C$116)<0,0, IF(FORECAST($C102,AB$105:AB$116,$C$105:$C$116)>100,100, FORECAST($C102,AB$105:AB$116,$C$105:$C$116)))) -> 2.304513002
B104: Survey | C104: Year | D104: Improved | E104: Not shared | H104: Open defecation | I104: Improved | J104: Not shared | M104: Open defecation | N104: Improved | O104: Not shared | R104: Open defecation | S104: Improved | T104: Not shared | W104: Open defecation | X104: Improved | Y104: Not shared | AB104: Open defecation
B105: DHS03 | C105: 2003 | D105: =IF(ISERROR(INDIRECT(CONCATENATE($B105,"!C122"))),"",INDIRECT(CONCATENATE($B105,"!C122"))) -> 4.575135089 | E105: =IF(ISERROR(INDIRECT(CONCATENATE($B105,"!C129"))),"",INDIRECT(CONCATENATE($B105,"!C129"))) -> N/A | H105: =IF(ISERROR(INDIRECT(CONCATENATE($B105,"!C127"))),"",INDIRECT(CONCATENATE($B105,"!C127"))) -> 92.67836805 | I105: =IF(ISERROR(INDIRECT(CONCATENATE($B105,"!D122"))),"",INDIRECT(CONCATENATE($B105,"!D122"))) -> 6.673391381 | J105: =IF(ISERROR(INDIRECT(CONCATENATE($B105,"!D129"))),"",INDIRECT(CONCATENATE($B105,"!D129"))) -> N/A | M105: =IF(ISERROR(INDIRECT(CONCATENATE($B105,"!D127"))),"",INDIRECT(CONCATENATE($B105,"!D127"))) -> 89.07939798 | N105: =IF(ISERROR(INDIRECT(CONCATENATE($B105,"!E122"))),"",INDIRECT(CONCATENATE($B105,"!E122"))) -> 14.10456091 | O105: =IF(ISERROR(INDIRECT(CONCATENATE($B105,"!E129"))),"",INDIRECT(CONCATENATE($B105,"!E129"))) -> N/A | R105: =IF(ISERROR(INDIRECT(CONCATENATE($B105,"!E127"))),"",INDIRECT(CONCATENATE($B105,"!E127"))) -> 78.99991115 | S105: =IF(ISERROR(INDIRECT(CONCATENATE($B105,"!F122"))),"",INDIRECT(CONCATENATE($B105,"!F122"))) -> 24.05576462 | T105: =IF(ISERROR(INDIRECT(CONCATENATE($B105,"!F129"))),"",INDIRECT(CONCATENATE($B105,"!F129"))) -> N/A | W105: =IF(ISERROR(INDIRECT(CONCATENATE($B105,"!F127"))),"",INDIRECT(CONCATENATE($B105,"!F127"))) -> 69.55803447 | X105: =IF(ISERROR(INDIRECT(CONCATENATE($B105,"!G122"))),"",INDIRECT(CONCATENATE($B105,"!G122"))) -> 77.50978858 | Y105: =IF(ISERROR(INDIRECT(CONCATENATE($B105,"!G129"))),"",INDIRECT(CONCATENATE($B105,"!G129"))) -> N/A | AB105: =IF(ISERROR(INDIRECT(CONCATENATE($B105,"!G2127"))),"",INDIRECT(CONCATENATE($B105,"!G127"))) -> 16.02240668
B106: MICS06 | C106: 2006 | D106: 3.658378024 | E106: 44.24766019 | H106: 92.85451357 | I106: 7.962076148 | J106: 48.37705832 | M106: 87.10779686 | N106: 19.27441408 | O106: 48.04786054 | R106: 70.85338731 | S106: 34.97534813 | T106: 49.96342088 | W106: 54.90928001 | X106: 85.36579199 | Y106: 59.94468431 | AB106: 7.465799606
B107: DHS10 | C107: 2010 | D107: 5.313523995 | E107: 44.24766019 | H107: 91.54692394 | I107: 9.814175654 | J107: 48.37705832 | M107: 84.25587606 | N107: 16.80632833 | O107: 48.04786054 | R107: 75.1010982 | S107: 32.15007218 | T107: 49.96342088 | W107: 59.17480338 | X107: 84.45771141 | Y107: 59.94468431 | AB107: 8.855599821
B108: MIS14 | C108: 2014 | D108: 24.55404752 | E108: 38.19772866 | H108: 73.3121523 | I108: 26.56781884 | J108: 39.95675033 | M108: 69.10549136 | N108: 33.89884246 | O108: 41.48341285 | R108: 63.23292261 | S108: 50.78155829 | T108: 51.50344091 | W108: 43.44835787 | X108: 97.69268057 | Y108: 56.18748352 | AB108: 1.22056239
B109: MIS18 | C109: 2018 | D109: 26.72495209 | E109: 28.02454386 | H109: 62.30591027 | I109: 41.75355244 | J109: 44.43717888 | M109: 50.72091058 | N109: 46.88258142 | O109: 48.94407173 | R109: 44.24930838 | S109: 55.85202639 | T109: 46.72071169 | W109: 35.60225716 | X109: 90.72847004 | Y109: 56.01743055 | AB109: 7.318841843
B118: =CONCATENATE("National use of sanitation facilities, ",C99,"–",C100) -> National use of sanitation facilities, 2000–2020 | S118: Data points used for regression
A197: URBAN | D197: Poorest | I197: Poor | N197: Middle | S197: Rich | X197: Richest
D198: Improved | E198: Basic | F198: Limited | G198: Unimproved | H198: Open defecation | I198: Improved | J198: Basic | K198: Limited | L198: Unimproved | M198: Open defecation | N198: Improved | O198: Basic | P198: Limited | Q198: Unimproved | R198: Open defecation | S198: Improved | T198: Basic | U198: Limited | V198: Unimproved | W198: Open defecation | X198: Improved | Y198: Basic | Z198: Limited | AA198: Unimproved | AB198: Open defecation
A199: Forecast period: | C199: 2000 | D199: =IF((D201+H201)>100,D201*100/(D201+H201),D201) -> 62.72444607 | E199: =D199*AVERAGEIF(E205:E216,">0")/100 -> 35.35014979 | F199: =D199*(100-AVERAGEIF(E205:E216,">0"))/100 -> 27.37429627 | G199: =100-(E199+F199+H199) -> 16.53411517 | H199: =IF((D201+H201)>100,H201*100/(D201+H201),H201) -> 20.74143877 | I199: =IF((I201+M201)>100,I201*100/(I201+M201),I201) -> 77.37556067 | J199: =I199*AVERAGEIF(J205:J216,">0")/100 -> 44.05748129 | K199: =I199*(100-AVERAGEIF(J205:J216,">0"))/100 -> 33.31807938 | L199: =100-(J199+K199+M199) -> 10.24334463 | M199: =IF((I201+M201)>100,M201*100/(I201+M201),M201) -> 12.3810947 | N199: =IF((N201+R201)>100,N201*100/(N201+R201),N201) -> 89.69592133 | O199: =N199*AVERAGEIF(O205:O216,">0")/100 -> 47.12908262 | P199: =N199*(100-AVERAGEIF(O205:O216,">0"))/100 -> 42.56683871 | Q199: =100-(O199+P199+R199) -> 5.588410283 | R199: =IF((N201+R201)>100,R201*100/(N201+R201),R201) -> 4.715668386 | S199: =IF((S201+W201)>100,S201*100/(S201+W201),S201) -> 91.95963096 | T199: =S199*AVERAGEIF(T205:T216,">0")/100 -> 48.84280559 | U199: =S199*(100-AVERAGEIF(T205:T216,">0"))/100 -> 43.11682537 | V199: =100-(T199+U199+W199) -> 3.118058632 | W199: =IF((S201+W201)>100,W201*100/(S201+W201),W201) -> 4.922310403 | X199: =IF((X201+AB201)>100,X201*100/(X201+AB201),X201) -> 97.87569387 | Y199: =X199*AVERAGEIF(Y205:Y216,">0")/100 -> 70.12196042 | Z199: =X199*(100-AVERAGEIF(Y205:Y216,">0"))/100 -> 27.75373345 | AA199: =100-(Y199+Z199+AB199) -> 1.177676528 | AB199: =IF((X201+AB201)>100,AB201*100/(X201+AB201),AB201) -> 0.9466296003
C200: 2020 | D200: =IF((D202+H202)>100,D202*100/(D202+H202),D202) -> 65.93640815 | E200: =D200*AVERAGEIF(E205:E216,">0")/100 -> 37.16034259 | F200: =D200*(100-AVERAGEIF(E205:E216,">0"))/100 -> 28.77606556 | G200: =100-(E200+F200+H200) -> 0.4834716912 | H200: =IF((D202+H202)>100,H202*100/(D202+H202),H202) -> 33.58012016 | I200: =IF((I202+M202)>100,I202*100/(I202+M202),I202) -> 96.20243255 | J200: =I200*AVERAGEIF(J205:J216,">0")/100 -> 54.77746249 | K200: =I200*(100-AVERAGEIF(J205:J216,">0"))/100 -> 41.42497006 | L200: =100-(J200+K200+M200) -> 0.3022747871 | M200: =IF((I202+M202)>100,M202*100/(I202+M202),M202) -> 3.495292667 | N200: =IF((N202+R202)>100,N202*100/(N202+R202),N202) -> 99.68387821 | O200: =N200*AVERAGEIF(O205:O216,">0")/100 -> 52.37707202 | P200: =N200*(100-AVERAGEIF(O205:O216,">0"))/100 -> 47.30680618 | Q200: =100-(O200+P200+R200) -> 0.3161217908 | R200: =IF((N202+R202)>100,R202*100/(N202+R202),R202) -> 0 | S200: =IF((S202+W202)>100,S202*100/(S202+W202),S202) -> 100 | T200: =S200*AVERAGEIF(T205:T216,">0")/100 -> 53.11331187 | U200: =S200*(100-AVERAGEIF(T205:T216,">0"))/100 -> 46.88668813 | V200: =100-(T200+U200+W200) -> 0 | W200: =IF((S202+W202)>100,W202*100/(S202+W202),W202) -> 0 | X200: =IF((X202+AB202)>100,X202*100/(X202+AB202),X202) -> 100 | Y200: =X200*AVERAGEIF(Y205:Y216,">0")/100 -> 71.64389609 | Z200: =X200*(100-AVERAGEIF(Y205:Y216,">0"))/100 -> 28.35610391 | AA200: =100-(Y200+Z200+AB200) -> 0 | AB200: =IF((X202+AB202)>100,AB202*100/(X202+AB202),AB202) -> 0
A201: Regression period: | C201: =MinRegYear(C199,C205:C216) -> 2004 | D201: =IF(MAX(C205:C216)-MIN(C205:C216)<5,AVERAGEIF(C205:C216,">0",D205:D216), IF(FORECAST($C201,D$205:D$216,$C$205:$C$216)<0,0, IF(FORECAST($C201,D$205:D$216,$C$205:$C$216)>100,100, FORECAST($C201,D$205:D$216,$C$205:$C$216)))) -> 62.72444607 | H201: =IF(MAX(C205:C216)-MIN(C205:C216)<5,AVERAGEIF(C205:C216,">0",H205:H216), IF(FORECAST($C201,H$205:H$216,$C$205:$C$216)<0,0, IF(FORECAST($C201,H$205:H$216,$C$205:$C$216)>100,100, FORECAST($C201,H$205:H$216,$C$205:$C$216)))) -> 20.74143877 | I201: =IF(MAX(C205:C216)-MIN(C205:C216)<5,AVERAGEIF(C205:C216,">0",I205:I216), IF(FORECAST($C201,I$205:I$216,$C$205:$C$216)<0,0, IF(FORECAST($C201,I$205:I$216,$C$205:$C$216)>100,100, FORECAST($C201,I$205:I$216,$C$205:$C$216)))) -> 77.37556067 | M201: =IF(MAX(C205:C216)-MIN(C205:C216)<5,AVERAGEIF(C205:C216,">0",M205:M216), IF(FORECAST($C201,M$205:M$216,$C$205:$C$216)<0,0, IF(FORECAST($C201,M$205:M$216,$C$205:$C$216)>100,100, FORECAST($C201,M$205:M$216,$C$205:$C$216)))) -> 12.3810947 | N201: =IF(MAX(C205:C216)-MIN(C205:C216)<5,AVERAGEIF(C205:C216,">0",N205:N216), IF(FORECAST($C201,N$205:N$216,$C$205:$C$216)<0,0, IF(FORECAST($C201,N$205:N$216,$C$205:$C$216)>100,100, FORECAST($C201,N$205:N$216,$C$205:$C$216)))) -> 89.69592133 | R201: =IF(MAX(C205:C216)-MIN(C205:C216)<5,AVERAGEIF(C205:C216,">0",R205:R216), IF(FORECAST($C201,R$205:R$216,$C$205:$C$216)<0,0, IF(FORECAST($C201,R$205:R$216,$C$205:$C$216)>100,100, FORECAST($C201,R$205:R$216,$C$205:$C$216)))) -> 4.715668386 | S201: =IF(MAX(C205:C216)-MIN(C205:C216)<5,AVERAGEIF(C205:C216,">0",S205:S216), IF(FORECAST($C201,S$205:S$216,$C$205:$C$216)<0,0, IF(FORECAST($C201,S$205:S$216,$C$205:$C$216)>100,100, FORECAST($C201,S$205:S$216,$C$205:$C$216)))) -> 91.95963096 | W201: =IF(MAX(C205:C216)-MIN(C205:C216)<5,AVERAGEIF(C205:C216,">0",W205:W216), IF(FORECAST($C201,W$205:W$216,$C$205:$C$216)<0,0, IF(FORECAST($C201,W$205:W$216,$C$205:$C$216)>100,100, FORECAST($C201,W$205:W$216,$C$205:$C$216)))) -> 4.922310403 | X201: =IF(MAX(C205:C216)-MIN(C205:C216)<5,AVERAGEIF(C205:C216,">0",X205:X216), IF(FORECAST($C201,X$205:X$216,$C$205:$C$216)<0,0, IF(FORECAST($C201,X$205:X$216,$C$205:$C$216)>100,100, FORECAST($C201,X$205:X$216,$C$205:$C$216)))) -> 97.87569387 | AB201: =IF(MAX(C205:C216)-MIN(C205:C216)<5,AVERAGEIF(C205:C216,">0",AB205:AB216), IF(FORECAST($C201,AB$205:AB$216,$C$205:$C$216)<0,0, IF(FORECAST($C201,AB$205:AB$216,$C$205:$C$216)>100,100, FORECAST($C201,AB$205:AB$216,$C$205:$C$216)))) -> 0.9466296003
C202: =MaxRegYear(C200,C205:C216) -> 2020 | D202: =IF(MAX(C205:C216)-MIN(C205:C216)<5,AVERAGEIF(C205:C216,">0",D205:D216), IF(FORECAST($C202,D$205:D$216,$C$205:$C$216)<0,0, IF(FORECAST($C202,D$205:D$216,$C$205:$C$216)>100,100, FORECAST($C202,D$205:D$216,$C$205:$C$216)))) -> 65.93640815 | H202: =IF(MAX(C205:C216)-MIN(C205:C216)<5,AVERAGEIF(C205:C216,">0",H205:H216), IF(FORECAST($C202,H$205:H$216,$C$205:$C$216)<0,0, IF(FORECAST($C202,H$205:H$216,$C$205:$C$216)>100,100, FORECAST($C202,H$205:H$216,$C$205:$C$216)))) -> 33.58012016 | I202: =IF(MAX(C205:C216)-MIN(C205:C216)<5,AVERAGEIF(C205:C216,">0",I205:I216), IF(FORECAST($C202,I$205:I$216,$C$205:$C$216)<0,0, IF(FORECAST($C202,I$205:I$216,$C$205:$C$216)>100,100, FORECAST($C202,I$205:I$216,$C$205:$C$216)))) -> 96.20243255 | M202: =IF(MAX(C205:C216)-MIN(C205:C216)<5,AVERAGEIF(C205:C216,">0",M205:M216), IF(FORECAST($C202,M$205:M$216,$C$205:$C$216)<0,0, IF(FORECAST($C202,M$205:M$216,$C$205:$C$216)>100,100, FORECAST($C202,M$205:M$216,$C$205:$C$216)))) -> 3.495292667 | N202: =IF(MAX(C205:C216)-MIN(C205:C216)<5,AVERAGEIF(C205:C216,">0",N205:N216), IF(FORECAST($C202,N$205:N$216,$C$205:$C$216)<0,0, IF(FORECAST($C202,N$205:N$216,$C$205:$C$216)>100,100, FORECAST($C202,N$205:N$216,$C$205:$C$216)))) -> 99.68387821 | R202: =IF(MAX(C205:C216)-MIN(C205:C216)<5,AVERAGEIF(C205:C216,">0",R205:R216), IF(FORECAST($C202,R$205:R$216,$C$205:$C$216)<0,0, IF(FORECAST($C202,R$205:R$216,$C$205:$C$216)>100,100, FORECAST($C202,R$205:R$216,$C$205:$C$216)))) -> 0 | S202: =IF(MAX(C205:C216)-MIN(C205:C216)<5,AVERAGEIF(C205:C216,">0",S205:S216), IF(FORECAST($C202,S$205:S$216,$C$205:$C$216)<0,0, IF(FORECAST($C202,S$205:S$216,$C$205:$C$216)>100,100, FORECAST($C202,S$205:S$216,$C$205:$C$216)))) -> 100 | W202: =IF(MAX(C205:C216)-MIN(C205:C216)<5,AVERAGEIF(C205:C216,">0",W205:W216), IF(FORECAST($C202,W$205:W$216,$C$205:$C$216)<0,0, IF(FORECAST($C202,W$205:W$216,$C$205:$C$216)>100,100, FORECAST($C202,W$205:W$216,$C$205:$C$216)))) -> 0 | X202: =IF(MAX(C205:C216)-MIN(C205:C216)<5,AVERAGEIF(C205:C216,">0",X205:X216), IF(FORECAST($C202,X$205:X$216,$C$205:$C$216)<0,0, IF(FORECAST($C202,X$205:X$216,$C$205:$C$216)>100,100, FORECAST($C202,X$205:X$216,$C$205:$C$216)))) -> 100 | AB202: =IF(MAX(C205:C216)-MIN(C205:C216)<5,AVERAGEIF(C205:C216,">0",AB205:AB216), IF(FORECAST($C202,AB$205:AB$216,$C$205:$C$216)<0,0, IF(FORECAST($C202,AB$205:AB$216,$C$205:$C$216)>100,100, FORECAST($C202,AB$205:AB$216,$C$205:$C$216)))) -> 0
B204: Survey | C204: Year | D204: Improved | E204: Not shared | H204: Open defecation | I204: Improved | J204: Not shared | M204: Open defecation | N204: Improved | O204: Not shared | R204: Open defecation | S204: Improved | T204: Not shared | W204: Open defecation | X204: Improved | Y204: Not shared | AB204: Open defecation
B205: DHS03 | D205: =IF(ISERROR(INDIRECT(CONCATENATE($B205,"!H122"))),"",INDIRECT(CONCATENATE($B205,"!H122"))) -> 62.51534262 | E205: =IF(ISERROR(INDIRECT(CONCATENATE($B205,"!H129"))),"",INDIRECT(CONCATENATE($B205,"!H129"))) -> N/A | H205: =IF(ISERROR(INDIRECT(CONCATENATE($B205,"!H127"))),"",INDIRECT(CONCATENATE($B205,"!H127"))) -> 23.9267967 | I205: =IF(ISERROR(INDIRECT(CONCATENATE($B205,"!I122"))),"",INDIRECT(CONCATENATE($B205,"!I122"))) -> 79.71034243 | J205: =IF(ISERROR(INDIRECT(CONCATENATE($B205,"!I129"))),"",INDIRECT(CONCATENATE($B205,"!I129"))) -> N/A | M205: =IF(ISERROR(INDIRECT(CONCATENATE($B205,"!I127"))),"",INDIRECT(CONCATENATE($B205,"!I127"))) -> 12.36872658 | N205: =IF(ISERROR(INDIRECT(CONCATENATE($B205,"!J122"))),"",INDIRECT(CONCATENATE($B205,"!J122"))) -> 92.69209292 | O205: =IF(ISERROR(INDIRECT(CONCATENATE($B205,"!J129"))),"",INDIRECT(CONCATENATE($B205,"!J129"))) -> N/A | R205: =IF(ISERROR(INDIRECT(CONCATENATE($B205,"!J127"))),"",INDIRECT(CONCATENATE($B205,"!J127"))) -> 2.523588603 | S205: =IF(ISERROR(INDIRECT(CONCATENATE($B205,"!K122"))),"",INDIRECT(CONCATENATE($B205,"!K122"))) -> 97.16898439 | T205: =IF(ISERROR(INDIRECT(CONCATENATE($B205,"!K129"))),"",INDIRECT(CONCATENATE($B205,"!K129"))) -> N/A | W205: =IF(ISERROR(INDIRECT(CONCATENATE($B205,"!K127"))),"",INDIRECT(CONCATENATE($B205,"!K127"))) -> 0.3798669239 | X205: =IF(ISERROR(INDIRECT(CONCATENATE($B205,"!L122"))),"",INDIRECT(CONCATENATE($B205,"!L122"))) -> 99.09035198 | Y205: =IF(ISERROR(INDIRECT(CONCATENATE($B205,"!L129"))),"",INDIRECT(CONCATENATE($B205,"!L129"))) -> N/A | AB205: =IF(ISERROR(INDIRECT(CONCATENATE($B205,"!L2127"))),"",INDIRECT(CONCATENATE($B205,"!L127"))) -> 0
B206: MICS06 | C206: 2006 | D206: 72.99608684 | E206: 55.5747772 | H206: 11.01887051 | I206: 83.38000406 | J206: 58.35761214 | M206: 8.006347706 | N206: 91.51232875 | O206: 52.45763998 | R206: 3.699804038 | S206: 92.33666748 | T206: 60.34603374 | W206: 5.223249295 | X206: 97.79460009 | Y206: 71.34982982 | AB206: 1.09041237
B207: DHS10 | C207: 2010 | D207: 45.14503702 | E207: 55.5747772 | H207: 44.99799196 | I207: 77.30588997 | J207: 58.35761214 | M207: 14.84215463 | N207: 91.60331309 | O207: 52.45763998 | R207: 3.662464433 | S207: 96.21720066 | T207: 60.34603374 | W207: 1.072330006 | X207: 99.11167443 | Y207: 71.34982982 | AB207: 0.04395352346
B208: MIS14 | C208: 2014 | D208: 72.68927551 | E208: 58.03972302 | H208: 23.86372958 | I208: 92.44859768 | J208: 56.04687843 | M208: 5.033062261 | N208: 97.91084009 | O208: 52.79720691 | R208: 1.069296952 | S208: 98.29316628 | T208: 43.72452627 | W208: 0 | X208: 100 | Y208: 70.94622359 | AB208: 0
B209: MIS18 | C209: 2018 | D209: 66.49130908 | E209: 56.24212618 | H209: 28.7625258 | I209: 94.02149472 | J209: 54.9970549 | M209: 3.871210135 | N209: 97.73311715 | O209: 52.46020289 | R209: 0.3735396819 | S209: 99.25410001 | T209: 48.03665374 | W209: 0 | X209: 99.57134199 | Y209: 72.92970114 | AB209: 0
B218: =CONCATENATE("Urban use of sanitation facilities, ",C199,"–",C200) -> Urban use of sanitation facilities, 2000–2020 | S218: Data points used for regression
A297: RURAL | D297: Poorest | I297: Poor | N297: Middle | S297: Rich | X297: Richest
D298: Improved | E298: Basic | F298: Limited | G298: Unimproved | H298: Open defecation | I298: Improved | J298: Basic | K298: Limited | L298: Unimproved | M298: Open defecation | N298: Improved | O298: Basic | P298: Limited | Q298: Unimproved | R298: Open defecation | S298: Improved | T298: Basic | U298: Limited | V298: Unimproved | W298: Open defecation | X298: Improved | Y298: Basic | Z298: Limited | AA298: Unimproved | AB298: Open defecation
A299: Forecast period: | C299: 2000 | D299: =IF((D301+H301)>100,D301*100/(D301+H301),D301) -> 0 | E299: =D299*AVERAGEIF(E305:E316,">0")/100 -> 0 | F299: =D299*(100-AVERAGEIF(E305:E316,">0"))/100 -> 0 | G299: =100-(E299+F299+H299) -> 0 | H299: =IF((D301+H301)>100,H301*100/(D301+H301),H301) -> 100 | I299: =IF((I301+M301)>100,I301*100/(I301+M301),I301) -> 0 | J299: =I299*AVERAGEIF(J305:J316,">0")/100 -> 0 | K299: =I299*(100-AVERAGEIF(J305:J316,">0"))/100 -> 0 | L299: =100-(J299+K299+M299) -> 0 | M299: =IF((I301+M301)>100,M301*100/(I301+M301),M301) -> 100 | N299: =IF((N301+R301)>100,N301*100/(N301+R301),N301) -> 0 | O299: =N299*AVERAGEIF(O305:O316,">0")/100 -> 0 | P299: =N299*(100-AVERAGEIF(O305:O316,">0"))/100 -> 0 | Q299: =100-(O299+P299+R299) -> 4.275506047 | R299: =IF((N301+R301)>100,R301*100/(N301+R301),R301) -> 95.72449395 | S299: =IF((S301+W301)>100,S301*100/(S301+W301),S301) -> 1.711679362 | T299: =S299*AVERAGEIF(T305:T316,">0")/100 -> 0.7583398174 | U299: =S299*(100-AVERAGEIF(T305:T316,">0"))/100 -> 0.9533395446 | V299: =100-(T299+U299+W299) -> 5.409690499 | W299: =IF((S301+W301)>100,W301*100/(S301+W301),W301) -> 92.87863014 | X299: =IF((X301+AB301)>100,X301*100/(X301+AB301),X301) -> 19.37670073 | Y299: =X299*AVERAGEIF(Y305:Y316,">0")/100 -> 9.439767482 | Z299: =X299*(100-AVERAGEIF(Y305:Y316,">0"))/100 -> 9.936933243 | AA299: =100-(Y299+Z299+AB299) -> 12.26402308 | AB299: =IF((X301+AB301)>100,AB301*100/(X301+AB301),AB301) -> 68.3592762
C300: 2020 | D300: =IF((D302+H302)>100,D302*100/(D302+H302),D302) -> 26.81446425 | E300: =D300*AVERAGEIF(E305:E316,">0")/100 -> 8.828777024 | F300: =D300*(100-AVERAGEIF(E305:E316,">0"))/100 -> 17.98568722 | G300: =100-(E300+F300+H300) -> 8.732803223 | H300: =IF((D302+H302)>100,H302*100/(D302+H302),H302) -> 64.45273253 | I300: =IF((I302+M302)>100,I302*100/(I302+M302),I302) -> 38.69230527 | J300: =I300*AVERAGEIF(J305:J316,">0")/100 -> 17.7820109 | K300: =I300*(100-AVERAGEIF(J305:J316,">0"))/100 -> 20.91029437 | L300: =100-(J300+K300+M300) -> 6.612789485 | M300: =IF((I302+M302)>100,M302*100/(I302+M302),M302) -> 54.69490525 | N300: =IF((N302+R302)>100,N302*100/(N302+R302),N302) -> 44.34149956 | O300: =N300*AVERAGEIF(O305:O316,">0")/100 -> 19.67280988 | P300: =N300*(100-AVERAGEIF(O305:O316,">0"))/100 -> 24.66868969 | Q300: =100-(O300+P300+R300) -> 7.539688364 | R300: =IF((N302+R302)>100,R302*100/(N302+R302),R302) -> 48.11881207 | S300: =IF((S302+W302)>100,S302*100/(S302+W302),S302) -> 49.68771485 | T300: =S300*AVERAGEIF(T305:T316,">0")/100 -> 22.01356951 | U300: =S300*(100-AVERAGEIF(T305:T316,">0"))/100 -> 27.67414535 | V300: =100-(T300+U300+W300) -> 8.332609808 | W300: =IF((S302+W302)>100,W302*100/(S302+W302),W302) -> 41.97967534 | X300: =IF((X302+AB302)>100,X302*100/(X302+AB302),X302) -> 59.24231121 | Y300: =X300*AVERAGEIF(Y305:Y316,">0")/100 -> 28.86113848 | Z300: =X300*(100-AVERAGEIF(Y305:Y316,">0"))/100 -> 30.38117273 | AA300: =100-(Y300+Z300+AB300) -> 5.639643338 | AB300: =IF((X302+AB302)>100,AB302*100/(X302+AB302),AB302) -> 35.11804545
A301: Regression period: | C301: =MinRegYear(C299,C305:C316) -> 2001 | D301: =IF(MAX(C305:C316)-MIN(C305:C316)<5,AVERAGEIF(C305:C316,">0",D305:D316), IF(FORECAST($C301,D$305:D$316,$C$305:$C$316)<0,0, IF(FORECAST($C301,D$305:D$316,$C$305:$C$316)>100,100, FORECAST($C301,D$305:D$316,$C$305:$C$316)))) -> 0 | H301: =IF(MAX(C305:C316)-MIN(C305:C316)<5,AVERAGEIF(C305:C316,">0",H305:H316), IF(FORECAST($C301,H$305:H$316,$C$305:$C$316)<0,0, IF(FORECAST($C301,H$305:H$316,$C$305:$C$316)>100,100, FORECAST($C301,H$305:H$316,$C$305:$C$316)))) -> 100 | I301: =IF(MAX(C305:C316)-MIN(C305:C316)<5,AVERAGEIF(C305:C316,">0",I305:I316), IF(FORECAST($C301,I$305:I$316,$C$305:$C$316)<0,0, IF(FORECAST($C301,I$305:I$316,$C$305:$C$316)>100,100, FORECAST($C301,I$305:I$316,$C$305:$C$316)))) -> 0 | M301: =IF(MAX(C305:C316)-MIN(C305:C316)<5,AVERAGEIF(C305:C316,">0",M305:M316), IF(FORECAST($C301,M$305:M$316,$C$305:$C$316)<0,0, IF(FORECAST($C301,M$305:M$316,$C$305:$C$316)>100,100, FORECAST($C301,M$305:M$316,$C$305:$C$316)))) -> 100 | N301: =IF(MAX(C305:C316)-MIN(C305:C316)<5,AVERAGEIF(C305:C316,">0",N305:N316), IF(FORECAST($C301,N$305:N$316,$C$305:$C$316)<0,0, IF(FORECAST($C301,N$305:N$316,$C$305:$C$316)>100,100, FORECAST($C301,N$305:N$316,$C$305:$C$316)))) -> 0 | R301: =IF(MAX(C305:C316)-MIN(C305:C316)<5,AVERAGEIF(C305:C316,">0",R305:R316), IF(FORECAST($C301,R$305:R$316,$C$305:$C$316)<0,0, IF(FORECAST($C301,R$305:R$316,$C$305:$C$316)>100,100, FORECAST($C301,R$305:R$316,$C$305:$C$316)))) -> 95.72449395 | S301: =IF(MAX(C305:C316)-MIN(C305:C316)<5,AVERAGEIF(C305:C316,">0",S305:S316), IF(FORECAST($C301,S$305:S$316,$C$305:$C$316)<0,0, IF(FORECAST($C301,S$305:S$316,$C$305:$C$316)>100,100, FORECAST($C301,S$305:S$316,$C$305:$C$316)))) -> 1.711679362 | W301: =IF(MAX(C305:C316)-MIN(C305:C316)<5,AVERAGEIF(C305:C316,">0",W305:W316), IF(FORECAST($C301,W$305:W$316,$C$305:$C$316)<0,0, IF(FORECAST($C301,W$305:W$316,$C$305:$C$316)>100,100, FORECAST($C301,W$305:W$316,$C$305:$C$316)))) -> 92.87863014 | X301: =IF(MAX(C305:C316)-MIN(C305:C316)<5,AVERAGEIF(C305:C316,">0",X305:X316), IF(FORECAST($C301,X$305:X$316,$C$305:$C$316)<0,0, IF(FORECAST($C301,X$305:X$316,$C$305:$C$316)>100,100, FORECAST($C301,X$305:X$316,$C$305:$C$316)))) -> 19.37670073 | AB301: =IF(MAX(C305:C316)-MIN(C305:C316)<5,AVERAGEIF(C305:C316,">0",AB305:AB316), IF(FORECAST($C301,AB$305:AB$316,$C$305:$C$316)<0,0, IF(FORECAST($C301,AB$305:AB$316,$C$305:$C$316)>100,100, FORECAST($C301,AB$305:AB$316,$C$305:$C$316)))) -> 68.3592762
C302: =MaxRegYear(C300,C305:C316) -> 2020 | D302: =IF(MAX(C305:C316)-MIN(C305:C316)<5,AVERAGEIF(C305:C316,">0",D305:D316), IF(FORECAST($C302,D$305:D$316,$C$305:$C$316)<0,0, IF(FORECAST($C302,D$305:D$316,$C$305:$C$316)>100,100, FORECAST($C302,D$305:D$316,$C$305:$C$316)))) -> 26.81446425 | H302: =IF(MAX(C305:C316)-MIN(C305:C316)<5,AVERAGEIF(C305:C316,">0",H305:H316), IF(FORECAST($C302,H$305:H$316,$C$305:$C$316)<0,0, IF(FORECAST($C302,H$305:H$316,$C$305:$C$316)>100,100, FORECAST($C302,H$305:H$316,$C$305:$C$316)))) -> 64.45273253 | I302: =IF(MAX(C305:C316)-MIN(C305:C316)<5,AVERAGEIF(C305:C316,">0",I305:I316), IF(FORECAST($C302,I$305:I$316,$C$305:$C$316)<0,0, IF(FORECAST($C302,I$305:I$316,$C$305:$C$316)>100,100, FORECAST($C302,I$305:I$316,$C$305:$C$316)))) -> 38.69230527 | M302: =IF(MAX(C305:C316)-MIN(C305:C316)<5,AVERAGEIF(C305:C316,">0",M305:M316), IF(FORECAST($C302,M$305:M$316,$C$305:$C$316)<0,0, IF(FORECAST($C302,M$305:M$316,$C$305:$C$316)>100,100, FORECAST($C302,M$305:M$316,$C$305:$C$316)))) -> 54.69490525 | N302: =IF(MAX(C305:C316)-MIN(C305:C316)<5,AVERAGEIF(C305:C316,">0",N305:N316), IF(FORECAST($C302,N$305:N$316,$C$305:$C$316)<0,0, IF(FORECAST($C302,N$305:N$316,$C$305:$C$316)>100,100, FORECAST($C302,N$305:N$316,$C$305:$C$316)))) -> 44.34149956 | R302: =IF(MAX(C305:C316)-MIN(C305:C316)<5,AVERAGEIF(C305:C316,">0",R305:R316), IF(FORECAST($C302,R$305:R$316,$C$305:$C$316)<0,0, IF(FORECAST($C302,R$305:R$316,$C$305:$C$316)>100,100, FORECAST($C302,R$305:R$316,$C$305:$C$316)))) -> 48.11881207 | S302: =IF(MAX(C305:C316)-MIN(C305:C316)<5,AVERAGEIF(C305:C316,">0",S305:S316), IF(FORECAST($C302,S$305:S$316,$C$305:$C$316)<0,0, IF(FORECAST($C302,S$305:S$316,$C$305:$C$316)>100,100, FORECAST($C302,S$305:S$316,$C$305:$C$316)))) -> 49.68771485 | W302: =IF(MAX(C305:C316)-MIN(C305:C316)<5,AVERAGEIF(C305:C316,">0",W305:W316), IF(FORECAST($C302,W$305:W$316,$C$305:$C$316)<0,0, IF(FORECAST($C302,W$305:W$316,$C$305:$C$316)>100,100, FORECAST($C302,W$305:W$316,$C$305:$C$316)))) -> 41.97967534 | X302: =IF(MAX(C305:C316)-MIN(C305:C316)<5,AVERAGEIF(C305:C316,">0",X305:X316), IF(FORECAST($C302,X$305:X$316,$C$305:$C$316)<0,0, IF(FORECAST($C302,X$305:X$316,$C$305:$C$316)>100,100, FORECAST($C302,X$305:X$316,$C$305:$C$316)))) -> 59.24231121 | AB302: =IF(MAX(C305:C316)-MIN(C305:C316)<5,AVERAGEIF(C305:C316,">0",AB305:AB316), IF(FORECAST($C302,AB$305:AB$316,$C$305:$C$316)<0,0, IF(FORECAST($C302,AB$305:AB$316,$C$305:$C$316)>100,100, FORECAST($C302,AB$305:AB$316,$C$305:$C$316)))) -> 35.11804545
B304: Survey | C304: Year | D304: Improved | E304: Not shared | H304: Open defecation | I304: Improved | J304: Not shared | M304: Open defecation | N304: Improved | O304: Not shared | R304: Open defecation | S304: Improved | T304: Not shared | W304: Open defecation | X304: Improved | Y304: Not shared | AB304: Open defecation
B305: DHS03 | C305: 2003 | D305: =IF(ISERROR(INDIRECT(CONCATENATE($B305,"!M122"))),"",INDIRECT(CONCATENATE($B305,"!M122"))) -> 3.555729746 | E305: =IF(ISERROR(INDIRECT(CONCATENATE($B305,"!M129"))),"",INDIRECT(CONCATENATE($B305,"!M129"))) -> N/A | H305: =IF(ISERROR(INDIRECT(CONCATENATE($B305,"!M127"))),"",INDIRECT(CONCATENATE($B305,"!M127"))) -> 93.94490754 | I305: =IF(ISERROR(INDIRECT(CONCATENATE($B305,"!N122"))),"",INDIRECT(CONCATENATE($B305,"!N122"))) -> 6.452612135 | J305: =IF(ISERROR(INDIRECT(CONCATENATE($B305,"!N129"))),"",INDIRECT(CONCATENATE($B305,"!N129"))) -> N/A | M305: =IF(ISERROR(INDIRECT(CONCATENATE($B305,"!N127"))),"",INDIRECT(CONCATENATE($B305,"!N127"))) -> 89.51591356 | N305: =IF(ISERROR(INDIRECT(CONCATENATE($B305,"!O122"))),"",INDIRECT(CONCATENATE($B305,"!O122"))) -> 9.117465078 | O305: =IF(ISERROR(INDIRECT(CONCATENATE($B305,"!O129"))),"",INDIRECT(CONCATENATE($B305,"!O129"))) -> N/A | R305: =IF(ISERROR(INDIRECT(CONCATENATE($B305,"!O127"))),"",INDIRECT(CONCATENATE($B305,"!O127"))) -> 85.25771187 | S305: =IF(ISERROR(INDIRECT(CONCATENATE($B305,"!P122"))),"",INDIRECT(CONCATENATE($B305,"!P122"))) -> 10.6923911 | T305: =IF(ISERROR(INDIRECT(CONCATENATE($B305,"!P129"))),"",INDIRECT(CONCATENATE($B305,"!P129"))) -> N/A | W305: =IF(ISERROR(INDIRECT(CONCATENATE($B305,"!P127"))),"",INDIRECT(CONCATENATE($B305,"!P127"))) -> 84.21868134 | X305: =IF(ISERROR(INDIRECT(CONCATENATE($B305,"!Q122"))),"",INDIRECT(CONCATENATE($B305,"!Q122"))) -> 27.47210237 | Y305: =IF(ISERROR(INDIRECT(CONCATENATE($B305,"!Q129"))),"",INDIRECT(CONCATENATE($B305,"!Q129"))) -> N/A | AB305: =IF(ISERROR(INDIRECT(CONCATENATE($B305,"!Q2127"))),"",INDIRECT(CONCATENATE($B305,"!Q127"))) -> 62.64527906
B306: MICS06 | C306: 2006 | D306: 3.372237776 | E306: 36.75742334 | H306: 93.23876233 | I306: 5.580408647 | J306: 53.85492176 | M306: 90.23584214 | N306: 9.55489899 | O306: 46.44402804 | R306: 84.64215585 | S306: 15.03411747 | T306: 42.38920371 | W306: 77.27931129 | X306: 29.38733438 | Y306: 48.78803101 | AB306: 59.2765982
B307: DHS10 | C307: 2010 | D307: 4.086380261 | E307: 36.75742334 | H307: 93.09835601 | I307: 7.092018941 | J307: 53.85492176 | M307: 88.35366632 | N307: 12.74822188 | O307: 46.44402804 | R307: 79.85958335 | S307: 16.48884961 | T307: 42.38920371 | W307: 75.81800246 | X307: 33.24432359 | Y307: 48.78803101 | AB307: 54.80709896
B308: MIS14 | C308: 2014 | D308: 20.13228049 | E308: 32.48501637 | H308: 77.8035694 | I308: 23.71532856 | J308: 34.84567985 | M308: 71.79338204 | N308: 31.21465708 | O308: 39.62710884 | R308: 65.90418436 | S308: 33.60277123 | T308: 44.48507701 | W308: 62.95190888 | X308: 43.50496423 | Y308: 49.19948325 | AB308: 50.53884628
B309: MIS18 | C309: 2018 | D309: 24.94027368 | E309: 25.70184753 | H309: 63.70137399 | I309: 39.63677601 | J309: 41.2744219 | M309: 53.19061362 | N309: 42.75040951 | O309: 44.95118213 | R309: 47.70297294 | S309: 48.89277437 | T309: 47.95190632 | W309: 40.89619825 | X309: 59.79152023 | Y309: 48.09287152 | AB309: 34.0497893
B318: =CONCATENATE("Rural use of sanitation facilities, ",C299,"–",C300) -> Rural use of sanitation facilities, 2000–2020 | S318: Data points used for regression

Sheet Hygiene
B4: Access to hygiene facilities by wealth quintile (%)
B5: =IF(ISERROR(INDIRECT(CONCATENATE($E$32,"!A2"))),"",INDIRECT(CONCATENATE($E$32,"!A2"))) -> 
B7: =CONCATENATE("National ",IF(ISERROR(INDIRECT(CONCATENATE($E$32,"!A2"))),"",INDIRECT(CONCATENATE($E$32,"!A210")))) -> National | K7: =CONCATENATE("Urban ",IF(ISERROR(INDIRECT(CONCATENATE($E$32,"!A2"))),"",INDIRECT(CONCATENATE($E$32,"!A210")))) -> Urban | S7: =CONCATENATE("Rural ",IF(ISERROR(INDIRECT(CONCATENATE($E$32,"!A2"))),"",INDIRECT(CONCATENATE($E$32,"!A210")))) -> Rural
E32: =INDEX(B88:B100,A88) -> 0 | G32: =IF(ISERROR(INDIRECT(CONCATENATE($E$32,"!A2"))),"",INDIRECT(CONCATENATE($E$32,"!A2"))) ->  | K32: Poorest | N32: Poor | Q32: Middle | T32: Rich | W32: Richest
K33: Basic | L33: Limited | M33: No facility | N33: Basic | O33: Limited | P33: No facility | Q33: Basic | R33: Limited | S33: No facility | T33: Basic | U33: Limited | V33: No facility | W33: Basic | X33: Limited | Y33: No facility
B34: >>> Select Survey : | G34: NATIONAL | J34: =IF(ISERROR(INDIRECT(CONCATENATE(#REF!,"!A2"))),"",INDIRECT(CONCATENATE(#REF!,"!A210"))) ->  | K34: =IF(ISERROR(INDIRECT(CONCATENATE($E$32,"!C222"))),"",INDIRECT(CONCATENATE($E$32,"!C222"))) ->  | L34: =IF(ISERROR(INDIRECT(CONCATENATE($E$32,"!C223"))),"",INDIRECT(CONCATENATE($E$32,"!C223"))) ->  | M34: =IF(ISERROR(INDIRECT(CONCATENATE($E$32,"!C224"))),"",INDIRECT(CONCATENATE($E$32,"!C224"))) ->  | N34: =IF(ISERROR(INDIRECT(CONCATENATE($E$32,"!D222"))),"",INDIRECT(CONCATENATE($E$32,"!D222"))) ->  | O34: =IF(ISERROR(INDIRECT(CONCATENATE($E$32,"!D223"))),"",INDIRECT(CONCATENATE($E$32,"!D223"))) ->  | P34: =IF(ISERROR(INDIRECT(CONCATENATE($E$32,"!D224"))),"",INDIRECT(CONCATENATE($E$32,"!D224"))) ->  | Q34: =IF(ISERROR(INDIRECT(CONCATENATE($E$32,"!E222"))),"",INDIRECT(CONCATENATE($E$32,"!E222"))) ->  | R34: =IF(ISERROR(INDIRECT(CONCATENATE($E$32,"!E223"))),"",INDIRECT(CONCATENATE($E$32,"!E223"))) ->  | S34: =IF(ISERROR(INDIRECT(CONCATENATE($E$32,"!E224"))),"",INDIRECT(CONCATENATE($E$32,"!E224"))) ->  | T34: =IF(ISERROR(INDIRECT(CONCATENATE($E$32,"!F222"))),"",INDIRECT(CONCATENATE($E$32,"!F222"))) ->  | U34: =IF(ISERROR(INDIRECT(CONCATENATE($E$32,"!F223"))),"",INDIRECT(CONCATENATE($E$32,"!F223"))) ->  | V34: =IF(ISERROR(INDIRECT(CONCATENATE($E$32,"!F224"))),"",INDIRECT(CONCATENATE($E$32,"!F224"))) ->  | W34: =IF(ISERROR(INDIRECT(CONCATENATE($E$32,"!G222"))),"",INDIRECT(CONCATENATE($E$32,"!G222"))) ->  | X34: =IF(ISERROR(INDIRECT(CONCATENATE($E$32,"!G223"))),"",INDIRECT(CONCATENATE($E$32,"!G223"))) ->  | Y34: =IF(ISERROR(INDIRECT(CONCATENATE($E$32,"!G224"))),"",INDIRECT(CONCATENATE($E$32,"!G224"))) -> 
G37: URBAN | J37: =IF(ISERROR(INDIRECT(CONCATENATE(#REF!,"!A2"))),"",INDIRECT(CONCATENATE(#REF!,"!A210"))) ->  | K37: =IF(ISERROR(INDIRECT(CONCATENATE($E$32,"!H222"))),"",INDIRECT(CONCATENATE($E$32,"!H222"))) ->  | L37: =IF(ISERROR(INDIRECT(CONCATENATE($E$32,"!H223"))),"",INDIRECT(CONCATENATE($E$32,"!H223"))) ->  | M37: =IF(ISERROR(INDIRECT(CONCATENATE($E$32,"!H224"))),"",INDIRECT(CONCATENATE($E$32,"!H224"))) ->  | N37: =IF(ISERROR(INDIRECT(CONCATENATE($E$32,"!I222"))),"",INDIRECT(CONCATENATE($E$32,"!I222"))) ->  | O37: =IF(ISERROR(INDIRECT(CONCATENATE($E$32,"!I223"))),"",INDIRECT(CONCATENATE($E$32,"!I223"))) ->  | P37: =IF(ISERROR(INDIRECT(CONCATENATE($E$32,"!I224"))),"",INDIRECT(CONCATENATE($E$32,"!I224"))) ->  | Q37: =IF(ISERROR(INDIRECT(CONCATENATE($E$32,"!J222"))),"",INDIRECT(CONCATENATE($E$32,"!J222"))) ->  | R37: =IF(ISERROR(INDIRECT(CONCATENATE($E$32,"!J223"))),"",INDIRECT(CONCATENATE($E$32,"!J223"))) ->  | S37: =IF(ISERROR(INDIRECT(CONCATENATE($E$32,"!J224"))),"",INDIRECT(CONCATENATE($E$32,"!J224"))) ->  | T37: =IF(ISERROR(INDIRECT(CONCATENATE($E$32,"!K222"))),"",INDIRECT(CONCATENATE($E$32,"!K222"))) ->  | U37: =IF(ISERROR(INDIRECT(CONCATENATE($E$32,"!K223"))),"",INDIRECT(CONCATENATE($E$32,"!K223"))) ->  | V37: =IF(ISERROR(INDIRECT(CONCATENATE($E$32,"!K224"))),"",INDIRECT(CONCATENATE($E$32,"!K224"))) ->  | W37: =IF(ISERROR(INDIRECT(CONCATENATE($E$32,"!L222"))),"",INDIRECT(CONCATENATE($E$32,"!L222"))) ->  | X37: =IF(ISERROR(INDIRECT(CONCATENATE($E$32,"!L223"))),"",INDIRECT(CONCATENATE($E$32,"!L223"))) ->  | Y37: =IF(ISERROR(INDIRECT(CONCATENATE($E$32,"!L224"))),"",INDIRECT(CONCATENATE($E$32,"!L224"))) -> 
G40: RURAL | J40: =IF(ISERROR(INDIRECT(CONCATENATE(#REF!,"!A2"))),"",INDIRECT(CONCATENATE(#REF!,"!A210"))) ->  | K40: =IF(ISERROR(INDIRECT(CONCATENATE($E$32,"!M222"))),"",INDIRECT(CONCATENATE($E$32,"!M222"))) ->  | L40: =IF(ISERROR(INDIRECT(CONCATENATE($E$32,"!M223"))),"",INDIRECT(CONCATENATE($E$32,"!M223"))) ->  | M40: =IF(ISERROR(INDIRECT(CONCATENATE($E$32,"!M224"))),"",INDIRECT(CONCATENATE($E$32,"!M224"))) ->  | N40: =IF(ISERROR(INDIRECT(CONCATENATE($E$32,"!N222"))),"",INDIRECT(CONCATENATE($E$32,"!N222"))) ->  | O40: =IF(ISERROR(INDIRECT(CONCATENATE($E$32,"!N223"))),"",INDIRECT(CONCATENATE($E$32,"!N223"))) ->  | P40: =IF(ISERROR(INDIRECT(CONCATENATE($E$32,"!N224"))),"",INDIRECT(CONCATENATE($E$32,"!N224"))) ->  | Q40: =IF(ISERROR(INDIRECT(CONCATENATE($E$32,"!O222"))),"",INDIRECT(CONCATENATE($E$32,"!O222"))) ->  | R40: =IF(ISERROR(INDIRECT(CONCATENATE($E$32,"!O223"))),"",INDIRECT(CONCATENATE($E$32,"!O223"))) ->  | S40: =IF(ISERROR(INDIRECT(CONCATENATE($E$32,"!O224"))),"",INDIRECT(CONCATENATE($E$32,"!O224"))) ->  | T40: =IF(ISERROR(INDIRECT(CONCATENATE($E$32,"!P222"))),"",INDIRECT(CONCATENATE($E$32,"!P222"))) ->  | U40: =IF(ISERROR(INDIRECT(CONCATENATE($E$32,"!P223"))),"",INDIRECT(CONCATENATE($E$32,"!P223"))) ->  | V40: =IF(ISERROR(INDIRECT(CONCATENATE($E$32,"!P224"))),"",INDIRECT(CONCATENATE($E$32,"!P224"))) ->  | W40: =IF(ISERROR(INDIRECT(CONCATENATE($E$32,"!Q222"))),"",INDIRECT(CONCATENATE($E$32,"!Q222"))) ->  | X40: =IF(ISERROR(INDIRECT(CONCATENATE($E$32,"!Q223"))),"",INDIRECT(CONCATENATE($E$32,"!Q223"))) ->  | Y40: =IF(ISERROR(INDIRECT(CONCATENATE($E$32,"!Q224"))),"",INDIRECT(CONCATENATE($E$32,"!Q224"))) -> 
A88: 2 | B88: Template

Sheet DHS03
A2: =A1026 -> Burkina Faso
A3: =A1034 -> 2003
A4: Use of drinking water sources
A5: by wealth quintile and sub-national region
A6: Notes:
A7: WHO/UNICEF JMP customised wealth index excludes water,
A8: sanitation and hygiene assets.
A9: Survey used for analysis: | B9: =A1025 -> DHS03
A10: Improved springs based on: | B10: MICS06
A11: Time to improved water based on: | B11: MICS06
A14: Use of drinking water sources | C14: NATIONAL wealth index quintile | H14: URBAN wealth index quintile | M14: RURAL wealth index quintile | R14: SUB-REGIONS: | BA14: Raw numbers of respondents: | BB14: Use of drinking water sources | BC14: NATIONAL wealth index quintile | BH14: URBAN wealth index quintile | BM14: RURAL wealth index quintile | BR14: SUB-REGIONS:
A15: Weighted percentage (used in graphs) | C15: Poorest | D15: Poor | E15: Middle | F15: Rich | G15: Richest | H15: Poorest | I15: Poor | J15: Middle | K15: Rich | L15: Richest | M15: Poorest | N15: Poor | O15: Middle | P15: Rich | Q15: Richest | R15: boucle de mouhoun | S15: cascades | T15: centre (sans ouagadougou) | U15: centre-est | V15: centre-nord | W15: centre-ouest | X15: centre-sud | Y15: est | Z15: hauts bassins | AA15: nord | AB15: ouagadougou | AC15: plateau central | AD15: sahel | AE15: sud-ouest | BA15: Water data, raw numbers (weighted) | BC15: Poorest | BD15: Poor | BE15: Middle | BF15: Rich | BG15: Richest | BH15: Poorest | BI15: Poor | BJ15: Middle | BK15: Rich | BL15: Richest | BM15: Poorest | BN15: Poor | BO15: Middle | BP15: Rich | BQ15: Richest | BR15: boucle de mouhoun | BS15: cascades | BT15: centre (sans ouagadougou) | BU15: centre-est | BV15: centre-nord | BW15: centre-ouest | BX15: centre-sud | BY15: est | BZ15: hauts bassins | CA15: nord | CB15: ouagadougou | CC15: plateau central | CD15: sahel | CE15: sud-ouest
A16: Water | B16: Improved | C16: 45.93615312 | D16: 49.59770458 | E16: 50.8802905 | F16: 60.89250777 | G16: 83.86895816 | H16: 83.04334219 | I16: 88.96539852 | J16: 93.56006663 | K16: 97.5171101 | L16: 99.30840901 | M16: 45.69799054 | N16: 48.72263867 | O16: 48.70010002 | P16: 57.37390333 | Q16: 52.858488 | R16: 35.38239538 | S16: 64.79041541 | T16: N/A | U16: 78.0836566 | V16: 65.86388011 | W16: 45.72105818 | X16: 65.35079926 | Y16: 62.34912125 | Z16: 42.95431794 | AA16: 52.00867763 | AB16: N/A | AC16: 67.69774232 | AD16: 35.12613566 | AE16: 38.27597229 | BA16: Water | BB16: Improved | BC16: N/A | BD16: N/A | BE16: N/A | BF16: N/A | BG16: N/A | BH16: N/A | BI16: N/A | BJ16: N/A | BK16: N/A | BL16: N/A | BM16: N/A | BN16: N/A | BO16: N/A | BP16: N/A | BQ16: N/A | BR16: N/A | BS16: N/A | BT16: N/A | BU16: N/A | BV16: N/A | BW16: N/A | BX16: N/A | BY16: N/A | BZ16: N/A | CA16: N/A | CB16: N/A | CC16: N/A | CD16: N/A | CE16: N/A
B17: Not Improved | C17: =100-C16 -> 54.06384688 | D17: =100-D16 -> 50.40229542 | E17: 49.1197095 | F17: 39.10749223 | G17: 16.13104184 | H17: 16.95665781 | I17: 11.03460148 | J17: 6.43993337 | K17: 2.482889899 | L17: 0.691590985 | M17: 54.30200946 | N17: 51.27736133 | O17: 51.29989998 | P17: 42.62609667 | Q17: 47.141512 | R17: 64.61760462 | S17: 35.20958459 | T17: N/A | U17: 21.9163434 | V17: 34.13611989 | W17: 54.27894182 | X17: 34.64920074 | Y17: 37.65087875 | Z17: 57.04568206 | AA17: 47.99132237 | AB17: N/A | AC17: 32.30225768 | AD17: 64.87386434 | AE17: 61.72402771 | BB17: Not Improved | BC17: N/A | BD17: N/A | BE17: N/A | BF17: N/A | BG17: N/A | BH17: N/A | BI17: N/A | BJ17: N/A | BK17: N/A | BL17: N/A | BM17: N/A | BN17: N/A | BO17: N/A | BP17: N/A | BQ17: N/A | BR17: N/A | BS17: N/A | BT17: N/A | BU17: N/A | BV17: N/A | BW17: N/A | BX17: N/A | BY17: N/A | BZ17: N/A | CA17: N/A | CB17: N/A | CC17: N/A | CD17: N/A | CE17: N/A
A18: Water ladder | B18: Basic | C18: 30.26099849 | D18: 35.13796819 | E18: 32.45916348 | F18: 41.67807032 | G18: 70.8816672 | H18: 59.54842132 | I18: 72.56901411 | J18: 81.38650513 | K18: 78.34440742 | L18: 92.2125292 | M18: 29.79399764 | N18: 34.3827974 | O18: 31.79012314 | P18: 37.45210302 | Q18: 35.34359753 | R18: 28.40841802 | S18: 46.68817697 | T18: N/A | U18: 58.27115464 | V18: 49.48655216 | W18: 29.49174192 | X18: 39.03747822 | Y18: 51.62000249 | Z18: 37.05630173 | AA18: 33.70850817 | AB18: N/A | AC18: 35.16208606 | AD18: 26.24464385 | AE18: 26.81442988 | BA18: Water ladder | BB18: Basic | BC18: N/A | BD18: N/A | BE18: N/A | BF18: N/A | BG18: N/A | BH18: N/A | BI18: N/A | BJ18: N/A | BK18: N/A | BL18: N/A | BM18: N/A | BN18: N/A | BO18: N/A | BP18: N/A | BQ18: N/A | BR18: N/A | BS18: N/A | BT18: N/A | BU18: N/A | BV18: N/A | BW18: N/A | BX18: N/A | BY18: N/A | BZ18: N/A | CA18: N/A | CB18: N/A | CC18: N/A | CD18: N/A | CE18: N/A
B19: Limited | C19: 15.67515463 | D19: 14.45973639 | E19: 18.42112702 | F19: 19.21443746 | G19: 12.98729095 | H19: 23.49492088 | I19: 16.39638441 | J19: 12.1735615 | K19: 19.17270268 | L19: 7.095879811 | M19: 15.9039929 | N19: 14.33984127 | O19: 16.90997688 | P19: 19.9218003 | Q19: 17.51489047 | R19: 6.973977359 | S19: 18.10223844 | T19: N/A | U19: 19.81250196 | V19: 16.37732795 | W19: 16.22931626 | X19: 26.31332104 | Y19: 10.72911875 | Z19: 5.898016211 | AA19: 18.30016946 | AB19: N/A | AC19: 32.53565626 | AD19: 8.881491802 | AE19: 11.46154241 | BB19: Limited | BC19: N/A | BD19: N/A | BE19: N/A | BF19: N/A | BG19: N/A | BH19: N/A | BI19: N/A | BJ19: N/A | BK19: N/A | BL19: N/A | BM19: N/A | BN19: N/A | BO19: N/A | BP19: N/A | BQ19: N/A | BR19: N/A | BS19: N/A | BT19: N/A | BU19: N/A | BV19: N/A | BW19: N/A | BX19: N/A | BY19: N/A | BZ19: N/A | CA19: N/A | CB19: N/A | CC19: N/A | CD19: N/A | CE19: N/A
B20: Unimproved | C20: =100-(C18+C19+C21) -> 28.88021334 | D20: =100-(D18+D19+D21) -> 32.30834337 | E20: 37.94901328 | F20: 33.55805205 | G20: 14.97364458 | H20: 15.71860278 | I20: 9.942232502 | J20: 6.43993337 | K20: 2.482889899 | L20: 0.691590985 | M20: 29.17017387 | N20: 34.41178865 | O20: 34.67092543 | P20: 33.66767976 | Q20: 41.9327241 | R20: 64.04239292 | S20: 10.28492865 | T20: N/A | U20: 17.14134601 | V20: 13.117765 | W20: 49.0650369 | X20: 28.1525446 | Y20: 14.59742266 | Z20: 52.75681132 | AA20: 41.72398611 | AB20: N/A | AC20: 29.93659124 | AD20: 11.35338184 | AE20: 30.18021612 | BB20: Unimproved | BC20: N/A | BD20: N/A | BE20: N/A | BF20: N/A | BG20: N/A | BH20: N/A | BI20: N/A | BJ20: N/A | BK20: N/A | BL20: N/A | BM20: N/A | BN20: N/A | BO20: N/A | BP20: N/A | BQ20: N/A | BR20: N/A | BS20: N/A | BT20: N/A | BU20: N/A | BV20: N/A | BW20: N/A | BX20: N/A | BY20: N/A | BZ20: N/A | CA20: N/A | CB20: N/A | CC20: N/A | CD20: N/A | CE20: N/A
B21: Surface water | C21: =C68+C69+C70 -> 25.18363354 | D21: 18.09395205 | E21: 11.17069622 | F21: 5.549440172 | G21: 1.15739726 | H21: 1.238055029 | I21: 1.092368976 | J21: 0 | K21: 0 | L21: 0 | M21: 25.13183559 | N21: 16.86557268 | O21: 16.62897455 | P21: 8.958416908 | Q21: 5.208787906 | R21: 0.5752116979 | S21: 24.92465594 | T21: N/A | U21: =U68+U69+U70 -> 4.774997396 | V21: 21.01835489 | W21: 5.213904917 | X21: 6.496656138 | Y21: 23.05345609 | Z21: 4.288870733 | AA21: 6.267336267 | AB21: N/A | AC21: =AC68+AC69+AC70 -> 2.365666443 | AD21: =AD68+AD69+AD70 -> 53.5204825 | AE21: =AE68+AE69+AE70 -> 31.54381159 | BB21: Surface water | BC21: N/A | BD21: N/A | BE21: N/A | BF21: N/A | BG21: N/A | BH21: N/A | BI21: N/A | BJ21: N/A | BK21: N/A | BL21: N/A | BM21: N/A | BN21: N/A | BO21: N/A | BP21: N/A | BQ21: N/A | BR21: N/A | BS21: N/A | BT21: N/A | BU21: N/A | BV21: N/A | BW21: N/A | BX21: N/A | BY21: N/A | BZ21: N/A | CA21: N/A | CB21: N/A | CC21: N/A | CD21: N/A | CE21: N/A
A22: Improved water point at more than 30 minutes | B22: Yes | C22: N/A | D22: N/A | E22: N/A | F22: N/A | G22: N/A | H22: N/A | I22: N/A | J22: N/A | K22: N/A | L22: N/A | M22: N/A | N22: N/A | O22: N/A | P22: N/A | Q22: N/A | R22: N/A | S22: N/A | T22: N/A | U22: N/A | V22: N/A | W22: N/A | X22: N/A | Y22: N/A | Z22: N/A | AA22: N/A | AB22: N/A | AC22: N/A | AD22: N/A | AE22: N/A | BA22: Improved water point at more than 30 minutes | BB22: Yes | BC22: N/A | BD22: N/A | BE22: N/A | BF22: N/A | BG22: N/A | BH22: N/A | BI22: N/A | BJ22: N/A | BK22: N/A | BL22: N/A | BM22: N/A | BN22: N/A | BO22: N/A | BP22: N/A | BQ22: N/A | BR22: N/A | BS22: N/A | BT22: N/A | BU22: N/A | BV22: N/A | BW22: N/A | BX22: N/A | BY22: N/A | BZ22: N/A | CA22: N/A | CB22: N/A | CC22: N/A | CD22: N/A | CE22: N/A
B23: No | C23: N/A | D23: N/A | E23: N/A | F23: N/A | G23: N/A | H23: N/A | I23: N/A | J23: N/A | K23: N/A | L23: N/A | M23: N/A | N23: N/A | O23: N/A | P23: N/A | Q23: N/A | R23: N/A | S23: N/A | T23: N/A | U23: N/A | V23: N/A | W23: N/A | X23: N/A | Y23: N/A | Z23: N/A | AA23: N/A | AB23: N/A | AC23: N/A | AD23: N/A | AE23: N/A | BB23: No | BC23: N/A | BD23: N/A | BE23: N/A | BF23: N/A | BG23: N/A | BH23: N/A | BI23: N/A | BJ23: N/A | BK23: N/A | BL23: N/A | BM23: N/A | BN23: N/A | BO23: N/A | BP23: N/A | BQ23: N/A | BR23: N/A | BS23: N/A | BT23: N/A | BU23: N/A | BV23: N/A | BW23: N/A | BX23: N/A | BY23: N/A | BZ23: N/A | CA23: N/A | CB23: N/A | CC23: N/A | CD23: N/A | CE23: N/A
A24: Manually calculated ratios | B24: Improved wells
B25: Improved springs
B26: Other
C27: NATIONAL wealth index quintile | H27: URBAN wealth index quintile | M27: RURAL wealth index quintile | R27: SUB-REGIONS: | BA27: Raw numbers of respondents: | BB27: Use of drinking water sources | BC27: NATIONAL wealth index quintile | BH27: URBAN wealth index quintile | BM27: RURAL wealth index quintile | BR27: SUB-REGIONS:
A28: Percentage based on weighted population | C28: Poorest | D28: Poor | E28: Middle | F28: Rich | G28: Richest | H28: Poorest | I28: Poor | J28: Middle | K28: Rich | L28: Richest | M28: Poorest | N28: Poor | O28: Middle | P28: Rich | Q28: Richest | R28: boucle de mouhoun | S28: cascades | T28: centre (sans ouagadougou) | U28: centre-est | V28: centre-nord | W28: centre-ouest | X28: centre-sud | Y28: est | Z28: hauts bassins | AA28: nord | AB28: ouagadougou | AC28: plateau central | AD28: sahel | AE28: sud-ouest | BA28: Water data, raw numbers (weighted) | BC28: Poorest | BD28: Poor | BE28: Middle | BF28: Rich | BG28: Richest | BH28: Poorest | BI28: Poor | BJ28: Middle | BK28: Rich | BL28: Richest | BM28: Poorest | BN28: Poor | BO28: Middle | BP28: Rich | BQ28: Richest | BR28: boucle de mouhoun | BS28: cascades | BT28: centre (sans ouagadougou) | BU28: centre-est | BV28: centre-nord | BW28: centre-ouest | BX28: centre-sud | BY28: est | BZ28: hauts bassins | CA28: nord | CB28: ouagadougou | CC28: plateau central | CD28: sahel | CE28: sud-ouest
A29: Piped water | B29: Yes | C29: 2.828340712 | D29: 2.873816376 | E29: 7.466799607 | F29: 15.96194223 | G29: 67.41444683 | H29: 71.42647214 | I29: 81.65200462 | J29: 86.82508016 | K29: 94.00628738 | L29: 98.14804813 | M29: 1.813902068 | N29: 3.053124411 | O29: 3.292596202 | P29: 5.571341364 | Q29: 6.813886622 | R29: 10.11883529 | S29: 22.84963964 | T29: 12.79171093 | U29: 15.18137283 | V29: 3.295912238 | W29: 14.37820049 | X29: 3.478280635 | Y29: 3.232550558 | Z29: 28.58314789 | AA29: 8.199738351 | AB29: 95.95332502 | AC29: 5.799741306 | AD29: 7.591578304 | AE29: 5.460691829 | BA29: Piped water | BB29: Yes | BC29: N/A | BD29: N/A | BE29: N/A | BF29: N/A | BG29: N/A | BH29: N/A | BI29: N/A | BJ29: N/A | BK29: N/A | BL29: N/A | BM29: N/A | BN29: N/A | BO29: N/A | BP29: N/A | BQ29: N/A | BR29: N/A | BS29: N/A | BT29: N/A | BU29: N/A | BV29: N/A | BW29: N/A | BX29: N/A | BY29: N/A | BZ29: N/A | CA29: N/A | CB29: N/A | CC29: N/A | CD29: N/A | CE29: N/A
B30: No | C30: 97.17165929 | D30: 97.12618362 | E30: 92.53320039 | F30: 84.03805777 | G30: 32.58555317 | H30: 28.57352786 | I30: 18.34799538 | J30: 13.17491984 | K30: 5.993712618 | L30: 1.85195187 | M30: 98.18609793 | N30: 96.94687559 | O30: 96.7074038 | P30: 94.42865864 | Q30: 93.18611338 | R30: 89.88116471 | S30: 77.15036036 | T30: 87.20828907 | U30: 84.81862717 | V30: 96.70408776 | W30: 85.62179951 | X30: 96.52171937 | Y30: 96.76744944 | Z30: 71.41685211 | AA30: 91.80026165 | AB30: 4.046674982 | AC30: 94.20025869 | AD30: 92.4084217 | AE30: 94.53930817 | BB30: No | BC30: N/A | BD30: N/A | BE30: N/A | BF30: N/A | BG30: N/A | BH30: N/A | BI30: N/A | BJ30: N/A | BK30: N/A | BL30: N/A | BM30: N/A | BN30: N/A | BO30: N/A | BP30: N/A | BQ30: N/A | BR30: N/A | BS30: N/A | BT30: N/A | BU30: N/A | BV30: N/A | BW30: N/A | BX30: N/A | BY30: N/A | BZ30: N/A | CA30: N/A | CB30: N/A | CC30: N/A | CD30: N/A | CE30: N/A
A31: Piped water on premises | B31: Yes | C31: 0.009377318685 | D31: 0 | E31: 0.2842265456 | F31: 1.433781754 | G31: 29.75534696 | H31: 5.508003126 | I31: 15.09922911 | J31: 24.78839337 | K31: 45.65851968 | L31: 75.65399496 | M31: 0 | N31: 0 | O31: 0.0700240763 | P31: 0 | Q31: 0.2108883395 | R31: 1.102387057 | S31: 10.99975118 | T31: 0.5700837363 | U31: 1.786435987 | V31: 0.7064169587 | W31: 2.014306002 | X31: 0.1329721871 | Y31: 0.4156405356 | Z31: 14.02720432 | AA31: 1.881604144 | AB31: 35.94278623 | AC31: 0 | AD31: 0.3086226838 | AE31: 0.8196308862 | BA31: Piped water on premises | BB31: Yes | BC31: N/A | BD31: N/A | BE31: N/A | BF31: N/A | BG31: N/A | BH31: N/A | BI31: N/A | BJ31: N/A | BK31: N/A | BL31: N/A | BM31: N/A | BN31: N/A | BO31: N/A | BP31: N/A | BQ31: N/A | BR31: N/A | BS31: N/A | BT31: N/A | BU31: N/A | BV31: N/A | BW31: N/A | BX31: N/A | BY31: N/A | BZ31: N/A | CA31: N/A | CB31: N/A | CC31: N/A | CD31: N/A | CE31: N/A
B32: No | C32: 99.99062268 | D32: 100 | E32: 99.71577345 | F32: 98.56621825 | G32: 70.24465304 | H32: 94.49199687 | I32: 84.90077089 | J32: 75.21160663 | K32: 54.34148032 | L32: 24.34600504 | M32: 100 | N32: 100 | O32: 99.92997592 | P32: 100 | Q32: 99.78911166 | R32: 98.89761294 | S32: 89.00024882 | T32: 99.42991626 | U32: 98.21356401 | V32: 99.29358304 | W32: 97.985694 | X32: 99.86702781 | Y32: 99.58435946 | Z32: 85.97279568 | AA32: 98.11839586 | AB32: 64.05721377 | AC32: 100 | AD32: 99.69137732 | AE32: 99.18036911 | BB32: No | BC32: N/A | BD32: N/A | BE32: N/A | BF32: N/A | BG32: N/A | BH32: N/A | BI32: N/A | BJ32: N/A | BK32: N/A | BL32: N/A | BM32: N/A | BN32: N/A | BO32: N/A | BP32: N/A | BQ32: N/A | BR32: N/A | BS32: N/A | BT32: N/A | BU32: N/A | BV32: N/A | BW32: N/A | BX32: N/A | BY32: N/A | BZ32: N/A | CA32: N/A | CB32: N/A | CC32: N/A | CD32: N/A | CE32: N/A
A33: Piped water into dwelling | B33: Yes | C33: N/A | D33: N/A | E33: N/A | F33: N/A | G33: N/A | H33: N/A | I33: N/A | J33: N/A | K33: N/A | L33: N/A | M33: N/A | N33: N/A | O33: N/A | P33: N/A | Q33: N/A | R33: N/A | S33: N/A | T33: N/A | U33: N/A | V33: N/A | W33: N/A | X33: N/A | Y33: N/A | Z33: N/A | AA33: N/A | AB33: N/A | AC33: N/A | AD33: N/A | AE33: N/A | BA33: Piped water into dwelling | BB33: Yes | BC33: N/A | BD33: N/A | BE33: N/A | BF33: N/A | BG33: N/A | BH33: N/A | BI33: N/A | BJ33: N/A | BK33: N/A | BL33: N/A | BM33: N/A | BN33: N/A | BO33: N/A | BP33: N/A | BQ33: N/A | BR33: N/A | BS33: N/A | BT33: N/A | BU33: N/A | BV33: N/A | BW33: N/A | BX33: N/A | BY33: N/A | BZ33: N/A | CA33: N/A | CB33: N/A | CC33: N/A | CD33: N/A | CE33: N/A
B34: No | C34: N/A | D34: N/A | E34: N/A | F34: N/A | G34: N/A | H34: N/A | I34: N/A | J34: N/A | K34: N/A | L34: N/A | M34: N/A | N34: N/A | O34: N/A | P34: N/A | Q34: N/A | R34: N/A | S34: N/A | T34: N/A | U34: N/A | V34: N/A | W34: N/A | X34: N/A | Y34: N/A | Z34: N/A | AA34: N/A | AB34: N/A | AC34: N/A | AD34: N/A | AE34: N/A | BB34: No | BC34: N/A | BD34: N/A | BE34: N/A | BF34: N/A | BG34: N/A | BH34: N/A | BI34: N/A | BJ34: N/A | BK34: N/A | BL34: N/A | BM34: N/A | BN34: N/A | BO34: N/A | BP34: N/A | BQ34: N/A | BR34: N/A | BS34: N/A | BT34: N/A | BU34: N/A | BV34: N/A | BW34: N/A | BX34: N/A | BY34: N/A | BZ34: N/A | CA34: N/A | CB34: N/A | CC34: N/A | CD34: N/A | CE34: N/A
A35: Water source on premises | B35: Yes | C35: 0.3341348249 | D35: 0.4593118911 | E35: 0.4570516983 | F35: 2.933959705 | G35: 34.83151632 | H35: 7.310988634 | I35: 19.08235681 | J35: 29.73257222 | K35: 49.6655598 | L35: 78.1765363 | M35: 0.3404141038 | N35: 0.2681846565 | O35: 0.5018452697 | P35: 0.816412591 | Q35: 0.4539719084 | R35: 1.743619165 | S35: 11.98732022 | T35: 3.061220295 | U35: 5.426797197 | V35: 1.167978858 | W35: 2.790201777 | X35: 0.1965478117 | Y35: 0.6165738822 | Z35: 18.80082376 | AA35: 2.10258889 | AB35: 39.03168011 | AC35: 0.1016658448 | AD35: 0.5366196366 | AE35: 1.288240869 | BA35: Water source on premises | BB35: Yes | BC35: N/A | BD35: N/A | BE35: N/A | BF35: N/A | BG35: N/A | BH35: N/A | BI35: N/A | BJ35: N/A | BK35: N/A | BL35: N/A | BM35: N/A | BN35: N/A | BO35: N/A | BP35: N/A | BQ35: N/A | BR35: N/A | BS35: N/A | BT35: N/A | BU35: N/A | BV35: N/A | BW35: N/A | BX35: N/A | BY35: N/A | BZ35: N/A | CA35: N/A | CB35: N/A | CC35: N/A | CD35: N/A | CE35: N/A
B36: No | C36: 99.66586518 | D36: 99.54068811 | E36: 99.5429483 | F36: 97.0660403 | G36: 65.16848368 | H36: 92.68901137 | I36: 80.91764319 | J36: 70.26742778 | K36: 50.3344402 | L36: 21.8234637 | M36: 99.6595859 | N36: 99.73181534 | O36: 99.49815473 | P36: 99.18358741 | Q36: 99.54602809 | R36: 98.25638084 | S36: 88.01267978 | T36: 96.9387797 | U36: 94.5732028 | V36: 98.83202114 | W36: 97.20979822 | X36: 99.80345219 | Y36: 99.38342612 | Z36: 81.19917624 | AA36: 97.89741111 | AB36: 60.96831989 | AC36: 99.89833416 | AD36: 99.46338036 | AE36: 98.71175913 | BB36: No | BC36: N/A | BD36: N/A | BE36: N/A | BF36: N/A | BG36: N/A | BH36: N/A | BI36: N/A | BJ36: N/A | BK36: N/A | BL36: N/A | BM36: N/A | BN36: N/A | BO36: N/A | BP36: N/A | BQ36: N/A | BR36: N/A | BS36: N/A | BT36: N/A | BU36: N/A | BV36: N/A | BW36: N/A | BX36: N/A | BY36: N/A | BZ36: N/A | CA36: N/A | CB36: N/A | CC36: N/A | CD36: N/A | CE36: N/A
A37: Improved Water source on premises | B37: Yes | C37: N/A | D37: N/A | E37: N/A | F37: N/A | G37: N/A | H37: N/A | I37: N/A | J37: N/A | K37: N/A | L37: N/A | M37: N/A | N37: N/A | O37: N/A | P37: N/A | Q37: N/A | R37: N/A | S37: N/A | T37: N/A | U37: N/A | V37: N/A | W37: N/A | X37: N/A | Y37: N/A | Z37: N/A | AA37: N/A | AB37: N/A | AC37: N/A | AD37: N/A | AE37: N/A | BA37: Improved water source on premises | BB37: Yes | BC37: N/A | BD37: N/A | BE37: N/A | BF37: N/A | BG37: N/A | BH37: N/A | BI37: N/A | BJ37: N/A | BK37: N/A | BL37: N/A | BM37: N/A | BN37: N/A | BO37: N/A | BP37: N/A | BQ37: N/A | BR37: N/A | BS37: N/A | BT37: N/A | BU37: N/A | BV37: N/A | BW37: N/A | BX37: N/A | BY37: N/A | BZ37: N/A | CA37: N/A | CB37: N/A | CC37: N/A | CD37: N/A | CE37: N/A
B38: No | C38: N/A | D38: N/A | E38: N/A | F38: N/A | G38: N/A | H38: N/A | I38: N/A | J38: N/A | K38: N/A | L38: N/A | M38: N/A | N38: N/A | O38: N/A | P38: N/A | Q38: N/A | R38: N/A | S38: N/A | T38: N/A | U38: N/A | V38: N/A | W38: N/A | X38: N/A | Y38: N/A | Z38: N/A | AA38: N/A | AB38: N/A | AC38: N/A | AD38: N/A | AE38: N/A | BB38: No | BC38: N/A | BD38: N/A | BE38: N/A | BF38: N/A | BG38: N/A | BH38: N/A | BI38: N/A | BJ38: N/A | BK38: N/A | BL38: N/A | BM38: N/A | BN38: N/A | BO38: N/A | BP38: N/A | BQ38: N/A | BR38: N/A | BS38: N/A | BT38: N/A | BU38: N/A | BV38: N/A | BW38: N/A | BX38: N/A | BY38: N/A | BZ38: N/A | CA38: N/A | CB38: N/A | CC38: N/A | CD38: N/A | CE38: N/A
A39: Piped water on premises available when needed | B39: Yes | C39: N/A | D39: N/A | E39: N/A | F39: N/A | G39: N/A | H39: N/A | I39: N/A | J39: N/A | K39: N/A | L39: N/A | M39: N/A | N39: N/A | O39: N/A | P39: N/A | Q39: N/A | R39: N/A | S39: N/A | T39: N/A | U39: N/A | V39: N/A | W39: N/A | X39: N/A | Y39: N/A | Z39: N/A | AA39: N/A | AB39: N/A | AC39: N/A | AD39: N/A | AE39: N/A | BA39: Piped water on premises available when needed | BB39: Yes | BC39: N/A | BD39: N/A | BE39: N/A | BF39: N/A | BG39: N/A | BH39: N/A | BI39: N/A | BJ39: N/A | BK39: N/A | BL39: N/A | BM39: N/A | BN39: N/A | BO39: N/A | BP39: N/A | BQ39: N/A | BR39: N/A | BS39: N/A | BT39: N/A | BU39: N/A | BV39: N/A | BW39: N/A | BX39: N/A | BY39: N/A | BZ39: N/A | CA39: N/A | CB39: N/A | CC39: N/A | CD39: N/A | CE39: N/A
B40: No | C40: N/A | D40: N/A | E40: N/A | F40: N/A | G40: N/A | H40: N/A | I40: N/A | J40: N/A | K40: N/A | L40: N/A | M40: N/A | N40: N/A | O40: N/A | P40: N/A | Q40: N/A | R40: N/A | S40: N/A | T40: N/A | U40: N/A | V40: N/A | W40: N/A | X40: N/A | Y40: N/A | Z40: N/A | AA40: N/A | AB40: N/A | AC40: N/A | AD40: N/A | AE40: N/A | BB40: No | BC40: N/A | BD40: N/A | BE40: N/A | BF40: N/A | BG40: N/A | BH40: N/A | BI40: N/A | BJ40: N/A | BK40: N/A | BL40: N/A | BM40: N/A | BN40: N/A | BO40: N/A | BP40: N/A | BQ40: N/A | BR40: N/A | BS40: N/A | BT40: N/A | BU40: N/A | BV40: N/A | BW40: N/A | BX40: N/A | BY40: N/A | BZ40: N/A | CA40: N/A | CB40: N/A | CC40: N/A | CD40: N/A | CE40: N/A
A41: Water point at more than 30 minutes | B41: Yes | C41: 19.58557421 | D41: 20.46907499 | E41: 20.54930968 | F41: 18.05403446 | G41: 10.44575934 | H41: 10.71374662 | I41: 8.318261632 | J41: 8.881490939 | K41: 5.847449209 | L41: 4.887259082 | M41: 19.28768554 | N41: 21.99233523 | O41: 19.54271548 | P41: 22.1554231 | Q41: 18.82300479 | R41: 8.140570011 | S41: 12.40761033 | T41: 21.08743232 | U41: 25.5215598 | V41: 27.61467691 | W41: 11.46824228 | X41: 22.18802472 | Y41: 15.48575747 | Z41: 8.149652069 | AA41: 21.50610281 | AB41: 10.12234328 | AC41: 32.81192737 | AD41: 24.72776095 | AE41: 22.14001696 | BA41: Water point at more than 30 minutes | BB41: Yes | BC41: N/A | BD41: N/A | BE41: N/A | BF41: N/A | BG41: N/A | BH41: N/A | BI41: N/A | BJ41: N/A | BK41: N/A | BL41: N/A | BM41: N/A | BN41: N/A | BO41: N/A | BP41: N/A | BQ41: N/A | BR41: N/A | BS41: N/A | BT41: N/A | BU41: N/A | BV41: N/A | BW41: N/A | BX41: N/A | BY41: N/A | BZ41: N/A | CA41: N/A | CB41: N/A | CC41: N/A | CD41: N/A | CE41: N/A
B42: No | C42: 80.41442579 | D42: 79.53092501 | E42: 79.45069032 | F42: 81.94596554 | G42: 89.55424066 | H42: 89.28625338 | I42: 91.68173837 | J42: 91.11850906 | K42: 94.15255079 | L42: 95.11274092 | M42: 80.71231446 | N42: 78.00766477 | O42: 80.45728452 | P42: 77.8445769 | Q42: 81.17699521 | R42: 91.85942999 | S42: 87.59238967 | T42: 78.91256768 | U42: 74.4784402 | V42: 72.38532309 | W42: 88.53175772 | X42: 77.81197528 | Y42: 84.51424253 | Z42: 91.85034793 | AA42: 78.49389719 | AB42: 89.87765672 | AC42: 67.18807263 | AD42: 75.27223905 | AE42: 77.85998304 | BB42: No | BC42: N/A | BD42: N/A | BE42: N/A | BF42: N/A | BG42: N/A | BH42: N/A | BI42: N/A | BJ42: N/A | BK42: N/A | BL42: N/A | BM42: N/A | BN42: N/A | BO42: N/A | BP42: N/A | BQ42: N/A | BR42: N/A | BS42: N/A | BT42: N/A | BU42: N/A | BV42: N/A | BW42: N/A | BX42: N/A | BY42: N/A | BZ42: N/A | CA42: N/A | CB42: N/A | CC42: N/A | CD42: N/A | CE42: N/A
A43: Water source available when needed | B43: Yes | C43: N/A | D43: N/A | E43: N/A | F43: N/A | G43: N/A | H43: N/A | I43: N/A | J43: N/A | K43: N/A | L43: N/A | M43: N/A | N43: N/A | O43: N/A | P43: N/A | Q43: N/A | R43: N/A | S43: N/A | T43: N/A | U43: N/A | V43: N/A | W43: N/A | X43: N/A | Y43: N/A | Z43: N/A | AA43: N/A | AB43: N/A | AC43: N/A | AD43: N/A | AE43: N/A | BA43: Water source available when needed | BB43: Yes | BC43: N/A | BD43: N/A | BE43: N/A | BF43: N/A | BG43: N/A | BH43: N/A | BI43: N/A | BJ43: N/A | BK43: N/A | BL43: N/A | BM43: N/A | BN43: N/A | BO43: N/A | BP43: N/A | BQ43: N/A | BR43: N/A | BS43: N/A | BT43: N/A | BU43: N/A | BV43: N/A | BW43: N/A | BX43: N/A | BY43: N/A | BZ43: N/A | CA43: N/A | CB43: N/A | CC43: N/A | CD43: N/A | CE43: N/A
B44: No | C44: N/A | D44: N/A | E44: N/A | F44: N/A | G44: N/A | H44: N/A | I44: N/A | J44: N/A | K44: N/A | L44: N/A | M44: N/A | N44: N/A | O44: N/A | P44: N/A | Q44: N/A | R44: N/A | S44: N/A | T44: N/A | U44: N/A | V44: N/A | W44: N/A | X44: N/A | Y44: N/A | Z44: N/A | AA44: N/A | AB44: N/A | AC44: N/A | AD44: N/A | AE44: N/A | BB44: No | BC44: N/A | BD44: N/A | BE44: N/A | BF44: N/A | BG44: N/A | BH44: N/A | BI44: N/A | BJ44: N/A | BK44: N/A | BL44: N/A | BM44: N/A | BN44: N/A | BO44: N/A | BP44: N/A | BQ44: N/A | BR44: N/A | BS44: N/A | BT44: N/A | BU44: N/A | BV44: N/A | BW44: N/A | BX44: N/A | BY44: N/A | BZ44: N/A | CA44: N/A | CB44: N/A | CC44: N/A | CD44: N/A | CE44: N/A
A45: Improved water source available when needed | B45: Yes | C45: N/A | D45: N/A | E45: N/A | F45: N/A | G45: N/A | H45: N/A | I45: N/A | J45: N/A | K45: N/A | L45: N/A | M45: N/A | N45: N/A | O45: N/A | P45: N/A | Q45: N/A | R45: N/A | S45: N/A | T45: N/A | U45: N/A | V45: N/A | W45: N/A | X45: N/A | Y45: N/A | Z45: N/A | AA45: N/A | AB45: N/A | AC45: N/A | AD45: N/A | AE45: N/A | BA45: Improved water source available when needed | BB45: Yes | BC45: N/A | BD45: N/A | BE45: N/A | BF45: N/A | BG45: N/A | BH45: N/A | BI45: N/A | BJ45: N/A | BK45: N/A | BL45: N/A | BM45: N/A | BN45: N/A | BO45: N/A | BP45: N/A | BQ45: N/A | BR45: N/A | BS45: N/A | BT45: N/A | BU45: N/A | BV45: N/A | BW45: N/A | BX45: N/A | BY45: N/A | BZ45: N/A | CA45: N/A | CB45: N/A | CC45: N/A | CD45: N/A | CE45: N/A
B46: No | C46: N/A | D46: N/A | E46: N/A | F46: N/A | G46: N/A | H46: N/A | I46: N/A | J46: N/A | K46: N/A | L46: N/A | M46: N/A | N46: N/A | O46: N/A | P46: N/A | Q46: N/A | R46: N/A | S46: N/A | T46: N/A | U46: N/A | V46: N/A | W46: N/A | X46: N/A | Y46: N/A | Z46: N/A | AA46: N/A | AB46: N/A | AC46: N/A | AD46: N/A | AE46: N/A | BB46: No | BC46: N/A | BD46: N/A | BE46: N/A | BF46: N/A | BG46: N/A | BH46: N/A | BI46: N/A | BJ46: N/A | BK46: N/A | BL46: N/A | BM46: N/A | BN46: N/A | BO46: N/A | BP46: N/A | BQ46: N/A | BR46: N/A | BS46: N/A | BT46: N/A | BU46: N/A | BV46: N/A | BW46: N/A | BX46: N/A | BY46: N/A | BZ46: N/A | CA46: N/A | CB46: N/A | CC46: N/A | CD46: N/A | CE46: N/A
A47: Microbiological quality at point of collection | B47: Not contaminated (No E. coli in 100 mL) | C47: N/A | D47: N/A | E47: N/A | F47: N/A | G47: N/A | H47: N/A | I47: N/A | J47: N/A | K47: N/A | L47: N/A | M47: N/A | N47: N/A | O47: N/A | P47: N/A | Q47: N/A | R47: N/A | S47: N/A | T47: N/A | U47: N/A | V47: N/A | W47: N/A | X47: N/A | Y47: N/A | Z47: N/A | AA47: N/A | AB47: N/A | AC47: N/A | AD47: N/A | AE47: N/A | BA47: Microbiological quality at point of collection | BB47: Not contaminated (No E. coli in 100 mL) | BC47: N/A | BD47: N/A | BE47: N/A | BF47: N/A | BG47: N/A | BH47: N/A | BI47: N/A | BJ47: N/A | BK47: N/A | BL47: N/A | BM47: N/A | BN47: N/A | BO47: N/A | BP47: N/A | BQ47: N/A | BR47: N/A | BS47: N/A | BT47: N/A | BU47: N/A | BV47: N/A | BW47: N/A | BX47: N/A | BY47: N/A | BZ47: N/A | CA47: N/A | CB47: N/A | CC47: N/A | CD47: N/A | CE47: N/A
B48: Contaminated (E. coli detected in 100 mL) | C48: N/A | D48: N/A | E48: N/A | F48: N/A | G48: N/A | H48: N/A | I48: N/A | J48: N/A | K48: N/A | L48: N/A | M48: N/A | N48: N/A | O48: N/A | P48: N/A | Q48: N/A | R48: N/A | S48: N/A | T48: N/A | U48: N/A | V48: N/A | W48: N/A | X48: N/A | Y48: N/A | Z48: N/A | AA48: N/A | AB48: N/A | AC48: N/A | AD48: N/A | AE48: N/A | BB48: Contaminated (E. coli detected in 100 mL) | BC48: N/A | BD48: N/A | BE48: N/A | BF48: N/A | BG48: N/A | BH48: N/A | BI48: N/A | BJ48: N/A | BK48: N/A | BL48: N/A | BM48: N/A | BN48: N/A | BO48: N/A | BP48: N/A | BQ48: N/A | BR48: N/A | BS48: N/A | BT48: N/A | BU48: N/A | BV48: N/A | BW48: N/A | BX48: N/A | BY48: N/A | BZ48: N/A | CA48: N/A | CB48: N/A | CC48: N/A | CD48: N/A | CE48: N/A
B49: Highly contaminated (>100 CFU/100 mL) | C49: N/A | D49: N/A | E49: N/A | F49: N/A | G49: N/A | H49: N/A | I49: N/A | J49: N/A | K49: N/A | L49: N/A | M49: N/A | N49: N/A | O49: N/A | P49: N/A | Q49: N/A | R49: N/A | S49: N/A | T49: N/A | U49: N/A | V49: N/A | W49: N/A | X49: N/A | Y49: N/A | Z49: N/A | AA49: N/A | AB49: N/A | AC49: N/A | AD49: N/A | AE49: N/A | BB49: Highly contaminated (>100 CFU/100 mL) | BC49: N/A | BD49: N/A | BE49: N/A | BF49: N/A | BG49: N/A | BH49: N/A | BI49: N/A | BJ49: N/A | BK49: N/A | BL49: N/A | BM49: N/A | BN49: N/A | BO49: N/A | BP49: N/A | BQ49: N/A | BR49: N/A | BS49: N/A | BT49: N/A | BU49: N/A | BV49: N/A | BW49: N/A | BX49: N/A | BY49: N/A | BZ49: N/A | CA49: N/A | CB49: N/A | CC49: N/A | CD49: N/A | CE49: N/A
A50: Microbiological quality of improved water sources at point of collection | B50: Not contaminated (No E. coli in 100 mL) | C50: N/A | D50: N/A | E50: N/A | F50: N/A | G50: N/A | H50: N/A | I50: N/A | J50: N/A | K50: N/A | L50: N/A | M50: N/A | N50: N/A | O50: N/A | P50: N/A | Q50: N/A | R50: N/A | S50: N/A | T50: N/A | U50: N/A | V50: N/A | W50: N/A | X50: N/A | Y50: N/A | Z50: N/A | AA50: N/A | AB50: N/A | AC50: N/A | AD50: N/A | AE50: N/A | BA50: Microbiological quality of improved water sources at point of collection | BB50: Not contaminated (No E. coli in 100 mL) | BC50: N/A | BD50: N/A | BE50: N/A | BF50: N/A | BG50: N/A | BH50: N/A | BI50: N/A | BJ50: N/A | BK50: N/A | BL50: N/A | BM50: N/A | BN50: N/A | BO50: N/A | BP50: N/A | BQ50: N/A | BR50: N/A | BS50: N/A | BT50: N/A | BU50: N/A | BV50: N/A | BW50: N/A | BX50: N/A | BY50: N/A | BZ50: N/A | CA50: N/A | CB50: N/A | CC50: N/A | CD50: N/A | CE50: N/A
B51: Contaminated (E. coli detected in 100 mL) | C51: N/A | D51: N/A | E51: N/A | F51: N/A | G51: N/A | H51: N/A | I51: N/A | J51: N/A | K51: N/A | L51: N/A | M51: N/A | N51: N/A | O51: N/A | P51: N/A | Q51: N/A | R51: N/A | S51: N/A | T51: N/A | U51: N/A | V51: N/A | W51: N/A | X51: N/A | Y51: N/A | Z51: N/A | AA51: N/A | AB51: N/A | AC51: N/A | AD51: N/A | AE51: N/A | BB51: Contaminated (E. coli detected in 100 mL) | BC51: N/A | BD51: N/A | BE51: N/A | BF51: N/A | BG51: N/A | BH51: N/A | BI51: N/A | BJ51: N/A | BK51: N/A | BL51: N/A | BM51: N/A | BN51: N/A | BO51: N/A | BP51: N/A | BQ51: N/A | BR51: N/A | BS51: N/A | BT51: N/A | BU51: N/A | BV51: N/A | BW51: N/A | BX51: N/A | BY51: N/A | BZ51: N/A | CA51: N/A | CB51: N/A | CC51: N/A | CD51: N/A | CE51: N/A
B52: Highly contaminated (>100 CFU/100 mL) | C52: N/A | D52: N/A | E52: N/A | F52: N/A | G52: N/A | H52: N/A | I52: N/A | J52: N/A | K52: N/A | L52: N/A | M52: N/A | N52: N/A | O52: N/A | P52: N/A | Q52: N/A | R52: N/A | S52: N/A | T52: N/A | U52: N/A | V52: N/A | W52: N/A | X52: N/A | Y52: N/A | Z52: N/A | AA52: N/A | AB52: N/A | AC52: N/A | AD52: N/A | AE52: N/A | BB52: Highly contaminated (>100 CFU/100 mL) | BC52: N/A | BD52: N/A | BE52: N/A | BF52: N/A | BG52: N/A | BH52: N/A | BI52: N/A | BJ52: N/A | BK52: N/A | BL52: N/A | BM52: N/A | BN52: N/A | BO52: N/A | BP52: N/A | BQ52: N/A | BR52: N/A | BS52: N/A | BT52: N/A | BU52: N/A | BV52: N/A | BW52: N/A | BX52: N/A | BY52: N/A | BZ52: N/A | CA52: N/A | CB52: N/A | CC52: N/A | CD52: N/A | CE52: N/A
A53: Microbiological quality of piped on premises at point of collection | B53: Not contaminated (No E. coli in 100 mL) | C53: N/A | D53: N/A | E53: N/A | F53: N/A | G53: N/A | H53: N/A | I53: N/A | J53: N/A | K53: N/A | L53: N/A | M53: N/A | N53: N/A | O53: N/A | P53: N/A | Q53: N/A | R53: N/A | S53: N/A | T53: N/A | U53: N/A | V53: N/A | W53: N/A | X53: N/A | Y53: N/A | Z53: N/A | AA53: N/A | AB53: N/A | AC53: N/A | AD53: N/A | AE53: N/A | BA53: Microbiological quality of piped on premises at point of collection | BB53: Not contaminated (No E. coli in 100 mL) | BC53: N/A | BD53: N/A | BE53: N/A | BF53: N/A | BG53: N/A | BH53: N/A | BI53: N/A | BJ53: N/A | BK53: N/A | BL53: N/A | BM53: N/A | BN53: N/A | BO53: N/A | BP53: N/A | BQ53: N/A | BR53: N/A | BS53: N/A | BT53: N/A | BU53: N/A | BV53: N/A | BW53: N/A | BX53: N/A | BY53: N/A | BZ53: N/A | CA53: N/A | CB53: N/A | CC53: N/A | CD53: N/A | CE53: N/A
B54: Contaminated (E. coli detected in 100 mL) | C54: N/A | D54: N/A | E54: N/A | F54: N/A | G54: N/A | H54: N/A | I54: N/A | J54: N/A | K54: N/A | L54: N/A | M54: N/A | N54: N/A | O54: N/A | P54: N/A | Q54: N/A | R54: N/A | S54: N/A | T54: N/A | U54: N/A | V54: N/A | W54: N/A | X54: N/A | Y54: N/A | Z54: N/A | AA54: N/A | AB54: N/A | AC54: N/A | AD54: N/A | AE54: N/A | BB54: Contaminated (E. coli detected in 100 mL) | BC54: N/A | BD54: N/A | BE54: N/A | BF54: N/A | BG54: N/A | BH54: N/A | BI54: N/A | BJ54: N/A | BK54: N/A | BL54: N/A | BM54: N/A | BN54: N/A | BO54: N/A | BP54: N/A | BQ54: N/A | BR54: N/A | BS54: N/A | BT54: N/A | BU54: N/A | BV54: N/A | BW54: N/A | BX54: N/A | BY54: N/A | BZ54: N/A | CA54: N/A | CB54: N/A | CC54: N/A | CD54: N/A | CE54: N/A
B55: Highly contaminated (>100 CFU/100 mL) | C55: N/A | D55: N/A | E55: N/A | F55: N/A | G55: N/A | H55: N/A | I55: N/A | J55: N/A | K55: N/A | L55: N/A | M55: N/A | N55: N/A | O55: N/A | P55: N/A | Q55: N/A | R55: N/A | S55: N/A | T55: N/A | U55: N/A | V55: N/A | W55: N/A | X55: N/A | Y55: N/A | Z55: N/A | AA55: N/A | AB55: N/A | AC55: N/A | AD55: N/A | AE55: N/A | BB55: Highly contaminated (>100 CFU/100 mL) | BC55: N/A | BD55: N/A | BE55: N/A | BF55: N/A | BG55: N/A | BH55: N/A | BI55: N/A | BJ55: N/A | BK55: N/A | BL55: N/A | BM55: N/A | BN55: N/A | BO55: N/A | BP55: N/A | BQ55: N/A | BR55: N/A | BS55: N/A | BT55: N/A | BU55: N/A | BV55: N/A | BW55: N/A | BX55: N/A | BY55: N/A | BZ55: N/A | CA55: N/A | CB55: N/A | CC55: N/A | CD55: N/A | CE55: N/A
C56: NATIONAL wealth index quintile | H56: URBAN wealth index quintile | M56: RURAL wealth index quintile | R56: SUB-REGIONS: | BA56: Raw numbers of respondents: | BB56: Use of drinking water sources | BC56: NATIONAL wealth index quintile | BH56: URBAN wealth index quintile | BM56: RURAL wealth index quintile | BR56: SUB-REGIONS:
A57: Percentage based on weighted population | C57: Poorest | D57: Poor | E57: Middle | F57: Rich | G57: Richest | H57: Poorest | I57: Poor | J57: Middle | K57: Rich | L57: Richest | M57: Poorest | N57: Poor | O57: Middle | P57: Rich | Q57: Richest | R57: boucle de mouhoun | S57: cascades | T57: centre (sans ouagadougou) | U57: centre-est | V57: centre-nord | W57: centre-ouest | X57: centre-sud | Y57: est | Z57: hauts bassins | AA57: nord | AB57: ouagadougou | AC57: plateau central | AD57: sahel | AE57: sud-ouest | BA57: Water data, raw numbers (weighted) | BC57: Poorest | BD57: Poor | BE57: Middle | BF57: Rich | BG57: Richest | BH57: Poorest | BI57: Poor | BJ57: Middle | BK57: Rich | BL57: Richest | BM57: Poorest | BN57: Poor | BO57: Middle | BP57: Rich | BQ57: Richest | BR57: boucle de mouhoun | BS57: cascades | BT57: centre (sans ouagadougou) | BU57: centre-est | BV57: centre-nord | BW57: centre-ouest | BX57: centre-sud | BY57: est | BZ57: hauts bassins | CA57: nord | CB57: ouagadougou | CC57: plateau central | CD57: sahel | CE57: sud-ouest
A58: source of drinking water | B58: piped into dwelling | C58: 0 | D58: 0 | E58: 0.1037043029 | F58: 0.7398081691 | G58: 14.50200056 | H58: 1.593072569 | I58: 4.388822772 | J58: 10.90661194 | K58: 20.53198419 | L58: 43.29415735 | M58: 0 | N58: 0 | O58: 0.07006805428 | P58: 0 | Q58: 0.1876106074 | R58: 0.8886418149 | S58: 1.098605078 | T58: 0.5700837363 | U58: 1.786435987 | V58: 0.4336977456 | W58: 1.104280107 | X58: 0.1195299544 | Y58: 0.3747623261 | Z58: 4.168611618 | AA58: 1.352479795 | AB58: 20.98439493 | AC58: 0 | AD58: 0.06858281863 | AE58: 0.3768623191
B59: piped into yard/plot | C59: 0.009380704198 | D59: 0 | E59: 0.1805698688 | F59: 0.6971992477 | G59: 15.2659806 | H59: 3.951087165 | I59: 10.71040633 | J59: 13.88178144 | K59: 25.1265355 | L59: 32.35983761 | M59: 0 | N59: 0 | O59: 0 | P59: 0 | Q59: 0.02362132937 | R59: 0.2162674038 | S59: 9.911514741 | T59: 0 | U59: 0 | V59: 0.2727192132 | W59: 0.9110672978 | X59: 0.01344223272 | Y59: 0.04087820953 | Z59: 9.858592705 | AA59: 0.5291243491 | AB59: 15.03827222 | AC59: 0 | AD59: 0.2400398652 | AE59: 0.4487651517
B60: public tap | C60: 2.81998113 | D60: 2.875975866 | E60: 7.183776604 | F60: 14.56084533 | G60: 37.67509004 | H60: 66.35118267 | I60: 66.55277551 | J60: 62.03668679 | K60: 48.3477677 | L60: 22.49405317 | M60: 1.814587901 | N60: 3.054294853 | O60: 3.224596032 | P60: 5.574635566 | Q60: 6.613756449 | R60: 9.037077047 | S60: 11.86105846 | T60: 12.2216272 | U60: 13.39493685 | V60: 2.589495279 | W60: 12.37028666 | X60: 3.345308448 | Y60: 2.816910023 | Z60: 14.55594357 | AA60: 6.318134206 | AB60: 60.14390899 | AC60: 5.799741306 | AD60: 7.282955621 | AE60: 4.675015879
B61: open well in dwelling | C61: 0.3152581742 | D61: 1.476448865 | E61: 3.812013162 | F61: 2.682097348 | G61: 2.108033103 | H61: 4.363430006 | I61: 1.365248796 | J61: 2.438668521 | K61: 0.9112786385 | L61: 0 | M61: 0.3301605177 | N61: 1.351951357 | O61: 2.615397771 | P61: 3.112202499 | Q61: 3.45912237 | R61: 5.956310163 | S61: 1.396684507 | T61: 1.638466912 | U61: 0.5102558741 | V61: 0.6550200206 | W61: 1.23183406 | X61: 0 | Y61: 0 | Z61: 9.242184229 | AA61: 0.5709008856 | AB61: 0.3001435861 | AC61: 0.3189555964 | AD61: 0 | AE61: 1.128057305
B62: open well in yard/plot | C62: 1.158953442 | D62: 1.546617682 | E62: 2.14791495 | F62: 2.182303659 | G62: 2.432381371 | H62: 2.96911633 | I62: 3.208103067 | J62: 1.891567418 | K62: 0.236570134 | L62: 0.691590985 | M62: 1.175605796 | N62: 1.552831427 | O62: 1.907152938 | P62: 2.18726916 | Q62: 2.80951729 | R62: 12.71701452 | S62: 0.3477074358 | T62: 0.2686072301 | U62: 0.3639080537 | V62: 0.2155902522 | W62: 3.268171296 | X62: 0.3949632356 | Y62: 0.1233272013 | Z62: 3.031364188 | AA62: 0.3981910378 | AB62: 0.6200001176 | AC62: 0.2051623808 | AD62: 0 | AE62: 0.5123327203
B63: open public well | C63: 26.41228748 | D63: 28.08422421 | E63: 30.77074914 | F63: 26.26181611 | G63: 10.07982046 | H63: 8.361749941 | I63: 4.095314077 | J63: 1.835529086 | K63: 1.283728523 | L63: 0 | M63: 26.72560441 | N63: 30.35047477 | O63: 28.76635833 | P63: 25.91247624 | Q63: 34.25505165 | R63: 44.8825047 | S63: 5.523935558 | T63: 19.14583943 | U63: 9.377220809 | V63: 12.18271164 | W63: 43.70040195 | X63: 26.71264691 | Y63: 13.31888151 | Z63: 40.04515021 | AA63: 40.49227612 | AB63: 0.2719507468 | AC63: 26.49525517 | AD63: 9.444504587 | AE63: 28.10069422
B64: protected well in dwelling | C64: 13.98387748 | D64: 13.46821087 | E64: 13.61667517 | F64: 16.63685942 | G64: 6.457363627 | H64: 4.965389591 | I64: 3.32760284 | J64: 5.385111457 | K64: 2.644860766 | L64: 0.5817534906 | M64: 14.51114284 | N64: 13.04708239 | O64: 12.95299855 | P64: 17.47581992 | Q64: 17.02592107 | R64: 4.067662552 | S64: 0.227349458 | T64: 23.24040831 | U64: 40.92629505 | V64: 26.99727011 | W64: 10.36285416 | X64: 0.9808608453 | Y64: 23.66783153 | Z64: 8.435358804 | AA64: 8.568317289 | AB64: 2.316208794 | AC64: 16.71969442 | AD64: 2.512005712 | AE64: 10.99485886
B65: protected well in yard/plot | C65: 0.2865570455 | D65: 0.2489712351 | E65: 0.03788609426 | F65: 0.4864389617 | G65: 0.6923250363 | H65: 0.841020306 | I65: 1.993725692 | J65: 0.6694951866 | K65: 0.6325869836 | L65: 0.3792594917 | M65: 0.2835247435 | N65: 0.2243098492 | O65: 0.02812380951 | P65: 0.293906649 | Q65: 0.3089425631 | R65: 0.403429121 | S65: 0 | T65: 1.550852089 | U65: 1.482140255 | V65: 0.2085535921 | W65: 0.4014861286 | X65: 0.1466163616 | Y65: 0 | Z65: 0.6494363305 | AA65: 0.1867765861 | AB65: 0 | AC65: 0.04625867751 | AD65: 0 | AE65: 0.03642208458
B66: protected public well | C66: 28.59746858 | D66: 32.67695504 | E66: 29.63627071 | F66: 27.77135665 | G66: 9.269412445 | H66: 5.341589891 | I66: 1.992065372 | J66: 0.6442347401 | K66: 0.2333749692 | L66: 0.1993479031 | M66: 28.73667031 | N66: 31.99119805 | O66: 32.42431357 | P66: 33.88785889 | Q66: 28.69863598 | R66: 20.76931744 | S66: 40.80029091 | T66: 37.65840697 | U66: 20.49384846 | V66: 35.17212725 | W66: 20.57108383 | X66: 60.74504142 | Y66: 35.44873916 | Z66: 5.199876685 | AA66: 35.0538454 | AB66: 0.1500717931 | AC66: 45.13204791 | AD66: 25.02255164 | AE66: 21.744048
B67: spring | C67: 1.030625454 | D67: 1.260140649 | E67: 1.106776013 | F67: 2.253499992 | G67: 0.02067339445 | H67: 0 | I67: 0.1093100685 | J67: 0 | K67: 0 | L67: 0 | M67: 1.079343412 | N67: 1.187022552 | O67: 1.252574772 | P67: 2.303722441 | Q67: 1.266449535 | R67: 0 | S67: 3.187029081 | T67: 0 | U67: 6.88996127 | V67: 0.06444308828 | W67: 0.8227057603 | X67: 1.044934458 | Y67: 1.155213953 | Z67: 0.2450783276 | AA67: 0 | AB67: 0 | AC67: 2.917218091 | AD67: 0.9146065551 | AE67: 0.09656654831
B68: river, stream | C68: 5.176621661 | D68: 5.879120164 | E68: 1.81065134 | F68: 2.946950327 | G68: 0.2406147928 | H68: 0.06509668293 | I68: 0.8638158131 | J68: 0 | K68: 0 | L68: 0 | M68: 5.363566795 | N68: 6.681462245 | O68: 2.137814815 | P68: 3.601462496 | Q68: 1.861797694 | R68: 0 | S68: 7.842567868 | T68: 0.222722225 | U68: 4.750792142 | V68: 0.1226984942 | W68: 3.109636973 | X68: 3.410751346 | Y68: 0.6048015493 | Z68: 4.288870733 | AA68: 0.3675811067 | AB68: 0 | AC68: 0.5812921154 | AD68: 1.014515594 | AE68: 27.56270669
B69: pond, lake | C69: 19.73513553 | D69: 11.66733056 | E69: 8.765242592 | F69: 2.296005551 | G69: 0.6761958287 | H69: 1.172958347 | I69: 0.1723529485 | J69: 0 | K69: 0 | L69: 0 | M69: 19.53027585 | N69: 9.646499086 | O69: 13.51964865 | P69: 5.018362941 | Q69: 2.998467577 | R69: 0.5752116979 | S69: 17.08208807 | T69: 2.899313381 | U69: 0 | V69: 18.70469486 | W69: 2.104267943 | X69: 2.528987597 | Y69: 21.69500955 | Z69: 0 | AA69: 5.092126083 | AB69: 0 | AC69: 1.667803545 | AD69: 52.50596691 | AE69: 3.587944184
B70: dam | C70: 0.2718763511 | D70: 0.5475013311 | E70: 0.5948022873 | F70: 0.3064842937 | G70: 0.2405866383 | H70: 0 | I70: 0.05620021422 | J70: 0 | K70: 0 | L70: 0 | M70: 0.2379929447 | N70: 0.5376113527 | O70: 0.9715110913 | P70: 0.3385914712 | Q70: 0.3485226337 | R70: 0 | S70: 0 | T70: 0.5836725202 | U70: 0.02420525363 | V70: 2.190961542 | W70: 0 | X70: 0.556917195 | Y70: 0.753644987 | Z70: 0 | AA70: 0.8076290776 | AB70: 0 | AC70: 0.1165707823 | AD70: 0 | AE70: 0.3931607154
B71: rainwater | C71: 0.08275649127 | D71: 0 | E71: 0.1214077481 | F71: 0 | G71: 0.006785852353 | H71: 0 | I71: 0 | J71: 0.03614508092 | K71: 0 | L71: 0 | M71: 0.08666841413 | N71: 0 | O71: 0 | P71: 0.1416823015 | Q71: 0 | R71: 0 | S71: 0.7211688325 | T71: 0 | U71: 0 | V71: 0.190016918 | W71: 0 | X71: 0 | Y71: 0 | Z71: 0 | AA71: 0 | AB71: 0 | AC71: 0 | AD71: 0 | AE71: 0
B72: other | C72: 0.1192204752 | D72: 0.2685035268 | E72: 0.1115600204 | F72: 0.1783349431 | G72: 0.3327362506 | H72: 0.02430649983 | I72: 1.164256494 | J72: 0.2741683453 | K72: 0.0513126036 | L72: 0 | M72: 0.124856061 | N72: 0.3752620724 | O72: 0.1294416133 | P72: 0.152009425 | Q72: 0.1425832498 | R72: 0.486563536 | S72: 0 | T72: 0 | U72: 0 | V72: 0 | W72: 0.04192383786 | X72: 0 | Y72: 0 | Z72: 0.2795326005 | AA72: 0.2626180607 | AB72: 0.1750488187 | AC72: 0 | AD72: 0.9942706986 | AE72: 0.3425653271
A108: =A1026 -> Burkina Faso
A109: =A1034 -> 2003
A110: Use of sanitation facilities
A111: by wealth quintile and sub-national region
A112: Notes:
A113: WHO/UNICEF JMP customised wealth index excludes water,
A114: sanitation and hygiene assets.
A115: Survey used for analysis: | B115: =A1025 -> DHS03
A116: =B1030 -> Ratio of Improved latrines based on:
A117: =B1029 -> Ratio of Shared improved based on:
A120: Use of sanitation facilities | C120: NATIONAL wealth index quintile | H120: URBAN wealth index quintile | M120: RURAL wealth index quintile | R120: SUB-REGIONS: | BA120: Raw numbers of respondents: | BB120: Use of sanitation facilities | BC120: NATIONAL wealth index quintile | BH120: URBAN wealth index quintile | BM120: RURAL wealth index quintile | BR120: SUB-REGIONS:
A121: Weighted percentage (used in graphs) | C121: Poorest | D121: Poor | E121: Middle | F121: Rich | G121: Richest | H121: Poorest | I121: Poor | J121: Middle | K121: Rich | L121: Richest | M121: Poorest | N121: Poor | O121: Middle | P121: Rich | Q121: Richest | R121: boucle de mouhoun | S121: cascades | T121: centre (sans ouagadougou) | U121: centre-est | V121: centre-nord | W121: centre-ouest | X121: centre-sud | Y121: est | Z121: hauts bassins | AA121: nord | AB121: ouagadougou | AC121: plateau central | AD121: sahel | AE121: sud-ouest | BA121: Sanitation data, raw numbers (weighted) | BC121: Poorest | BD121: Poor | BE121: Middle | BF121: Rich | BG121: Richest | BH121: Poorest | BI121: Poor | BJ121: Middle | BK121: Rich | BL121: Richest | BM121: Poorest | BN121: Poor | BO121: Middle | BP121: Rich | BQ121: Richest | BR121: boucle de mouhoun | BS121: cascades | BT121: centre (sans ouagadougou) | BU121: centre-est | BV121: centre-nord | BW121: centre-ouest | BX121: centre-sud | BY121: est | BZ121: hauts bassins | CA121: nord | CB121: ouagadougou | CC121: plateau central | CD121: sahel | CE121: sud-ouest
A122: Sanitation | B122: Improved | C122: 4.575135089 | D122: 6.673391381 | E122: 14.10456091 | F122: 24.05576462 | G122: 77.50978858 | H122: 62.51534262 | I122: 79.71034243 | J122: 92.69209292 | K122: 97.16898439 | L122: 99.09035198 | M122: 3.555729746 | N122: 6.452612135 | O122: 9.117465078 | P122: 10.6923911 | Q122: 27.47210237 | R122: 25.11334053 | S122: 33.61926592 | T122: N/A | U122: 15.76073255 | V122: 12.33691746 | W122: 18.76828324 | X122: 8.865936527 | Y122: 2.502794879 | Z122: 34.42586792 | AA122: 21.32114702 | AB122: N/A | AC122: 9.241002933 | AD122: 11.35307565 | AE122: 6.282310267 | BA122: Sanitation | BB122: Improved | BC122: N/A | BD122: N/A | BE122: N/A | BF122: N/A | BG122: N/A | BH122: N/A | BI122: N/A | BJ122: N/A | BK122: N/A | BL122: N/A | BM122: N/A | BN122: N/A | BO122: N/A | BP122: N/A | BQ122: N/A | BR122: N/A | BS122: N/A | BT122: N/A | BU122: N/A | BV122: N/A | BW122: N/A | BX122: N/A | BY122: N/A | BZ122: N/A | CA122: N/A | CB122: N/A | CC122: N/A | CD122: N/A | CE122: N/A
B123: Not Improved | C123: =100-C122 -> 95.42486491 | D123: =100-D122 -> 93.32660862 | E123: 85.89543909 | F123: 75.94423538 | G123: 22.49021142 | H123: 37.48465738 | I123: 20.28965757 | J123: 7.30790708 | K123: 2.831015609 | L123: 0.9096480151 | M123: 96.44427025 | N123: 93.54738787 | O123: 90.88253492 | P123: 89.3076089 | Q123: 72.52789763 | R123: 74.88665947 | S123: 66.38073408 | T123: N/A | U123: 84.23926745 | V123: 87.66308254 | W123: 81.23171676 | X123: 91.13406347 | Y123: 97.49720512 | Z123: 65.57413208 | AA123: 78.67885298 | AB123: N/A | AC123: 90.75899707 | AD123: 88.64692435 | AE123: 93.71768973 | BB123: Not Improved | BC123: N/A | BD123: N/A | BE123: N/A | BF123: N/A | BG123: N/A | BH123: N/A | BI123: N/A | BJ123: N/A | BK123: N/A | BL123: N/A | BM123: N/A | BN123: N/A | BO123: N/A | BP123: N/A | BQ123: N/A | BR123: N/A | BS123: N/A | BT123: N/A | BU123: N/A | BV123: N/A | BW123: N/A | BX123: N/A | BY123: N/A | BZ123: N/A | CA123: N/A | CB123: N/A | CC123: N/A | CD123: N/A | CE123: N/A
A124: Sanitation ladder | B124: Basic | C124: 2.024390227 | D124: 3.22839044 | E124: 6.776939757 | F124: 12.01908292 | G124: 46.46299807 | H124: 34.74276238 | I124: 46.51705247 | J124: 48.6240844 | K124: 58.63762811 | L124: 70.70079751 | M124: 1.306994636 | N124: 3.475049217 | O124: 4.234518037 | P124: 4.532419445 | Q124: 13.40309782 | R124: 12.1184685 | S124: 13.64560423 | T124: N/A | U124: 7.663764857 | V124: 5.025030737 | W124: 9.106393151 | X124: 4.708422909 | Y124: 1.384759746 | Z124: 15.86876349 | AA124: 7.46445444 | AB124: N/A | AC124: 5.411712107 | AD124: 5.987388899 | AE124: 2.749212139 | BA124: Sanitation ladder | BB124: Basic | BC124: N/A | BD124: N/A | BE124: N/A | BF124: N/A | BG124: N/A | BH124: N/A | BI124: N/A | BJ124: N/A | BK124: N/A | BL124: N/A | BM124: N/A | BN124: N/A | BO124: N/A | BP124: N/A | BQ124: N/A | BR124: N/A | BS124: N/A | BT124: N/A | BU124: N/A | BV124: N/A | BW124: N/A | BX124: N/A | BY124: N/A | BZ124: N/A | CA124: N/A | CB124: N/A | CC124: N/A | CD124: N/A | CE124: N/A
B125: Limited | C125: 2.550744861 | D125: 3.445000941 | E125: 7.327621154 | F125: 12.0366817 | G125: 31.0467905 | H125: 27.77258024 | I125: 33.19328996 | J125: 44.06800852 | K125: 38.53135628 | L125: 28.38955447 | M125: 2.248735111 | N125: 2.977562918 | O125: 4.882947041 | P125: 6.159971655 | Q125: 14.06900455 | R125: 12.99487204 | S125: 19.97366169 | T125: N/A | U125: 8.096967693 | V125: 7.311886726 | W125: 9.661890085 | X125: 4.157513618 | Y125: 1.118035133 | Z125: 18.55710443 | AA125: 13.85669258 | AB125: N/A | AC125: 3.829290826 | AD125: 5.36568675 | AE125: 3.533098128 | BB125: Limited | BC125: N/A | BD125: N/A | BE125: N/A | BF125: N/A | BG125: N/A | BH125: N/A | BI125: N/A | BJ125: N/A | BK125: N/A | BL125: N/A | BM125: N/A | BN125: N/A | BO125: N/A | BP125: N/A | BQ125: N/A | BR125: N/A | BS125: N/A | BT125: N/A | BU125: N/A | BV125: N/A | BW125: N/A | BX125: N/A | BY125: N/A | BZ125: N/A | CA125: N/A | CB125: N/A | CC125: N/A | CD125: N/A | CE125: N/A
B126: Unimproved | C126: =100-(C124+C125+C127) -> 2.746496861 | D126: =100-(D124+D125+D127) -> 4.247210641 | E126: 6.895527939 | F126: 6.38620091 | G126: 6.467804747 | H126: 13.55786068 | I126: 7.920930992 | J126: 4.784318477 | K126: 2.451148685 | L126: 0.9096480151 | M126: 2.499362714 | N126: 4.031474306 | O126: 5.624823054 | P126: 5.088927557 | Q126: 9.882618568 | R126: 10.88018559 | S126: 5.792669301 | T126: N/A | U126: 0.5480338864 | V126: 1.127428236 | W126: 2.131757232 | X126: 1.662939853 | Y126: 0.6335157373 | Z126: 21.44212419 | AA126: 3.19735908 | AB126: N/A | AC126: 2.293752872 | AD126: 8.521884223 | AE126: 3.884989321 | BB126: Unimproved | BC126: N/A | BD126: N/A | BE126: N/A | BF126: N/A | BG126: N/A | BH126: N/A | BI126: N/A | BJ126: N/A | BK126: N/A | BL126: N/A | BM126: N/A | BN126: N/A | BO126: N/A | BP126: N/A | BQ126: N/A | BR126: N/A | BS126: N/A | BT126: N/A | BU126: N/A | BV126: N/A | BW126: N/A | BX126: N/A | BY126: N/A | BZ126: N/A | CA126: N/A | CB126: N/A | CC126: N/A | CD126: N/A | CE126: N/A
B127: Open defecation | C127: =C156 -> 92.67836805 | D127: =D156 -> 89.07939798 | E127: 78.99991115 | F127: 69.55803447 | G127: 16.02240668 | H127: 23.9267967 | I127: 12.36872658 | J127: 2.523588603 | K127: 0.3798669239 | L127: 0 | M127: 93.94490754 | N127: 89.51591356 | O127: 85.25771187 | P127: 84.21868134 | Q127: 62.64527906 | R127: 64.00647387 | S127: 60.58806478 | T127: N/A | U127: 83.69123356 | V127: 86.5356543 | W127: 79.09995953 | X127: 89.47112362 | Y127: 96.86368938 | Z127: 44.13200788 | AA127: 75.4814939 | AB127: N/A | AC127: 88.4652442 | AD127: 80.12504013 | AE127: 89.83270041 | BB127: Open defecation | BC127: N/A | BD127: N/A | BE127: N/A | BF127: N/A | BG127: N/A | BH127: N/A | BI127: N/A | BJ127: N/A | BK127: N/A | BL127: N/A | BM127: N/A | BN127: N/A | BO127: N/A | BP127: N/A | BQ127: N/A | BR127: N/A | BS127: N/A | BT127: N/A | BU127: N/A | BV127: N/A | BW127: N/A | BX127: N/A | BY127: N/A | BZ127: N/A | CA127: N/A | CB127: N/A | CC127: N/A | CD127: N/A | CE127: N/A
A128: Shared among Improved Sanitation | B128: Yes | C128: N/A | D128: N/A | E128: N/A | F128: N/A | G128: N/A | H128: N/A | I128: N/A | J128: N/A | K128: N/A | L128: N/A | M128: N/A | N128: N/A | O128: N/A | P128: N/A | Q128: N/A | R128: N/A | S128: N/A | T128: N/A | U128: N/A | V128: N/A | W128: N/A | X128: N/A | Y128: N/A | Z128: N/A | AA128: N/A | AB128: N/A | AC128: N/A | AD128: N/A | AE128: N/A | BA128: Shared among improved sanitation facilities | BB128: Yes | BC128: N/A | BD128: N/A | BE128: N/A | BF128: N/A | BG128: N/A | BH128: N/A | BI128: N/A | BJ128: N/A | BK128: N/A | BL128: N/A | BM128: N/A | BN128: N/A | BO128: N/A | BP128: N/A | BQ128: N/A | BR128: N/A | BS128: N/A | BT128: N/A | BU128: N/A | BV128: N/A | BW128: N/A | BX128: N/A | BY128: N/A | BZ128: N/A | CA128: N/A | CB128: N/A | CC128: N/A | CD128: N/A | CE128: N/A
B129: No | C129: N/A | D129: N/A | E129: N/A | F129: N/A | G129: N/A | H129: N/A | I129: N/A | J129: N/A | K129: N/A | L129: N/A | M129: N/A | N129: N/A | O129: N/A | P129: N/A | Q129: N/A | R129: N/A | S129: N/A | T129: N/A | U129: N/A | V129: N/A | W129: N/A | X129: N/A | Y129: N/A | Z129: N/A | AA129: N/A | AB129: N/A | AC129: N/A | AD129: N/A | AE129: N/A | BB129: No | BC129: N/A | BD129: N/A | BE129: N/A | BF129: N/A | BG129: N/A | BH129: N/A | BI129: N/A | BJ129: N/A | BK129: N/A | BL129: N/A | BM129: N/A | BN129: N/A | BO129: N/A | BP129: N/A | BQ129: N/A | BR129: N/A | BS129: N/A | BT129: N/A | BU129: N/A | BV129: N/A | BW129: N/A | BX129: N/A | BY129: N/A | BZ129: N/A | CA129: N/A | CB129: N/A | CC129: N/A | CD129: N/A | CE129: N/A
A130: Manually calculated ratios | B130: Improved latrines
B131: Other
B132: Other
C133: NATIONAL wealth index quintile | H133: URBAN wealth index quintile | M133: RURAL wealth index quintile | R133: SUB-REGIONS: | BA133: Raw numbers of respondents: | BB133: Use of sanitation facilities | BC133: NATIONAL wealth index quintile | BH133: URBAN wealth index quintile | BM133: RURAL wealth index quintile | BR133: SUB-REGIONS:
A134: Percentage based on weighted population | C134: Poorest | D134: Poor | E134: Middle | F134: Rich | G134: Richest | H134: Poorest | I134: Poor | J134: Middle | K134: Rich | L134: Richest | M134: Poorest | N134: Poor | O134: Middle | P134: Rich | Q134: Richest | R134: boucle de mouhoun | S134: cascades | T134: centre (sans ouagadougou) | U134: centre-est | V134: centre-nord | W134: centre-ouest | X134: centre-sud | Y134: est | Z134: hauts bassins | AA134: nord | AB134: ouagadougou | AC134: plateau central | AD134: sahel | AE134: sud-ouest | BA134: Sanitation data, raw numbers (weighted) | BC134: Poorest | BD134: Poor | BE134: Middle | BF134: Rich | BG134: Richest | BH134: Poorest | BI134: Poor | BJ134: Middle | BK134: Rich | BL134: Richest | BM134: Poorest | BN134: Poor | BO134: Middle | BP134: Rich | BQ134: Richest | BR134: boucle de mouhoun | BS134: cascades | BT134: centre (sans ouagadougou) | BU134: centre-est | BV134: centre-nord | BW134: centre-ouest | BX134: centre-sud | BY134: est | BZ134: hauts bassins | CA134: nord | CB134: ouagadougou | CC134: plateau central | CD134: sahel | CE134: sud-ouest
A135: Sanitation type | B135: Sewer connection | C135: N/A | D135: N/A | E135: N/A | F135: N/A | G135: N/A | H135: N/A | I135: N/A | J135: N/A | K135: N/A | L135: N/A | M135: N/A | N135: N/A | O135: N/A | P135: N/A | Q135: N/A | R135: N/A | S135: N/A | T135: N/A | U135: N/A | V135: N/A | W135: N/A | X135: N/A | Y135: N/A | Z135: N/A | AA135: N/A | AB135: N/A | AC135: N/A | AD135: N/A | AE135: N/A | BA135: Sanitation type | BB135: Sewer connection | BC135: N/A | BD135: N/A | BE135: N/A | BF135: N/A | BG135: N/A | BH135: N/A | BI135: N/A | BJ135: N/A | BK135: N/A | BL135: N/A | BM135: N/A | BN135: N/A | BO135: N/A | BP135: N/A | BQ135: N/A | BR135: N/A | BS135: N/A | BT135: N/A | BU135: N/A | BV135: N/A | BW135: N/A | BX135: N/A | BY135: N/A | BZ135: N/A | CA135: N/A | CB135: N/A | CC135: N/A | CD135: N/A | CE135: N/A
B136: Septic tank connection | C136: N/A | D136: N/A | E136: N/A | F136: N/A | G136: N/A | H136: N/A | I136: N/A | J136: N/A | K136: N/A | L136: N/A | M136: N/A | N136: N/A | O136: N/A | P136: N/A | Q136: N/A | R136: N/A | S136: N/A | T136: N/A | U136: N/A | V136: N/A | W136: N/A | X136: N/A | Y136: N/A | Z136: N/A | AA136: N/A | AB136: N/A | AC136: N/A | AD136: N/A | AE136: N/A | BB136: Septic tank connection | BC136: N/A | BD136: N/A | BE136: N/A | BF136: N/A | BG136: N/A | BH136: N/A | BI136: N/A | BJ136: N/A | BK136: N/A | BL136: N/A | BM136: N/A | BN136: N/A | BO136: N/A | BP136: N/A | BQ136: N/A | BR136: N/A | BS136: N/A | BT136: N/A | BU136: N/A | BV136: N/A | BW136: N/A | BX136: N/A | BY136: N/A | BZ136: N/A | CA136: N/A | CB136: N/A | CC136: N/A | CD136: N/A | CE136: N/A
B137: Improved latrines | C137: N/A | D137: N/A | E137: N/A | F137: N/A | G137: N/A | H137: N/A | I137: N/A | J137: N/A | K137: N/A | L137: N/A | M137: N/A | N137: N/A | O137: N/A | P137: N/A | Q137: N/A | R137: N/A | S137: N/A | T137: N/A | U137: N/A | V137: N/A | W137: N/A | X137: N/A | Y137: N/A | Z137: N/A | AA137: N/A | AB137: N/A | AC137: N/A | AD137: N/A | AE137: N/A | BB137: Improved latrines | BC137: N/A | BD137: N/A | BE137: N/A | BF137: N/A | BG137: N/A | BH137: N/A | BI137: N/A | BJ137: N/A | BK137: N/A | BL137: N/A | BM137: N/A | BN137: N/A | BO137: N/A | BP137: N/A | BQ137: N/A | BR137: N/A | BS137: N/A | BT137: N/A | BU137: N/A | BV137: N/A | BW137: N/A | BX137: N/A | BY137: N/A | BZ137: N/A | CA137: N/A | CB137: N/A | CC137: N/A | CD137: N/A | CE137: N/A
B138: Unimproved facilities | C138: 7.444876985 | D138: 10.92060202 | E138: 21.02797884 | F138: 30.59987434 | G138: 84.01058332 | H138: 76.20356464 | I138: 87.67841953 | J138: 97.4764114 | K138: 99.62013308 | L138: 100 | M138: 6.147818126 | N138: 10.52854903 | O138: 14.74228813 | P138: 15.8493097 | Q138: 37.54009681 | R138: 36.19461255 | S138: 39.41193522 | T138: 26.4709784 | U138: 16.35040327 | V138: 13.60818557 | W138: 21.14396304 | X138: 10.52887638 | Y138: 3.136310616 | Z138: 55.87386656 | AA138: 24.61490646 | AB138: 98.64761196 | AC138: 11.5347558 | AD138: 19.96373209 | AE138: 10.39983297 | BB138: Unimproved facilities | BC138: N/A | BD138: N/A | BE138: N/A | BF138: N/A | BG138: N/A | BH138: N/A | BI138: N/A | BJ138: N/A | BK138: N/A | BL138: N/A | BM138: N/A | BN138: N/A | BO138: N/A | BP138: N/A | BQ138: N/A | BR138: N/A | BS138: N/A | BT138: N/A | BU138: N/A | BV138: N/A | BW138: N/A | BX138: N/A | BY138: N/A | BZ138: N/A | CA138: N/A | CB138: N/A | CC138: N/A | CD138: N/A | CE138: N/A
B139: Open defecation | C139: 92.55512301 | D139: 89.07939798 | E139: 78.97202116 | F139: 69.40012566 | G139: 15.98941668 | H139: 23.79643536 | I139: 12.32158047 | J139: 2.523588603 | K139: 0.3798669239 | L139: 0 | M139: 93.85218187 | N139: 89.47145097 | O139: 85.25771187 | P139: 84.1506903 | Q139: 62.45990319 | R139: 63.80538745 | S139: 60.58806478 | T139: 73.5290216 | U139: 83.64959673 | V139: 86.39181443 | W139: 78.85603696 | X139: 89.47112362 | Y139: 96.86368938 | Z139: 44.12613344 | AA139: 75.38509354 | AB139: 1.352388037 | AC139: 88.4652442 | AD139: 80.03626791 | AE139: 89.60016703 | BB139: Open defecation | BC139: N/A | BD139: N/A | BE139: N/A | BF139: N/A | BG139: N/A | BH139: N/A | BI139: N/A | BJ139: N/A | BK139: N/A | BL139: N/A | BM139: N/A | BN139: N/A | BO139: N/A | BP139: N/A | BQ139: N/A | BR139: N/A | BS139: N/A | BT139: N/A | BU139: N/A | BV139: N/A | BW139: N/A | BX139: N/A | BY139: N/A | BZ139: N/A | CA139: N/A | CB139: N/A | CC139: N/A | CD139: N/A | CE139: N/A
A140: Septic tank emptying practices | B140: Not emptied/treated and disposed in situ | C140: N/A | D140: N/A | E140: N/A | F140: N/A | G140: N/A | H140: N/A | I140: N/A | J140: N/A | K140: N/A | L140: N/A | M140: N/A | N140: N/A | O140: N/A | P140: N/A | Q140: N/A | R140: N/A | S140: N/A | T140: N/A | U140: N/A | V140: N/A | W140: N/A | X140: N/A | Y140: N/A | Z140: N/A | AA140: N/A | AB140: N/A | AC140: N/A | AD140: N/A | AE140: N/A | BA140: Septic tank emptying practices | BB140: Not emptied/treated and disposed in situ | BC140: N/A | BD140: N/A | BE140: N/A | BF140: N/A | BG140: N/A | BH140: N/A | BI140: N/A | BJ140: N/A | BK140: N/A | BL140: N/A | BM140: N/A | BN140: N/A | BO140: N/A | BP140: N/A | BQ140: N/A | BR140: N/A | BS140: N/A | BT140: N/A | BU140: N/A | BV140: N/A | BW140: N/A | BX140: N/A | BY140: N/A | BZ140: N/A | CA140: N/A | CB140: N/A | CC140: N/A | CD140: N/A | CE140: N/A
B141: Emptied and buried on site | C141: N/A | D141: N/A | E141: N/A | F141: N/A | G141: N/A | H141: N/A | I141: N/A | J141: N/A | K141: N/A | L141: N/A | M141: N/A | N141: N/A | O141: N/A | P141: N/A | Q141: N/A | R141: N/A | S141: N/A | T141: N/A | U141: N/A | V141: N/A | W141: N/A | X141: N/A | Y141: N/A | Z141: N/A | AA141: N/A | AB141: N/A | AC141: N/A | AD141: N/A | AE141: N/A | BB141: Emptied and buried on site | BC141: N/A | BD141: N/A | BE141: N/A | BF141: N/A | BG141: N/A | BH141: N/A | BI141: N/A | BJ141: N/A | BK141: N/A | BL141: N/A | BM141: N/A | BN141: N/A | BO141: N/A | BP141: N/A | BQ141: N/A | BR141: N/A | BS141: N/A | BT141: N/A | BU141: N/A | BV141: N/A | BW141: N/A | BX141: N/A | BY141: N/A | BZ141: N/A | CA141: N/A | CB141: N/A | CC141: N/A | CD141: N/A | CE141: N/A
B142: Emptied and discharged locally | C142: N/A | D142: N/A | E142: N/A | F142: N/A | G142: N/A | H142: N/A | I142: N/A | J142: N/A | K142: N/A | L142: N/A | M142: N/A | N142: N/A | O142: N/A | P142: N/A | Q142: N/A | R142: N/A | S142: N/A | T142: N/A | U142: N/A | V142: N/A | W142: N/A | X142: N/A | Y142: N/A | Z142: N/A | AA142: N/A | AB142: N/A | AC142: N/A | AD142: N/A | AE142: N/A | BB142: Emptied and discharged locally | BC142: N/A | BD142: N/A | BE142: N/A | BF142: N/A | BG142: N/A | BH142: N/A | BI142: N/A | BJ142: N/A | BK142: N/A | BL142: N/A | BM142: N/A | BN142: N/A | BO142: N/A | BP142: N/A | BQ142: N/A | BR142: N/A | BS142: N/A | BT142: N/A | BU142: N/A | BV142: N/A | BW142: N/A | BX142: N/A | BY142: N/A | BZ142: N/A | CA142: N/A | CB142: N/A | CC142: N/A | CD142: N/A | CE142: N/A
B143: Emptied and removed offsite | C143: N/A | D143: N/A | E143: N/A | F143: N/A | G143: N/A | H143: N/A | I143: N/A | J143: N/A | K143: N/A | L143: N/A | M143: N/A | N143: N/A | O143: N/A | P143: N/A | Q143: N/A | R143: N/A | S143: N/A | T143: N/A | U143: N/A | V143: N/A | W143: N/A | X143: N/A | Y143: N/A | Z143: N/A | AA143: N/A | AB143: N/A | AC143: N/A | AD143: N/A | AE143: N/A | BB143: Emptied and removed offsite | BC143: N/A | BD143: N/A | BE143: N/A | BF143: N/A | BG143: N/A | BH143: N/A | BI143: N/A | BJ143: N/A | BK143: N/A | BL143: N/A | BM143: N/A | BN143: N/A | BO143: N/A | BP143: N/A | BQ143: N/A | BR143: N/A | BS143: N/A | BT143: N/A | BU143: N/A | BV143: N/A | BW143: N/A | BX143: N/A | BY143: N/A | BZ143: N/A | CA143: N/A | CB143: N/A | CC143: N/A | CD143: N/A | CE143: N/A
A144: Latrine emptying practices | B144: Not emptied/treated and disposed in situ | C144: N/A | D144: N/A | E144: N/A | F144: N/A | G144: N/A | H144: N/A | I144: N/A | J144: N/A | K144: N/A | L144: N/A | M144: N/A | N144: N/A | O144: N/A | P144: N/A | Q144: N/A | R144: N/A | S144: N/A | T144: N/A | U144: N/A | V144: N/A | W144: N/A | X144: N/A | Y144: N/A | Z144: N/A | AA144: N/A | AB144: N/A | AC144: N/A | AD144: N/A | AE144: N/A | BA144: Latrine emptying practices | BB144: Not emptied/treated and disposed in situ | BC144: N/A | BD144: N/A | BE144: N/A | BF144: N/A | BG144: N/A | BH144: N/A | BI144: N/A | BJ144: N/A | BK144: N/A | BL144: N/A | BM144: N/A | BN144: N/A | BO144: N/A | BP144: N/A | BQ144: N/A | BR144: N/A | BS144: N/A | BT144: N/A | BU144: N/A | BV144: N/A | BW144: N/A | BX144: N/A | BY144: N/A | BZ144: N/A | CA144: N/A | CB144: N/A | CC144: N/A | CD144: N/A | CE144: N/A
B145: Emptied and buried on site | C145: N/A | D145: N/A | E145: N/A | F145: N/A | G145: N/A | H145: N/A | I145: N/A | J145: N/A | K145: N/A | L145: N/A | M145: N/A | N145: N/A | O145: N/A | P145: N/A | Q145: N/A | R145: N/A | S145: N/A | T145: N/A | U145: N/A | V145: N/A | W145: N/A | X145: N/A | Y145: N/A | Z145: N/A | AA145: N/A | AB145: N/A | AC145: N/A | AD145: N/A | AE145: N/A | BB145: Emptied and buried on site | BC145: N/A | BD145: N/A | BE145: N/A | BF145: N/A | BG145: N/A | BH145: N/A | BI145: N/A | BJ145: N/A | BK145: N/A | BL145: N/A | BM145: N/A | BN145: N/A | BO145: N/A | BP145: N/A | BQ145: N/A | BR145: N/A | BS145: N/A | BT145: N/A | BU145: N/A | BV145: N/A | BW145: N/A | BX145: N/A | BY145: N/A | BZ145: N/A | CA145: N/A | CB145: N/A | CC145: N/A | CD145: N/A | CE145: N/A
B146: Emptied and discharged locally | C146: N/A | D146: N/A | E146: N/A | F146: N/A | G146: N/A | H146: N/A | I146: N/A | J146: N/A | K146: N/A | L146: N/A | M146: N/A | N146: N/A | O146: N/A | P146: N/A | Q146: N/A | R146: N/A | S146: N/A | T146: N/A | U146: N/A | V146: N/A | W146: N/A | X146: N/A | Y146: N/A | Z146: N/A | AA146: N/A | AB146: N/A | AC146: N/A | AD146: N/A | AE146: N/A | BB146: Emptied and discharged locally | BC146: N/A | BD146: N/A | BE146: N/A | BF146: N/A | BG146: N/A | BH146: N/A | BI146: N/A | BJ146: N/A | BK146: N/A | BL146: N/A | BM146: N/A | BN146: N/A | BO146: N/A | BP146: N/A | BQ146: N/A | BR146: N/A | BS146: N/A | BT146: N/A | BU146: N/A | BV146: N/A | BW146: N/A | BX146: N/A | BY146: N/A | BZ146: N/A | CA146: N/A | CB146: N/A | CC146: N/A | CD146: N/A | CE146: N/A
B147: Emptied and removed offsite | C147: N/A | D147: N/A | E147: N/A | F147: N/A | G147: N/A | H147: N/A | I147: N/A | J147: N/A | K147: N/A | L147: N/A | M147: N/A | N147: N/A | O147: N/A | P147: N/A | Q147: N/A | R147: N/A | S147: N/A | T147: N/A | U147: N/A | V147: N/A | W147: N/A | X147: N/A | Y147: N/A | Z147: N/A | AA147: N/A | AB147: N/A | AC147: N/A | AD147: N/A | AE147: N/A | BB147: Emptied and removed offsite | BC147: N/A | BD147: N/A | BE147: N/A | BF147: N/A | BG147: N/A | BH147: N/A | BI147: N/A | BJ147: N/A | BK147: N/A | BL147: N/A | BM147: N/A | BN147: N/A | BO147: N/A | BP147: N/A | BQ147: N/A | BR147: N/A | BS147: N/A | BT147: N/A | BU147: N/A | BV147: N/A | BW147: N/A | BX147: N/A | BY147: N/A | BZ147: N/A | CA147: N/A | CB147: N/A | CC147: N/A | CD147: N/A | CE147: N/A
A148: Shared among improved sanitation facilities | B148: Yes | C148: N/A | D148: N/A | E148: N/A | F148: N/A | G148: N/A | H148: N/A | I148: N/A | J148: N/A | K148: N/A | L148: N/A | M148: N/A | N148: N/A | O148: N/A | P148: N/A | Q148: N/A | R148: N/A | S148: N/A | T148: N/A | U148: N/A | V148: N/A | W148: N/A | X148: N/A | Y148: N/A | Z148: N/A | AA148: N/A | AB148: N/A | AC148: N/A | AD148: N/A | AE148: N/A | BA148: Shared among improved sanitation facilities | BB148: Yes | BC148: N/A | BD148: N/A | BE148: N/A | BF148: N/A | BG148: N/A | BH148: N/A | BI148: N/A | BJ148: N/A | BK148: N/A | BL148: N/A | BM148: N/A | BN148: N/A | BO148: N/A | BP148: N/A | BQ148: N/A | BR148: N/A | BS148: N/A | BT148: N/A | BU148: N/A | BV148: N/A | BW148: N/A | BX148: N/A | BY148: N/A | BZ148: N/A | CA148: N/A | CB148: N/A | CC148: N/A | CD148: N/A | CE148: N/A
B149: No | C149: N/A | D149: N/A | E149: N/A | F149: N/A | G149: N/A | H149: N/A | I149: N/A | J149: N/A | K149: N/A | L149: N/A | M149: N/A | N149: N/A | O149: N/A | P149: N/A | Q149: N/A | R149: N/A | S149: N/A | T149: N/A | U149: N/A | V149: N/A | W149: N/A | X149: N/A | Y149: N/A | Z149: N/A | AA149: N/A | AB149: N/A | AC149: N/A | AD149: N/A | AE149: N/A | BB149: No | BC149: N/A | BD149: N/A | BE149: N/A | BF149: N/A | BG149: N/A | BH149: N/A | BI149: N/A | BJ149: N/A | BK149: N/A | BL149: N/A | BM149: N/A | BN149: N/A | BO149: N/A | BP149: N/A | BQ149: N/A | BR149: N/A | BS149: N/A | BT149: N/A | BU149: N/A | BV149: N/A | BW149: N/A | BX149: N/A | BY149: N/A | BZ149: N/A | CA149: N/A | CB149: N/A | CC149: N/A | CD149: N/A | CE149: N/A
B150: DK/missing | C150: N/A | D150: N/A | E150: N/A | F150: N/A | G150: N/A | H150: N/A | I150: N/A | J150: N/A | K150: N/A | L150: N/A | M150: N/A | N150: N/A | O150: N/A | P150: N/A | Q150: N/A | R150: N/A | S150: N/A | T150: N/A | U150: N/A | V150: N/A | W150: N/A | X150: N/A | Y150: N/A | Z150: N/A | AA150: N/A | AB150: N/A | AC150: N/A | AD150: N/A | AE150: N/A | BB150: DK/missing | BC150: N/A | BD150: N/A | BE150: N/A | BF150: N/A | BG150: N/A | BH150: N/A | BI150: N/A | BJ150: N/A | BK150: N/A | BL150: N/A | BM150: N/A | BN150: N/A | BO150: N/A | BP150: N/A | BQ150: N/A | BR150: N/A | BS150: N/A | BT150: N/A | BU150: N/A | BV150: N/A | BW150: N/A | BX150: N/A | BY150: N/A | BZ150: N/A | CA150: N/A | CB150: N/A | CC150: N/A | CD150: N/A | CE150: N/A
A151: Shared among all sanitation facilities | B151: Yes | C151: 58.89798426 | D151: 62.00198332 | E151: 52.26125391 | F151: 46.8870286 | G151: 42.84409774 | H151: 42.63687496 | I151: 45.80826605 | J151: 54.26399305 | K151: 46.371888 | L151: 21.36287626 | M151: 63.18096391 | N151: 69.73072112 | O151: 57.18810026 | P151: 46.57591645 | Q151: 49.34882194 | R151: 38.80186378 | S151: 55.29874089 | T151: 26.49045201 | U151: 43.37106176 | V151: 65.64983749 | W151: 28.14384333 | X151: 51.3182476 | Y151: 55.6895762 | Z151: 58.43548319 | AA151: 78.72241357 | AB151: 32.64788315 | AC151: 49.23114788 | AD151: 53.55937844 | AE151: 42.03011177 | BA151: Shared among all sanitation facilities | BB151: Yes | BC151: N/A | BD151: N/A | BE151: N/A | BF151: N/A | BG151: N/A | BH151: N/A | BI151: N/A | BJ151: N/A | BK151: N/A | BL151: N/A | BM151: N/A | BN151: N/A | BO151: N/A | BP151: N/A | BQ151: N/A | BR151: N/A | BS151: N/A | BT151: N/A | BU151: N/A | BV151: N/A | BW151: N/A | BX151: N/A | BY151: N/A | BZ151: N/A | CA151: N/A | CB151: N/A | CC151: N/A | CD151: N/A | CE151: N/A
B152: No | C152: 41.10201574 | D152: 37.99801668 | E152: 47.73874609 | F152: 53.1129714 | G152: 57.15590226 | H152: 57.36312504 | I152: 54.19173395 | J152: 45.73600695 | K152: 53.628112 | L152: 78.63712374 | M152: 36.81903609 | N152: 30.26927888 | O152: 42.81189974 | P152: 53.42408355 | Q152: 50.65117806 | R152: 61.19813622 | S152: 44.70125911 | T152: 73.50954799 | U152: 56.62893824 | V152: 34.35016251 | W152: 71.85615667 | X152: 48.6817524 | Y152: 44.3104238 | Z152: 41.56451681 | AA152: 21.27758643 | AB152: 67.35211685 | AC152: 50.76885212 | AD152: 46.44062156 | AE152: 57.96988823 | BB152: No | BC152: N/A | BD152: N/A | BE152: N/A | BF152: N/A | BG152: N/A | BH152: N/A | BI152: N/A | BJ152: N/A | BK152: N/A | BL152: N/A | BM152: N/A | BN152: N/A | BO152: N/A | BP152: N/A | BQ152: N/A | BR152: N/A | BS152: N/A | BT152: N/A | BU152: N/A | BV152: N/A | BW152: N/A | BX152: N/A | BY152: N/A | BZ152: N/A | CA152: N/A | CB152: N/A | CC152: N/A | CD152: N/A | CE152: N/A
A153: type of toilet facility | B153: flush toilet | C153: 0.1792857875 | D153: 0 | E153: 0.3616296707 | F153: 1.062965796 | G153: 8.107811546 | H153: 2.260663589 | I153: 3.13749527 | J153: 3.526001217 | K153: 4.705049994 | L153: 27.52179604 | M153: 0 | N153: 0.2297205637 | O153: 0.08961074872 | P153: 0.2289153769 | Q153: 1.901986361 | R153: 0.5302543183 | S153: 0.495017161 | T153: 0.1029989114 | U153: 1.774382734 | V153: 0.04727017122 | W153: 2.336960318 | X153: 0.07920325618 | Y153: 0.02725213968 | Z153: 0.7528056008 | AA153: 0.2669354655 | AB153: 14.35368926 | AC153: 0 | AD153: 1.188504565 | AE153: 0.4121715293 | BA153: type of toilet facility | BB153: flush toilet | BC153: 20.443815 | BD153: 0 | BE153: 41.327914 | BF153: 137.090528 | BG153: 925.765772 | BH153: 48.310904 | BI153: 67.605865 | BJ153: 75.70872 | BK153: 101.721027 | BL153: 593.616387 | BM153: 0 | BN153: 20.443815 | BO153: 8.473955 | BP153: 22.416703 | BQ153: 186.330653 | BR153: 25.765459 | BS153: 10.06774 | BT153: 1.336521 | BU153: 89.067525 | BV153: 2.345912 | BW153: 103.97146 | BX153: 2.858415 | BY153: 1.261612 | BZ153: 56.785136 | CA153: 15.114299 | CB153: 756.098496 | CC153: 0 | CD153: 47.389592 | CE153: 12.565862
B154: traditional pit toilet | C154: 4.381016057 | D154: 6.792796874 | E154: 12.89295829 | F154: 12.20149945 | G154: 14.56002731 | H154: 20.27750585 | I154: 19.88794457 | J154: 15.08041349 | K154: 8.98928872 | L154: 6.526266453 | M154: 3.90656902 | N154: 6.63824623 | O154: 9.989848393 | P154: 9.654692254 | Q154: 16.61335061 | R154: 22.97441794 | S154: 13.0701651 | T154: 11.42387875 | U154: 5.74491253 | V154: 3.172000425 | W154: 4.77603994 | X154: 1.644836512 | Y154: 0.08654757441 | Z154: 21.97399002 | AA154: 9.309636916 | AB154: 19.8203118 | AC154: 2.699389569 | AD154: 10.39038108 | AE154: 2.381072258 | BB154: traditional pit toilet | BC154: 499.563758 | BD154: 845.61155 | BE154: 1473.438478 | BF154: 1573.625425 | BG154: 1662.492381 | BH154: 433.334992 | BI154: 428.539832 | BJ154: 323.799889 | BK154: 194.344307 | BL154: 140.764749 | BM154: 425.509494 | BN154: 590.76591 | BO154: 944.680487 | BP154: 945.442686 | BQ154: 1627.549246 | BR154: 1116.344371 | BS154: 265.823156 | BT154: 148.237041 | BU154: 288.373602 | BV154: 157.419228 | BW154: 212.486212 | BX154: 59.361516 | BY154: 4.006638 | BZ154: 1657.527535 | CA154: 527.126044 | CB154: 1044.059661 | CC154: 87.076184 | CD154: 414.29872 | CE154: 72.591684
B155: ventilated improved pit (vip) latrine | C155: 2.751919937 | D155: 3.953448355 | E155: 7.723732015 | F155: 17.16920705 | G155: 60.92332839 | H155: 53.41861963 | I155: 64.27200743 | J155: 78.86999669 | K155: 85.92579436 | L155: 65.9519375 | M155: 2.138672 | N155: 3.616119647 | O155: 4.433301291 | P155: 5.897711027 | Q155: 18.45150311 | R155: 12.48885387 | S155: 25.79399333 | T155: 14.94410074 | U155: 8.789471172 | V155: 10.23874145 | W155: 13.78704021 | X155: 7.751922351 | Y155: 3.022510902 | Z155: 33.1392251 | AA155: 14.90432358 | AB155: 64.33603958 | AC155: 8.835366236 | AD155: 7.751723213 | AE155: 7.3740558 | BB155: ventilated improved pit (vip) latrine | BC155: 313.79923 | BD155: 492.150973 | BE155: 882.686788 | BF155: 2214.309877 | BG155: 6956.344733 | BH155: 1141.568262 | BI155: 1384.915126 | BJ155: 1693.461269 | BK155: 1857.676339 | BL155: 1422.514388 | BM155: 232.947437 | BN155: 321.813946 | BO155: 419.230909 | BP155: 577.537596 | BQ155: 1807.626329 | BR155: 606.84287 | BS155: 524.602456 | BT155: 193.915685 | BU155: 441.199313 | BV155: 508.125649 | BW155: 613.385982 | BX155: 279.763891 | BY155: 139.92428 | BZ155: 2499.73619 | CA155: 843.905858 | CB155: 3388.981181 | CC155: 285.008872 | CD155: 309.086739 | CE155: 224.812635
B156: no facility | C156: 92.67836805 | D156: 89.07939798 | E156: 78.99991115 | F156: 69.55803447 | G156: 16.02240668 | H156: 23.9267967 | I156: 12.36872658 | J156: 2.523588603 | K156: 0.3798669239 | L156: 0 | M156: 93.94490754 | N156: 89.51591356 | O156: 85.25771187 | P156: 84.21868134 | Q156: 62.64527906 | R156: 64.00647387 | S156: 60.58806478 | T156: 73.5290216 | U156: 83.69123356 | V156: 86.5356543 | W156: 79.09995953 | X156: 89.47112362 | Y156: 96.86368938 | Z156: 44.13200788 | AA156: 75.4814939 | AB156: 1.355393647 | AC156: 88.4652442 | AD156: 80.12504013 | AE156: 89.83270041 | BB156: no facility | BC156: 10568.04021 | BD156: 11089.18303 | BE156: 9028.301045 | BF156: 8970.888537 | BG156: 1829.469716 | BH156: 511.321182 | BI156: 266.517839 | BJ156: 54.185365 | BK156: 8.212549 | BL156: 0 | BM156: 10232.62353 | BN156: 7966.403821 | BO156: 8062.314221 | BP156: 8247.17497 | BQ156: 6137.129053 | BR156: 3110.123051 | BS156: 1232.249973 | BT156: 954.117671 | BU156: 4200.993897 | BV156: 4294.569379 | BW156: 3519.16043 | BX156: 3228.97838 | BY156: 4484.212774 | BZ156: 3328.936537 | CA156: 4273.878953 | CB156: 71.397052 | CC156: 2853.688097 | CD156: 3194.849285 | CE156: 2738.72705
B157: other | C157: 0.009410168589 | D157: 0.1743567931 | E157: 0.02176886869 | F157: 0.008293233555 | G157: 0.386426078 | H157: 0.1164142285 | I157: 0.3338261536 | J157: 0 | K157: 0 | L157: 0 | M157: 0.009851440311 | N157: 0 | O157: 0.2295276992 | P157: 0 | Q157: 0.3878808565 | R157: 0 | S157: 0.05275963069 | T157: 0 | U157: 0 | V157: 0.006333654701 | W157: 0 | X157: 1.052914261 | Y157: 0 | Z157: 0.001971395417 | AA157: 0.03761013454 | AB157: 0.1345657153 | AC157: 0 | AD157: 0.5443510129 | AE157: 0 | BB157: other | BC157: 1.073034 | BD157: 21.705068 | BE157: 2.487799 | BF157: 1.069577 | BG157: 44.122885 | BH157: 2.487799 | BI157: 7.193192 | BJ157: 0 | BK157: 0 | BL157: 0 | BM157: 1.073034 | BN157: 0 | BO157: 21.705068 | BP157: 0 | BQ157: 37.99927 | BR157: 0 | BS157: 1.073034 | BT157: 0 | BU157: 0 | BV157: 0.314325 | BW157: 0 | BX157: 37.99927 | BY157: 0 | BZ157: 0.148705 | CA157: 2.129544 | CB157: 7.088417 | CC157: 0 | CD157: 21.705068 | CE157: 0
BB158: Total | BC158: 11402.92004 | BD158: 12448.65062 | BE158: 11428.24202 | BF158: 12896.98394 | BG158: 11418.19549 | BH158: 2137.023139 | BI158: 2154.771854 | BJ158: 2147.155243 | BK158: 2161.954222 | BL158: 2156.895524 | BM158: 10892.15349 | BN158: 8899.427492 | BO158: 9456.40464 | BP158: 9792.571955 | BQ158: 9796.634551 | BR158: 4859.075751 | BS158: 2033.816359 | BT158: 1297.606918 | BU158: 5019.634337 | BV158: 4962.774493 | BW158: 4449.004084 | BX158: 3608.961472 | BY158: 4629.405304 | BZ158: 7543.134103 | CA158: 5662.154698 | CB158: 5267.624807 | CC158: 3225.773153 | CD158: 3987.329404 | CE158: 3048.697231
A208: =A1026 -> Burkina Faso
A209: =A1034 -> 2003
A210: Access to hygiene facilities
A211: by wealth quintile and sub-national region
A212: Notes:
A213: WHO/UNICEF JMP customised wealth index excludes water,
A214: sanitation and hygiene assets.
A215: Survey used for analysis: | B215: =A1025 -> DHS03
A220: Access to handwashing | C220: NATIONAL wealth index quintile | H220: URBAN wealth index quintile | M220: RURAL wealth index quintile | R220: SUB-REGIONS: | BA220: Raw numbers of respondents: | BB220: Access to handwashing | BC220: NATIONAL wealth index quintile | BH220: URBAN wealth index quintile | BM220: RURAL wealth index quintile | BR220: SUB-REGIONS:
A221: Weighted percentage (used in graphs) | C221: Poorest | D221: Poor | E221: Middle | F221: Rich | G221: Richest | H221: Poorest | I221: Poor | J221: Middle | K221: Rich | L221: Richest | M221: Poorest | N221: Poor | O221: Middle | P221: Rich | Q221: Richest | R221: boucle de mouhoun | S221: cascades | T221: centre (sans ouagadougou) | U221: centre-est | V221: centre-nord | W221: centre-ouest | X221: centre-sud | Y221: est | Z221: hauts bassins | AA221: nord | AB221: ouagadougou | AC221: plateau central | AD221: sahel | AE221: sud-ouest | BA221: Hygiene data, raw numbers (weighted) | BC221: Poorest | BD221: Poor | BE221: Middle | BF221: Rich | BG221: Richest | BH221: Poorest | BI221: Poor | BJ221: Middle | BK221: Rich | BL221: Richest | BM221: Poorest | BN221: Poor | BO221: Middle | BP221: Rich | BQ221: Richest | BR221: boucle de mouhoun | BS221: cascades | BT221: centre (sans ouagadougou) | BU221: centre-est | BV221: centre-nord | BW221: centre-ouest | BX221: centre-sud | BY221: est | BZ221: hauts bassins | CA221: nord | CB221: ouagadougou | CC221: plateau central | CD221: sahel | CE221: sud-ouest
A222: Hygiene ladder | B222: Basic | C222: 0.8842021417 | D222: 1.685592652 | E222: 2.257690123 | F222: 5.752039168 | G222: 21.07804007 | H222: 10.81335634 | I222: 11.00275415 | J222: 22.67414196 | K222: 29.40393596 | L222: 42.5529462 | M222: 0.6914411355 | N222: 1.698490275 | O222: 1.93033233 | P222: 3.251856426 | Q222: 4.948075279 | R222: 1.024752739 | S222: 6.545999417 | T222: 1.668265767 | U222: 11.55556815 | V222: 3.099539544 | W222: 1.822978517 | X222: 0.7717805307 | Y222: 0.1261252696 | Z222: 11.14894741 | AA222: 7.799207504 | AB222: 22.68519898 | AC222: 4.845855229 | AD222: 0.01143046977 | AE222: 1.300634026 | BA222: Hygiene ladder | BB222: Basic | BC222: 100.930215 | BD222: 209.472984 | BE222: 257.49648 | BF222: 741.119358 | BG222: 2411.697485 | BH222: 231.083927 | BI222: 237.991406 | BJ222: 486.849028 | BK222: 635.699635 | BL222: 917.822592 | BM222: 75.364635 | BN222: 151.231027 | BO222: 182.075568 | BP222: 317.907456 | BQ222: 484.691248 | BR222: 49.950439 | BS222: 133.133607 | BT222: 21.647532 | BU222: 580.335987 | BV222: 154.079269 | BW222: 81.355266 | BX222: 27.853262 | BY222: 5.835481 | BZ222: 832.93634 | CA222: 442.167904 | CB222: 1194.971169 | CC222: 156.316297 | CD222: 0.456276 | CE222: 39.677693
B223: Limited | C223: 97.421976 | D223: 95.8646896 | E223: 95.20195091 | F223: 90.71504866 | G223: 76.29030793 | H223: 79.27555318 | I223: 81.27623123 | J223: 74.72171936 | K223: 66.21748913 | L223: 55.76775702 | M223: 97.74103681 | N223: 96.13525803 | O223: 95.13450217 | P223: 95.07825752 | Q223: 93.27181306 | R223: 98.84205015 | S223: 92.38116557 | T223: 92.43574933 | U223: 87.03957714 | V223: 96.36719396 | W223: 94.17879801 | X223: 91.88545832 | Y223: 92.69276633 | Z223: 88.5601502 | AA223: 91.40190439 | AB223: 68.86608485 | AC223: 93.92429983 | AD223: 99.88016279 | AE223: 98.36543237 | BB223: Limited | BC223: 11120.55776 | BD223: 11913.35437 | BE223: 10858.07436 | BF223: 11688.14687 | BG223: 8728.94933 | BH223: 1694.136915 | BI223: 1758.018427 | BJ223: 1604.391315 | BK223: 1431.591802 | BL223: 1202.852255 | BM223: 10653.42686 | BN223: 8559.739209 | BO223: 8973.412635 | BP223: 9295.025061 | BQ223: 9136.488215 | BR223: 4817.946428 | BS223: 1878.863258 | BT223: 1199.452678 | BU223: 4371.243218 | BV223: 4790.449223 | BW223: 4202.979405 | BX223: 3316.110789 | BY223: 4288.647932 | BZ223: 6616.316741 | CA223: 5181.935275 | CB223: 3627.606969 | CC223: 3029.784848 | CD223: 3986.968346 | CE223: 3000.777582
B224: No facility | C224: 1.693821856 | D224: 2.449717752 | E224: 2.540358965 | F224: 3.532912169 | G224: 2.631651992 | H224: 9.911090485 | I224: 7.721014619 | J224: 2.604138671 | K224: 4.378574904 | L224: 1.679296776 | M224: 1.56752205 | N224: 2.166251691 | O224: 2.9351655 | P224: 1.669886051 | Q224: 1.780111657 | R224: 0.1331971135 | S224: 1.072835013 | T224: 5.895984904 | U224: 1.404854705 | V224: 0.5332665002 | W224: 3.998223474 | X224: 7.342761153 | Y224: 7.181108397 | Z224: 0.2909023917 | AA224: 0.7988881101 | AB224: 8.448716173 | AC224: 1.229844943 | AD224: 0.108406736 | AE224: 0.3339336009 | BB224: No facility | BC224: 193.346969 | BD224: 304.432798 | BE224: 289.735728 | BF224: 455.196761 | BG224: 301.107146 | BH224: 211.802297 | BI224: 167.006833 | BJ224: 55.9149 | BK224: 94.662785 | BL224: 36.220677 | BM224: 170.854352 | BN224: 192.879802 | BO224: 276.85488 | BP224: 163.251127 | BQ224: 174.371749 | BR224: 6.492546 | BS224: 21.819494 | BT224: 76.506708 | BU224: 70.55367 | BV224: 26.508877 | BW224: 178.431359 | BX224: 264.997421 | BY224: 332.250799 | BZ224: 21.733278 | CA224: 45.292125 | CB224: 445.046669 | CC224: 39.672008 | CD224: 4.327328 | CE224: 10.18712
A225: place for hand washing | B225: nowhere | C225: 0.6271088665 | D225: 1.132372126 | E225: 0.9840558893 | F225: 2.222610839 | G225: 1.062221635 | H225: 6.560950766 | I225: 2.606926238 | J225: 1.057358106 | K225: 1.07901836 | L225: 0.07311503883 | M225: 0.5093494577 | N225: 1.361947567 | O225: 0.6403363032 | P225: 1.117664643 | Q225: 1.447566277 | R225: 0.1221927814 | S225: 0 | T225: 3.511445135 | U225: 0.6312376592 | V225: 0.5214686005 | W225: 3.301076866 | X225: 7.060017486 | Y225: 0.3971752679 | Z225: 0.04480321392 | AA225: 0.121627063 | AB225: 3.475370356 | AC225: 0.294599017 | AD225: 0 | AE225: 0 | BA225: Observed handwashing place | BB225: Fixed | BC225: N/A | BD225: N/A | BE225: N/A | BF225: N/A | BG225: N/A | BH225: N/A | BI225: N/A | BJ225: N/A | BK225: N/A | BL225: N/A | BM225: N/A | BN225: N/A | BO225: N/A | BP225: N/A | BQ225: N/A | BR225: N/A | BS225: N/A | BT225: N/A | BU225: N/A | BV225: N/A | BW225: N/A | BX225: N/A | BY225: N/A | BZ225: N/A | CA225: N/A | CB225: N/A | CC225: N/A | CD225: N/A | CE225: N/A
B226: in dwelling/yard/plot | C226: 98.30617814 | D226: 97.55028225 | E226: 97.45964103 | F226: 96.46708783 | G226: 97.36834801 | H226: 90.08890951 | I226: 92.27898538 | J226: 97.39586133 | K226: 95.6214251 | L226: 98.32070322 | M226: 98.43247795 | N226: 97.83374831 | O226: 97.0648345 | P226: 98.33011395 | Q226: 98.21988834 | R226: 99.86680289 | S226: 98.92716499 | T226: 94.1040151 | U226: 98.59514529 | V226: 99.4667335 | W226: 96.00177653 | X226: 92.65723885 | Y226: 92.8188916 | Z226: 99.70909761 | AA226: 99.20111189 | AB226: 91.55128383 | AC226: 98.77015506 | AD226: 99.89159326 | AE226: 99.6660664 | BB226: Mobile | BC226: N/A | BD226: N/A | BE226: N/A | BF226: N/A | BG226: N/A | BH226: N/A | BI226: N/A | BJ226: N/A | BK226: N/A | BL226: N/A | BM226: N/A | BN226: N/A | BO226: N/A | BP226: N/A | BQ226: N/A | BR226: N/A | BS226: N/A | BT226: N/A | BU226: N/A | BV226: N/A | BW226: N/A | BX226: N/A | BY226: N/A | BZ226: N/A | CA226: N/A | CB226: N/A | CC226: N/A | CD226: N/A | CE226: N/A
B227: somewhere else | C227: 1.066712989 | D227: 1.317345626 | E227: 1.556303076 | F227: 1.31030133 | G227: 1.569430357 | H227: 3.35013972 | I227: 5.114088381 | J227: 1.546780565 | K227: 3.299556544 | L227: 1.606181737 | M227: 1.058172592 | N227: 0.8043041234 | O227: 2.294829197 | P227: 0.5522214083 | Q227: 0.33254538 | R227: 0.01100433212 | S227: 1.072835013 | T227: 2.384539769 | U227: 0.7736170461 | V227: 0.01179789964 | W227: 0.697146608 | X227: 0.2827436668 | Y227: 6.783933129 | Z227: 0.2460991778 | AA227: 0.6772610471 | AB227: 4.973345817 | AC227: 0.9352459261 | AD227: 0.108406736 | AE227: 0.3339336009 | BA227: Water / Soap | BB227: Water and soap | BC227: N/A | BD227: N/A | BE227: N/A | BF227: N/A | BG227: N/A | BH227: N/A | BI227: N/A | BJ227: N/A | BK227: N/A | BL227: N/A | BM227: N/A | BN227: N/A | BO227: N/A | BP227: N/A | BQ227: N/A | BR227: N/A | BS227: N/A | BT227: N/A | BU227: N/A | BV227: N/A | BW227: N/A | BX227: N/A | BY227: N/A | BZ227: N/A | CA227: N/A | CB227: N/A | CC227: N/A | CD227: N/A | CE227: N/A
BB228: Water only | BC228: N/A | BD228: N/A | BE228: N/A | BF228: N/A | BG228: N/A | BH228: N/A | BI228: N/A | BJ228: N/A | BK228: N/A | BL228: N/A | BM228: N/A | BN228: N/A | BO228: N/A | BP228: N/A | BQ228: N/A | BR228: N/A | BS228: N/A | BT228: N/A | BU228: N/A | BV228: N/A | BW228: N/A | BX228: N/A | BY228: N/A | BZ228: N/A | CA228: N/A | CB228: N/A | CC228: N/A | CD228: N/A | CE228: N/A
BB229: Soap only | BC229: N/A | BD229: N/A | BE229: N/A | BF229: N/A | BG229: N/A | BH229: N/A | BI229: N/A | BJ229: N/A | BK229: N/A | BL229: N/A | BM229: N/A | BN229: N/A | BO229: N/A | BP229: N/A | BQ229: N/A | BR229: N/A | BS229: N/A | BT229: N/A | BU229: N/A | BV229: N/A | BW229: N/A | BX229: N/A | BY229: N/A | BZ229: N/A | CA229: N/A | CB229: N/A | CC229: N/A | CD229: N/A | CE229: N/A
BB230: Neither | BC230: N/A | BD230: N/A | BE230: N/A | BF230: N/A | BG230: N/A | BH230: N/A | BI230: N/A | BJ230: N/A | BK230: N/A | BL230: N/A | BM230: N/A | BN230: N/A | BO230: N/A | BP230: N/A | BQ230: N/A | BR230: N/A | BS230: N/A | BT230: N/A | BU230: N/A | BV230: N/A | BW230: N/A | BX230: N/A | BY230: N/A | BZ230: N/A | CA230: N/A | CB230: N/A | CC230: N/A | CD230: N/A | CE230: N/A
BA231: place for hand washing | BB231: nowhere | BC231: 71.583442 | BD231: 140.72283 | BE231: 112.234591 | BF231: 286.371471 | BG231: 121.536786 | BH231: 140.209036 | BI231: 56.388249 | BJ231: 22.70312 | BK231: 23.327883 | BL231: 1.577015 | BM231: 55.517287 | BN231: 121.265769 | BO231: 60.398717 | BP231: 109.264948 | BQ231: 141.797096 | BR231: 5.956152 | BS231: 0 | BT231: 45.564755 | BU231: 31.701594 | BV231: 25.922399 | BW231: 147.319337 | BX231: 254.793311 | BY231: 18.376244 | BZ231: 3.347242 | CA231: 6.895519 | CB231: 183.069471 | CC231: 9.503096 | CD231: 0 | CE231: 0
BB232: in dwelling/yard/plot | BC232: 11221.48797 | BD232: 12122.82735 | BE232: 11115.57084 | BF232: 12429.26623 | BG232: 11140.64682 | BH232: 1925.220842 | BI232: 1996.009833 | BJ232: 2091.240343 | BK232: 2067.291437 | BL232: 2120.674847 | BM232: 10728.79149 | BN232: 8710.970236 | BO232: 9155.488203 | BP232: 9612.932517 | BQ232: 9621.179463 | BR232: 4867.896867 | BS232: 2011.996865 | BT232: 1221.10021 | BU232: 4951.579205 | BV232: 4944.528492 | BW232: 4284.334671 | BX232: 3343.964051 | BY232: 4294.483413 | BZ232: 7449.253081 | CA232: 5624.103179 | CB232: 4822.578138 | CC232: 3186.101145 | CD232: 3987.424622 | CE232: 3040.455275
BB233: somewhere else | BC233: 121.763527 | BD233: 163.709968 | BE233: 177.501137 | BF233: 168.82529 | BG233: 179.57036 | BH233: 71.593261 | BI233: 110.618584 | BJ233: 33.21178 | BK233: 71.334902 | BL233: 34.643662 | BM233: 115.337065 | BN233: 71.614033 | BO233: 216.456163 | BP233: 53.986179 | BQ233: 32.574653 | BR233: 0.536394 | BS233: 21.819494 | BT233: 30.941953 | BU233: 38.852076 | BV233: 0.586478 | BW233: 31.112022 | BX233: 10.20411 | BY233: 313.874555 | BZ233: 18.386036 | CA233: 38.396606 | CB233: 261.977198 | CC233: 30.168912 | CD233: 4.327328 | CE233: 10.18712
BB234: Total | BC234: 11414.83494 | BD234: 12427.26015 | BE234: 11405.30657 | BF234: 12884.46299 | BG234: 11441.75396 | BH234: 2137.023139 | BI234: 2163.016666 | BJ234: 2147.155243 | BK234: 2161.954222 | BL234: 2156.895524 | BM234: 10899.64585 | BN234: 8903.850038 | BO234: 9432.343083 | BP234: 9776.183644 | BQ234: 9795.551212 | BR234: 4874.389413 | BS234: 2033.816359 | BT234: 1297.606918 | BU234: 5022.132875 | BV234: 4971.037369 | BW234: 4462.76603 | BX234: 3608.961472 | BY234: 4626.734212 | BZ234: 7470.986359 | CA234: 5669.395304 | CB234: 5267.624807 | CC234: 3225.773153 | CD234: 3991.75195 | CE234: 3050.642395
BA259: Raw numbers of respondents: | BB259: Menstrual health and hygiene | BC259: NATIONAL wealth index quintile | BH259: URBAN wealth index quintile | BM259: RURAL wealth index quintile | BR259: SUB-REGIONS:
BA260: MHH data, raw numbers (weighted) | BC260: Poorest | BD260: Poor | BE260: Middle | BF260: Rich | BG260: Richest | BH260: Poorest | BI260: Poor | BJ260: Middle | BK260: Rich | BL260: Richest | BM260: Poorest | BN260: Poor | BO260: Middle | BP260: Rich | BQ260: Richest | BR260: boucle de mouhoun | BS260: cascades | BT260: centre (sans ouagadougou) | BU260: centre-est | BV260: centre-nord | BW260: centre-ouest | BX260: centre-sud | BY260: est | BZ260: hauts bassins | CA260: nord | CB260: ouagadougou | CC260: plateau central | CD260: sahel | CE260: sud-ouest
BA261: Private place to wash and change | BB261: Yes | BC261: N/A | BD261: N/A | BE261: N/A | BF261: N/A | BG261: N/A | BH261: N/A | BI261: N/A | BJ261: N/A | BK261: N/A | BL261: N/A | BM261: N/A | BN261: N/A | BO261: N/A | BP261: N/A | BQ261: N/A | BR261: N/A | BS261: N/A | BT261: N/A | BU261: N/A | BV261: N/A | BW261: N/A | BX261: N/A | BY261: N/A | BZ261: N/A | CA261: N/A | CB261: N/A | CC261: N/A | CD261: N/A | CE261: N/A
BB262: No | BC262: N/A | BD262: N/A | BE262: N/A | BF262: N/A | BG262: N/A | BH262: N/A | BI262: N/A | BJ262: N/A | BK262: N/A | BL262: N/A | BM262: N/A | BN262: N/A | BO262: N/A | BP262: N/A | BQ262: N/A | BR262: N/A | BS262: N/A | BT262: N/A | BU262: N/A | BV262: N/A | BW262: N/A | BX262: N/A | BY262: N/A | BZ262: N/A | CA262: N/A | CB262: N/A | CC262: N/A | CD262: N/A | CE262: N/A
BB263: DK/not sure/missing | BC263: N/A | BD263: N/A | BE263: N/A | BF263: N/A | BG263: N/A | BH263: N/A | BI263: N/A | BJ263: N/A | BK263: N/A | BL263: N/A | BM263: N/A | BN263: N/A | BO263: N/A | BP263: N/A | BQ263: N/A | BR263: N/A | BS263: N/A | BT263: N/A | BU263: N/A | BV263: N/A | BW263: N/A | BX263: N/A | BY263: N/A | BZ263: N/A | CA263: N/A | CB263: N/A | CC263: N/A | CD263: N/A | CE263: N/A
BA264: Use of menstrual materials | BB264: Materials reusable | BC264: N/A | BD264: N/A | BE264: N/A | BF264: N/A | BG264: N/A | BH264: N/A | BI264: N/A | BJ264: N/A | BK264: N/A | BL264: N/A | BM264: N/A | BN264: N/A | BO264: N/A | BP264: N/A | BQ264: N/A | BR264: N/A | BS264: N/A | BT264: N/A | BU264: N/A | BV264: N/A | BW264: N/A | BX264: N/A | BY264: N/A | BZ264: N/A | CA264: N/A | CB264: N/A | CC264: N/A | CD264: N/A | CE264: N/A
BB265: Materials not reusable | BC265: N/A | BD265: N/A | BE265: N/A | BF265: N/A | BG265: N/A | BH265: N/A | BI265: N/A | BJ265: N/A | BK265: N/A | BL265: N/A | BM265: N/A | BN265: N/A | BO265: N/A | BP265: N/A | BQ265: N/A | BR265: N/A | BS265: N/A | BT265: N/A | BU265: N/A | BV265: N/A | BW265: N/A | BX265: N/A | BY265: N/A | BZ265: N/A | CA265: N/A | CB265: N/A | CC265: N/A | CD265: N/A | CE265: N/A
BB266: No materials used | BC266: N/A | BD266: N/A | BE266: N/A | BF266: N/A | BG266: N/A | BH266: N/A | BI266: N/A | BJ266: N/A | BK266: N/A | BL266: N/A | BM266: N/A | BN266: N/A | BO266: N/A | BP266: N/A | BQ266: N/A | BR266: N/A | BS266: N/A | BT266: N/A | BU266: N/A | BV266: N/A | BW266: N/A | BX266: N/A | BY266: N/A | BZ266: N/A | CA266: N/A | CB266: N/A | CC266: N/A | CD266: N/A | CE266: N/A
BB267: DK/not sure/missing | BC267: N/A | BD267: N/A | BE267: N/A | BF267: N/A | BG267: N/A | BH267: N/A | BI267: N/A | BJ267: N/A | BK267: N/A | BL267: N/A | BM267: N/A | BN267: N/A | BO267: N/A | BP267: N/A | BQ267: N/A | BR267: N/A | BS267: N/A | BT267: N/A | BU267: N/A | BV267: N/A | BW267: N/A | BX267: N/A | BY267: N/A | BZ267: N/A | CA267: N/A | CB267: N/A | CC267: N/A | CD267: N/A | CE267: N/A
BA268: Use of menstrual materials with private place to wash and change | BB268: Materials reusable | BC268: N/A | BD268: N/A | BE268: N/A | BF268: N/A | BG268: N/A | BH268: N/A | BI268: N/A | BJ268: N/A | BK268: N/A | BL268: N/A | BM268: N/A | BN268: N/A | BO268: N/A | BP268: N/A | BQ268: N/A | BR268: N/A | BS268: N/A | BT268: N/A | BU268: N/A | BV268: N/A | BW268: N/A | BX268: N/A | BY268: N/A | BZ268: N/A | CA268: N/A | CB268: N/A | CC268: N/A | CD268: N/A | CE268: N/A
BB269: Materials not reusable | BC269: N/A | BD269: N/A | BE269: N/A | BF269: N/A | BG269: N/A | BH269: N/A | BI269: N/A | BJ269: N/A | BK269: N/A | BL269: N/A | BM269: N/A | BN269: N/A | BO269: N/A | BP269: N/A | BQ269: N/A | BR269: N/A | BS269: N/A | BT269: N/A | BU269: N/A | BV269: N/A | BW269: N/A | BX269: N/A | BY269: N/A | BZ269: N/A | CA269: N/A | CB269: N/A | CC269: N/A | CD269: N/A | CE269: N/A
BB270: No materials used | BC270: N/A | BD270: N/A | BE270: N/A | BF270: N/A | BG270: N/A | BH270: N/A | BI270: N/A | BJ270: N/A | BK270: N/A | BL270: N/A | BM270: N/A | BN270: N/A | BO270: N/A | BP270: N/A | BQ270: N/A | BR270: N/A | BS270: N/A | BT270: N/A | BU270: N/A | BV270: N/A | BW270: N/A | BX270: N/A | BY270: N/A | BZ270: N/A | CA270: N/A | CB270: N/A | CC270: N/A | CD270: N/A | CE270: N/A
BA271: Awareness of menstruation before menarche | BB271: Yes | BC271: N/A | BD271: N/A | BE271: N/A | BF271: N/A | BG271: N/A | BH271: N/A | BI271: N/A | BJ271: N/A | BK271: N/A | BL271: N/A | BM271: N/A | BN271: N/A | BO271: N/A | BP271: N/A | BQ271: N/A | BR271: N/A | BS271: N/A | BT271: N/A | BU271: N/A | BV271: N/A | BW271: N/A | BX271: N/A | BY271: N/A | BZ271: N/A | CA271: N/A | CB271: N/A | CC271: N/A | CD271: N/A | CE271: N/A
BB272: No | BC272: N/A | BD272: N/A | BE272: N/A | BF272: N/A | BG272: N/A | BH272: N/A | BI272: N/A | BJ272: N/A | BK272: N/A | BL272: N/A | BM272: N/A | BN272: N/A | BO272: N/A | BP272: N/A | BQ272: N/A | BR272: N/A | BS272: N/A | BT272: N/A | BU272: N/A | BV272: N/A | BW272: N/A | BX272: N/A | BY272: N/A | BZ272: N/A | CA272: N/A | CB272: N/A | CC272: N/A | CD272: N/A | CE272: N/A
BB273: DK/not sure/missing | BC273: N/A | BD273: N/A | BE273: N/A | BF273: N/A | BG273: N/A | BH273: N/A | BI273: N/A | BJ273: N/A | BK273: N/A | BL273: N/A | BM273: N/A | BN273: N/A | BO273: N/A | BP273: N/A | BQ273: N/A | BR273: N/A | BS273: N/A | BT273: N/A | BU273: N/A | BV273: N/A | BW273: N/A | BX273: N/A | BY273: N/A | BZ273: N/A | CA273: N/A | CB273: N/A | CC273: N/A | CD273: N/A | CE273: N/A
BA274: Participation in (all) activities during menstruation | BB274: Yes | BC274: N/A | BD274: N/A | BE274: N/A | BF274: N/A | BG274: N/A | BH274: N/A | BI274: N/A | BJ274: N/A | BK274: N/A | BL274: N/A | BM274: N/A | BN274: N/A | BO274: N/A | BP274: N/A | BQ274: N/A | BR274: N/A | BS274: N/A | BT274: N/A | BU274: N/A | BV274: N/A | BW274: N/A | BX274: N/A | BY274: N/A | BZ274: N/A | CA274: N/A | CB274: N/A | CC274: N/A | CD274: N/A | CE274: N/A
BB275: No | BC275: N/A | BD275: N/A | BE275: N/A | BF275: N/A | BG275: N/A | BH275: N/A | BI275: N/A | BJ275: N/A | BK275: N/A | BL275: N/A | BM275: N/A | BN275: N/A | BO275: N/A | BP275: N/A | BQ275: N/A | BR275: N/A | BS275: N/A | BT275: N/A | BU275: N/A | BV275: N/A | BW275: N/A | BX275: N/A | BY275: N/A | BZ275: N/A | CA275: N/A | CB275: N/A | CC275: N/A | CD275: N/A | CE275: N/A
BB276: DK/not sure/missing/no such activity | BC276: N/A | BD276: N/A | BE276: N/A | BF276: N/A | BG276: N/A | BH276: N/A | BI276: N/A | BJ276: N/A | BK276: N/A | BL276: N/A | BM276: N/A | BN276: N/A | BO276: N/A | BP276: N/A | BQ276: N/A | BR276: N/A | BS276: N/A | BT276: N/A | BU276: N/A | BV276: N/A | BW276: N/A | BX276: N/A | BY276: N/A | BZ276: N/A | CA276: N/A | CB276: N/A | CC276: N/A | CD276: N/A | CE276: N/A
BA277: Participation in specific activities during menstruation | BB277: Did not go to school (amongst those usually attending school) | BC277: N/A | BD277: N/A | BE277: N/A | BF277: N/A | BG277: N/A | BH277: N/A | BI277: N/A | BJ277: N/A | BK277: N/A | BL277: N/A | BM277: N/A | BN277: N/A | BO277: N/A | BP277: N/A | BQ277: N/A | BR277: N/A | BS277: N/A | BT277: N/A | BU277: N/A | BV277: N/A | BW277: N/A | BX277: N/A | BY277: N/A | BZ277: N/A | CA277: N/A | CB277: N/A | CC277: N/A | CD277: N/A | CE277: N/A
BB278: Did not go to work (amongst those who usually work) | BC278: N/A | BD278: N/A | BE278: N/A | BF278: N/A | BG278: N/A | BH278: N/A | BI278: N/A | BJ278: N/A | BK278: N/A | BL278: N/A | BM278: N/A | BN278: N/A | BO278: N/A | BP278: N/A | BQ278: N/A | BR278: N/A | BS278: N/A | BT278: N/A | BU278: N/A | BV278: N/A | BW278: N/A | BX278: N/A | BY278: N/A | BZ278: N/A | CA278: N/A | CB278: N/A | CC278: N/A | CD278: N/A | CE278: N/A
BB279: Did not participate in social activities | BC279: N/A | BD279: N/A | BE279: N/A | BF279: N/A | BG279: N/A | BH279: N/A | BI279: N/A | BJ279: N/A | BK279: N/A | BL279: N/A | BM279: N/A | BN279: N/A | BO279: N/A | BP279: N/A | BQ279: N/A | BR279: N/A | BS279: N/A | BT279: N/A | BU279: N/A | BV279: N/A | BW279: N/A | BX279: N/A | BY279: N/A | BZ279: N/A | CA279: N/A | CB279: N/A | CC279: N/A | CD279: N/A | CE279: N/A
BB280: Did not cook food | BC280: N/A | BD280: N/A | BE280: N/A | BF280: N/A | BG280: N/A | BH280: N/A | BI280: N/A | BJ280: N/A | BK280: N/A | BL280: N/A | BM280: N/A | BN280: N/A | BO280: N/A | BP280: N/A | BQ280: N/A | BR280: N/A | BS280: N/A | BT280: N/A | BU280: N/A | BV280: N/A | BW280: N/A | BX280: N/A | BY280: N/A | BZ280: N/A | CA280: N/A | CB280: N/A | CC280: N/A | CD280: N/A | CE280: N/A
BB281: Did not eat with others | BC281: N/A | BD281: N/A | BE281: N/A | BF281: N/A | BG281: N/A | BH281: N/A | BI281: N/A | BJ281: N/A | BK281: N/A | BL281: N/A | BM281: N/A | BN281: N/A | BO281: N/A | BP281: N/A | BQ281: N/A | BR281: N/A | BS281: N/A | BT281: N/A | BU281: N/A | BV281: N/A | BW281: N/A | BX281: N/A | BY281: N/A | BZ281: N/A | CA281: N/A | CB281: N/A | CC281: N/A | CD281: N/A | CE281: N/A
BB282: Did not bathe in regular place | BC282: N/A | BD282: N/A | BE282: N/A | BF282: N/A | BG282: N/A | BH282: N/A | BI282: N/A | BJ282: N/A | BK282: N/A | BL282: N/A | BM282: N/A | BN282: N/A | BO282: N/A | BP282: N/A | BQ282: N/A | BR282: N/A | BS282: N/A | BT282: N/A | BU282: N/A | BV282: N/A | BW282: N/A | BX282: N/A | BY282: N/A | BZ282: N/A | CA282: N/A | CB282: N/A | CC282: N/A | CD282: N/A | CE282: N/A
BB283: Did not participate in other activities | BC283: N/A | BD283: N/A | BE283: N/A | BF283: N/A | BG283: N/A | BH283: N/A | BI283: N/A | BJ283: N/A | BK283: N/A | BL283: N/A | BM283: N/A | BN283: N/A | BO283: N/A | BP283: N/A | BQ283: N/A | BR283: N/A | BS283: N/A | BT283: N/A | BU283: N/A | BV283: N/A | BW283: N/A | BX283: N/A | BY283: N/A | BZ283: N/A | CA283: N/A | CB283: N/A | CC283: N/A | CD283: N/A | CE283: N/A
BB284: DK/not sure/missing/no such activity | BC284: N/A | BD284: N/A | BE284: N/A | BF284: N/A | BG284: N/A | BH284: N/A | BI284: N/A | BJ284: N/A | BK284: N/A | BL284: N/A | BM284: N/A | BN284: N/A | BO284: N/A | BP284: N/A | BQ284: N/A | BR284: N/A | BS284: N/A | BT284: N/A | BU284: N/A | BV284: N/A | BW284: N/A | BX284: N/A | BY284: N/A | BZ284: N/A | CA284: N/A | CB284: N/A | CC284: N/A | CD284: N/A | CE284: N/A
BA339: Raw numbers of respondents: | BB339: Basic water, sanitation and hygiene | BC339: NATIONAL wealth index quintile | BH339: URBAN wealth index quintile | BM339: RURAL wealth index quintile | BR339: SUB-REGIONS:
BA340: WatSan data, raw numbers (weighted) | BC340: Poorest | BD340: Poor | BE340: Middle | BF340: Rich | BG340: Richest | BH340: Poorest | BI340: Poor | BJ340: Middle | BK340: Rich | BL340: Richest | BM340: Poorest | BN340: Poor | BO340: Middle | BP340: Rich | BQ340: Richest | BR340: boucle de mouhoun | BS340: cascades | BT340: centre (sans ouagadougou) | BU340: centre-est | BV340: centre-nord | BW340: centre-ouest | BX340: centre-sud | BY340: est | BZ340: hauts bassins | CA340: nord | CB340: ouagadougou | CC340: plateau central | CD340: sahel | CE340: sud-ouest
BA341: Use of Basic Water Sanitation and Hygiene | BB341: Yes | BC341: N/A | BD341: N/A | BE341: N/A | BF341: N/A | BG341: N/A | BH341: N/A | BI341: N/A | BJ341: N/A | BK341: N/A | BL341: N/A | BM341: N/A | BN341: N/A | BO341: N/A | BP341: N/A | BQ341: N/A | BR341: N/A | BS341: N/A | BT341: N/A | BU341: N/A | BV341: N/A | BW341: N/A | BX341: N/A | BY341: N/A | BZ341: N/A | CA341: N/A | CB341: N/A | CC341: N/A | CD341: N/A | CE341: N/A
BB342: No | BC342: N/A | BD342: N/A | BE342: N/A | BF342: N/A | BG342: N/A | BH342: N/A | BI342: N/A | BJ342: N/A | BK342: N/A | BL342: N/A | BM342: N/A | BN342: N/A | BO342: N/A | BP342: N/A | BQ342: N/A | BR342: N/A | BS342: N/A | BT342: N/A | BU342: N/A | BV342: N/A | BW342: N/A | BX342: N/A | BY342: N/A | BZ342: N/A | CA342: N/A | CB342: N/A | CC342: N/A | CD342: N/A | CE342: N/A
BA343: Use of Basic Water and Sanitation | BB343: Yes | BC343: N/A | BD343: N/A | BE343: N/A | BF343: N/A | BG343: N/A | BH343: N/A | BI343: N/A | BJ343: N/A | BK343: N/A | BL343: N/A | BM343: N/A | BN343: N/A | BO343: N/A | BP343: N/A | BQ343: N/A | BR343: N/A | BS343: N/A | BT343: N/A | BU343: N/A | BV343: N/A | BW343: N/A | BX343: N/A | BY343: N/A | BZ343: N/A | CA343: N/A | CB343: N/A | CC343: N/A | CD343: N/A | CE343: N/A
BB344: No | BC344: N/A | BD344: N/A | BE344: N/A | BF344: N/A | BG344: N/A | BH344: N/A | BI344: N/A | BJ344: N/A | BK344: N/A | BL344: N/A | BM344: N/A | BN344: N/A | BO344: N/A | BP344: N/A | BQ344: N/A | BR344: N/A | BS344: N/A | BT344: N/A | BU344: N/A | BV344: N/A | BW344: N/A | BX344: N/A | BY344: N/A | BZ344: N/A | CA344: N/A | CB344: N/A | CC344: N/A | CD344: N/A | CE344: N/A
BA345: Use of Basic Water and Hygiene | BB345: Yes | BC345: N/A | BD345: N/A | BE345: N/A | BF345: N/A | BG345: N/A | BH345: N/A | BI345: N/A | BJ345: N/A | BK345: N/A | BL345: N/A | BM345: N/A | BN345: N/A | BO345: N/A | BP345: N/A | BQ345: N/A | BR345: N/A | BS345: N/A | BT345: N/A | BU345: N/A | BV345: N/A | BW345: N/A | BX345: N/A | BY345: N/A | BZ345: N/A | CA345: N/A | CB345: N/A | CC345: N/A | CD345: N/A | CE345: N/A
BB346: No | BC346: N/A | BD346: N/A | BE346: N/A | BF346: N/A | BG346: N/A | BH346: N/A | BI346: N/A | BJ346: N/A | BK346: N/A | BL346: N/A | BM346: N/A | BN346: N/A | BO346: N/A | BP346: N/A | BQ346: N/A | BR346: N/A | BS346: N/A | BT346: N/A | BU346: N/A | BV346: N/A | BW346: N/A | BX346: N/A | BY346: N/A | BZ346: N/A | CA346: N/A | CB346: N/A | CC346: N/A | CD346: N/A | CE346: N/A
BA347: Use of Basic Sanitation and Hygiene | BB347: Yes | BC347: N/A | BD347: N/A | BE347: N/A | BF347: N/A | BG347: N/A | BH347: N/A | BI347: N/A | BJ347: N/A | BK347: N/A | BL347: N/A | BM347: N/A | BN347: N/A | BO347: N/A | BP347: N/A | BQ347: N/A | BR347: N/A | BS347: N/A | BT347: N/A | BU347: N/A | BV347: N/A | BW347: N/A | BX347: N/A | BY347: N/A | BZ347: N/A | CA347: N/A | CB347: N/A | CC347: N/A | CD347: N/A | CE347: N/A
BB348: No | BC348: N/A | BD348: N/A | BE348: N/A | BF348: N/A | BG348: N/A | BH348: N/A | BI348: N/A | BJ348: N/A | BK348: N/A | BL348: N/A | BM348: N/A | BN348: N/A | BO348: N/A | BP348: N/A | BQ348: N/A | BR348: N/A | BS348: N/A | BT348: N/A | BU348: N/A | BV348: N/A | BW348: N/A | BX348: N/A | BY348: N/A | BZ348: N/A | CA348: N/A | CB348: N/A | CC348: N/A | CD348: N/A | CE348: N/A
BA349: Use of Basic Water | BB349: Yes | BC349: N/A | BD349: N/A | BE349: N/A | BF349: N/A | BG349: N/A | BH349: N/A | BI349: N/A | BJ349: N/A | BK349: N/A | BL349: N/A | BM349: N/A | BN349: N/A | BO349: N/A | BP349: N/A | BQ349: N/A | BR349: N/A | BS349: N/A | BT349: N/A | BU349: N/A | BV349: N/A | BW349: N/A | BX349: N/A | BY349: N/A | BZ349: N/A | CA349: N/A | CB349: N/A | CC349: N/A | CD349: N/A | CE349: N/A
BB350: No | BC350: N/A | BD350: N/A | BE350: N/A | BF350: N/A | BG350: N/A | BH350: N/A | BI350: N/A | BJ350: N/A | BK350: N/A | BL350: N/A | BM350: N/A | BN350: N/A | BO350: N/A | BP350: N/A | BQ350: N/A | BR350: N/A | BS350: N/A | BT350: N/A | BU350: N/A | BV350: N/A | BW350: N/A | BX350: N/A | BY350: N/A | BZ350: N/A | CA350: N/A | CB350: N/A | CC350: N/A | CD350: N/A | CE350: N/A
BA351: Use of Basic Sanitation | BB351: Yes | BC351: N/A | BD351: N/A | BE351: N/A | BF351: N/A | BG351: N/A | BH351: N/A | BI351: N/A | BJ351: N/A | BK351: N/A | BL351: N/A | BM351: N/A | BN351: N/A | BO351: N/A | BP351: N/A | BQ351: N/A | BR351: N/A | BS351: N/A | BT351: N/A | BU351: N/A | BV351: N/A | BW351: N/A | BX351: N/A | BY351: N/A | BZ351: N/A | CA351: N/A | CB351: N/A | CC351: N/A | CD351: N/A | CE351: N/A
BB352: No | BC352: N/A | BD352: N/A | BE352: N/A | BF352: N/A | BG352: N/A | BH352: N/A | BI352: N/A | BJ352: N/A | BK352: N/A | BL352: N/A | BM352: N/A | BN352: N/A | BO352: N/A | BP352: N/A | BQ352: N/A | BR352: N/A | BS352: N/A | BT352: N/A | BU352: N/A | BV352: N/A | BW352: N/A | BX352: N/A | BY352: N/A | BZ352: N/A | CA352: N/A | CB352: N/A | CC352: N/A | CD352: N/A | CE352: N/A
BA353: Access to Basic Hygiene | BB353: Yes | BC353: N/A | BD353: N/A | BE353: N/A | BF353: N/A | BG353: N/A | BH353: N/A | BI353: N/A | BJ353: N/A | BK353: N/A | BL353: N/A | BM353: N/A | BN353: N/A | BO353: N/A | BP353: N/A | BQ353: N/A | BR353: N/A | BS353: N/A | BT353: N/A | BU353: N/A | BV353: N/A | BW353: N/A | BX353: N/A | BY353: N/A | BZ353: N/A | CA353: N/A | CB353: N/A | CC353: N/A | CD353: N/A | CE353: N/A
BB354: No | BC354: N/A | BD354: N/A | BE354: N/A | BF354: N/A | BG354: N/A | BH354: N/A | BI354: N/A | BJ354: N/A | BK354: N/A | BL354: N/A | BM354: N/A | BN354: N/A | BO354: N/A | BP354: N/A | BQ354: N/A | BR354: N/A | BS354: N/A | BT354: N/A | BU354: N/A | BV354: N/A | BW354: N/A | BX354: N/A | BY354: N/A | BZ354: N/A | CA354: N/A | CB354: N/A | CC354: N/A | CD354: N/A | CE354: N/A
C399: INITIAL (national) Wealth Index | H399: URBAN Wealth Index | M399: RURAL Wealth Index
C400: Component Matrix | H400: Component Matrix | M400: Component Matrix
E401: Component | J401: Component | O401: Component
B402: Note: The INITIAL (national) Wealth Index is based on the first component of the Principal Component Analysis (PCA) which has been obtained at national level. The final national-level (NATIONAL) Wealth Index is based on the URBAN and RURAL specific wealth indexes. Regression procedures are used to establish the relationships between the two sets of scores (urban and rural) and the initial (national) wealth factors. This allows best use of the available information for each area and a better precision of the FINAL (NATIONAL) Wealth Index. For dependency reasons, all WASH variables (contained in the generic MICS and DHS scripts) have been excluded from the sets of asset variables used in the PCAs. The PCA can extracts as many components as there are asset variables in the input. Only the first of the components is used to represent the Wealth Index. The scores represent the weights of the asset variables on the Wealth Index (correlations between the variables and the component). The communalities are the proportion of each variable's variance that can be explained by the component. Proportion of explained variance is the part of the model's total variance that is explained by the component. For more information on the procedure used: The DHS Wealth Index, DHS Comparative Reports No. 6, Shea Oscar Rutstein, Kiersten Johnson, ORC Macro International Inc., 2004. The DHS Wealth Index: Approaches for Rural and Urban Areas, Shea O. Rutstein, ORC Macro International Inc., 2008. MICS Methodological Paper No. 4, Review of options for reporting water, sanitation and hygiene coverage by wealth quintile, UNICEF, 2016. | E402: 1 | J402: 1 | O402: 1
C403: if household has electric | E403: 0.8040643471 | H403: if household has tv | J403: 0.7663124269 | M403: if floor is of raw natural materials | O403: -0.7491569917
C404: if household has tv | E404: 0.7754809629 | H404: if household has electric | J404: 0.7544356918 | M404: if floor is of cement | O404: 0.7463874464
C405: if household has fridge | E405: 0.6814789535 | H405: if household has fridge | J405: 0.6983902223 | M405: if household has motorcycle or scooter | O405: 0.5133557908
C406: if floor is of raw natural materials | E406: -0.6465123329 | H406: if household has phone | J406: 0.6152616014 | M406: if household has tv | O406: 0.4807743756
C407: if uses wood/straw, dung (13c) or other (6c) for cooking fuel | E407: -0.6034218022 | H407: if household has motorcycle or scooter | J407: 0.602508195 | M407: if household has radio | O407: 0.3803766198
C408: if household has phone | E408: 0.6009013599 | H408: if household has car or truck | J408: 0.5511735213 | M408: if household has electric | O408: 0.3511247498
C409: if household has motorcycle or scooter | E409: 0.5703064877 | H409: if has some kind of applied flooring (parq,vinyl,tile,carpet) | J409: 0.4872650152 | M409: if uses wood/straw, dung (13c) or other (6c) for cooking fuel | O409: -0.3467066551
C410: if floor is of cement | E410: 0.5381757133 | H410: if uses natural gas, biogas (8c), or electric (2c) for cooking | J410: 0.481579909 | M410: household owns donkey cart | O410: 0.3381413376
C411: if uses natural gas, biogas (8c), or electric (2c) for cooking | E411: 0.5289216681 | H411: if uses wood/straw, dung (13c) or other (6c) for cooking fuel | J411: -0.4077546941 | M411: if household has phone | O411: 0.3028026567
C412: if household has car or truck | E412: 0.513174738 | H412: if household has radio | J412: 0.3815807316 | M412: if uses natural gas, biogas (8c), or electric (2c) for cooking | O412: 0.2946094403
C413: if has some kind of applied flooring (parq,vinyl,tile,carpet) | E413: 0.4310038761 | H413: if floor is of raw natural materials | J413: -0.3741985721 | M413: if household has car or truck | O413: 0.2925076533
C414: if household has radio | E414: 0.346963563 | H414: have bednet for sleeping | J414: 0.3609077201 | M414: if household has fridge | O414: 0.2696100285
C415: if uses charcoal, lignite/coal (20c) or kero (19c) for cooking | E415: 0.3437318708 | H415: if uses charcoal, lignite/coal (20c) or kero (19c) for cooking | J415: 0.145622799 | M415: if uses charcoal, lignite/coal (20c) or kero (19c) for cooking | O415: 0.2475474407
... 96 more rows

Sheet MICS06
A2: =A1026 -> Burkina Faso
A3: =A1034 -> 2006
A4: Use of drinking water sources
A5: by wealth quintile and sub-national region
A6: Notes:
A7: WHO/UNICEF JMP customised wealth index excludes water,
A8: sanitation and hygiene assets.
A9: Survey used for analysis: | B9: =A1025 -> MICS06
A10: =B1028 -> 
A11: =B1027 -> 
A14: Use of drinking water sources | C14: NATIONAL wealth index quintile | H14: URBAN wealth index quintile | M14: RURAL wealth index quintile | R14: SUB-REGIONS: | BA14: Raw numbers of respondents: | BB14: Use of drinking water sources | BC14: NATIONAL wealth index quintile | BH14: URBAN wealth index quintile | BM14: RURAL wealth index quintile | BR14: SUB-REGIONS:
A15: Weighted percentage (used in graphs) | C15: Poorest | D15: Poor | E15: Middle | F15: Rich | G15: Richest | H15: Poorest | I15: Poor | J15: Middle | K15: Rich | L15: Richest | M15: Poorest | N15: Poor | O15: Middle | P15: Rich | Q15: Richest | R15: Boucle du Mouhoun | S15: Cascade | T15: Centre | U15: Centre-Est | V15: Centre-Nord | W15: Centre-Ouest | X15: Centre-Sud | Y15: Est | Z15: Hauts-Bassins | AA15: Nord | AB15: Plateau-Central | AC15: Sahel | AD15: Sud-Ouest | BA15: Water data, raw numbers (weighted) | BC15: Poorest | BD15: Poor | BE15: Middle | BF15: Rich | BG15: Richest | BH15: Poorest | BI15: Poor | BJ15: Middle | BK15: Rich | BL15: Richest | BM15: Poorest | BN15: Poor | BO15: Middle | BP15: Rich | BQ15: Richest | BR15: Boucle du Mouhoun | BS15: Cascade | BT15: Centre | BU15: Centre-Est | BV15: Centre-Nord | BW15: Centre-Ouest | BX15: Centre-Sud | BY15: Est | BZ15: Hauts-Bassins | CA15: Nord | CB15: Plateau-Central | CC15: Sahel | CD15: Sud-Ouest
A16: Water | B16: Improved | C16: 66.7779256 | D16: 70.53235745 | E16: 72.64838482 | F16: 82.90756576 | G16: 97.66480224 | H16: 93.96941974 | I16: 95.49487381 | J16: 99.62540361 | K16: 100 | L16: 100 | M16: 65.67043061 | N16: 70.62295448 | O16: 67.41896069 | P16: 75.10573497 | Q16: 79.97969449 | R16: 76.43227728 | S16: 76.63723289 | T16: 86.50268154 | U16: 81.27221869 | V16: 88.56025666 | W16: 86.67947101 | X16: 83.81771847 | Y16: 77.59084938 | Z16: 83.60895181 | AA16: 64.06559074 | AB16: 90.5759751 | AC16: 69.0161427 | AD16: 58.87413927 | BA16: Water | BB16: Improved | BC16: N/A | BD16: N/A | BE16: N/A | BF16: N/A | BG16: N/A | BH16: N/A | BI16: N/A | BJ16: N/A | BK16: N/A | BL16: N/A | BM16: N/A | BN16: N/A | BO16: N/A | BP16: N/A | BQ16: N/A | BR16: N/A | BS16: N/A | BT16: N/A | BU16: N/A | BV16: N/A | BW16: N/A | BX16: N/A | BY16: N/A | BZ16: N/A | CA16: N/A | CB16: N/A | CC16: N/A | CD16: N/A
B17: Not Improved | C17: 33.2220744 | D17: 29.46764255 | E17: 27.35161518 | F17: 17.09243424 | G17: 2.33519776 | H17: 6.030580259 | I17: 4.505126192 | J17: 0.3745963887 | K17: 0 | L17: 0 | M17: 34.32956939 | N17: 29.37704552 | O17: 32.58103931 | P17: 24.89426503 | Q17: 20.02030551 | R17: 23.56772272 | S17: 23.36276711 | T17: 13.49731846 | U17: 18.72778131 | V17: 11.43974334 | W17: 13.32052899 | X17: 16.18228153 | Y17: 22.40915062 | Z17: 16.39104819 | AA17: 35.93440926 | AB17: 9.424024897 | AC17: 30.9838573 | AD17: 41.12586073 | BB17: Not Improved | BC17: N/A | BD17: N/A | BE17: N/A | BF17: N/A | BG17: N/A | BH17: N/A | BI17: N/A | BJ17: N/A | BK17: N/A | BL17: N/A | BM17: N/A | BN17: N/A | BO17: N/A | BP17: N/A | BQ17: N/A | BR17: N/A | BS17: N/A | BT17: N/A | BU17: N/A | BV17: N/A | BW17: N/A | BX17: N/A | BY17: N/A | BZ17: N/A | CA17: N/A | CB17: N/A | CC17: N/A | CD17: N/A
A18: Water ladder | B18: Basic | C18: =C16*C23/100 -> 43.99076912 | D18: =D16*D23/100 -> 49.96932325 | E18: =E16*E23/100 -> 46.3461544 | F18: 56.74634667 | G18: 82.54119476 | H18: 67.38325373 | I18: 77.89510259 | J18: 86.66265122 | K18: 80.33913981 | L18: 92.85470397 | M18: 42.81555122 | N18: 49.83750474 | O18: 44.00929488 | P18: 49.02695408 | Q18: 53.478074 | R18: 61.3672438 | S18: 55.22503088 | T18: 64.40909239 | U18: 60.65066916 | V18: 66.5393802 | W18: 55.91140474 | X18: 50.06874278 | Y18: 64.23891401 | Z18: 72.12868681 | AA18: 41.52298399 | AB18: 47.04499917 | AC18: 51.56570888 | AD18: 41.24458203 | BA18: Water ladder | BB18: Basic | BC18: N/A | BD18: N/A | BE18: N/A | BF18: N/A | BG18: N/A | BH18: N/A | BI18: N/A | BJ18: N/A | BK18: N/A | BL18: N/A | BM18: N/A | BN18: N/A | BO18: N/A | BP18: N/A | BQ18: N/A | BR18: N/A | BS18: N/A | BT18: N/A | BU18: N/A | BV18: N/A | BW18: N/A | BX18: N/A | BY18: N/A | BZ18: N/A | CA18: N/A | CB18: N/A | CC18: N/A | CD18: N/A
B19: Limited | C19: =C16*C22/100 -> 22.78715648 | D19: =D16*D22/100 -> 20.5630342 | E19: =E16*E22/100 -> 26.30223042 | F19: 26.1612191 | G19: 15.12360748 | H19: 26.58616601 | I19: 17.59977121 | J19: 12.96275239 | K19: 19.66086019 | L19: 7.145296034 | M19: 22.85487939 | N19: 20.78544975 | O19: 23.40966581 | P19: 26.07878089 | Q19: 26.50162049 | R19: 15.06503349 | S19: 21.41220201 | T19: 22.09358915 | U19: 20.62154953 | V19: 22.02087645 | W19: 30.76806627 | X19: 33.74897568 | Y19: 13.35193537 | Z19: 11.48026501 | AA19: 22.54260675 | AB19: 43.53097593 | AC19: 17.45043382 | AD19: 17.62955724 | BB19: Limited | BC19: N/A | BD19: N/A | BE19: N/A | BF19: N/A | BG19: N/A | BH19: N/A | BI19: N/A | BJ19: N/A | BK19: N/A | BL19: N/A | BM19: N/A | BN19: N/A | BO19: N/A | BP19: N/A | BQ19: N/A | BR19: N/A | BS19: N/A | BT19: N/A | BU19: N/A | BV19: N/A | BW19: N/A | BX19: N/A | BY19: N/A | BZ19: N/A | CA19: N/A | CB19: N/A | CC19: N/A | CD19: N/A
B20: Unimproved | C20: =100-C18-C19-C21 -> 26.66869247 | D20: =100-D18-D19-D21 -> 23.4473991 | E20: =100-E18-E19-E21 -> 25.93549267 | F20: 16.23013065 | G20: 2.33519776 | H20: 6.030580259 | I20: 4.505126192 | J20: 0.3745963887 | K20: -1.065814104e-14 | L20: -1.953992523e-14 | M20: 27.3608099 | N20: 23.61340753 | O20: 28.03655934 | P20: 23.63305496 | Q20: 18.93059606 | R20: 23.56772272 | S20: 11.01749501 | T20: 13.49731846 | U20: 17.10290356 | V20: 11.43974334 | W20: 13.32052899 | X20: 15.91702745 | Y20: 20.60435334 | Z20: 15.34051785 | AA20: 35.93440926 | AB20: 8.785355471 | AC20: 29.11477522 | AD20: 21.47824684 | BB20: Unimproved | BC20: N/A | BD20: N/A | BE20: N/A | BF20: N/A | BG20: N/A | BH20: N/A | BI20: N/A | BJ20: N/A | BK20: N/A | BL20: N/A | BM20: N/A | BN20: N/A | BO20: N/A | BP20: N/A | BQ20: N/A | BR20: N/A | BS20: N/A | BT20: N/A | BU20: N/A | BV20: N/A | BW20: N/A | BX20: N/A | BY20: N/A | BZ20: N/A | CA20: N/A | CB20: N/A | CC20: N/A | CD20: N/A
B21: Surface water | C21: 6.553381926 | D21: 6.020243445 | E21: 1.416122507 | F21: 0.8623035882 | G21: 0 | H21: 0 | I21: 0 | J21: 0 | K21: 0 | L21: 0 | M21: 6.968759493 | N21: 5.76363799 | O21: 4.544479977 | P21: 1.261210076 | Q21: 1.089709452 | R21: 0 | S21: 12.3452721 | T21: 0 | U21: 1.624877757 | V21: 0 | W21: 0 | X21: 0.2652540795 | Y21: 1.804797273 | Z21: 1.050530334 | AA21: 0 | AB21: 0.6386694262 | AC21: 1.869082083 | AD21: 19.6476139 | BB21: Surface water | BC21: N/A | BD21: N/A | BE21: N/A | BF21: N/A | BG21: N/A | BH21: N/A | BI21: N/A | BJ21: N/A | BK21: N/A | BL21: N/A | BM21: N/A | BN21: N/A | BO21: N/A | BP21: N/A | BQ21: N/A | BR21: N/A | BS21: N/A | BT21: N/A | BU21: N/A | BV21: N/A | BW21: N/A | BX21: N/A | BY21: N/A | BZ21: N/A | CA21: N/A | CB21: N/A | CC21: N/A | CD21: N/A
A22: Improved water point at more than 30 minutes | B22: Yes | C22: 34.12378609 | D22: 29.15404354 | E22: 36.20483853 | F22: 31.55468244 | G22: 15.48521794 | H22: 28.29235945 | I22: 18.43006908 | J22: 13.01149297 | K22: 19.66086019 | L22: 7.145296034 | M22: 34.80239002 | N22: 29.43157773 | O22: 34.72267382 | P22: 34.72275573 | Q22: 33.13543601 | R22: 19.71030306 | S22: 27.93968571 | T22: 25.54092978 | U22: 25.37343001 | V22: 24.86541625 | W22: 35.49637061 | X22: 40.2647272 | Y22: 17.20813147 | Z22: 13.73090412 | AA22: 35.1867617 | AB22: 48.06017919 | AC22: 25.28456842 | AD22: 29.94448404 | BA22: Improved water point at more than 30 minutes | BB22: Yes | BC22: N/A | BD22: N/A | BE22: N/A | BF22: N/A | BG22: N/A | BH22: N/A | BI22: N/A | BJ22: N/A | BK22: N/A | BL22: N/A | BM22: N/A | BN22: N/A | BO22: N/A | BP22: N/A | BQ22: N/A | BR22: N/A | BS22: N/A | BT22: N/A | BU22: N/A | BV22: N/A | BW22: N/A | BX22: N/A | BY22: N/A | BZ22: N/A | CA22: N/A | CB22: N/A | CC22: N/A | CD22: N/A
B23: No | C23: 65.87621391 | D23: 70.84595646 | E23: 63.79516147 | F23: 68.44531756 | G23: 84.51478206 | H23: 71.70764055 | I23: 81.56993092 | J23: 86.98850703 | K23: 80.33913981 | L23: 92.85470397 | M23: 65.19760998 | N23: 70.56842227 | O23: 65.27732618 | P23: 65.27724427 | Q23: 66.86456399 | R23: 80.28969694 | S23: 72.06031429 | T23: 74.45907022 | U23: 74.62656999 | V23: 75.13458375 | W23: 64.50362939 | X23: 59.7352728 | Y23: 82.79186853 | Z23: 86.26909588 | AA23: 64.8132383 | AB23: 51.93982081 | AC23: 74.71543158 | AD23: 70.05551596 | BB23: No | BC23: N/A | BD23: N/A | BE23: N/A | BF23: N/A | BG23: N/A | BH23: N/A | BI23: N/A | BJ23: N/A | BK23: N/A | BL23: N/A | BM23: N/A | BN23: N/A | BO23: N/A | BP23: N/A | BQ23: N/A | BR23: N/A | BS23: N/A | BT23: N/A | BU23: N/A | BV23: N/A | BW23: N/A | BX23: N/A | BY23: N/A | BZ23: N/A | CA23: N/A | CB23: N/A | CC23: N/A | CD23: N/A
A24: Manually calculated ratios | B24: Improved wells
B25: Improved springs | C25: =C64/(C64+C65)*100 -> 15.14921646 | D25: =D64/(D64+D65)*100 -> 25.99642908 | E25: =E64/(E64+E65)*100 -> 0 | F25: =F64/(F64+F65)*100 -> 0 | G25: =G64/(G64+G65)*100 -> 0 | H25: 0 | I25: 0 | J25: 0 | K25: 0 | L25: 0 | M25: =M64/(M64+M65)*100 -> 24.58868291 | N25: 34.18246157 | O25: 0 | P25: 0 | Q25: 0 | R25: 35.72612654 | S25: 5.347548694 | T25: 0 | U25: 0 | V25: 0 | W25: 0 | X25: =X64/(X64+X65)*100 -> 0 | Y25: =Y64/(Y64+Y65)*100 -> 0 | Z25: =Z64/(Z64+Z65)*100 -> 35.29411765 | AA25: =AA64/(AA64+AA65)*100 -> 0 | AB25: 0 | AC25: 0 | AD25: =AD64/(AD64+AD65)*100 -> 0
B26: Other
C27: NATIONAL wealth index quintile | H27: URBAN wealth index quintile | M27: RURAL wealth index quintile | R27: SUB-REGIONS: | BA27: Raw numbers of respondents: | BB27: Use of drinking water sources | BC27: NATIONAL wealth index quintile | BH27: URBAN wealth index quintile | BM27: RURAL wealth index quintile | BR27: SUB-REGIONS:
A28: Percentage based on weighted population | C28: Poorest | D28: Poor | E28: Middle | F28: Rich | G28: Richest | H28: Poorest | I28: Poor | J28: Middle | K28: Rich | L28: Richest | M28: Poorest | N28: Poor | O28: Middle | P28: Rich | Q28: Richest | R28: Boucle du Mouhoun | S28: Cascade | T28: Centre | U28: Centre-Est | V28: Centre-Nord | W28: Centre-Ouest | X28: Centre-Sud | Y28: Est | Z28: Hauts-Bassins | AA28: Nord | AB28: Plateau-Central | AC28: Sahel | AD28: Sud-Ouest | BA28: Water data, raw numbers (weighted) | BC28: Poorest | BD28: Poor | BE28: Middle | BF28: Rich | BG28: Richest | BH28: Poorest | BI28: Poor | BJ28: Middle | BK28: Rich | BL28: Richest | BM28: Poorest | BN28: Poor | BO28: Middle | BP28: Rich | BQ28: Richest | BR28: Boucle du Mouhoun | BS28: Cascade | BT28: Centre | BU28: Centre-Est | BV28: Centre-Nord | BW28: Centre-Ouest | BX28: Centre-Sud | BY28: Est | BZ28: Hauts-Bassins | CA28: Nord | CB28: Plateau-Central | CC28: Sahel | CD28: Sud-Ouest
A29: Piped water | B29: Yes | C29: 5.198118951 | D29: 6.020456834 | E29: 12.46954353 | F29: 28.48961734 | G29: 84.18496624 | H29: 74.36838206 | I29: 85.61714502 | J29: 89.41401278 | K29: 92.54726581 | L29: 95.33324061 | M29: 5.195149879 | N29: 5.265562142 | O29: 5.963161423 | P29: 6.370539896 | Q29: 16.69006169 | R29: 31.13439108 | S29: 50.06354698 | T29: 49.66910878 | U29: 17.19264371 | V29: 3.636398827 | W29: 37.49472843 | X29: 10.34316704 | Y29: 1.140076999 | Z29: 68.54390219 | AA29: 36.49382906 | AB29: 2.111244884 | AC29: 5.865701862 | AD29: 15.29427835 | BA29: Piped water | BB29: Yes | BC29: N/A | BD29: N/A | BE29: N/A | BF29: N/A | BG29: N/A | BH29: N/A | BI29: N/A | BJ29: N/A | BK29: N/A | BL29: N/A | BM29: N/A | BN29: N/A | BO29: N/A | BP29: N/A | BQ29: N/A | BR29: N/A | BS29: N/A | BT29: N/A | BU29: N/A | BV29: N/A | BW29: N/A | BX29: N/A | BY29: N/A | BZ29: N/A | CA29: N/A | CB29: N/A | CC29: N/A | CD29: N/A
B30: No | C30: 94.80188105 | D30: 93.97954317 | E30: 87.53045647 | F30: 71.51038266 | G30: 15.81503376 | H30: 25.63161794 | I30: 14.38285498 | J30: 10.58598722 | K30: 7.452734192 | L30: 4.666759395 | M30: 94.80485012 | N30: 94.73443786 | O30: 94.03683858 | P30: 93.6294601 | Q30: 83.30993831 | R30: 68.86560892 | S30: 49.93645302 | T30: 50.33089122 | U30: 82.80735629 | V30: 96.36360117 | W30: 62.50527157 | X30: 89.65683296 | Y30: 98.859923 | Z30: 31.45609781 | AA30: 63.50617094 | AB30: 97.88875512 | AC30: 94.13429814 | AD30: 84.70572165 | BB30: No | BC30: N/A | BD30: N/A | BE30: N/A | BF30: N/A | BG30: N/A | BH30: N/A | BI30: N/A | BJ30: N/A | BK30: N/A | BL30: N/A | BM30: N/A | BN30: N/A | BO30: N/A | BP30: N/A | BQ30: N/A | BR30: N/A | BS30: N/A | BT30: N/A | BU30: N/A | BV30: N/A | BW30: N/A | BX30: N/A | BY30: N/A | BZ30: N/A | CA30: N/A | CB30: N/A | CC30: N/A | CD30: N/A
A31: Piped water on premises | B31: Yes | C31: 0 | D31: 0 | E31: 0 | F31: 1.629050879 | G31: 26.94941036 | H31: 2.623134638 | I31: 17.21486517 | J31: 16.70179735 | K31: 16.09978683 | L31: 63.14206262 | M31: 0 | N31: 0 | O31: 0 | P31: 0 | Q31: 0.5135215627 | R31: 0 | S31: 5.313356998 | T31: 22.8728876 | U31: 0 | V31: 0 | W31: 6.850690162 | X31: 0.1489784201 | Y31: 0 | Z31: 29.05236602 | AA31: 6.521083715 | AB31: 0 | AC31: 0 | AD31: 0 | BA31: Piped water on premises | BB31: Yes | BC31: N/A | BD31: N/A | BE31: N/A | BF31: N/A | BG31: N/A | BH31: N/A | BI31: N/A | BJ31: N/A | BK31: N/A | BL31: N/A | BM31: N/A | BN31: N/A | BO31: N/A | BP31: N/A | BQ31: N/A | BR31: N/A | BS31: N/A | BT31: N/A | BU31: N/A | BV31: N/A | BW31: N/A | BX31: N/A | BY31: N/A | BZ31: N/A | CA31: N/A | CB31: N/A | CC31: N/A | CD31: N/A
B32: No | C32: 100 | D32: 100 | E32: 100 | F32: 98.37094912 | G32: 73.05058964 | H32: 97.37686536 | I32: 82.78513483 | J32: 83.29820265 | K32: 83.90021317 | L32: 36.85793738 | M32: 100 | N32: 100 | O32: 100 | P32: 100 | Q32: 99.48647844 | R32: 100 | S32: 94.686643 | T32: 77.1271124 | U32: 100 | V32: 100 | W32: 93.14930984 | X32: 99.85102158 | Y32: 100 | Z32: 70.94763398 | AA32: 93.47891629 | AB32: 100 | AC32: 100 | AD32: 100 | BB32: No | BC32: N/A | BD32: N/A | BE32: N/A | BF32: N/A | BG32: N/A | BH32: N/A | BI32: N/A | BJ32: N/A | BK32: N/A | BL32: N/A | BM32: N/A | BN32: N/A | BO32: N/A | BP32: N/A | BQ32: N/A | BR32: N/A | BS32: N/A | BT32: N/A | BU32: N/A | BV32: N/A | BW32: N/A | BX32: N/A | BY32: N/A | BZ32: N/A | CA32: N/A | CB32: N/A | CC32: N/A | CD32: N/A
A33: Piped water into dwelling | B33: Yes | C33: N/A | D33: N/A | E33: N/A | F33: N/A | G33: N/A | H33: N/A | I33: N/A | J33: N/A | K33: N/A | L33: N/A | M33: N/A | N33: N/A | O33: N/A | P33: N/A | Q33: N/A | R33: N/A | S33: N/A | T33: N/A | U33: N/A | V33: N/A | W33: N/A | X33: N/A | Y33: N/A | Z33: N/A | AA33: N/A | AB33: N/A | AC33: N/A | AD33: N/A | BA33: Piped water into dwelling | BB33: Yes | BC33: N/A | BD33: N/A | BE33: N/A | BF33: N/A | BG33: N/A | BH33: N/A | BI33: N/A | BJ33: N/A | BK33: N/A | BL33: N/A | BM33: N/A | BN33: N/A | BO33: N/A | BP33: N/A | BQ33: N/A | BR33: N/A | BS33: N/A | BT33: N/A | BU33: N/A | BV33: N/A | BW33: N/A | BX33: N/A | BY33: N/A | BZ33: N/A | CA33: N/A | CB33: N/A | CC33: N/A | CD33: N/A
B34: No | C34: N/A | D34: N/A | E34: N/A | F34: N/A | G34: N/A | H34: N/A | I34: N/A | J34: N/A | K34: N/A | L34: N/A | M34: N/A | N34: N/A | O34: N/A | P34: N/A | Q34: N/A | R34: N/A | S34: N/A | T34: N/A | U34: N/A | V34: N/A | W34: N/A | X34: N/A | Y34: N/A | Z34: N/A | AA34: N/A | AB34: N/A | AC34: N/A | AD34: N/A | BB34: No | BC34: N/A | BD34: N/A | BE34: N/A | BF34: N/A | BG34: N/A | BH34: N/A | BI34: N/A | BJ34: N/A | BK34: N/A | BL34: N/A | BM34: N/A | BN34: N/A | BO34: N/A | BP34: N/A | BQ34: N/A | BR34: N/A | BS34: N/A | BT34: N/A | BU34: N/A | BV34: N/A | BW34: N/A | BX34: N/A | BY34: N/A | BZ34: N/A | CA34: N/A | CB34: N/A | CC34: N/A | CD34: N/A
A35: Water source on premises | B35: Yes | C35: 1.05778908 | D35: 2.347022569 | E35: 3.384441085 | F35: 6.184669143 | G35: 35.80150085 | H35: 12.443663 | I35: 24.51302646 | J35: 24.49878414 | K35: 28.07825963 | L35: 69.86928829 | M35: 1.23704854 | N35: 1.131991163 | O35: 1.589668657 | P35: 3.486657579 | Q35: 5.724951544 | R35: 16.47599751 | S35: 12.08642531 | T35: 31.03064962 | U35: 3.006082514 | V35: 0.6554632318 | W35: 11.96110356 | X35: 1.131381076 | Y35: 0 | Z35: 35.85000884 | AA35: 6.521083715 | AB35: 1.50202376 | AC35: 0.4277507342 | AD35: 2.426108721 | BA35: Water source on premises | BB35: Yes | BC35: N/A | BD35: N/A | BE35: N/A | BF35: N/A | BG35: N/A | BH35: N/A | BI35: N/A | BJ35: N/A | BK35: N/A | BL35: N/A | BM35: N/A | BN35: N/A | BO35: N/A | BP35: N/A | BQ35: N/A | BR35: N/A | BS35: N/A | BT35: N/A | BU35: N/A | BV35: N/A | BW35: N/A | BX35: N/A | BY35: N/A | BZ35: N/A | CA35: N/A | CB35: N/A | CC35: N/A | CD35: N/A
B36: No | C36: 98.94221092 | D36: 97.65297743 | E36: 96.61555891 | F36: 93.81533086 | G36: 64.19849915 | H36: 87.556337 | I36: 75.48697354 | J36: 75.50121586 | K36: 71.92174037 | L36: 30.13071171 | M36: 98.76295146 | N36: 98.86800884 | O36: 98.41033134 | P36: 96.51334242 | Q36: 94.27504846 | R36: 83.52400249 | S36: 87.91357469 | T36: 68.96935038 | U36: 96.99391749 | V36: 99.34453677 | W36: 88.03889644 | X36: 98.86861892 | Y36: 100 | Z36: 64.14999116 | AA36: 93.47891629 | AB36: 98.49797624 | AC36: 99.57224927 | AD36: 97.57389128 | BB36: No | BC36: N/A | BD36: N/A | BE36: N/A | BF36: N/A | BG36: N/A | BH36: N/A | BI36: N/A | BJ36: N/A | BK36: N/A | BL36: N/A | BM36: N/A | BN36: N/A | BO36: N/A | BP36: N/A | BQ36: N/A | BR36: N/A | BS36: N/A | BT36: N/A | BU36: N/A | BV36: N/A | BW36: N/A | BX36: N/A | BY36: N/A | BZ36: N/A | CA36: N/A | CB36: N/A | CC36: N/A | CD36: N/A
A37: Improved Water source on premises | B37: Yes | C37: 0.5010428804 | D37: 2.180611505 | E37: 1.092982959 | F37: 3.690875362 | G37: 35.54961171 | H37: 10.16218366 | I37: 21.15029003 | J37: 24.59090077 | K37: 28.07825963 | L37: 69.86928829 | M37: 0.5895577463 | N37: 0.5912182246 | O37: 0.6638125779 | P37: 1.013014225 | Q37: 3.074487327 | R37: 7.692736183 | S37: 12.84017571 | T37: 35.49475528 | U37: 1.884647394 | V37: 0.3946189841 | W37: 11.08971828 | X37: 1.048010079 | Y37: 0 | Z37: 39.91617508 | AA37: 10.17876155 | AB37: 0.6170428318 | AC37: 0.3518927501 | AD37: 3.774138359 | BA37: Improved water source on premises | BB37: Yes | BC37: N/A | BD37: N/A | BE37: N/A | BF37: N/A | BG37: N/A | BH37: N/A | BI37: N/A | BJ37: N/A | BK37: N/A | BL37: N/A | BM37: N/A | BN37: N/A | BO37: N/A | BP37: N/A | BQ37: N/A | BR37: N/A | BS37: N/A | BT37: N/A | BU37: N/A | BV37: N/A | BW37: N/A | BX37: N/A | BY37: N/A | BZ37: N/A | CA37: N/A | CB37: N/A | CC37: N/A | CD37: N/A
B38: No | C38: 99.49895712 | D38: 97.8193885 | E38: 98.90701704 | F38: 96.30912464 | G38: 64.45038829 | H38: 89.83781634 | I38: 78.84970997 | J38: 75.40909923 | K38: 71.92174037 | L38: 30.13071171 | M38: 99.41044225 | N38: 99.40878178 | O38: 99.33618742 | P38: 98.98698578 | Q38: 96.92551267 | R38: 92.30726382 | S38: 87.15982429 | T38: 64.50524472 | U38: 98.11535261 | V38: 99.60538102 | W38: 88.91028172 | X38: 98.95198992 | Y38: 100 | Z38: 60.08382492 | AA38: 89.82123845 | AB38: 99.38295717 | AC38: 99.64810725 | AD38: 96.22586164 | BB38: No | BC38: N/A | BD38: N/A | BE38: N/A | BF38: N/A | BG38: N/A | BH38: N/A | BI38: N/A | BJ38: N/A | BK38: N/A | BL38: N/A | BM38: N/A | BN38: N/A | BO38: N/A | BP38: N/A | BQ38: N/A | BR38: N/A | BS38: N/A | BT38: N/A | BU38: N/A | BV38: N/A | BW38: N/A | BX38: N/A | BY38: N/A | BZ38: N/A | CA38: N/A | CB38: N/A | CC38: N/A | CD38: N/A
A39: Piped water on premises available when needed | B39: Yes | C39: N/A | D39: N/A | E39: N/A | F39: N/A | G39: N/A | H39: N/A | I39: N/A | J39: N/A | K39: N/A | L39: N/A | M39: N/A | N39: N/A | O39: N/A | P39: N/A | Q39: N/A | R39: N/A | S39: N/A | T39: N/A | U39: N/A | V39: N/A | W39: N/A | X39: N/A | Y39: N/A | Z39: N/A | AA39: N/A | AB39: N/A | AC39: N/A | AD39: N/A | BA39: Piped water on premises available when needed | BB39: Yes | BC39: N/A | BD39: N/A | BE39: N/A | BF39: N/A | BG39: N/A | BH39: N/A | BI39: N/A | BJ39: N/A | BK39: N/A | BL39: N/A | BM39: N/A | BN39: N/A | BO39: N/A | BP39: N/A | BQ39: N/A | BR39: N/A | BS39: N/A | BT39: N/A | BU39: N/A | BV39: N/A | BW39: N/A | BX39: N/A | BY39: N/A | BZ39: N/A | CA39: N/A | CB39: N/A | CC39: N/A | CD39: N/A
B40: No | C40: N/A | D40: N/A | E40: N/A | F40: N/A | G40: N/A | H40: N/A | I40: N/A | J40: N/A | K40: N/A | L40: N/A | M40: N/A | N40: N/A | O40: N/A | P40: N/A | Q40: N/A | R40: N/A | S40: N/A | T40: N/A | U40: N/A | V40: N/A | W40: N/A | X40: N/A | Y40: N/A | Z40: N/A | AA40: N/A | AB40: N/A | AC40: N/A | AD40: N/A | BB40: No | BC40: N/A | BD40: N/A | BE40: N/A | BF40: N/A | BG40: N/A | BH40: N/A | BI40: N/A | BJ40: N/A | BK40: N/A | BL40: N/A | BM40: N/A | BN40: N/A | BO40: N/A | BP40: N/A | BQ40: N/A | BR40: N/A | BS40: N/A | BT40: N/A | BU40: N/A | BV40: N/A | BW40: N/A | BX40: N/A | BY40: N/A | BZ40: N/A | CA40: N/A | CB40: N/A | CC40: N/A | CD40: N/A
A41: Water point at more than 30 minutes | B41: Yes | C41: 35.09242297 | D41: 31.6319509 | E41: 32.90482923 | F41: 30.28244475 | G41: 15.53593286 | H41: 29.72242828 | I41: 17.59977121 | J41: 12.96275239 | K41: 19.66086019 | L41: 7.145296034 | M41: 36.24209488 | N41: 31.79128166 | O41: 33.6366519 | P41: 31.90307757 | Q41: 30.6621842 | R41: 16.24537414 | S41: 26.47663248 | T41: 23.22149582 | U41: 24.61404109 | V41: 25.55481286 | W41: 35.64735622 | X41: 42.03474834 | Y41: 18.34553123 | Z41: 12.34040441 | AA41: 37.47137134 | AB41: 49.27171066 | AC41: 32.48938096 | AD41: 37.00343556 | BA41: Water point at more than 30 minutes | BB41: Yes | BC41: N/A | BD41: N/A | BE41: N/A | BF41: N/A | BG41: N/A | BH41: N/A | BI41: N/A | BJ41: N/A | BK41: N/A | BL41: N/A | BM41: N/A | BN41: N/A | BO41: N/A | BP41: N/A | BQ41: N/A | BR41: N/A | BS41: N/A | BT41: N/A | BU41: N/A | BV41: N/A | BW41: N/A | BX41: N/A | BY41: N/A | BZ41: N/A | CA41: N/A | CB41: N/A | CC41: N/A | CD41: N/A
B42: No | C42: 64.90757703 | D42: 68.3680491 | E42: 67.09517077 | F42: 69.71755525 | G42: 84.46406714 | H42: 70.27757172 | I42: 82.40022879 | J42: 87.03724761 | K42: 80.33913981 | L42: 92.85470397 | M42: 63.75790512 | N42: 68.20871834 | O42: 66.3633481 | P42: 68.09692243 | Q42: 69.3378158 | R42: 83.75462586 | S42: 73.52336752 | T42: 76.77850418 | U42: 75.38595891 | V42: 74.44518714 | W42: 64.35264378 | X42: 57.96525166 | Y42: 81.65446877 | Z42: 87.65959559 | AA42: 62.52862866 | AB42: 50.72828934 | AC42: 67.51061904 | AD42: 62.99656444 | BB42: No | BC42: N/A | BD42: N/A | BE42: N/A | BF42: N/A | BG42: N/A | BH42: N/A | BI42: N/A | BJ42: N/A | BK42: N/A | BL42: N/A | BM42: N/A | BN42: N/A | BO42: N/A | BP42: N/A | BQ42: N/A | BR42: N/A | BS42: N/A | BT42: N/A | BU42: N/A | BV42: N/A | BW42: N/A | BX42: N/A | BY42: N/A | BZ42: N/A | CA42: N/A | CB42: N/A | CC42: N/A | CD42: N/A
A43: Water source available when needed | B43: Yes | C43: N/A | D43: N/A | E43: N/A | F43: N/A | G43: N/A | H43: N/A | I43: N/A | J43: N/A | K43: N/A | L43: N/A | M43: N/A | N43: N/A | O43: N/A | P43: N/A | Q43: N/A | R43: N/A | S43: N/A | T43: N/A | U43: N/A | V43: N/A | W43: N/A | X43: N/A | Y43: N/A | Z43: N/A | AA43: N/A | AB43: N/A | AC43: N/A | AD43: N/A | BA43: Water source available when needed | BB43: Yes | BC43: N/A | BD43: N/A | BE43: N/A | BF43: N/A | BG43: N/A | BH43: N/A | BI43: N/A | BJ43: N/A | BK43: N/A | BL43: N/A | BM43: N/A | BN43: N/A | BO43: N/A | BP43: N/A | BQ43: N/A | BR43: N/A | BS43: N/A | BT43: N/A | BU43: N/A | BV43: N/A | BW43: N/A | BX43: N/A | BY43: N/A | BZ43: N/A | CA43: N/A | CB43: N/A | CC43: N/A | CD43: N/A
B44: No | C44: N/A | D44: N/A | E44: N/A | F44: N/A | G44: N/A | H44: N/A | I44: N/A | J44: N/A | K44: N/A | L44: N/A | M44: N/A | N44: N/A | O44: N/A | P44: N/A | Q44: N/A | R44: N/A | S44: N/A | T44: N/A | U44: N/A | V44: N/A | W44: N/A | X44: N/A | Y44: N/A | Z44: N/A | AA44: N/A | AB44: N/A | AC44: N/A | AD44: N/A | BB44: No | BC44: N/A | BD44: N/A | BE44: N/A | BF44: N/A | BG44: N/A | BH44: N/A | BI44: N/A | BJ44: N/A | BK44: N/A | BL44: N/A | BM44: N/A | BN44: N/A | BO44: N/A | BP44: N/A | BQ44: N/A | BR44: N/A | BS44: N/A | BT44: N/A | BU44: N/A | BV44: N/A | BW44: N/A | BX44: N/A | BY44: N/A | BZ44: N/A | CA44: N/A | CB44: N/A | CC44: N/A | CD44: N/A
A45: Improved water source available when needed | B45: Yes | C45: N/A | D45: N/A | E45: N/A | F45: N/A | G45: N/A | H45: N/A | I45: N/A | J45: N/A | K45: N/A | L45: N/A | M45: N/A | N45: N/A | O45: N/A | P45: N/A | Q45: N/A | R45: N/A | S45: N/A | T45: N/A | U45: N/A | V45: N/A | W45: N/A | X45: N/A | Y45: N/A | Z45: N/A | AA45: N/A | AB45: N/A | AC45: N/A | AD45: N/A | BA45: Improved water source available when needed | BB45: Yes | BC45: N/A | BD45: N/A | BE45: N/A | BF45: N/A | BG45: N/A | BH45: N/A | BI45: N/A | BJ45: N/A | BK45: N/A | BL45: N/A | BM45: N/A | BN45: N/A | BO45: N/A | BP45: N/A | BQ45: N/A | BR45: N/A | BS45: N/A | BT45: N/A | BU45: N/A | BV45: N/A | BW45: N/A | BX45: N/A | BY45: N/A | BZ45: N/A | CA45: N/A | CB45: N/A | CC45: N/A | CD45: N/A
B46: No | C46: N/A | D46: N/A | E46: N/A | F46: N/A | G46: N/A | H46: N/A | I46: N/A | J46: N/A | K46: N/A | L46: N/A | M46: N/A | N46: N/A | O46: N/A | P46: N/A | Q46: N/A | R46: N/A | S46: N/A | T46: N/A | U46: N/A | V46: N/A | W46: N/A | X46: N/A | Y46: N/A | Z46: N/A | AA46: N/A | AB46: N/A | AC46: N/A | AD46: N/A | BB46: No | BC46: N/A | BD46: N/A | BE46: N/A | BF46: N/A | BG46: N/A | BH46: N/A | BI46: N/A | BJ46: N/A | BK46: N/A | BL46: N/A | BM46: N/A | BN46: N/A | BO46: N/A | BP46: N/A | BQ46: N/A | BR46: N/A | BS46: N/A | BT46: N/A | BU46: N/A | BV46: N/A | BW46: N/A | BX46: N/A | BY46: N/A | BZ46: N/A | CA46: N/A | CB46: N/A | CC46: N/A | CD46: N/A
A47: Microbiological quality at point of collection | B47: Not contaminated (No E. coli in 100 mL) | C47: N/A | D47: N/A | E47: N/A | F47: N/A | G47: N/A | H47: N/A | I47: N/A | J47: N/A | K47: N/A | L47: N/A | M47: N/A | N47: N/A | O47: N/A | P47: N/A | Q47: N/A | R47: N/A | S47: N/A | T47: N/A | U47: N/A | V47: N/A | W47: N/A | X47: N/A | Y47: N/A | Z47: N/A | AA47: N/A | AB47: N/A | AC47: N/A | AD47: N/A | BA47: Microbiological quality at point of collection | BB47: Not contaminated (No E. coli in 100 mL) | BC47: N/A | BD47: N/A | BE47: N/A | BF47: N/A | BG47: N/A | BH47: N/A | BI47: N/A | BJ47: N/A | BK47: N/A | BL47: N/A | BM47: N/A | BN47: N/A | BO47: N/A | BP47: N/A | BQ47: N/A | BR47: N/A | BS47: N/A | BT47: N/A | BU47: N/A | BV47: N/A | BW47: N/A | BX47: N/A | BY47: N/A | BZ47: N/A | CA47: N/A | CB47: N/A | CC47: N/A | CD47: N/A
B48: Contaminated (E. coli detected in 100 mL) | C48: N/A | D48: N/A | E48: N/A | F48: N/A | G48: N/A | H48: N/A | I48: N/A | J48: N/A | K48: N/A | L48: N/A | M48: N/A | N48: N/A | O48: N/A | P48: N/A | Q48: N/A | R48: N/A | S48: N/A | T48: N/A | U48: N/A | V48: N/A | W48: N/A | X48: N/A | Y48: N/A | Z48: N/A | AA48: N/A | AB48: N/A | AC48: N/A | AD48: N/A | BB48: Contaminated (E. coli detected in 100 mL) | BC48: N/A | BD48: N/A | BE48: N/A | BF48: N/A | BG48: N/A | BH48: N/A | BI48: N/A | BJ48: N/A | BK48: N/A | BL48: N/A | BM48: N/A | BN48: N/A | BO48: N/A | BP48: N/A | BQ48: N/A | BR48: N/A | BS48: N/A | BT48: N/A | BU48: N/A | BV48: N/A | BW48: N/A | BX48: N/A | BY48: N/A | BZ48: N/A | CA48: N/A | CB48: N/A | CC48: N/A | CD48: N/A
B49: Highly contaminated (>100 CFU/100 mL) | C49: N/A | D49: N/A | E49: N/A | F49: N/A | G49: N/A | H49: N/A | I49: N/A | J49: N/A | K49: N/A | L49: N/A | M49: N/A | N49: N/A | O49: N/A | P49: N/A | Q49: N/A | R49: N/A | S49: N/A | T49: N/A | U49: N/A | V49: N/A | W49: N/A | X49: N/A | Y49: N/A | Z49: N/A | AA49: N/A | AB49: N/A | AC49: N/A | AD49: N/A | BB49: Highly contaminated (>100 CFU/100 mL) | BC49: N/A | BD49: N/A | BE49: N/A | BF49: N/A | BG49: N/A | BH49: N/A | BI49: N/A | BJ49: N/A | BK49: N/A | BL49: N/A | BM49: N/A | BN49: N/A | BO49: N/A | BP49: N/A | BQ49: N/A | BR49: N/A | BS49: N/A | BT49: N/A | BU49: N/A | BV49: N/A | BW49: N/A | BX49: N/A | BY49: N/A | BZ49: N/A | CA49: N/A | CB49: N/A | CC49: N/A | CD49: N/A
A50: Microbiological quality of improved water sources at point of collection | B50: Not contaminated (No E. coli in 100 mL) | C50: N/A | D50: N/A | E50: N/A | F50: N/A | G50: N/A | H50: N/A | I50: N/A | J50: N/A | K50: N/A | L50: N/A | M50: N/A | N50: N/A | O50: N/A | P50: N/A | Q50: N/A | R50: N/A | S50: N/A | T50: N/A | U50: N/A | V50: N/A | W50: N/A | X50: N/A | Y50: N/A | Z50: N/A | AA50: N/A | AB50: N/A | AC50: N/A | AD50: N/A | BA50: Microbiological quality of improved water sources at point of collection | BB50: Not contaminated (No E. coli in 100 mL) | BC50: N/A | BD50: N/A | BE50: N/A | BF50: N/A | BG50: N/A | BH50: N/A | BI50: N/A | BJ50: N/A | BK50: N/A | BL50: N/A | BM50: N/A | BN50: N/A | BO50: N/A | BP50: N/A | BQ50: N/A | BR50: N/A | BS50: N/A | BT50: N/A | BU50: N/A | BV50: N/A | BW50: N/A | BX50: N/A | BY50: N/A | BZ50: N/A | CA50: N/A | CB50: N/A | CC50: N/A | CD50: N/A
B51: Contaminated (E. coli detected in 100 mL) | C51: N/A | D51: N/A | E51: N/A | F51: N/A | G51: N/A | H51: N/A | I51: N/A | J51: N/A | K51: N/A | L51: N/A | M51: N/A | N51: N/A | O51: N/A | P51: N/A | Q51: N/A | R51: N/A | S51: N/A | T51: N/A | U51: N/A | V51: N/A | W51: N/A | X51: N/A | Y51: N/A | Z51: N/A | AA51: N/A | AB51: N/A | AC51: N/A | AD51: N/A | BB51: Contaminated (E. coli detected in 100 mL) | BC51: N/A | BD51: N/A | BE51: N/A | BF51: N/A | BG51: N/A | BH51: N/A | BI51: N/A | BJ51: N/A | BK51: N/A | BL51: N/A | BM51: N/A | BN51: N/A | BO51: N/A | BP51: N/A | BQ51: N/A | BR51: N/A | BS51: N/A | BT51: N/A | BU51: N/A | BV51: N/A | BW51: N/A | BX51: N/A | BY51: N/A | BZ51: N/A | CA51: N/A | CB51: N/A | CC51: N/A | CD51: N/A
B52: Highly contaminated (>100 CFU/100 mL) | C52: N/A | D52: N/A | E52: N/A | F52: N/A | G52: N/A | H52: N/A | I52: N/A | J52: N/A | K52: N/A | L52: N/A | M52: N/A | N52: N/A | O52: N/A | P52: N/A | Q52: N/A | R52: N/A | S52: N/A | T52: N/A | U52: N/A | V52: N/A | W52: N/A | X52: N/A | Y52: N/A | Z52: N/A | AA52: N/A | AB52: N/A | AC52: N/A | AD52: N/A | BB52: Highly contaminated (>100 CFU/100 mL) | BC52: N/A | BD52: N/A | BE52: N/A | BF52: N/A | BG52: N/A | BH52: N/A | BI52: N/A | BJ52: N/A | BK52: N/A | BL52: N/A | BM52: N/A | BN52: N/A | BO52: N/A | BP52: N/A | BQ52: N/A | BR52: N/A | BS52: N/A | BT52: N/A | BU52: N/A | BV52: N/A | BW52: N/A | BX52: N/A | BY52: N/A | BZ52: N/A | CA52: N/A | CB52: N/A | CC52: N/A | CD52: N/A
A53: Microbiological quality of piped on premises at point of collection | B53: Not contaminated (No E. coli in 100 mL) | C53: N/A | D53: N/A | E53: N/A | F53: N/A | G53: N/A | H53: N/A | I53: N/A | J53: N/A | K53: N/A | L53: N/A | M53: N/A | N53: N/A | O53: N/A | P53: N/A | Q53: N/A | R53: N/A | S53: N/A | T53: N/A | U53: N/A | V53: N/A | W53: N/A | X53: N/A | Y53: N/A | Z53: N/A | AA53: N/A | AB53: N/A | AC53: N/A | AD53: N/A | BA53: Microbiological quality of piped on premises at point of collection | BB53: Not contaminated (No E. coli in 100 mL) | BC53: N/A | BD53: N/A | BE53: N/A | BF53: N/A | BG53: N/A | BH53: N/A | BI53: N/A | BJ53: N/A | BK53: N/A | BL53: N/A | BM53: N/A | BN53: N/A | BO53: N/A | BP53: N/A | BQ53: N/A | BR53: N/A | BS53: N/A | BT53: N/A | BU53: N/A | BV53: N/A | BW53: N/A | BX53: N/A | BY53: N/A | BZ53: N/A | CA53: N/A | CB53: N/A | CC53: N/A | CD53: N/A
B54: Contaminated (E. coli detected in 100 mL) | C54: N/A | D54: N/A | E54: N/A | F54: N/A | G54: N/A | H54: N/A | I54: N/A | J54: N/A | K54: N/A | L54: N/A | M54: N/A | N54: N/A | O54: N/A | P54: N/A | Q54: N/A | R54: N/A | S54: N/A | T54: N/A | U54: N/A | V54: N/A | W54: N/A | X54: N/A | Y54: N/A | Z54: N/A | AA54: N/A | AB54: N/A | AC54: N/A | AD54: N/A | BB54: Contaminated (E. coli detected in 100 mL) | BC54: N/A | BD54: N/A | BE54: N/A | BF54: N/A | BG54: N/A | BH54: N/A | BI54: N/A | BJ54: N/A | BK54: N/A | BL54: N/A | BM54: N/A | BN54: N/A | BO54: N/A | BP54: N/A | BQ54: N/A | BR54: N/A | BS54: N/A | BT54: N/A | BU54: N/A | BV54: N/A | BW54: N/A | BX54: N/A | BY54: N/A | BZ54: N/A | CA54: N/A | CB54: N/A | CC54: N/A | CD54: N/A
B55: Highly contaminated (>100 CFU/100 mL) | C55: N/A | D55: N/A | E55: N/A | F55: N/A | G55: N/A | H55: N/A | I55: N/A | J55: N/A | K55: N/A | L55: N/A | M55: N/A | N55: N/A | O55: N/A | P55: N/A | Q55: N/A | R55: N/A | S55: N/A | T55: N/A | U55: N/A | V55: N/A | W55: N/A | X55: N/A | Y55: N/A | Z55: N/A | AA55: N/A | AB55: N/A | AC55: N/A | AD55: N/A | BB55: Highly contaminated (>100 CFU/100 mL) | BC55: N/A | BD55: N/A | BE55: N/A | BF55: N/A | BG55: N/A | BH55: N/A | BI55: N/A | BJ55: N/A | BK55: N/A | BL55: N/A | BM55: N/A | BN55: N/A | BO55: N/A | BP55: N/A | BQ55: N/A | BR55: N/A | BS55: N/A | BT55: N/A | BU55: N/A | BV55: N/A | BW55: N/A | BX55: N/A | BY55: N/A | BZ55: N/A | CA55: N/A | CB55: N/A | CC55: N/A | CD55: N/A
C56: NATIONAL wealth index quintile | H56: URBAN wealth index quintile | M56: RURAL wealth index quintile | R56: SUB-REGIONS: | BA56: Raw numbers of respondents: | BB56: Use of drinking water sources | BC56: NATIONAL wealth index quintile | BH56: URBAN wealth index quintile | BM56: RURAL wealth index quintile | BR56: SUB-REGIONS:
A57: Percentage based on weighted population | C57: Poorest | D57: Poor | E57: Middle | F57: Rich | G57: Richest | H57: Poorest | I57: Poor | J57: Middle | K57: Rich | L57: Richest | M57: Poorest | N57: Poor | O57: Middle | P57: Rich | Q57: Richest | R57: Boucle du Mouhoun | S57: Cascade | T57: Centre | U57: Centre-Est | V57: Centre-Nord | W57: Centre-Ouest | X57: Centre-Sud | Y57: Est | Z57: Hauts-Bassins | AA57: Nord | AB57: Plateau-Central | AC57: Sahel | AD57: Sud-Ouest | BA57: Water data, raw numbers (weighted) | BC57: Poorest | BD57: Poor | BE57: Middle | BF57: Rich | BG57: Richest | BH57: Poorest | BI57: Poor | BJ57: Middle | BK57: Rich | BL57: Richest | BM57: Poorest | BN57: Poor | BO57: Middle | BP57: Rich | BQ57: Richest | BR57: Boucle du Mouhoun | BS57: Cascade | BT57: Centre | BU57: Centre-Est | BV57: Centre-Nord | BW57: Centre-Ouest | BX57: Centre-Sud | BY57: Est | BZ57: Hauts-Bassins | CA57: Nord | CB57: Plateau-Central | CC57: Sahel | CD57: Sud-Ouest
A58: Principale source d'eau que boivent les membre du menage | B58: Eau de robinet dns le logement | C58: 0 | D58: 0 | E58: 0 | F58: 0.4327576628 | G58: 11.77284771 | H58: 1.773310599 | I58: 7.154705936 | J58: 10.23481905 | K58: 4.961828818 | L58: 25.29337169 | M58: 0 | N58: 0 | O58: 0 | P58: 0 | Q58: 0.2225507528 | R58: 0 | S58: 1.227489624 | T58: 0.5420121435 | U58: 0 | V58: 0 | W58: 3.688709216 | X58: 0.1489784201 | Y58: 0 | Z58: 20.86460071 | AA58: 2.933274196 | AB58: 0 | AC58: 0 | AD58: 0
B59: Dans la cour/parcelle | C59: 0 | D59: 0 | E59: 0 | F59: 1.196293217 | G59: 14.99870721 | H59: 0.8498240389 | I59: 10.06015924 | J59: 6.466978304 | K59: 11.13795801 | L59: 37.11841771 | M59: 0 | N59: 0 | O59: 0 | P59: 0 | Q59: 0.2909708099 | R59: 0 | S59: 4.085867375 | T59: 21.89615568 | U59: 0 | V59: 0 | W59: 3.161980946 | X59: 0 | Y59: 0 | Z59: 8.122654886 | AA59: 3.587809519 | AB59: 0 | AC59: 0 | AD59: 0
B60: Robinet public/borne fontaine | C60: 5.198118951 | D60: 6.020456834 | E60: 12.46954353 | F60: 26.86056647 | G60: 57.07861225 | H60: 71.74524743 | I60: 68.40227984 | J60: 72.71221543 | K60: 76.44747898 | L60: 31.54676849 | M60: 5.195149879 | N60: 5.265562142 | O60: 5.963161423 | P60: 6.370539896 | Q60: 16.17654013 | R60: 30.73783661 | S60: 44.75018998 | T60: 26.79622118 | U60: 17.19264371 | V60: 3.636398827 | W60: 30.64403827 | X60: 10.19418862 | Y60: 1.140076999 | Z60: 39.49153617 | AA60: 29.97274535 | AB60: 2.111244884 | AC60: 5.865701862 | AD60: 15.29427835
B61: Puits a pompe/forage | C61: 53.02135098 | D61: 53.82863275 | E61: 51.11062045 | F61: 43.04905258 | G61: 8.24129778 | H61: 17.11754808 | I61: 5.450517404 | J61: 4.15349387 | K61: 4.449582987 | L61: 0.8984332979 | M61: 52.09486926 | N61: 54.50229414 | O61: 51.83098568 | P61: 58.21665232 | Q61: 49.64815535 | R61: 20.24243656 | S61: 25.06658905 | T61: 23.39825062 | U61: 53.64062451 | V61: 80.05300177 | W61: 32.9048049 | X61: 58.35840354 | Y61: 70.51196978 | Z61: 11.90396714 | AA61: 21.15314222 | AB61: 86.98039561 | AC61: 60.28939848 | AD61: 32.97301588
B62: Puits protege | C62: 8.460268604 | D62: 10.43348487 | E62: 9.068220841 | F62: 10.38856441 | G62: 2.060633302 | H62: 1.379185336 | I62: 1.311838591 | J62: 0 | K62: 0.03925951208 | L62: 0 | M62: 8.250532097 | N62: 10.52526856 | O62: 9.624813582 | P62: 10.51854275 | Q62: 13.62470133 | R62: 24.86347338 | S62: 1.359507596 | T62: 6.669295203 | U62: 10.43895047 | V62: 4.870856055 | W62: 15.86683781 | X62: 15.11614788 | Y62: 5.938802609 | Z62: 2.663462855 | AA62: 3.747154489 | AB62: 1.484334609 | AC62: 2.861042353 | AD62: 10.60684503
B63: Puits non protege | C63: 26.06214346 | D63: 22.68000903 | E63: 24.87703427 | F63: 15.93394234 | G63: 2.092621795 | H63: 6.030580259 | I63: 4.505126192 | J63: 0.3745963887 | K63: 0 | L63: 0 | M63: 26.8909808 | N63: 22.99768867 | O63: 26.42375528 | P63: 23.11230057 | Q63: 18.21896323 | R63: 23.22234359 | S63: 8.414203858 | T63: 13.18433266 | U63: 16.94024985 | V63: 10.79378213 | W63: 13.32052899 | X63: 15.56808983 | Y63: 20.10808894 | Z63: 14.42821519 | AA63: 35.41303923 | AB63: 8.788117264 | AC63: 29.11477522 | AD63: 21.02408064
B64: Source protegee | C64: 0.09818706879 | D64: 0.2497830008 | E64: 0 | F64: 0 | G64: 0 | H64: 0 | I64: 0 | J64: 0 | K64: 0 | L64: 0 | M64: 0.1298793691 | N64: 0.3298296347 | O64: 0 | P64: 0 | Q64: 0 | R64: 0.1919762668 | S64: 0.1475892701 | T64: 0 | U64: 0 | V64: 0 | W64: 0 | X64: 0 | Y64: 0 | Z64: 0.4976196321 | AA64: 0 | AB64: 0 | AC64: 0 | AD64: 0
B65: Source non protegee | C65: 0.5499459157 | D65: 0.7110528126 | E65: 1.06026699 | F65: 0.2984621652 | G65: 0.2425759655 | H65: 0 | I65: 0 | J65: 0 | K65: 0 | L65: 0 | M65: 0.398328545 | N65: 0.6350793261 | O65: 1.511409923 | P65: 0.5230896935 | Q65: 0.7152551941 | R65: 0.3453791237 | S65: 2.612353248 | T65: 0.3129858012 | U65: 0.1626537028 | V65: 0.6459612182 | W65: 0 | X65: 0.3489376287 | Y65: 0.1429301226 | Z65: 0.9123026589 | AA65: 0.5213700306 | AB65: 0 | AC65: 0 | AD65: 0.4541661902
B66: Charrette avec petite citerne/tonneau | C66: 0 | D66: 0 | E66: 0 | F66: 0.9803314286 | G66: 3.177904921 | H66: 1.104304264 | I66: 3.115372795 | J66: 6.05789696 | K66: 2.963891693 | L66: 3.768326097 | M66: 0 | N66: 0 | O66: 0 | P66: 0 | Q66: 0.01677611529 | R66: 0 | S66: 0 | T66: 6.766026945 | U66: 0 | V66: 0 | W66: 0.4130998805 | X66: 0 | Y66: 0 | Z66: 0 | AA66: 2.671464971 | AB66: 0 | AC66: 0 | AD66: 0
B67: Eau de surface | C67: 6.541352174 | D67: 5.996711307 | E67: 1.414313922 | F67: 0.8600297271 | G67: 0 | H67: 0 | I67: 0 | J67: 0 | K67: 0 | L67: 0 | M67: 6.96763141 | N67: 5.7261596 | O67: 4.540293059 | P67: 1.258874769 | Q67: 1.086087087 | R67: 0 | S67: 12.33621 | T67: 0 | U67: 1.624877757 | V67: 0 | W67: 0 | X67: 0.2652540795 | Y67: 1.797385689 | Z67: 1.050530334 | AA67: 0 | AB67: 0.6359076331 | AC67: 1.869082083 | AD67: 19.6476139
B68: Eau en bouteille | C68: 0 | D68: 0 | E68: 0 | F68: 0 | G68: 0.334799069 | H68: 0 | I68: 0 | J68: 0 | K68: 0 | L68: 1.374682725 | M68: 0 | N68: 0 | O68: 0 | P68: 0 | Q68: 0 | R68: 0.3965544683 | S68: 0 | T68: 0.4347197763 | U68: 0 | V68: 0 | W68: 0 | X68: 0 | Y68: 0 | Z68: 0.06511041537 | AA68: 0 | AB68: 0 | AC68: 0 | AD68: 0
B69: Autre | C69: 0.06863285018 | D69: 0.07986939601 | E69: 0 | F69: 0 | G69: 0 | H69: 0 | I69: 0 | J69: 0 | K69: 0 | L69: 0 | M69: 0.07262863749 | N69: 0.01811791974 | O69: 0.1055810489 | P69: 0 | Q69: 0 | R69: 0 | S69: 0 | T69: 0 | U69: 0 | V69: 0 | W69: 0 | X69: 0 | Y69: 0.3607458696 | Z69: 0 | AA69: 0 | AB69: 0 | AC69: 0 | AD69: 0
A108: =A1026 -> Burkina Faso
A109: =A1034 -> 2006
A110: Use of sanitation facilities
A111: by wealth quintile and sub-national region
A112: Notes:
A113: WHO/UNICEF JMP customised wealth index excludes water,
A114: sanitation and hygiene assets.
A115: Survey used for analysis: | B115: =A1025 -> MICS06
A116: Improved latrines based on : | B116: DHS10
A117: Shared among improved based on : | B117: DHS10
A120: Use of sanitation facilities | C120: NATIONAL wealth index quintile | H120: URBAN wealth index quintile | M120: RURAL wealth index quintile | R120: SUB-REGIONS: | BA120: Raw numbers of respondents: | BB120: Use of sanitation facilities | BC120: NATIONAL wealth index quintile | BH120: URBAN wealth index quintile | BM120: RURAL wealth index quintile | BR120: SUB-REGIONS:
A121: Weighted percentage (used in graphs) | C121: Poorest | D121: Poor | E121: Middle | F121: Rich | G121: Richest | H121: Poorest | I121: Poor | J121: Middle | K121: Rich | L121: Richest | M121: Poorest | N121: Poor | O121: Middle | P121: Rich | Q121: Richest | R121: Boucle du Mouhoun | S121: Cascade | T121: Centre | U121: Centre-Est | V121: Centre-Nord | W121: Centre-Ouest | X121: Centre-Sud | Y121: Est | Z121: Hauts-Bassins | AA121: Nord | AB121: Plateau-Central | AC121: Sahel | AD121: Sud-Ouest | BA121: Sanitation data, raw numbers (weighted) | BC121: Poorest | BD121: Poor | BE121: Middle | BF121: Rich | BG121: Richest | BH121: Poorest | BI121: Poor | BJ121: Middle | BK121: Rich | BL121: Richest | BM121: Poorest | BN121: Poor | BO121: Middle | BP121: Rich | BQ121: Richest | BR121: Boucle du Mouhoun | BS121: Cascade | BT121: Centre | BU121: Centre-Est | BV121: Centre-Nord | BW121: Centre-Ouest | BX121: Centre-Sud | BY121: Est | BZ121: Hauts-Bassins | CA121: Nord | CB121: Plateau-Central | CC121: Sahel | CD121: Sud-Ouest
A122: Sanitation | B122: Improved | C122: 3.658378024 | D122: 7.962076148 | E122: 19.27441408 | F122: 34.97534813 | G122: 85.36579199 | H122: 72.99608684 | I122: 83.38000406 | J122: 91.51232875 | K122: 92.33666748 | L122: 97.79460009 | M122: 3.372237776 | N122: 5.580408647 | O122: 9.55489899 | P122: 15.03411747 | Q122: 29.38733438 | R122: 40.66757063 | S122: 39.54346973 | T122: 61.11977562 | U122: 21.31272075 | V122: 22.53670092 | W122: 35.79837638 | X122: 9.798407784 | Y122: 3.161312876 | Z122: 50.44508625 | AA122: 46.37008916 | AB122: 12.97363838 | AC122: 10.84980511 | AD122: 11.16898263 | BA122: Sanitation | BB122: Improved | BC122: 19.06026871 | BD122: 15.3474989 | BE122: 38.23092624 | BF122: 61.77306405 | BG122: 410.3444388 | BH122: 24.23320909 | BI122: 6.17491903 | BJ122: 46.21739206 | BK122: 13.03120331 | BL122: 295.5491279 | BM122: 19.06026871 | BN122: 12.23994956 | BO122: 11.27491333 | BP122: 30.06356225 | BQ122: 86.91165143 | BR122: 0 | BS122: 41.21953148 | BT122: 179.2014522 | BU122: 20.40515365 | BV122: 73.08579703 | BW122: 8.568219227 | BX122: 9.879242208 | BY122: 28.98282543 | BZ122: 136.7850227 | CA122: 19.47894347 | CB122: 4.226423935 | CC122: 21.90373565 | CD122: 1.019849712
B123: Not Improved | C123: =100-C122 -> 96.34162198 | D123: =100-D122 -> 92.03792385 | E123: 80.72558592 | F123: 65.02465187 | G123: 14.63420801 | H123: 27.00391316 | I123: 16.61999594 | J123: 8.487671248 | K123: 7.663332523 | L123: 2.205399913 | M123: 96.62776222 | N123: 94.41959135 | O123: 90.44510101 | P123: 84.96588253 | Q123: 70.61266562 | R123: 59.33242937 | S123: 60.45653027 | T123: 38.88022438 | U123: 78.68727925 | V123: 77.46329908 | W123: 64.20162362 | X123: 90.20159222 | Y123: 96.83868712 | Z123: 49.55491375 | AA123: 53.62991084 | AB123: 87.02636162 | AC123: 89.15019489 | AD123: 88.83101737 | BB123: Not Improved | BC123: 7394.812563 | BD123: 7401.607198 | BE123: 7374.624345 | BF123: 7353.710586 | BG123: 7005.992701 | BH123: 1785.437006 | BI123: 1788.298834 | BJ123: 1769.75879 | BK123: 1791.227169 | BL123: 1510.673301 | BM123: 5585.728596 | BN123: 5604.68772 | BO123: 5599.463929 | BP123: 5572.824371 | BQ123: 5522.64768 | BR123: 2935.150133 | BS123: 3670.981038 | BT123: 2412.809022 | BU123: 2693.03547 | BV123: 2320.175888 | BW123: 2422.892792 | BX123: 3255.560381 | BY123: 3023.645099 | BZ123: 2815.701999 | CA123: 4583.237973 | CB123: 2185.090262 | CC123: 1914.695544 | CD123: 2297.771794
A124: Sanitation ladder | B124: Basic | C124: =C122*C129/100 -> 1.618746676 | D124: =D122*D129/100 -> 3.851818222 | E124: 9.260943597 | F124: 17.47488039 | G124: 51.17225452 | H124: 40.56741263 | I124: 48.65857937 | J124: 48.00520796 | K124: 55.72151651 | L124: 69.77628074 | M124: 1.239547716 | N124: 3.005324711 | O124: 4.437679966 | P124: 6.372842683 | Q124: 14.33750181 | R124: 19.62417835 | S124: 16.05015824 | T124: 43.66304938 | U124: 10.36345739 | V124: 9.179571409 | W124: 17.36941442 | X124: 5.203629367 | Y124: 1.749108107 | Z124: 23.25289648 | AA124: 16.23399612 | AB124: 7.597616448 | AC124: 5.721973911 | AD124: 4.887676877 | BA124: Sanitation ladder | BB124: Basic | BC124: 5.316449875 | BD124: 3.568503938 | BE124: 30.06356225 | BF124: 25.77688777 | BG124: 362.2243411 | BH124: 10.8550081 | BI124: 4.036039256 | BJ124: 46.21739206 | BK124: 11.67585985 | BL124: 279.1400743 | BM124: 5.316449875 | BN124: 3.568503938 | BO124: 0 | BP124: 30.06356225 | BQ124: 36.07685531 | BR124: 0 | BS124: 41.21953148 | BT124: 159.2981754 | BU124: 20.40515365 | BV124: 16.26451057 | BW124: 8.568219227 | BX124: 6.771692865 | BY124: 14.64551329 | BZ124: 136.7850227 | CA124: 0 | CB124: 4.226423935 | CC124: 17.74565217 | CD124: 1.019849712
B125: Limited | C125: =C122*C128/100 -> 2.039631347 | D125: =D122*D128/100 -> 4.110257926 | E125: 10.01347048 | F125: 17.50046774 | G125: 34.19353747 | H125: 32.42867421 | I125: 34.72142469 | J125: 43.50712079 | K125: 36.61515096 | L125: 28.01831935 | M125: 2.132690061 | N125: 2.575083936 | O125: 5.117219024 | P125: 8.661274792 | Q125: 15.04983257 | R125: 21.04339228 | S125: 23.49331149 | T125: 17.45672623 | U125: 10.94926336 | V125: 13.35712951 | W125: 18.42896196 | X125: 4.594778417 | Y125: 1.412204768 | Z125: 27.19218977 | AA125: 30.13609304 | AB125: 5.376021929 | AC125: 5.127831199 | AD125: 6.281305754 | BB125: Limited | BC125: 13.74381884 | BD125: 11.77899496 | BE125: 8.167363991 | BF125: 35.99617628 | BG125: 41.84316753 | BH125: 13.37820099 | BI125: 2.138879774 | BJ125: 0 | BK125: 1.355343459 | BL125: 16.40905357 | BM125: 13.74381884 | BN125: 8.671445621 | BO125: 11.27491333 | BP125: 0 | BQ125: 44.55786602 | BR125: 0 | BS125: 0 | BT125: 19.9032768 | BU125: 0 | BV125: 50.54435637 | BW125: 0 | BX125: 3.107549343 | BY125: 14.33731214 | BZ125: 0 | CA125: 19.47894347 | CB125: 0 | CC125: 4.158083481 | CD125: 0
B126: Unimproved | C126: =100-C124-C125-C127 -> 3.487108411 | D126: =100-D124-D125-D127 -> 4.930126993 | E126: 9.872198611 | F126: 10.11537186 | G126: 7.168408399 | H126: 15.98504265 | I126: 8.613648239 | J126: 4.78786721 | K126: 2.440083228 | L126: 1.114987543 | M126: 3.388999894 | N126: 4.183749211 | O126: 5.802945161 | P126: 7.686571235 | Q126: 11.33606742 | R126: 17.99898972 | S126: 7.715154437 | T126: 2.288426862 | U126: 1.602694649 | V126: 2.331077158 | W126: 4.874030938 | X126: 1.307576367 | Y126: 0.7997103334 | Z126: 30.34382276 | AA126: 7.141510272 | AB126: 3.596412376 | AC126: 8.49033221 | AD126: 8.756052487 | BB126: Unimproved | BC126: 510.6970088 | BD126: 940.8613675 | BE126: 2122.365289 | BF126: 3281.921905 | BG126: 6452.303832 | BH126: 1586.031788 | BI126: 1644.627026 | BJ126: 1702.57123 | BK126: 1696.986256 | BL126: 1490.978028 | BM126: 359.8928273 | BN126: 536.2057348 | BO126: 850.4136137 | BP126: 1242.951164 | BQ126: 2197.491734 | BR126: 1721.951624 | BS126: 1713.115384 | BT126: 1464.345797 | BU126: 601.3910369 | BV126: 522.0652076 | BW126: 980.3655071 | BX126: 352.7799648 | BY126: 91.93247516 | BZ126: 2248.497031 | CA126: 2443.508495 | CB126: 358.544462 | CC126: 352.6372243 | CD126: 457.0151925
B127: Open defecation | C127: =C158 -> 92.85451357 | D127: =D158 -> 87.10779686 | E127: 70.85338731 | F127: 54.90928001 | G127: 7.465799606 | H127: 11.01887051 | I127: 8.006347706 | J127: 3.699804038 | K127: 5.223249295 | L127: 1.09041237 | M127: 93.23876233 | N127: 90.23584214 | O127: 84.64215585 | P127: 77.27931129 | Q127: 59.2765982 | R127: 41.33343964 | S127: 52.74137583 | T127: 36.59179752 | U127: 77.0845846 | V127: 75.13222192 | W127: 59.32759268 | X127: 88.89401585 | Y127: 96.03897679 | Z127: 19.21109099 | AA127: 46.48840057 | AB127: 83.42994925 | AC127: 80.65986268 | AD127: 80.07496488 | BB127: Open defecation | BC127: 6884.115555 | BD127: 6460.745831 | BE127: 5252.259056 | BF127: 4071.788682 | BG127: 553.688869 | BH127: 199.4052176 | BI127: 143.6718082 | BJ127: 67.18756012 | BK127: 94.24091269 | BL127: 19.6952728 | BM127: 5225.835769 | BN127: 5068.481985 | BO127: 4749.050315 | BP127: 4329.873207 | BQ127: 3325.155946 | BR127: 1213.198509 | BS127: 1957.865654 | BT127: 948.4632243 | BU127: 2091.644433 | BV127: 1798.11068 | BW127: 1442.527285 | BX127: 2902.780416 | BY127: 2931.712624 | BZ127: 567.2049682 | CA127: 2139.729477 | CB127: 1826.5458 | CC127: 1562.058319 | CD127: 1840.756601
A128: Shared among Improved Sanitation | B128: Yes | C128: 55.75233981 | D128: 51.62294168 | E128: 51.95213946 | F128: 50.03657912 | G128: 40.05531569 | H128: 44.4252228 | I128: 41.64238786 | J128: 47.54236002 | K128: 39.65396626 | L128: 28.65017018 | M128: 63.24257666 | N128: 46.14507824 | O128: 53.55597196 | P128: 57.61079629 | Q128: 51.21196899 | R128: 51.74489638 | S128: 59.41135579 | T128: 28.56150249 | U128: 51.3743106 | V128: 59.26834436 | W128: 51.47988212 | X128: 46.89311282 | Y128: 44.67146479 | Z128: 53.90453618 | AA128: 64.99037114 | AB128: 41.43804361 | AC128: 47.26196597 | AD128: 56.23883537 | BA128: Shared among improved sanitation facilities | BB128: Yes | BC128: N/A | BD128: N/A | BE128: N/A | BF128: N/A | BG128: N/A | BH128: N/A | BI128: N/A | BJ128: N/A | BK128: N/A | BL128: N/A | BM128: N/A | BN128: N/A | BO128: N/A | BP128: N/A | BQ128: N/A | BR128: N/A | BS128: N/A | BT128: N/A | BU128: N/A | BV128: N/A | BW128: N/A | BX128: N/A | BY128: N/A | BZ128: N/A | CA128: N/A | CB128: N/A | CC128: N/A | CD128: N/A
B129: No | C129: 44.24766019 | D129: 48.37705832 | E129: 48.04786054 | F129: 49.96342088 | G129: 59.94468431 | H129: 55.5747772 | I129: 58.35761214 | J129: 52.45763998 | K129: 60.34603374 | L129: 71.34982982 | M129: 36.75742334 | N129: 53.85492176 | O129: 46.44402804 | P129: 42.38920371 | Q129: 48.78803101 | R129: 48.25510362 | S129: 40.58864421 | T129: 71.43849751 | U129: 48.6256894 | V129: 40.73165564 | W129: 48.52011788 | X129: 53.10688718 | Y129: 55.32853521 | Z129: 46.09546382 | AA129: 35.00962886 | AB129: 58.56195639 | AC129: 52.73803403 | AD129: 43.76116463 | BB129: No | BC129: N/A | BD129: N/A | BE129: N/A | BF129: N/A | BG129: N/A | BH129: N/A | BI129: N/A | BJ129: N/A | BK129: N/A | BL129: N/A | BM129: N/A | BN129: N/A | BO129: N/A | BP129: N/A | BQ129: N/A | BR129: N/A | BS129: N/A | BT129: N/A | BU129: N/A | BV129: N/A | BW129: N/A | BX129: N/A | BY129: N/A | BZ129: N/A | CA129: N/A | CB129: N/A | CC129: N/A | CD129: N/A
A130: Manually calculated ratios | B130: Improved latrines
B131: Other
B132: Other
C133: NATIONAL wealth index quintile | H133: URBAN wealth index quintile | M133: RURAL wealth index quintile | R133: SUB-REGIONS: | BA133: Raw numbers of respondents: | BB133: Use of sanitation facilities | BC133: NATIONAL wealth index quintile | BH133: URBAN wealth index quintile | BM133: RURAL wealth index quintile | BR133: SUB-REGIONS:
A134: Percentage based on weighted population | C134: Poorest | D134: Poor | E134: Middle | F134: Rich | G134: Richest | H134: Poorest | I134: Poor | J134: Middle | K134: Rich | L134: Richest | M134: Poorest | N134: Poor | O134: Middle | P134: Rich | Q134: Richest | R134: Boucle du Mouhoun | S134: Cascade | T134: Centre | U134: Centre-Est | V134: Centre-Nord | W134: Centre-Ouest | X134: Centre-Sud | Y134: Est | Z134: Hauts-Bassins | AA134: Nord | AB134: Plateau-Central | AC134: Sahel | AD134: Sud-Ouest | BA134: Sanitation data, raw numbers (weighted) | BC134: Poorest | BD134: Poor | BE134: Middle | BF134: Rich | BG134: Richest | BH134: Poorest | BI134: Poor | BJ134: Middle | BK134: Rich | BL134: Richest | BM134: Poorest | BN134: Poor | BO134: Middle | BP134: Rich | BQ134: Richest | BR134: Boucle du Mouhoun | BS134: Cascade | BT134: Centre | BU134: Centre-Est | BV134: Centre-Nord | BW134: Centre-Ouest | BX134: Centre-Sud | BY134: Est | BZ134: Hauts-Bassins | CA134: Nord | CB134: Plateau-Central | CC134: Sahel | CD134: Sud-Ouest
A135: Sanitation type | B135: Sewer connection | C135: 0 | D135: 0 | E135: 0 | F135: 0 | G135: 0 | H135: 0 | I135: 0 | J135: 0 | K135: 0 | L135: 0 | M135: 0 | N135: 0 | O135: 0 | P135: 0 | Q135: 0 | R135: 0 | S135: 0 | T135: 0 | U135: 0 | V135: 0 | W135: 0 | X135: 0 | Y135: 0 | Z135: 0 | AA135: 0 | AB135: 0 | AC135: 0 | AD135: 0 | BA135: Sanitation type | BB135: Sewer connection | BC135: N/A | BD135: N/A | BE135: N/A | BF135: N/A | BG135: N/A | BH135: N/A | BI135: N/A | BJ135: N/A | BK135: N/A | BL135: N/A | BM135: N/A | BN135: N/A | BO135: N/A | BP135: N/A | BQ135: N/A | BR135: N/A | BS135: N/A | BT135: N/A | BU135: N/A | BV135: N/A | BW135: N/A | BX135: N/A | BY135: N/A | BZ135: N/A | CA135: N/A | CB135: N/A | CC135: N/A | CD135: N/A
B136: Septic tank connection | C136: 0 | D136: 0 | E136: 0 | F136: 0 | G136: 2.154470616 | H136: 0 | I136: 0 | J136: 1.798374499 | K136: 0 | L136: 7.038155981 | M136: 0 | N136: 0 | O136: 0 | P136: 0 | Q136: 0 | R136: 0 | S136: 0 | T136: 2.26316244 | U136: 0 | V136: 0 | W136: 0 | X136: 0 | Y136: 0 | Z136: 3.424956529 | AA136: 0 | AB136: 0 | AC136: 0 | AD136: 0 | BB136: Septic tank connection | BC136: N/A | BD136: N/A | BE136: N/A | BF136: N/A | BG136: N/A | BH136: N/A | BI136: N/A | BJ136: N/A | BK136: N/A | BL136: N/A | BM136: N/A | BN136: N/A | BO136: N/A | BP136: N/A | BQ136: N/A | BR136: N/A | BS136: N/A | BT136: N/A | BU136: N/A | BV136: N/A | BW136: N/A | BX136: N/A | BY136: N/A | BZ136: N/A | CA136: N/A | CB136: N/A | CC136: N/A | CD136: N/A
B137: Improved latrines | C137: 0.2570892319 | D137: 0.2069245334 | E137: 0.5157381986 | F137: 0.8330281202 | G137: 3.378509223 | H137: 1.339095316 | I137: 0.3441075145 | J137: 0.746669456 | K137: 0.7222470748 | L137: 9.32467526 | M137: 0.340071128 | N137: 0.2179118244 | O137: 0.2009523817 | P137: 0.5365726142 | Q137: 1.549349 | R137: 0 | S137: 1.110379968 | T137: 4.650445897 | U137: 0.7520029542 | V137: 3.053815531 | W137: 0.3523897437 | X137: 0.3025394234 | Y137: 0.9494385214 | Z137: 1.207918117 | AA137: 0.4232053334 | AB137: 0.1930476282 | AC137: 1.131041196 | AD137: 0.04436459976 | BB137: Improved latrines | BC137: N/A | BD137: N/A | BE137: N/A | BF137: N/A | BG137: N/A | BH137: N/A | BI137: N/A | BJ137: N/A | BK137: N/A | BL137: N/A | BM137: N/A | BN137: N/A | BO137: N/A | BP137: N/A | BQ137: N/A | BR137: N/A | BS137: N/A | BT137: N/A | BU137: N/A | BV137: N/A | BW137: N/A | BX137: N/A | BY137: N/A | BZ137: N/A | CA137: N/A | CB137: N/A | CC137: N/A | CD137: N/A
B138: Unimproved facilities | C138: 6.888397202 | D138: 12.68527861 | E138: 28.63087449 | F138: 44.25769187 | G138: 87.00122056 | H138: 87.64203417 | I138: 91.64954478 | J138: 93.75515201 | K138: 94.05450363 | L138: 82.54675639 | M138: 6.421166542 | N138: 9.546246034 | O138: 15.15689177 | P138: 22.1841161 | Q138: 39.1740528 | R138: 58.66656036 | S138: 46.1482442 | T138: 56.49459414 | U138: 22.16341244 | V138: 21.81396254 | W138: 40.32001757 | X138: 10.80344473 | Y138: 3.011584688 | Z138: 76.15603436 | AA138: 53.0883941 | AB138: 16.37700312 | AC138: 18.20909612 | AD138: 19.88067052 | BB138: Unimproved facilities | BC138: N/A | BD138: N/A | BE138: N/A | BF138: N/A | BG138: N/A | BH138: N/A | BI138: N/A | BJ138: N/A | BK138: N/A | BL138: N/A | BM138: N/A | BN138: N/A | BO138: N/A | BP138: N/A | BQ138: N/A | BR138: N/A | BS138: N/A | BT138: N/A | BU138: N/A | BV138: N/A | BW138: N/A | BX138: N/A | BY138: N/A | BZ138: N/A | CA138: N/A | CB138: N/A | CC138: N/A | CD138: N/A
B139: Open defecation | C139: 92.85451357 | D139: 87.10779686 | E139: 70.85338731 | F139: 54.90928001 | G139: 7.465799606 | H139: 11.01887051 | I139: 8.006347706 | J139: 3.699804038 | K139: 5.223249295 | L139: 1.09041237 | M139: 93.23876233 | N139: 90.23584214 | O139: 84.64215585 | P139: 77.27931129 | Q139: 59.2765982 | R139: 41.33343964 | S139: 52.74137583 | T139: 36.59179752 | U139: 77.0845846 | V139: 75.13222192 | W139: 59.32759268 | X139: 88.89401585 | Y139: 96.03897679 | Z139: 19.21109099 | AA139: 46.48840057 | AB139: 83.42994925 | AC139: 80.65986268 | AD139: 80.07496488 | BB139: Open defecation | BC139: N/A | BD139: N/A | BE139: N/A | BF139: N/A | BG139: N/A | BH139: N/A | BI139: N/A | BJ139: N/A | BK139: N/A | BL139: N/A | BM139: N/A | BN139: N/A | BO139: N/A | BP139: N/A | BQ139: N/A | BR139: N/A | BS139: N/A | BT139: N/A | BU139: N/A | BV139: N/A | BW139: N/A | BX139: N/A | BY139: N/A | BZ139: N/A | CA139: N/A | CB139: N/A | CC139: N/A | CD139: N/A
A140: Septic tank emptying practices | B140: Not emptied/treated and disposed in situ | C140: N/A | D140: N/A | E140: N/A | F140: N/A | G140: N/A | H140: N/A | I140: N/A | J140: N/A | K140: N/A | L140: N/A | M140: N/A | N140: N/A | O140: N/A | P140: N/A | Q140: N/A | R140: N/A | S140: N/A | T140: N/A | U140: N/A | V140: N/A | W140: N/A | X140: N/A | Y140: N/A | Z140: N/A | AA140: N/A | AB140: N/A | AC140: N/A | AD140: N/A | BA140: Septic tank emptying practices | BB140: Not emptied/treated and disposed in situ | BC140: N/A | BD140: N/A | BE140: N/A | BF140: N/A | BG140: N/A | BH140: N/A | BI140: N/A | BJ140: N/A | BK140: N/A | BL140: N/A | BM140: N/A | BN140: N/A | BO140: N/A | BP140: N/A | BQ140: N/A | BR140: N/A | BS140: N/A | BT140: N/A | BU140: N/A | BV140: N/A | BW140: N/A | BX140: N/A | BY140: N/A | BZ140: N/A | CA140: N/A | CB140: N/A | CC140: N/A | CD140: N/A
B141: Emptied and buried on site | C141: N/A | D141: N/A | E141: N/A | F141: N/A | G141: N/A | H141: N/A | I141: N/A | J141: N/A | K141: N/A | L141: N/A | M141: N/A | N141: N/A | O141: N/A | P141: N/A | Q141: N/A | R141: N/A | S141: N/A | T141: N/A | U141: N/A | V141: N/A | W141: N/A | X141: N/A | Y141: N/A | Z141: N/A | AA141: N/A | AB141: N/A | AC141: N/A | AD141: N/A | BB141: Emptied and buried on site | BC141: N/A | BD141: N/A | BE141: N/A | BF141: N/A | BG141: N/A | BH141: N/A | BI141: N/A | BJ141: N/A | BK141: N/A | BL141: N/A | BM141: N/A | BN141: N/A | BO141: N/A | BP141: N/A | BQ141: N/A | BR141: N/A | BS141: N/A | BT141: N/A | BU141: N/A | BV141: N/A | BW141: N/A | BX141: N/A | BY141: N/A | BZ141: N/A | CA141: N/A | CB141: N/A | CC141: N/A | CD141: N/A
B142: Emptied and discharged locally | C142: N/A | D142: N/A | E142: N/A | F142: N/A | G142: N/A | H142: N/A | I142: N/A | J142: N/A | K142: N/A | L142: N/A | M142: N/A | N142: N/A | O142: N/A | P142: N/A | Q142: N/A | R142: N/A | S142: N/A | T142: N/A | U142: N/A | V142: N/A | W142: N/A | X142: N/A | Y142: N/A | Z142: N/A | AA142: N/A | AB142: N/A | AC142: N/A | AD142: N/A | BB142: Emptied and discharged locally | BC142: N/A | BD142: N/A | BE142: N/A | BF142: N/A | BG142: N/A | BH142: N/A | BI142: N/A | BJ142: N/A | BK142: N/A | BL142: N/A | BM142: N/A | BN142: N/A | BO142: N/A | BP142: N/A | BQ142: N/A | BR142: N/A | BS142: N/A | BT142: N/A | BU142: N/A | BV142: N/A | BW142: N/A | BX142: N/A | BY142: N/A | BZ142: N/A | CA142: N/A | CB142: N/A | CC142: N/A | CD142: N/A
B143: Emptied and removed offsite | C143: N/A | D143: N/A | E143: N/A | F143: N/A | G143: N/A | H143: N/A | I143: N/A | J143: N/A | K143: N/A | L143: N/A | M143: N/A | N143: N/A | O143: N/A | P143: N/A | Q143: N/A | R143: N/A | S143: N/A | T143: N/A | U143: N/A | V143: N/A | W143: N/A | X143: N/A | Y143: N/A | Z143: N/A | AA143: N/A | AB143: N/A | AC143: N/A | AD143: N/A | BB143: Emptied and removed offsite | BC143: N/A | BD143: N/A | BE143: N/A | BF143: N/A | BG143: N/A | BH143: N/A | BI143: N/A | BJ143: N/A | BK143: N/A | BL143: N/A | BM143: N/A | BN143: N/A | BO143: N/A | BP143: N/A | BQ143: N/A | BR143: N/A | BS143: N/A | BT143: N/A | BU143: N/A | BV143: N/A | BW143: N/A | BX143: N/A | BY143: N/A | BZ143: N/A | CA143: N/A | CB143: N/A | CC143: N/A | CD143: N/A
A144: Latrine emptying practices | B144: Not emptied/treated and disposed in situ | C144: N/A | D144: N/A | E144: N/A | F144: N/A | G144: N/A | H144: N/A | I144: N/A | J144: N/A | K144: N/A | L144: N/A | M144: N/A | N144: N/A | O144: N/A | P144: N/A | Q144: N/A | R144: N/A | S144: N/A | T144: N/A | U144: N/A | V144: N/A | W144: N/A | X144: N/A | Y144: N/A | Z144: N/A | AA144: N/A | AB144: N/A | AC144: N/A | AD144: N/A | BA144: Latrine emptying practices | BB144: Not emptied/treated and disposed in situ | BC144: N/A | BD144: N/A | BE144: N/A | BF144: N/A | BG144: N/A | BH144: N/A | BI144: N/A | BJ144: N/A | BK144: N/A | BL144: N/A | BM144: N/A | BN144: N/A | BO144: N/A | BP144: N/A | BQ144: N/A | BR144: N/A | BS144: N/A | BT144: N/A | BU144: N/A | BV144: N/A | BW144: N/A | BX144: N/A | BY144: N/A | BZ144: N/A | CA144: N/A | CB144: N/A | CC144: N/A | CD144: N/A
B145: Emptied and buried on site | C145: N/A | D145: N/A | E145: N/A | F145: N/A | G145: N/A | H145: N/A | I145: N/A | J145: N/A | K145: N/A | L145: N/A | M145: N/A | N145: N/A | O145: N/A | P145: N/A | Q145: N/A | R145: N/A | S145: N/A | T145: N/A | U145: N/A | V145: N/A | W145: N/A | X145: N/A | Y145: N/A | Z145: N/A | AA145: N/A | AB145: N/A | AC145: N/A | AD145: N/A | BB145: Emptied and buried on site | BC145: N/A | BD145: N/A | BE145: N/A | BF145: N/A | BG145: N/A | BH145: N/A | BI145: N/A | BJ145: N/A | BK145: N/A | BL145: N/A | BM145: N/A | BN145: N/A | BO145: N/A | BP145: N/A | BQ145: N/A | BR145: N/A | BS145: N/A | BT145: N/A | BU145: N/A | BV145: N/A | BW145: N/A | BX145: N/A | BY145: N/A | BZ145: N/A | CA145: N/A | CB145: N/A | CC145: N/A | CD145: N/A
B146: Emptied and discharged locally | C146: N/A | D146: N/A | E146: N/A | F146: N/A | G146: N/A | H146: N/A | I146: N/A | J146: N/A | K146: N/A | L146: N/A | M146: N/A | N146: N/A | O146: N/A | P146: N/A | Q146: N/A | R146: N/A | S146: N/A | T146: N/A | U146: N/A | V146: N/A | W146: N/A | X146: N/A | Y146: N/A | Z146: N/A | AA146: N/A | AB146: N/A | AC146: N/A | AD146: N/A | BB146: Emptied and discharged locally | BC146: N/A | BD146: N/A | BE146: N/A | BF146: N/A | BG146: N/A | BH146: N/A | BI146: N/A | BJ146: N/A | BK146: N/A | BL146: N/A | BM146: N/A | BN146: N/A | BO146: N/A | BP146: N/A | BQ146: N/A | BR146: N/A | BS146: N/A | BT146: N/A | BU146: N/A | BV146: N/A | BW146: N/A | BX146: N/A | BY146: N/A | BZ146: N/A | CA146: N/A | CB146: N/A | CC146: N/A | CD146: N/A
B147: Emptied and removed offsite | C147: N/A | D147: N/A | E147: N/A | F147: N/A | G147: N/A | H147: N/A | I147: N/A | J147: N/A | K147: N/A | L147: N/A | M147: N/A | N147: N/A | O147: N/A | P147: N/A | Q147: N/A | R147: N/A | S147: N/A | T147: N/A | U147: N/A | V147: N/A | W147: N/A | X147: N/A | Y147: N/A | Z147: N/A | AA147: N/A | AB147: N/A | AC147: N/A | AD147: N/A | BB147: Emptied and removed offsite | BC147: N/A | BD147: N/A | BE147: N/A | BF147: N/A | BG147: N/A | BH147: N/A | BI147: N/A | BJ147: N/A | BK147: N/A | BL147: N/A | BM147: N/A | BN147: N/A | BO147: N/A | BP147: N/A | BQ147: N/A | BR147: N/A | BS147: N/A | BT147: N/A | BU147: N/A | BV147: N/A | BW147: N/A | BX147: N/A | BY147: N/A | BZ147: N/A | CA147: N/A | CB147: N/A | CC147: N/A | CD147: N/A
A148: Shared among improved sanitation facilities | B148: Yes | C148: 0.1853797489 | D148: 0.1588117421 | E148: 0.1101783819 | F148: 0.4854191308 | G148: 0.5642026076 | H148: 0.7392618215 | I148: 0.1191925917 | J148: 0 | K148: 0.07511914482 | L148: 0.9084735804 | M148: 0.2452156392 | N148: 0.1543805819 | O148: 0.2009523817 | P148: 0 | Q148: 0.7943202556 | R148: 0 | S148: 0 | T148: 0.7678702307 | U148: 0 | V148: 2.11194441 | W148: 0 | X148: 0.09516480784 | Y148: 0.4696711323 | Z148: 0 | AA148: 0.4232053334 | AB148: 0 | AC148: 0.2147105767 | AD148: 0 | BA148: Shared among improved sanitation facilities | BB148: Yes | BC148: N/A | BD148: N/A | BE148: N/A | BF148: N/A | BG148: N/A | BH148: N/A | BI148: N/A | BJ148: N/A | BK148: N/A | BL148: N/A | BM148: N/A | BN148: N/A | BO148: N/A | BP148: N/A | BQ148: N/A | BR148: N/A | BS148: N/A | BT148: N/A | BU148: N/A | BV148: N/A | BW148: N/A | BX148: N/A | BY148: N/A | BZ148: N/A | CA148: N/A | CB148: N/A | CC148: N/A | CD148: N/A
B149: No | C149: 0.07170948296 | D149: 0.04811279135 | E149: 0.4055598167 | F149: 0.3476089893 | G149: 4.884140706 | H149: 0.599833495 | I149: 0.2249149228 | J149: 2.545043955 | K149: 0.64712793 | L149: 15.45435766 | M149: 0.09485548882 | N149: 0.06353124248 | O149: 0 | P149: 0.5365726142 | Q149: 0.6431317182 | R149: 0 | S149: 1.110379968 | T149: 6.145738106 | U149: 0.7520029542 | V149: 0.6795959952 | W149: 0.3523897437 | X149: 0.2073746156 | Y149: 0.4797673891 | Z149: 4.632874646 | AA149: 0 | AB149: 0.1930476282 | AC149: 0.9163306192 | AD149: 0.04436459976 | BB149: No | BC149: N/A | BD149: N/A | BE149: N/A | BF149: N/A | BG149: N/A | BH149: N/A | BI149: N/A | BJ149: N/A | BK149: N/A | BL149: N/A | BM149: N/A | BN149: N/A | BO149: N/A | BP149: N/A | BQ149: N/A | BR149: N/A | BS149: N/A | BT149: N/A | BU149: N/A | BV149: N/A | BW149: N/A | BX149: N/A | BY149: N/A | BZ149: N/A | CA149: N/A | CB149: N/A | CC149: N/A | CD149: N/A
B150: DK/missing | C150: 99.74291077 | D150: 99.79307547 | E150: 99.4842618 | F150: 99.16697188 | G150: 94.55165669 | H150: 98.66090468 | I150: 99.65589249 | J150: 97.45495604 | K150: 99.27775293 | L150: 83.63716876 | M150: 99.65992887 | N150: 99.78208818 | O150: 99.79904762 | P150: 99.46342739 | Q150: 98.56254803 | R150: 100 | S150: 98.88962003 | T150: 93.08639166 | U150: 99.24799705 | V150: 97.2084596 | W150: 99.64761026 | X150: 99.69746058 | Y150: 99.05056148 | Z150: 95.36712535 | AA150: 99.57679467 | AB150: 99.80695237 | AC150: 98.8689588 | AD150: 99.9556354 | BB150: DK/missing | BC150: N/A | BD150: N/A | BE150: N/A | BF150: N/A | BG150: N/A | BH150: N/A | BI150: N/A | BJ150: N/A | BK150: N/A | BL150: N/A | BM150: N/A | BN150: N/A | BO150: N/A | BP150: N/A | BQ150: N/A | BR150: N/A | BS150: N/A | BT150: N/A | BU150: N/A | BV150: N/A | BW150: N/A | BX150: N/A | BY150: N/A | BZ150: N/A | CA150: N/A | CB150: N/A | CC150: N/A | CD150: N/A
A151: Shared among all sanitation facilities | B151: Yes | C151: 37.87189059 | D151: 35.92300431 | E151: 30.65100007 | F151: 32.04701405 | G151: 45.68914241 | H151: 15.79156215 | I151: 24.39700492 | J151: 41.63687356 | K151: 53.15746072 | L151: 52.69629945 | M151: 39.13871959 | N151: 41.47565088 | O151: 42.36807742 | P151: 38.0145118 | Q151: 41.71781751 | R151: 23.29528758 | S151: 41.20282029 | T151: 27.72808645 | U151: 47.56390743 | V151: 37.6799806 | W151: 55.79779273 | X151: 45.33206229 | Y151: 25.05602841 | Z151: 46.57413255 | AA151: 40.97897603 | AB151: 39.26794318 | AC151: 49.58186565 | AD151: 25.94259152 | BA151: Shared among all sanitation facilities | BB151: Yes | BC151: N/A | BD151: N/A | BE151: N/A | BF151: N/A | BG151: N/A | BH151: N/A | BI151: N/A | BJ151: N/A | BK151: N/A | BL151: N/A | BM151: N/A | BN151: N/A | BO151: N/A | BP151: N/A | BQ151: N/A | BR151: N/A | BS151: N/A | BT151: N/A | BU151: N/A | BV151: N/A | BW151: N/A | BX151: N/A | BY151: N/A | BZ151: N/A | CA151: N/A | CB151: N/A | CC151: N/A | CD151: N/A
B152: No | C152: 55.49001497 | D152: 61.79900405 | E152: 68.40095167 | F152: 65.82819184 | G152: 54.20278926 | H152: 83.14181938 | I152: 74.98075798 | J152: 58.29797164 | K152: 46.84253928 | L152: 47.30370055 | M152: 58.41211645 | N152: 49.83306663 | O152: 57.09345466 | P152: 60.7409167 | Q152: 56.09884315 | R152: 76.60736834 | S152: 55.97552846 | T152: 70.94658762 | U152: 51.83216496 | V152: 60.01772198 | W152: 44.20220727 | X152: 52.23562087 | Y152: 74.94397159 | Z152: 52.99523065 | AA152: 59.02102397 | AB152: 59.17398529 | AC152: 50.41813435 | AD152: 65.16456537 | BB152: No | BC152: N/A | BD152: N/A | BE152: N/A | BF152: N/A | BG152: N/A | BH152: N/A | BI152: N/A | BJ152: N/A | BK152: N/A | BL152: N/A | BM152: N/A | BN152: N/A | BO152: N/A | BP152: N/A | BQ152: N/A | BR152: N/A | BS152: N/A | BT152: N/A | BU152: N/A | BV152: N/A | BW152: N/A | BX152: N/A | BY152: N/A | BZ152: N/A | CA152: N/A | CB152: N/A | CC152: N/A | CD152: N/A
A153: Type de toilettes | B153: Chasse branchee a fosse septique | C153: 0 | D153: 0 | E153: 0 | F153: 0 | G153: 2.154470616 | H153: 0 | I153: 0 | J153: 1.798374499 | K153: 0 | L153: 7.038155981 | M153: 0 | N153: 0 | O153: 0 | P153: 0 | Q153: 0 | R153: 0 | S153: 0 | T153: 2.26316244 | U153: 0 | V153: 0 | W153: 0 | X153: 0 | Y153: 0 | Z153: 3.424956529 | AA153: 0 | AB153: 0 | AC153: 0 | AD153: 0 | BA153: Type de toilettes | BB153: Chasse branchee a fosse septique | BC153: 0 | BD153: 0 | BE153: 0 | BF153: 0 | BG153: 159.7828045 | BH153: 0 | BI153: 0 | BJ153: 32.65805258 | BK153: 0 | BL153: 127.1247519 | BM153: 0 | BN153: 0 | BO153: 0 | BP153: 0 | BQ153: 0 | BR153: 0 | BS153: 0 | BT153: 58.66140748 | BU153: 0 | BV153: 0 | BW153: 0 | BX153: 0 | BY153: 0 | BZ153: 101.121397 | CA153: 0 | CB153: 0 | CC153: 0 | CD153: 0
B154: Chasse branchee a latrines | C154: 0 | D154: 0 | E154: 0 | F154: 0 | G154: 0.9670641443 | H154: 0 | I154: 0 | J154: 0.04076079941 | K154: 0 | L154: 3.6639423 | M154: 0 | N154: 0 | O154: 0 | P154: 0 | Q154: 0.08559644338 | R154: 0 | S154: 0.2342193119 | T154: 2.100987939 | U154: 0 | V154: 0 | W154: 0.3523897437 | X154: 0 | Y154: 0 | Z154: 0 | AA154: 0 | AB154: 0 | AC154: 0 | AD154: 0 | BB154: Chasse branchee a latrines | BC154: 0 | BD154: 0 | BE154: 0 | BF154: 0 | BG154: 71.7207373 | BH154: 0 | BI154: 0 | BJ154: 0.7402064091 | BK154: 0 | BL154: 66.17894761 | BM154: 0 | BN154: 0 | BO154: 0 | BP154: 0 | BQ154: 4.801583277 | BR154: 0 | BS154: 8.694690631 | BT154: 54.45782744 | BU154: 0 | BV154: 0 | BW154: 8.568219227 | BX154: 0 | BY154: 0 | BZ154: 0 | CA154: 0 | CB154: 0 | CC154: 0 | CD154: 0
B155: Latrines ameliorees auto aerees (LAA) | C155: 0 | D155: 0.1104429209 | E155: 0.09135066877 | F155: 0.4402460554 | G155: 0.4938187127 | H155: 1.339095316 | I155: 0.2249149228 | J155: 0.4409634604 | K155: 0.2901519524 | L155: 0.9805390004 | M155: 0 | N155: 0.09051126108 | O155: 0.05538574206 | P155: 0.1208607587 | Q155: 0.1791012139 | R155: 0 | S155: 0 | T155: 1.349903377 | U155: 0.5560727456 | V155: 0 | W155: 0 | X155: 0.3025394234 | Y155: 0.03634376672 | Z155: 0 | AA155: 0.4232053334 | AB155: 0.09364473493 | AC155: 0.03185136313 | AD155: 0.04436459976 | BB155: Latrines ameliorees auto aerees (LAA) | BC155: 0 | BD155: 8.19150141 | BE155: 6.771692865 | BF155: 32.64637426 | BG155: 36.6232606 | BH155: 24.23320909 | BI155: 4.036039256 | BJ155: 8.007791415 | BK155: 5.235090893 | BL155: 17.71071535 | BM155: 0 | BN155: 5.083952067 | BO155: 3.107549343 | BP155: 6.771692865 | BQ155: 10.04678886 | BR155: 0 | BS155: 0 | BT155: 34.98963691 | BU155: 15.08870378 | BV155: 0 | BW155: 0 | BX155: 9.879242208 | BY155: 1.109439972 | BZ155: 0 | CA155: 19.47894347 | CB155: 2.050179807 | CC155: 0.6168332688 | CD155: 1.019849712
B156: Latrines couvertes | C156: 0.2570892319 | D156: 0.09648161252 | E156: 0.4243875298 | F156: 0.3927820647 | G156: 1.917626366 | H156: 0 | I156: 0.1191925917 | J156: 0.2649451962 | K156: 0.4320951224 | L156: 4.680193959 | M156: 0.340071128 | N156: 0.1274005633 | O156: 0.1455666396 | P156: 0.4157118555 | Q156: 1.284651343 | R156: 0 | S156: 0.8761606557 | T156: 1.199554581 | U156: 0.1959302086 | V156: 3.053815531 | W156: 0 | X156: 0 | Y156: 0.9130947547 | Z156: 1.207918117 | AA156: 0 | AB156: 0.09940289325 | AC156: 1.099189833 | AD156: 0 | BB156: Latrines couvertes | BC156: 19.06026871 | BD156: 7.155997491 | BE156: 31.45923338 | BF156: 29.12668979 | BG156: 142.2176364 | BH156: 0 | BI156: 2.138879774 | BJ156: 4.811341659 | BK156: 7.79611242 | BL156: 84.53471301 | BM156: 19.06026871 | BN156: 7.155997491 | BO156: 8.167363991 | BP156: 23.29186939 | BQ156: 72.06327929 | BR156: 0 | BS156: 32.52484085 | BT156: 31.09258037 | BU156: 5.316449875 | BV156: 73.08579703 | BW156: 0 | BX156: 0 | BY156: 27.87338546 | BZ156: 35.66362565 | CA156: 0 | CB156: 2.176244128 | CC156: 21.28690238 | CD156: 0
B157: Latrines a fosses/trou ouvert | C157: 5.679187127 | D157: 12.54710113 | E157: 28.3534089 | F157: 43.72191466 | G157: 86.99623018 | H157: 87.64203417 | I157: 91.27519288 | J157: 93.75515201 | K157: 94.05450363 | L157: 82.52626593 | M157: 5.393207718 | N157: 8.919103909 | O157: 15.03111837 | P157: 21.75063027 | Q157: 38.65185095 | R157: 58.66656036 | S157: 45.24476263 | T157: 56.22114811 | U157: 21.37403554 | V157: 21.53874368 | W157: 40.04465704 | X157: 10.15512619 | Y157: 3.011584688 | Z157: 75.75064596 | AA157: 52.84244566 | AB157: 15.97759465 | AC157: 18.20909612 | AD157: 18.48713946 | BB157: Latrines a fosses/trou ouvert | BC157: 421.0477115 | BD157: 930.6128066 | BE157: 2101.797166 | BF157: 3242.191433 | BG157: 6451.933729 | BH157: 1586.031788 | BI157: 1637.909379 | BJ157: 1702.57123 | BK157: 1696.986256 | BL157: 1490.607925 | BM157: 302.2779056 | BN157: 500.9796153 | BO157: 843.356797 | BP157: 1218.663439 | BQ157: 2168.198512 | BR157: 1721.951624 | BS157: 1679.576336 | BT157: 1457.258047 | BU157: 579.9717633 | BV157: 515.4784999 | BW157: 973.6702231 | BX157: 331.6095145 | BY157: 91.93247516 | BZ157: 2236.527991 | CA157: 2432.188185 | CB157: 349.8001455 | CC157: 352.6372243 | CD157: 424.980817
B158: Pas de toilettes ou brousse ou champ | C158: 92.85451357 | D158: 87.10779686 | E158: 70.85338731 | F158: 54.90928001 | G158: 7.465799606 | H158: 11.01887051 | I158: 8.006347706 | J158: 3.699804038 | K158: 5.223249295 | L158: 1.09041237 | M158: 93.23876233 | N158: 90.23584214 | O158: 84.64215585 | P158: 77.27931129 | Q158: 59.2765982 | R158: 41.33343964 | S158: 52.74137583 | T158: 36.59179752 | U158: 77.0845846 | V158: 75.13222192 | W158: 59.32759268 | X158: 88.89401585 | Y158: 96.03897679 | Z158: 19.21109099 | AA158: 46.48840057 | AB158: 83.42994925 | AC158: 80.65986268 | AD158: 80.07496488 | BB158: Pas de toilettes ou brousse ou champ | BC158: 6884.115555 | BD158: 6460.745831 | BE158: 5252.259056 | BF158: 4071.788682 | BG158: 553.688869 | BH158: 199.4052176 | BI158: 143.6718082 | BJ158: 67.18756012 | BK158: 94.24091269 | BL158: 19.6952728 | BM158: 5225.835769 | BN158: 5068.481985 | BO158: 4749.050315 | BP158: 4329.873207 | BQ158: 3325.155946 | BR158: 1213.198509 | BS158: 1957.865654 | BT158: 948.4632243 | BU158: 2091.644433 | BV158: 1798.11068 | BW158: 1442.527285 | BX158: 2902.780416 | BY158: 2931.712624 | BZ158: 567.2049682 | CA158: 2139.729477 | CB158: 1826.5458 | CC158: 1562.058319 | CD158: 1840.756601
B159: Autres | C159: 0.3430588084 | D159: 0.09514439637 | E159: 0.1595040783 | F159: 0.1875654311 | G159: 0 | H159: 0 | I159: 0 | J159: 0 | K159: 0 | L159: 0 | M159: 0.4537895077 | N159: 0 | O159: 0.1257733959 | P159: 0.2774178055 | Q159: 0.1816413912 | R159: 0 | S159: 0.274480902 | T159: 0 | U159: 0.3260850666 | V159: 0 | W159: 0.2753605363 | X159: 0.6483185349 | Y159: 0 | Z159: 0 | AA159: 0.2459484355 | AB159: 0 | AC159: 0 | AD159: 0 | BB159: Autres | BC159: 25.4339438 | BD159: 7.056816776 | BE159: 11.82380648 | BF159: 13.90888388 | BG159: 0 | BH159: 0 | BI159: 0 | BJ159: 0 | BK159: 0 | BL159: 0 | BM159: 25.4339438 | BN159: 0 | BO159: 7.056816776 | BP159: 15.54340875 | BQ159: 10.18928161 | BR159: 0 | BS159: 10.18928161 | BT159: 0 | BU159: 8.848124665 | BV159: 0 | BW159: 6.695284083 | BX159: 21.17045033 | BY159: 0 | BZ159: 0 | CA159: 11.32031024 | CB159: 0 | CC159: 0 | CD159: 0
B160: Manquant | C160: 0.8661512667 | D160: 0.04303307975 | E160: 0.1179615158 | F160: 0.3482117816 | G160: 0.004990377292 | H160: 0 | I160: 0.3743519027 | J160: 0 | K160: 0 | L160: 0.02049045558 | M160: 0.5741693171 | N160: 0.6271421247 | O160: 0 | P160: 0.1560680232 | Q160: 0.3405604606 | R160: 0 | S160: 0.6290006658 | T160: 0.273446034 | U160: 0.4632918384 | V160: 0.2752188679 | W160: 0 | X160: 0 | Y160: 0 | Z160: 0.4053884072 | AA160: 0 | AB160: 0.3994084774 | AC160: 0 | AD160: 1.393531058 | BB160: Manquant | BC160: 64.21535345 | BD160: 3.191744029 | BE160: 8.744316439 | BF160: 25.82158773 | BG160: 0.3701032045 | BH160: 0 | BI160: 6.717646638 | BJ160: 0 | BK160: 0 | BL160: 0.3701032045 | BM160: 32.18097795 | BN160: 35.22611953 | BO160: 0 | BP160: 8.744316439 | BQ160: 19.1039411 | BR160: 0 | BS160: 23.3497663 | BT160: 7.087749842 | BU160: 12.57114895 | BV160: 6.586707716 | BW160: 0 | BX160: 0 | BY160: 0 | BZ160: 11.96904011 | CA160: 0 | CB160: 8.744316439 | CC160: 0 | CD160: 32.0343755
BB161: Total | BC161: 7413.872832 | BD161: 7416.954697 | BE161: 7412.855272 | BF161: 7415.48365 | BG161: 7416.33714 | BH161: 1809.670215 | BI161: 1794.473753 | BJ161: 1815.976182 | BK161: 1804.258372 | BL161: 1806.222429 | BM161: 5604.788865 | BN161: 5616.927669 | BO161: 5610.738842 | BP161: 5602.887933 | BQ161: 5609.559332 | BR161: 2935.150133 | BS161: 3712.20057 | BT161: 2592.010474 | BU161: 2713.440624 | BV161: 2393.261685 | BW161: 2431.461012 | BX161: 3265.439623 | BY161: 3052.627925 | BZ161: 2952.487022 | CA161: 4602.716916 | CB161: 2189.316685 | CC161: 1936.599279 | CD161: 2298.791643
A208: =A1026 -> Burkina Faso
A209: =A1034 -> 2006
A210: Access to hygiene facilities
A211: by wealth quintile and sub-national region
A212: Notes:
A213: WHO/UNICEF JMP customised wealth index excludes water,
A214: sanitation and hygiene assets.
A215: Survey used for analysis: | B215: =A1025 -> MICS06
A220: Access to handwashing | C220: NATIONAL wealth index quintile | H220: URBAN wealth index quintile | M220: RURAL wealth index quintile | R220: SUB-REGIONS: | BA220: Raw numbers of respondents: | BB220: Access to handwashing | BC220: NATIONAL wealth index quintile | BH220: URBAN wealth index quintile | BM220: RURAL wealth index quintile | BR220: SUB-REGIONS:
A221: Weighted percentage (used in graphs) | C221: Poorest | D221: Poor | E221: Middle | F221: Rich | G221: Richest | H221: Poorest | I221: Poor | J221: Middle | K221: Rich | L221: Richest | M221: Poorest | N221: Poor | O221: Middle | P221: Rich | Q221: Richest | R221: Boucle du Mouhoun | S221: Cascade | T221: Centre | U221: Centre-Est | V221: Centre-Nord | W221: Centre-Ouest | X221: Centre-Sud | Y221: Est | Z221: Hauts-Bassins | AA221: Nord | AB221: Plateau-Central | AC221: Sahel | AD221: Sud-Ouest | BA221: Hygiene data, raw numbers (weighted) | BC221: Poorest | BD221: Poor | BE221: Middle | BF221: Rich | BG221: Richest | BH221: Poorest | BI221: Poor | BJ221: Middle | BK221: Rich | BL221: Richest | BM221: Poorest | BN221: Poor | BO221: Middle | BP221: Rich | BQ221: Richest | BR221: Boucle du Mouhoun | BS221: Cascade | BT221: Centre | BU221: Centre-Est | BV221: Centre-Nord | BW221: Centre-Ouest | BX221: Centre-Sud | BY221: Est | BZ221: Hauts-Bassins | CA221: Nord | CB221: Plateau-Central | CC221: Sahel | CD221: Sud-Ouest
A222: Hygiene ladder | B222: Basic | C222: N/A | D222: N/A | E222: N/A | F222: N/A | G222: N/A | H222: N/A | I222: N/A | J222: N/A | K222: N/A | L222: N/A | M222: N/A | N222: N/A | O222: N/A | P222: N/A | Q222: N/A | R222: N/A | S222: N/A | T222: N/A | U222: N/A | V222: N/A | W222: N/A | X222: N/A | Y222: N/A | Z222: N/A | AA222: N/A | AB222: N/A | AC222: N/A | AD222: N/A | BA222: Hygiene ladder | BB222: Basic | BC222: N/A | BD222: N/A | BE222: N/A | BF222: N/A | BG222: N/A | BH222: N/A | BI222: N/A | BJ222: N/A | BK222: N/A | BL222: N/A | BM222: N/A | BN222: N/A | BO222: N/A | BP222: N/A | BQ222: N/A | BR222: N/A | BS222: N/A | BT222: N/A | BU222: N/A | BV222: N/A | BW222: N/A | BX222: N/A | BY222: N/A | BZ222: N/A | CA222: N/A | CB222: N/A | CC222: N/A | CD222: N/A
B223: Limited | C223: N/A | D223: N/A | E223: N/A | F223: N/A | G223: N/A | H223: N/A | I223: N/A | J223: N/A | K223: N/A | L223: N/A | M223: N/A | N223: N/A | O223: N/A | P223: N/A | Q223: N/A | R223: N/A | S223: N/A | T223: N/A | U223: N/A | V223: N/A | W223: N/A | X223: N/A | Y223: N/A | Z223: N/A | AA223: N/A | AB223: N/A | AC223: N/A | AD223: N/A | BB223: Limited | BC223: N/A | BD223: N/A | BE223: N/A | BF223: N/A | BG223: N/A | BH223: N/A | BI223: N/A | BJ223: N/A | BK223: N/A | BL223: N/A | BM223: N/A | BN223: N/A | BO223: N/A | BP223: N/A | BQ223: N/A | BR223: N/A | BS223: N/A | BT223: N/A | BU223: N/A | BV223: N/A | BW223: N/A | BX223: N/A | BY223: N/A | BZ223: N/A | CA223: N/A | CB223: N/A | CC223: N/A | CD223: N/A
B224: No facility | C224: N/A | D224: N/A | E224: N/A | F224: N/A | G224: N/A | H224: N/A | I224: N/A | J224: N/A | K224: N/A | L224: N/A | M224: N/A | N224: N/A | O224: N/A | P224: N/A | Q224: N/A | R224: N/A | S224: N/A | T224: N/A | U224: N/A | V224: N/A | W224: N/A | X224: N/A | Y224: N/A | Z224: N/A | AA224: N/A | AB224: N/A | AC224: N/A | AD224: N/A | BB224: No facility | BC224: N/A | BD224: N/A | BE224: N/A | BF224: N/A | BG224: N/A | BH224: N/A | BI224: N/A | BJ224: N/A | BK224: N/A | BL224: N/A | BM224: N/A | BN224: N/A | BO224: N/A | BP224: N/A | BQ224: N/A | BR224: N/A | BS224: N/A | BT224: N/A | BU224: N/A | BV224: N/A | BW224: N/A | BX224: N/A | BY224: N/A | BZ224: N/A | CA224: N/A | CB224: N/A | CC224: N/A | CD224: N/A
BA225: Observed handwashing place | BB225: Fixed | BC225: N/A | BD225: N/A | BE225: N/A | BF225: N/A | BG225: N/A | BH225: N/A | BI225: N/A | BJ225: N/A | BK225: N/A | BL225: N/A | BM225: N/A | BN225: N/A | BO225: N/A | BP225: N/A | BQ225: N/A | BR225: N/A | BS225: N/A | BT225: N/A | BU225: N/A | BV225: N/A | BW225: N/A | BX225: N/A | BY225: N/A | BZ225: N/A | CA225: N/A | CB225: N/A | CC225: N/A | CD225: N/A
BB226: Mobile | BC226: N/A | BD226: N/A | BE226: N/A | BF226: N/A | BG226: N/A | BH226: N/A | BI226: N/A | BJ226: N/A | BK226: N/A | BL226: N/A | BM226: N/A | BN226: N/A | BO226: N/A | BP226: N/A | BQ226: N/A | BR226: N/A | BS226: N/A | BT226: N/A | BU226: N/A | BV226: N/A | BW226: N/A | BX226: N/A | BY226: N/A | BZ226: N/A | CA226: N/A | CB226: N/A | CC226: N/A | CD226: N/A
BA227: Water / Soap | BB227: Water and soap | BC227: N/A | BD227: N/A | BE227: N/A | BF227: N/A | BG227: N/A | BH227: N/A | BI227: N/A | BJ227: N/A | BK227: N/A | BL227: N/A | BM227: N/A | BN227: N/A | BO227: N/A | BP227: N/A | BQ227: N/A | BR227: N/A | BS227: N/A | BT227: N/A | BU227: N/A | BV227: N/A | BW227: N/A | BX227: N/A | BY227: N/A | BZ227: N/A | CA227: N/A | CB227: N/A | CC227: N/A | CD227: N/A
BB228: Water only | BC228: N/A | BD228: N/A | BE228: N/A | BF228: N/A | BG228: N/A | BH228: N/A | BI228: N/A | BJ228: N/A | BK228: N/A | BL228: N/A | BM228: N/A | BN228: N/A | BO228: N/A | BP228: N/A | BQ228: N/A | BR228: N/A | BS228: N/A | BT228: N/A | BU228: N/A | BV228: N/A | BW228: N/A | BX228: N/A | BY228: N/A | BZ228: N/A | CA228: N/A | CB228: N/A | CC228: N/A | CD228: N/A
BB229: Soap only | BC229: N/A | BD229: N/A | BE229: N/A | BF229: N/A | BG229: N/A | BH229: N/A | BI229: N/A | BJ229: N/A | BK229: N/A | BL229: N/A | BM229: N/A | BN229: N/A | BO229: N/A | BP229: N/A | BQ229: N/A | BR229: N/A | BS229: N/A | BT229: N/A | BU229: N/A | BV229: N/A | BW229: N/A | BX229: N/A | BY229: N/A | BZ229: N/A | CA229: N/A | CB229: N/A | CC229: N/A | CD229: N/A
BB230: Neither | BC230: N/A | BD230: N/A | BE230: N/A | BF230: N/A | BG230: N/A | BH230: N/A | BI230: N/A | BJ230: N/A | BK230: N/A | BL230: N/A | BM230: N/A | BN230: N/A | BO230: N/A | BP230: N/A | BQ230: N/A | BR230: N/A | BS230: N/A | BT230: N/A | BU230: N/A | BV230: N/A | BW230: N/A | BX230: N/A | BY230: N/A | BZ230: N/A | CA230: N/A | CB230: N/A | CC230: N/A | CD230: N/A
BA259: Raw numbers of respondents: | BB259: Menstrual health and hygiene | BC259: NATIONAL wealth index quintile | BH259: URBAN wealth index quintile | BM259: RURAL wealth index quintile | BR259: SUB-REGIONS:
BA260: MHH data, raw numbers (weighted) | BC260: Poorest | BD260: Poor | BE260: Middle | BF260: Rich | BG260: Richest | BH260: Poorest | BI260: Poor | BJ260: Middle | BK260: Rich | BL260: Richest | BM260: Poorest | BN260: Poor | BO260: Middle | BP260: Rich | BQ260: Richest | BR260: Boucle du Mouhoun | BS260: Cascade | BT260: Centre | BU260: Centre-Est | BV260: Centre-Nord | BW260: Centre-Ouest | BX260: Centre-Sud | BY260: Est | BZ260: Hauts-Bassins | CA260: Nord | CB260: Plateau-Central | CC260: Sahel | CD260: Sud-Ouest
BA261: Private place to wash and change | BB261: Yes | BC261: N/A | BD261: N/A | BE261: N/A | BF261: N/A | BG261: N/A | BH261: N/A | BI261: N/A | BJ261: N/A | BK261: N/A | BL261: N/A | BM261: N/A | BN261: N/A | BO261: N/A | BP261: N/A | BQ261: N/A | BR261: N/A | BS261: N/A | BT261: N/A | BU261: N/A | BV261: N/A | BW261: N/A | BX261: N/A | BY261: N/A | BZ261: N/A | CA261: N/A | CB261: N/A | CC261: N/A | CD261: N/A
BB262: No | BC262: N/A | BD262: N/A | BE262: N/A | BF262: N/A | BG262: N/A | BH262: N/A | BI262: N/A | BJ262: N/A | BK262: N/A | BL262: N/A | BM262: N/A | BN262: N/A | BO262: N/A | BP262: N/A | BQ262: N/A | BR262: N/A | BS262: N/A | BT262: N/A | BU262: N/A | BV262: N/A | BW262: N/A | BX262: N/A | BY262: N/A | BZ262: N/A | CA262: N/A | CB262: N/A | CC262: N/A | CD262: N/A
BB263: DK/not sure/missing | BC263: N/A | BD263: N/A | BE263: N/A | BF263: N/A | BG263: N/A | BH263: N/A | BI263: N/A | BJ263: N/A | BK263: N/A | BL263: N/A | BM263: N/A | BN263: N/A | BO263: N/A | BP263: N/A | BQ263: N/A | BR263: N/A | BS263: N/A | BT263: N/A | BU263: N/A | BV263: N/A | BW263: N/A | BX263: N/A | BY263: N/A | BZ263: N/A | CA263: N/A | CB263: N/A | CC263: N/A | CD263: N/A
BA264: Use of menstrual materials | BB264: Materials reusable | BC264: N/A | BD264: N/A | BE264: N/A | BF264: N/A | BG264: N/A | BH264: N/A | BI264: N/A | BJ264: N/A | BK264: N/A | BL264: N/A | BM264: N/A | BN264: N/A | BO264: N/A | BP264: N/A | BQ264: N/A | BR264: N/A | BS264: N/A | BT264: N/A | BU264: N/A | BV264: N/A | BW264: N/A | BX264: N/A | BY264: N/A | BZ264: N/A | CA264: N/A | CB264: N/A | CC264: N/A | CD264: N/A
BB265: Materials not reusable | BC265: N/A | BD265: N/A | BE265: N/A | BF265: N/A | BG265: N/A | BH265: N/A | BI265: N/A | BJ265: N/A | BK265: N/A | BL265: N/A | BM265: N/A | BN265: N/A | BO265: N/A | BP265: N/A | BQ265: N/A | BR265: N/A | BS265: N/A | BT265: N/A | BU265: N/A | BV265: N/A | BW265: N/A | BX265: N/A | BY265: N/A | BZ265: N/A | CA265: N/A | CB265: N/A | CC265: N/A | CD265: N/A
BB266: No materials used | BC266: N/A | BD266: N/A | BE266: N/A | BF266: N/A | BG266: N/A | BH266: N/A | BI266: N/A | BJ266: N/A | BK266: N/A | BL266: N/A | BM266: N/A | BN266: N/A | BO266: N/A | BP266: N/A | BQ266: N/A | BR266: N/A | BS266: N/A | BT266: N/A | BU266: N/A | BV266: N/A | BW266: N/A | BX266: N/A | BY266: N/A | BZ266: N/A | CA266: N/A | CB266: N/A | CC266: N/A | CD266: N/A
BB267: DK/not sure/missing | BC267: N/A | BD267: N/A | BE267: N/A | BF267: N/A | BG267: N/A | BH267: N/A | BI267: N/A | BJ267: N/A | BK267: N/A | BL267: N/A | BM267: N/A | BN267: N/A | BO267: N/A | BP267: N/A | BQ267: N/A | BR267: N/A | BS267: N/A | BT267: N/A | BU267: N/A | BV267: N/A | BW267: N/A | BX267: N/A | BY267: N/A | BZ267: N/A | CA267: N/A | CB267: N/A | CC267: N/A | CD267: N/A
BA268: Use of menstrual materials with private place to wash and change | BB268: Materials reusable | BC268: N/A | BD268: N/A | BE268: N/A | BF268: N/A | BG268: N/A | BH268: N/A | BI268: N/A | BJ268: N/A | BK268: N/A | BL268: N/A | BM268: N/A | BN268: N/A | BO268: N/A | BP268: N/A | BQ268: N/A | BR268: N/A | BS268: N/A | BT268: N/A | BU268: N/A | BV268: N/A | BW268: N/A | BX268: N/A | BY268: N/A | BZ268: N/A | CA268: N/A | CB268: N/A | CC268: N/A | CD268: N/A
BB269: Materials not reusable | BC269: N/A | BD269: N/A | BE269: N/A | BF269: N/A | BG269: N/A | BH269: N/A | BI269: N/A | BJ269: N/A | BK269: N/A | BL269: N/A | BM269: N/A | BN269: N/A | BO269: N/A | BP269: N/A | BQ269: N/A | BR269: N/A | BS269: N/A | BT269: N/A | BU269: N/A | BV269: N/A | BW269: N/A | BX269: N/A | BY269: N/A | BZ269: N/A | CA269: N/A | CB269: N/A | CC269: N/A | CD269: N/A
BB270: No materials used | BC270: N/A | BD270: N/A | BE270: N/A | BF270: N/A | BG270: N/A | BH270: N/A | BI270: N/A | BJ270: N/A | BK270: N/A | BL270: N/A | BM270: N/A | BN270: N/A | BO270: N/A | BP270: N/A | BQ270: N/A | BR270: N/A | BS270: N/A | BT270: N/A | BU270: N/A | BV270: N/A | BW270: N/A | BX270: N/A | BY270: N/A | BZ270: N/A | CA270: N/A | CB270: N/A | CC270: N/A | CD270: N/A
BA271: Awareness of menstruation before menarche | BB271: Yes | BC271: N/A | BD271: N/A | BE271: N/A | BF271: N/A | BG271: N/A | BH271: N/A | BI271: N/A | BJ271: N/A | BK271: N/A | BL271: N/A | BM271: N/A | BN271: N/A | BO271: N/A | BP271: N/A | BQ271: N/A | BR271: N/A | BS271: N/A | BT271: N/A | BU271: N/A | BV271: N/A | BW271: N/A | BX271: N/A | BY271: N/A | BZ271: N/A | CA271: N/A | CB271: N/A | CC271: N/A | CD271: N/A
